Workbook

Sheet Consumer Price Index
D2: Table X16 (Indice base 100 as at Dec 2016) | L2: 2016 / 100
D4: Refer to CPI Index P0141 / Additional Tables | H4: * The alternative / replacement indices are those published per province found in P0141 Table A / Tables 3 to 11 in the Additional Tables.
D5: Table A or Tables 3 to 11 - CPI for each province
B7: Conversion Factors: | D7: 0.7917656374 | E7: 0.786163522 | F7: 0.7751937984 | G7: 0.7757951901 | H7: 0.8006405124 | I7: 0.772797527 | J7: 0.7886435331 | K7: 0.7874015748 | L7: 0.7974481659
B9: Conversion factor | D9: DEC 2016 = 100
C11: 2016<--2012 | D11: 0.7961783439 | E11: 0.7955449483 | F11: 0.8196721311 | G11: 0.796812749 | H11: 0.8 | I11: 0.8090614887 | J11: 0.8019246191 | K11: 0.8110300081 | L11: 0.790513834
B13: Table A / Tables * | D13: 3 | E13: 4 | F13: 5 | G13: 6 | H13: 7 | I13: 8 | J13: 9 | K13: 10 | L13: 11
B14: Month | C14: Year | D14: Western Cape | E14: Eastern Cape | F14: Northern Cape | G14: Free State | H14: KwaZulu Natal | I14: North West | J14: Gauteng | K14: Mpumalanga | L14: Limpopo
B16: 1 | C16: 2008 | D16: ='Table X12 Indices 2012=100'!D16*$D$11 -> 60.11146496 | E16: ='Table X12 Indices 2012=100'!E16*$E$11 -> 58.87032617 | F16: ='Table X12 Indices 2012=100'!F16*$F$11 -> 61.06557377 | G16: ='Table X12 Indices 2012=100'!G16*$G$11 -> 59.3625498 | H16: ='Table X12 Indices 2012=100'!H16*$H$11 -> 60.4 | I16: ='Table X12 Indices 2012=100'!I16*$I$11 -> 60.35598706 | J16: ='Table X12 Indices 2012=100'!J16*$J$11 -> 60.6255012 | K16: ='Table X12 Indices 2012=100'!K16*$K$11 -> 60.58394161 | L16: ='Table X12 Indices 2012=100'!L16*$L$11 -> 59.60474308
B17: 2 | C17: 2008 | D17: ='Table X12 Indices 2012=100'!D17*$D$11 -> 60.35031847 | E17: ='Table X12 Indices 2012=100'!E17*$E$11 -> 59.10898966 | F17: ='Table X12 Indices 2012=100'!F17*$F$11 -> 61.22950819 | G17: ='Table X12 Indices 2012=100'!G17*$G$11 -> 59.60159363 | H17: ='Table X12 Indices 2012=100'!H17*$H$11 -> 60.72 | I17: ='Table X12 Indices 2012=100'!I17*$I$11 -> 60.7605178 | J17: ='Table X12 Indices 2012=100'!J17*$J$11 -> 61.10665598 | K17: ='Table X12 Indices 2012=100'!K17*$K$11 -> 60.82725061 | L17: ='Table X12 Indices 2012=100'!L17*$L$11 -> 59.92094862
B18: 3 | C18: 2008 | D18: ='Table X12 Indices 2012=100'!D18*$D$11 -> 61.30573248 | E18: ='Table X12 Indices 2012=100'!E18*$E$11 -> 59.90453461 | F18: ='Table X12 Indices 2012=100'!F18*$F$11 -> 61.96721311 | G18: ='Table X12 Indices 2012=100'!G18*$G$11 -> 60.47808765 | H18: ='Table X12 Indices 2012=100'!H18*$H$11 -> 61.2 | I18: ='Table X12 Indices 2012=100'!I18*$I$11 -> 61.65048544 | J18: ='Table X12 Indices 2012=100'!J18*$J$11 -> 62.14915798 | K18: ='Table X12 Indices 2012=100'!K18*$K$11 -> 61.23276561 | L18: ='Table X12 Indices 2012=100'!L18*$L$11 -> 60.55335968
B19: 4 | C19: 2008 | D19: ='Table X12 Indices 2012=100'!D19*$D$11 -> 61.70382165 | E19: ='Table X12 Indices 2012=100'!E19*$E$11 -> 60.38186158 | F19: ='Table X12 Indices 2012=100'!F19*$F$11 -> 62.45901639 | G19: ='Table X12 Indices 2012=100'!G19*$G$11 -> 60.87649402 | H19: ='Table X12 Indices 2012=100'!H19*$H$11 -> 61.76 | I19: ='Table X12 Indices 2012=100'!I19*$I$11 -> 62.13592233 | J19: ='Table X12 Indices 2012=100'!J19*$J$11 -> 62.46992783 | K19: ='Table X12 Indices 2012=100'!K19*$K$11 -> 61.55717761 | L19: ='Table X12 Indices 2012=100'!L19*$L$11 -> 61.10671937
B20: 5 | C20: 2008 | D20: ='Table X12 Indices 2012=100'!D20*$D$11 -> 62.10191082 | E20: ='Table X12 Indices 2012=100'!E20*$E$11 -> 60.93874304 | F20: ='Table X12 Indices 2012=100'!F20*$F$11 -> 62.95081967 | G20: ='Table X12 Indices 2012=100'!G20*$G$11 -> 61.2749004 | H20: ='Table X12 Indices 2012=100'!H20*$H$11 -> 62.16 | I20: ='Table X12 Indices 2012=100'!I20*$I$11 -> 62.62135923 | J20: ='Table X12 Indices 2012=100'!J20*$J$11 -> 62.9510826 | K20: ='Table X12 Indices 2012=100'!K20*$K$11 -> 62.12489862 | L20: ='Table X12 Indices 2012=100'!L20*$L$11 -> 61.34387352
B21: 6 | C21: 2008 | D21: ='Table X12 Indices 2012=100'!D21*$D$11 -> 62.7388535 | E21: ='Table X12 Indices 2012=100'!E21*$E$11 -> 61.81384248 | F21: ='Table X12 Indices 2012=100'!F21*$F$11 -> 63.7704918 | G21: ='Table X12 Indices 2012=100'!G21*$G$11 -> 61.99203187 | H21: ='Table X12 Indices 2012=100'!H21*$H$11 -> 63.36 | I21: ='Table X12 Indices 2012=100'!I21*$I$11 -> 63.51132686 | J21: ='Table X12 Indices 2012=100'!J21*$J$11 -> 63.91339214 | K21: ='Table X12 Indices 2012=100'!K21*$K$11 -> 62.93592863 | L21: ='Table X12 Indices 2012=100'!L21*$L$11 -> 62.3715415
B22: 7 | C22: 2008 | D22: ='Table X12 Indices 2012=100'!D22*$D$11 -> 63.61464968 | E22: ='Table X12 Indices 2012=100'!E22*$E$11 -> 62.60938743 | F22: ='Table X12 Indices 2012=100'!F22*$F$11 -> 64.4262295 | G22: ='Table X12 Indices 2012=100'!G22*$G$11 -> 62.70916335 | H22: ='Table X12 Indices 2012=100'!H22*$H$11 -> 64.48 | I22: ='Table X12 Indices 2012=100'!I22*$I$11 -> 64.2394822 | J22: ='Table X12 Indices 2012=100'!J22*$J$11 -> 64.6351243 | K22: ='Table X12 Indices 2012=100'!K22*$K$11 -> 63.82806164 | L22: ='Table X12 Indices 2012=100'!L22*$L$11 -> 63.16205534
B23: 8 | C23: 2008 | D23: ='Table X12 Indices 2012=100'!D23*$D$11 -> 63.93312102 | E23: ='Table X12 Indices 2012=100'!E23*$E$11 -> 63.1662689 | F23: ='Table X12 Indices 2012=100'!F23*$F$11 -> 65.16393442 | G23: ='Table X12 Indices 2012=100'!G23*$G$11 -> 63.187251 | H23: ='Table X12 Indices 2012=100'!H23*$H$11 -> 64.88 | I23: ='Table X12 Indices 2012=100'!I23*$I$11 -> 64.80582524 | J23: ='Table X12 Indices 2012=100'!J23*$J$11 -> 64.95589415 | K23: ='Table X12 Indices 2012=100'!K23*$K$11 -> 64.23357664 | L23: ='Table X12 Indices 2012=100'!L23*$L$11 -> 63.71541502
B24: 9 | C24: 2008 | D24: ='Table X12 Indices 2012=100'!D24*$D$11 -> 64.41082802 | E24: ='Table X12 Indices 2012=100'!E24*$E$11 -> 63.80270485 | F24: ='Table X12 Indices 2012=100'!F24*$F$11 -> 65.57377049 | G24: ='Table X12 Indices 2012=100'!G24*$G$11 -> 63.66533865 | H24: ='Table X12 Indices 2012=100'!H24*$H$11 -> 65.2 | I24: ='Table X12 Indices 2012=100'!I24*$I$11 -> 65.37216829 | J24: ='Table X12 Indices 2012=100'!J24*$J$11 -> 65.19647153 | K24: ='Table X12 Indices 2012=100'!K24*$K$11 -> 64.55798864 | L24: ='Table X12 Indices 2012=100'!L24*$L$11 -> 64.03162055
B25: 10 | C25: 2008 | D25: ='Table X12 Indices 2012=100'!D25*$D$11 -> 64.64968152 | E25: ='Table X12 Indices 2012=100'!E25*$E$11 -> 64.04136834 | F25: ='Table X12 Indices 2012=100'!F25*$F$11 -> 65.98360655 | G25: ='Table X12 Indices 2012=100'!G25*$G$11 -> 63.82470119 | H25: ='Table X12 Indices 2012=100'!H25*$H$11 -> 65.52 | I25: ='Table X12 Indices 2012=100'!I25*$I$11 -> 65.53398058 | J25: ='Table X12 Indices 2012=100'!J25*$J$11 -> 65.27666399 | K25: ='Table X12 Indices 2012=100'!K25*$K$11 -> 64.96350365 | L25: ='Table X12 Indices 2012=100'!L25*$L$11 -> 64.34782609
B26: 11 | C26: 2008 | D26: ='Table X12 Indices 2012=100'!D26*$D$11 -> 64.72929936 | E26: ='Table X12 Indices 2012=100'!E26*$E$11 -> 64.04136834 | F26: ='Table X12 Indices 2012=100'!F26*$F$11 -> 65.98360655 | G26: ='Table X12 Indices 2012=100'!G26*$G$11 -> 63.90438247 | H26: ='Table X12 Indices 2012=100'!H26*$H$11 -> 65.52 | I26: ='Table X12 Indices 2012=100'!I26*$I$11 -> 65.61488673 | J26: ='Table X12 Indices 2012=100'!J26*$J$11 -> 65.35685646 | K26: ='Table X12 Indices 2012=100'!K26*$K$11 -> 65.04460665 | L26: ='Table X12 Indices 2012=100'!L26*$L$11 -> 64.58498024
B27: 12 | C27: 2008 | D27: ='Table X12 Indices 2012=100'!D27*$D$11 -> 64.64968152 | E27: ='Table X12 Indices 2012=100'!E27*$E$11 -> 63.80270485 | F27: ='Table X12 Indices 2012=100'!F27*$F$11 -> 65.6557377 | G27: ='Table X12 Indices 2012=100'!G27*$G$11 -> 63.82470119 | H27: ='Table X12 Indices 2012=100'!H27*$H$11 -> 65.6 | I27: ='Table X12 Indices 2012=100'!I27*$I$11 -> 65.53398058 | J27: ='Table X12 Indices 2012=100'!J27*$J$11 -> 65.19647153 | K27: ='Table X12 Indices 2012=100'!K27*$K$11 -> 65.04460665 | L27: ='Table X12 Indices 2012=100'!L27*$L$11 -> 64.50592885
B28: 1 | C28: 2009 | D28: ='Table X12 Indices 2012=100'!D28*$D$11 -> 64.72929936 | E28: ='Table X12 Indices 2012=100'!E28*$E$11 -> 64.35958632 | F28: ='Table X12 Indices 2012=100'!F28*$F$11 -> 65.73770491 | G28: ='Table X12 Indices 2012=100'!G28*$G$11 -> 64.14342629 | H28: ='Table X12 Indices 2012=100'!H28*$H$11 -> 66.24 | I28: ='Table X12 Indices 2012=100'!I28*$I$11 -> 65.61488673 | J28: ='Table X12 Indices 2012=100'!J28*$J$11 -> 65.35685646 | K28: ='Table X12 Indices 2012=100'!K28*$K$11 -> 65.69343066 | L28: ='Table X12 Indices 2012=100'!L28*$L$11 -> 64.90118577
B29: 2 | C29: 2009 | D29: ='Table X12 Indices 2012=100'!D29*$D$11 -> 65.36624203 | E29: ='Table X12 Indices 2012=100'!E29*$E$11 -> 64.99602228 | F29: ='Table X12 Indices 2012=100'!F29*$F$11 -> 66.55737705 | G29: ='Table X12 Indices 2012=100'!G29*$G$11 -> 64.86055777 | H29: ='Table X12 Indices 2012=100'!H29*$H$11 -> 66.72 | I29: ='Table X12 Indices 2012=100'!I29*$I$11 -> 66.42394822 | J29: ='Table X12 Indices 2012=100'!J29*$J$11 -> 66.15878108 | K29: ='Table X12 Indices 2012=100'!K29*$K$11 -> 66.66666667 | L29: ='Table X12 Indices 2012=100'!L29*$L$11 -> 65.37549407
B30: 3 | C30: 2009 | D30: ='Table X12 Indices 2012=100'!D30*$D$11 -> 66.32165605 | E30: ='Table X12 Indices 2012=100'!E30*$E$11 -> 65.79156722 | F30: ='Table X12 Indices 2012=100'!F30*$F$11 -> 67.29508196 | G30: ='Table X12 Indices 2012=100'!G30*$G$11 -> 65.65737052 | H30: ='Table X12 Indices 2012=100'!H30*$H$11 -> 67.52 | I30: ='Table X12 Indices 2012=100'!I30*$I$11 -> 67.63754046 | J30: ='Table X12 Indices 2012=100'!J30*$J$11 -> 67.12109062 | K30: ='Table X12 Indices 2012=100'!K30*$K$11 -> 67.39659367 | L30: ='Table X12 Indices 2012=100'!L30*$L$11 -> 66.24505929
B31: 4 | C31: 2009 | D31: ='Table X12 Indices 2012=100'!D31*$D$11 -> 66.64012738 | E31: ='Table X12 Indices 2012=100'!E31*$E$11 -> 66.1893397 | F31: ='Table X12 Indices 2012=100'!F31*$F$11 -> 67.86885246 | G31: ='Table X12 Indices 2012=100'!G31*$G$11 -> 66.05577689 | H31: ='Table X12 Indices 2012=100'!H31*$H$11 -> 67.92 | I31: ='Table X12 Indices 2012=100'!I31*$I$11 -> 67.7184466 | J31: ='Table X12 Indices 2012=100'!J31*$J$11 -> 67.44186047 | K31: ='Table X12 Indices 2012=100'!K31*$K$11 -> 67.80210868 | L31: ='Table X12 Indices 2012=100'!L31*$L$11 -> 66.48221344
B32: 5 | C32: 2009 | D32: ='Table X12 Indices 2012=100'!D32*$D$11 -> 66.87898089 | E32: ='Table X12 Indices 2012=100'!E32*$E$11 -> 66.34844869 | F32: ='Table X12 Indices 2012=100'!F32*$F$11 -> 67.95081967 | G32: ='Table X12 Indices 2012=100'!G32*$G$11 -> 66.21513944 | H32: ='Table X12 Indices 2012=100'!H32*$H$11 -> 68 | I32: ='Table X12 Indices 2012=100'!I32*$I$11 -> 67.96116505 | J32: ='Table X12 Indices 2012=100'!J32*$J$11 -> 67.68243785 | K32: ='Table X12 Indices 2012=100'!K32*$K$11 -> 68.04541768 | L32: ='Table X12 Indices 2012=100'!L32*$L$11 -> 66.71936759
B33: 6 | C33: 2009 | D33: ='Table X12 Indices 2012=100'!D33*$D$11 -> 67.11783439 | E33: ='Table X12 Indices 2012=100'!E33*$E$11 -> 66.58711217 | F33: ='Table X12 Indices 2012=100'!F33*$F$11 -> 68.27868852 | G33: ='Table X12 Indices 2012=100'!G33*$G$11 -> 66.45418327 | H33: ='Table X12 Indices 2012=100'!H33*$H$11 -> 68.24 | I33: ='Table X12 Indices 2012=100'!I33*$I$11 -> 68.0420712 | J33: ='Table X12 Indices 2012=100'!J33*$J$11 -> 68.0032077 | K33: ='Table X12 Indices 2012=100'!K33*$K$11 -> 68.04541768 | L33: ='Table X12 Indices 2012=100'!L33*$L$11 -> 66.71936759
B34: 7 | C34: 2009 | D34: ='Table X12 Indices 2012=100'!D34*$D$11 -> 67.91401273 | E34: ='Table X12 Indices 2012=100'!E34*$E$11 -> 67.14399364 | F34: ='Table X12 Indices 2012=100'!F34*$F$11 -> 69.01639344 | G34: ='Table X12 Indices 2012=100'!G34*$G$11 -> 67.17131474 | H34: ='Table X12 Indices 2012=100'!H34*$H$11 -> 68.72 | I34: ='Table X12 Indices 2012=100'!I34*$I$11 -> 68.77022654 | J34: ='Table X12 Indices 2012=100'!J34*$J$11 -> 68.80513232 | K34: ='Table X12 Indices 2012=100'!K34*$K$11 -> 68.77534469 | L34: ='Table X12 Indices 2012=100'!L34*$L$11 -> 67.03557312
B35: 8 | C35: 2009 | D35: ='Table X12 Indices 2012=100'!D35*$D$11 -> 68.15286624 | E35: ='Table X12 Indices 2012=100'!E35*$E$11 -> 67.30310263 | F35: ='Table X12 Indices 2012=100'!F35*$F$11 -> 69.18032786 | G35: ='Table X12 Indices 2012=100'!G35*$G$11 -> 67.33067729 | H35: ='Table X12 Indices 2012=100'!H35*$H$11 -> 68.8 | I35: ='Table X12 Indices 2012=100'!I35*$I$11 -> 69.01294499 | J35: ='Table X12 Indices 2012=100'!J35*$J$11 -> 69.0457097 | K35: ='Table X12 Indices 2012=100'!K35*$K$11 -> 69.01865369 | L35: ='Table X12 Indices 2012=100'!L35*$L$11 -> 67.35177866
B36: 9 | C36: 2009 | D36: ='Table X12 Indices 2012=100'!D36*$D$11 -> 68.47133758 | E36: ='Table X12 Indices 2012=100'!E36*$E$11 -> 67.54176611 | F36: ='Table X12 Indices 2012=100'!F36*$F$11 -> 69.4262295 | G36: ='Table X12 Indices 2012=100'!G36*$G$11 -> 67.49003984 | H36: ='Table X12 Indices 2012=100'!H36*$H$11 -> 68.96 | I36: ='Table X12 Indices 2012=100'!I36*$I$11 -> 69.09385113 | J36: ='Table X12 Indices 2012=100'!J36*$J$11 -> 69.20609463 | K36: ='Table X12 Indices 2012=100'!K36*$K$11 -> 69.26196269 | L36: ='Table X12 Indices 2012=100'!L36*$L$11 -> 67.35177866
B37: 10 | C37: 2009 | D37: ='Table X12 Indices 2012=100'!D37*$D$11 -> 68.55095541 | E37: ='Table X12 Indices 2012=100'!E37*$E$11 -> 67.62132061 | F37: ='Table X12 Indices 2012=100'!F37*$F$11 -> 69.4262295 | G37: ='Table X12 Indices 2012=100'!G37*$G$11 -> 67.41035857 | H37: ='Table X12 Indices 2012=100'!H37*$H$11 -> 69.04 | I37: ='Table X12 Indices 2012=100'!I37*$I$11 -> 69.01294499 | J37: ='Table X12 Indices 2012=100'!J37*$J$11 -> 69.20609463 | K37: ='Table X12 Indices 2012=100'!K37*$K$11 -> 69.34306569 | L37: ='Table X12 Indices 2012=100'!L37*$L$11 -> 67.35177866
B38: 11 | C38: 2009 | D38: ='Table X12 Indices 2012=100'!D38*$D$11 -> 68.55095541 | E38: ='Table X12 Indices 2012=100'!E38*$E$11 -> 67.54176611 | F38: ='Table X12 Indices 2012=100'!F38*$F$11 -> 69.4262295 | G38: ='Table X12 Indices 2012=100'!G38*$G$11 -> 67.49003984 | H38: ='Table X12 Indices 2012=100'!H38*$H$11 -> 68.96 | I38: ='Table X12 Indices 2012=100'!I38*$I$11 -> 68.93203884 | J38: ='Table X12 Indices 2012=100'!J38*$J$11 -> 69.20609463 | K38: ='Table X12 Indices 2012=100'!K38*$K$11 -> 69.34306569 | L38: ='Table X12 Indices 2012=100'!L38*$L$11 -> 67.58893281
B39: 12 | C39: 2009 | D39: ='Table X12 Indices 2012=100'!D39*$D$11 -> 68.94904458 | E39: ='Table X12 Indices 2012=100'!E39*$E$11 -> 67.7008751 | F39: ='Table X12 Indices 2012=100'!F39*$F$11 -> 69.50819672 | G39: ='Table X12 Indices 2012=100'!G39*$G$11 -> 67.64940239 | H39: ='Table X12 Indices 2012=100'!H39*$H$11 -> 69.2 | I39: ='Table X12 Indices 2012=100'!I39*$I$11 -> 69.09385113 | J39: ='Table X12 Indices 2012=100'!J39*$J$11 -> 69.28628709 | K39: ='Table X12 Indices 2012=100'!K39*$K$11 -> 69.34306569 | L39: ='Table X12 Indices 2012=100'!L39*$L$11 -> 67.58893281
B40: 1 | C40: 2010 | D40: ='Table X12 Indices 2012=100'!D40*$D$11 -> 69.10828025 | E40: ='Table X12 Indices 2012=100'!E40*$E$11 -> 67.7804296 | F40: ='Table X12 Indices 2012=100'!F40*$F$11 -> 69.4262295 | G40: ='Table X12 Indices 2012=100'!G40*$G$11 -> 67.80876494 | H40: ='Table X12 Indices 2012=100'!H40*$H$11 -> 69.44 | I40: ='Table X12 Indices 2012=100'!I40*$I$11 -> 69.25566343 | J40: ='Table X12 Indices 2012=100'!J40*$J$11 -> 69.52686448 | K40: ='Table X12 Indices 2012=100'!K40*$K$11 -> 69.58637469 | L40: ='Table X12 Indices 2012=100'!L40*$L$11 -> 67.74703557
B41: 2 | C41: 2010 | D41: ='Table X12 Indices 2012=100'!D41*$D$11 -> 69.34713375 | E41: ='Table X12 Indices 2012=100'!E41*$E$11 -> 68.09864757 | F41: ='Table X12 Indices 2012=100'!F41*$F$11 -> 69.75409836 | G41: ='Table X12 Indices 2012=100'!G41*$G$11 -> 68.28685259 | H41: ='Table X12 Indices 2012=100'!H41*$H$11 -> 69.68 | I41: ='Table X12 Indices 2012=100'!I41*$I$11 -> 69.82200647 | J41: ='Table X12 Indices 2012=100'!J41*$J$11 -> 70.00801925 | K41: ='Table X12 Indices 2012=100'!K41*$K$11 -> 69.9918897 | L41: ='Table X12 Indices 2012=100'!L41*$L$11 -> 68.14229249
B42: 3 | C42: 2010 | D42: ='Table X12 Indices 2012=100'!D42*$D$11 -> 70.1433121 | E42: ='Table X12 Indices 2012=100'!E42*$E$11 -> 68.65552904 | F42: ='Table X12 Indices 2012=100'!F42*$F$11 -> 70.24590164 | G42: ='Table X12 Indices 2012=100'!G42*$G$11 -> 68.76494024 | H42: ='Table X12 Indices 2012=100'!H42*$H$11 -> 70.16 | I42: ='Table X12 Indices 2012=100'!I42*$I$11 -> 70.30744337 | J42: ='Table X12 Indices 2012=100'!J42*$J$11 -> 70.64955894 | K42: ='Table X12 Indices 2012=100'!K42*$K$11 -> 70.4785077 | L42: ='Table X12 Indices 2012=100'!L42*$L$11 -> 68.85375494
B43: 4 | C43: 2010 | D43: ='Table X12 Indices 2012=100'!D43*$D$11 -> 70.30254777 | E43: ='Table X12 Indices 2012=100'!E43*$E$11 -> 68.81463803 | F43: ='Table X12 Indices 2012=100'!F43*$F$11 -> 70.40983606 | G43: ='Table X12 Indices 2012=100'!G43*$G$11 -> 69.00398406 | H43: ='Table X12 Indices 2012=100'!H43*$H$11 -> 70.24 | I43: ='Table X12 Indices 2012=100'!I43*$I$11 -> 70.38834952 | J43: ='Table X12 Indices 2012=100'!J43*$J$11 -> 70.7297514 | K43: ='Table X12 Indices 2012=100'!K43*$K$11 -> 70.5596107 | L43: ='Table X12 Indices 2012=100'!L43*$L$11 -> 68.77470356
B44: 5 | C44: 2010 | D44: ='Table X12 Indices 2012=100'!D44*$D$11 -> 70.3821656 | E44: ='Table X12 Indices 2012=100'!E44*$E$11 -> 68.97374702 | F44: ='Table X12 Indices 2012=100'!F44*$F$11 -> 70.6557377 | G44: ='Table X12 Indices 2012=100'!G44*$G$11 -> 69.08366534 | H44: ='Table X12 Indices 2012=100'!H44*$H$11 -> 70.4 | I44: ='Table X12 Indices 2012=100'!I44*$I$11 -> 70.63106796 | J44: ='Table X12 Indices 2012=100'!J44*$J$11 -> 70.80994387 | K44: ='Table X12 Indices 2012=100'!K44*$K$11 -> 70.72181671 | L44: ='Table X12 Indices 2012=100'!L44*$L$11 -> 68.77470356
B45: 6 | C45: 2010 | D45: ='Table X12 Indices 2012=100'!D45*$D$11 -> 70.30254777 | E45: ='Table X12 Indices 2012=100'!E45*$E$11 -> 69.05330151 | F45: ='Table X12 Indices 2012=100'!F45*$F$11 -> 70.6557377 | G45: ='Table X12 Indices 2012=100'!G45*$G$11 -> 69.08366534 | H45: ='Table X12 Indices 2012=100'!H45*$H$11 -> 70.4 | I45: ='Table X12 Indices 2012=100'!I45*$I$11 -> 70.55016181 | J45: ='Table X12 Indices 2012=100'!J45*$J$11 -> 70.80994387 | K45: ='Table X12 Indices 2012=100'!K45*$K$11 -> 70.64071371 | L45: ='Table X12 Indices 2012=100'!L45*$L$11 -> 68.77470356
B46: 7 | C46: 2010 | D46: ='Table X12 Indices 2012=100'!D46*$D$11 -> 70.6210191 | E46: ='Table X12 Indices 2012=100'!E46*$E$11 -> 69.37151949 | F46: ='Table X12 Indices 2012=100'!F46*$F$11 -> 71.14754098 | G46: ='Table X12 Indices 2012=100'!G46*$G$11 -> 69.48207171 | H46: ='Table X12 Indices 2012=100'!H46*$H$11 -> 70.72 | I46: ='Table X12 Indices 2012=100'!I46*$I$11 -> 70.87378641 | J46: ='Table X12 Indices 2012=100'!J46*$J$11 -> 71.3712911 | K46: ='Table X12 Indices 2012=100'!K46*$K$11 -> 71.04622871 | L46: ='Table X12 Indices 2012=100'!L46*$L$11 -> 69.32806324
B47: 8 | C47: 2010 | D47: ='Table X12 Indices 2012=100'!D47*$D$11 -> 70.70063694 | E47: ='Table X12 Indices 2012=100'!E47*$E$11 -> 69.76929197 | F47: ='Table X12 Indices 2012=100'!F47*$F$11 -> 71.14754098 | G47: ='Table X12 Indices 2012=100'!G47*$G$11 -> 69.72111554 | H47: ='Table X12 Indices 2012=100'!H47*$H$11 -> 70.72 | I47: ='Table X12 Indices 2012=100'!I47*$I$11 -> 70.95469256 | J47: ='Table X12 Indices 2012=100'!J47*$J$11 -> 71.3712911 | K47: ='Table X12 Indices 2012=100'!K47*$K$11 -> 71.20843471 | L47: ='Table X12 Indices 2012=100'!L47*$L$11 -> 69.40711463
B48: 9 | C48: 2010 | D48: ='Table X12 Indices 2012=100'!D48*$D$11 -> 70.78025477 | E48: ='Table X12 Indices 2012=100'!E48*$E$11 -> 70.00795545 | F48: ='Table X12 Indices 2012=100'!F48*$F$11 -> 71.39344262 | G48: ='Table X12 Indices 2012=100'!G48*$G$11 -> 70.03984064 | H48: ='Table X12 Indices 2012=100'!H48*$H$11 -> 70.72 | I48: ='Table X12 Indices 2012=100'!I48*$I$11 -> 71.03559871 | J48: ='Table X12 Indices 2012=100'!J48*$J$11 -> 71.3712911 | K48: ='Table X12 Indices 2012=100'!K48*$K$11 -> 71.37064071 | L48: ='Table X12 Indices 2012=100'!L48*$L$11 -> 69.32806324
B49: 10 | C49: 2010 | D49: ='Table X12 Indices 2012=100'!D49*$D$11 -> 70.93949044 | E49: ='Table X12 Indices 2012=100'!E49*$E$11 -> 70.08750995 | F49: ='Table X12 Indices 2012=100'!F49*$F$11 -> 71.47540983 | G49: ='Table X12 Indices 2012=100'!G49*$G$11 -> 70.27888446 | H49: ='Table X12 Indices 2012=100'!H49*$H$11 -> 70.8 | I49: ='Table X12 Indices 2012=100'!I49*$I$11 -> 71.03559871 | J49: ='Table X12 Indices 2012=100'!J49*$J$11 -> 71.53167602 | K49: ='Table X12 Indices 2012=100'!K49*$K$11 -> 71.61394972 | L49: ='Table X12 Indices 2012=100'!L49*$L$11 -> 69.72332016
B50: 11 | C50: 2010 | D50: ='Table X12 Indices 2012=100'!D50*$D$11 -> 71.01910828 | E50: ='Table X12 Indices 2012=100'!E50*$E$11 -> 70.08750995 | F50: ='Table X12 Indices 2012=100'!F50*$F$11 -> 71.47540983 | G50: ='Table X12 Indices 2012=100'!G50*$G$11 -> 70.27888446 | H50: ='Table X12 Indices 2012=100'!H50*$H$11 -> 70.96 | I50: ='Table X12 Indices 2012=100'!I50*$I$11 -> 71.27831715 | J50: ='Table X12 Indices 2012=100'!J50*$J$11 -> 71.69206095 | K50: ='Table X12 Indices 2012=100'!K50*$K$11 -> 71.53284671 | L50: ='Table X12 Indices 2012=100'!L50*$L$11 -> 69.56521739
B51: 12 | C51: 2010 | D51: ='Table X12 Indices 2012=100'!D51*$D$11 -> 71.17834394 | E51: ='Table X12 Indices 2012=100'!E51*$E$11 -> 70.16706444 | F51: ='Table X12 Indices 2012=100'!F51*$F$11 -> 71.39344262 | G51: ='Table X12 Indices 2012=100'!G51*$G$11 -> 70.35856574 | H51: ='Table X12 Indices 2012=100'!H51*$H$11 -> 71.04 | I51: ='Table X12 Indices 2012=100'!I51*$I$11 -> 71.27831715 | J51: ='Table X12 Indices 2012=100'!J51*$J$11 -> 71.85244587 | K51: ='Table X12 Indices 2012=100'!K51*$K$11 -> 71.61394972 | L51: ='Table X12 Indices 2012=100'!L51*$L$11 -> 69.96047431
B52: 1 | C52: 2011 | D52: ='Table X12 Indices 2012=100'!D52*$D$11 -> 71.49681528 | E52: ='Table X12 Indices 2012=100'!E52*$E$11 -> 70.7239459 | F52: ='Table X12 Indices 2012=100'!F52*$F$11 -> 72.04918032 | G52: ='Table X12 Indices 2012=100'!G52*$G$11 -> 70.91633466 | H52: ='Table X12 Indices 2012=100'!H52*$H$11 -> 71.44 | I52: ='Table X12 Indices 2012=100'!I52*$I$11 -> 71.76375405 | J52: ='Table X12 Indices 2012=100'!J52*$J$11 -> 72.09302326 | K52: ='Table X12 Indices 2012=100'!K52*$K$11 -> 72.01946472 | L52: ='Table X12 Indices 2012=100'!L52*$L$11 -> 70.19762846
B53: 2 | C53: 2011 | D53: ='Table X12 Indices 2012=100'!D53*$D$11 -> 71.97452229 | E53: ='Table X12 Indices 2012=100'!E53*$E$11 -> 71.12171838 | F53: ='Table X12 Indices 2012=100'!F53*$F$11 -> 72.37704918 | G53: ='Table X12 Indices 2012=100'!G53*$G$11 -> 71.31474104 | H53: ='Table X12 Indices 2012=100'!H53*$H$11 -> 71.92 | I53: ='Table X12 Indices 2012=100'!I53*$I$11 -> 72.33009709 | J53: ='Table X12 Indices 2012=100'!J53*$J$11 -> 72.57417803 | K53: ='Table X12 Indices 2012=100'!K53*$K$11 -> 72.58718572 | L53: ='Table X12 Indices 2012=100'!L53*$L$11 -> 70.11857708
B54: 3 | C54: 2011 | D54: ='Table X12 Indices 2012=100'!D54*$D$11 -> 72.9299363 | E54: ='Table X12 Indices 2012=100'!E54*$E$11 -> 71.91726333 | F54: ='Table X12 Indices 2012=100'!F54*$F$11 -> 73.36065573 | G54: ='Table X12 Indices 2012=100'!G54*$G$11 -> 72.19123506 | H54: ='Table X12 Indices 2012=100'!H54*$H$11 -> 72.56 | I54: ='Table X12 Indices 2012=100'!I54*$I$11 -> 73.13915858 | J54: ='Table X12 Indices 2012=100'!J54*$J$11 -> 73.45629511 | K54: ='Table X12 Indices 2012=100'!K54*$K$11 -> 73.47931873 | L54: ='Table X12 Indices 2012=100'!L54*$L$11 -> 71.46245059
B55: 4 | C55: 2011 | D55: ='Table X12 Indices 2012=100'!D55*$D$11 -> 73.1687898 | E55: ='Table X12 Indices 2012=100'!E55*$E$11 -> 72.15592681 | F55: ='Table X12 Indices 2012=100'!F55*$F$11 -> 73.7704918 | G55: ='Table X12 Indices 2012=100'!G55*$G$11 -> 72.58964143 | H55: ='Table X12 Indices 2012=100'!H55*$H$11 -> 72.8 | I55: ='Table X12 Indices 2012=100'!I55*$I$11 -> 73.38187703 | J55: ='Table X12 Indices 2012=100'!J55*$J$11 -> 73.53648757 | K55: ='Table X12 Indices 2012=100'!K55*$K$11 -> 73.72262774 | L55: ='Table X12 Indices 2012=100'!L55*$L$11 -> 71.77865613
B56: 5 | C56: 2011 | D56: ='Table X12 Indices 2012=100'!D56*$D$11 -> 73.48726114 | E56: ='Table X12 Indices 2012=100'!E56*$E$11 -> 72.55369928 | F56: ='Table X12 Indices 2012=100'!F56*$F$11 -> 74.01639344 | G56: ='Table X12 Indices 2012=100'!G56*$G$11 -> 72.90836653 | H56: ='Table X12 Indices 2012=100'!H56*$H$11 -> 73.12 | I56: ='Table X12 Indices 2012=100'!I56*$I$11 -> 73.70550162 | J56: ='Table X12 Indices 2012=100'!J56*$J$11 -> 74.01764234 | K56: ='Table X12 Indices 2012=100'!K56*$K$11 -> 74.12814274 | L56: ='Table X12 Indices 2012=100'!L56*$L$11 -> 72.25296443
B57: 6 | C57: 2011 | D57: ='Table X12 Indices 2012=100'!D57*$D$11 -> 73.80573248 | E57: ='Table X12 Indices 2012=100'!E57*$E$11 -> 73.26968974 | F57: ='Table X12 Indices 2012=100'!F57*$F$11 -> 74.26229508 | G57: ='Table X12 Indices 2012=100'!G57*$G$11 -> 73.06772908 | H57: ='Table X12 Indices 2012=100'!H57*$H$11 -> 73.52 | I57: ='Table X12 Indices 2012=100'!I57*$I$11 -> 74.27184466 | J57: ='Table X12 Indices 2012=100'!J57*$J$11 -> 74.33841219 | K57: ='Table X12 Indices 2012=100'!K57*$K$11 -> 74.29034874 | L57: ='Table X12 Indices 2012=100'!L57*$L$11 -> 72.72727273
B58: 7 | C58: 2011 | D58: ='Table X12 Indices 2012=100'!D58*$D$11 -> 74.28343949 | E58: ='Table X12 Indices 2012=100'!E58*$E$11 -> 73.9061257 | F58: ='Table X12 Indices 2012=100'!F58*$F$11 -> 75.24590163 | G58: ='Table X12 Indices 2012=100'!G58*$G$11 -> 73.94422311 | H58: ='Table X12 Indices 2012=100'!H58*$H$11 -> 74.08 | I58: ='Table X12 Indices 2012=100'!I58*$I$11 -> 74.8381877 | J58: ='Table X12 Indices 2012=100'!J58*$J$11 -> 74.97995189 | K58: ='Table X12 Indices 2012=100'!K58*$K$11 -> 75.02027575 | L58: ='Table X12 Indices 2012=100'!L58*$L$11 -> 72.88537549
B59: 8 | C59: 2011 | D59: ='Table X12 Indices 2012=100'!D59*$D$11 -> 74.44267515 | E59: ='Table X12 Indices 2012=100'!E59*$E$11 -> 74.06523469 | F59: ='Table X12 Indices 2012=100'!F59*$F$11 -> 75.81967213 | G59: ='Table X12 Indices 2012=100'!G59*$G$11 -> 74.02390438 | H59: ='Table X12 Indices 2012=100'!H59*$H$11 -> 74.32 | I59: ='Table X12 Indices 2012=100'!I59*$I$11 -> 75.08090615 | J59: ='Table X12 Indices 2012=100'!J59*$J$11 -> 75.14033681 | K59: ='Table X12 Indices 2012=100'!K59*$K$11 -> 75.02027575 | L59: ='Table X12 Indices 2012=100'!L59*$L$11 -> 72.96442688
B60: 9 | C60: 2011 | D60: ='Table X12 Indices 2012=100'!D60*$D$11 -> 74.84076433 | E60: ='Table X12 Indices 2012=100'!E60*$E$11 -> 74.54256166 | F60: ='Table X12 Indices 2012=100'!F60*$F$11 -> 76.31147541 | G60: ='Table X12 Indices 2012=100'!G60*$G$11 -> 74.42231076 | H60: ='Table X12 Indices 2012=100'!H60*$H$11 -> 74.48 | I60: ='Table X12 Indices 2012=100'!I60*$I$11 -> 75.1618123 | J60: ='Table X12 Indices 2012=100'!J60*$J$11 -> 75.30072173 | K60: ='Table X12 Indices 2012=100'!K60*$K$11 -> 75.26358475 | L60: ='Table X12 Indices 2012=100'!L60*$L$11 -> 73.3596838
B61: 10 | C61: 2011 | D61: ='Table X12 Indices 2012=100'!D61*$D$11 -> 75.15923566 | E61: ='Table X12 Indices 2012=100'!E61*$E$11 -> 75.01988862 | F61: ='Table X12 Indices 2012=100'!F61*$F$11 -> 76.8852459 | G61: ='Table X12 Indices 2012=100'!G61*$G$11 -> 74.90039841 | H61: ='Table X12 Indices 2012=100'!H61*$H$11 -> 75.04 | I61: ='Table X12 Indices 2012=100'!I61*$I$11 -> 75.72815534 | J61: ='Table X12 Indices 2012=100'!J61*$J$11 -> 75.70168404 | K61: ='Table X12 Indices 2012=100'!K61*$K$11 -> 75.91240876 | L61: ='Table X12 Indices 2012=100'!L61*$L$11 -> 73.91304348
B62: 11 | C62: 2011 | D62: ='Table X12 Indices 2012=100'!D62*$D$11 -> 75.31847133 | E62: ='Table X12 Indices 2012=100'!E62*$E$11 -> 75.25855211 | F62: ='Table X12 Indices 2012=100'!F62*$F$11 -> 77.21311475 | G62: ='Table X12 Indices 2012=100'!G62*$G$11 -> 75.13944223 | H62: ='Table X12 Indices 2012=100'!H62*$H$11 -> 75.28 | I62: ='Table X12 Indices 2012=100'!I62*$I$11 -> 75.80906149 | J62: ='Table X12 Indices 2012=100'!J62*$J$11 -> 75.86206897 | K62: ='Table X12 Indices 2012=100'!K62*$K$11 -> 76.07461476 | L62: ='Table X12 Indices 2012=100'!L62*$L$11 -> 74.15019763
B63: 12 | C63: 2011 | D63: ='Table X12 Indices 2012=100'!D63*$D$11 -> 75.39808917 | E63: ='Table X12 Indices 2012=100'!E63*$E$11 -> 75.49721559 | F63: ='Table X12 Indices 2012=100'!F63*$F$11 -> 76.96721311 | G63: ='Table X12 Indices 2012=100'!G63*$G$11 -> 75.37848606 | H63: ='Table X12 Indices 2012=100'!H63*$H$11 -> 75.76 | I63: ='Table X12 Indices 2012=100'!I63*$I$11 -> 76.05177994 | J63: ='Table X12 Indices 2012=100'!J63*$J$11 -> 76.02245389 | K63: ='Table X12 Indices 2012=100'!K63*$K$11 -> 76.39902676 | L63: ='Table X12 Indices 2012=100'!L63*$L$11 -> 74.46640316
B64: 1 | C64: 2012 | D64: ='Table X12 Indices 2012=100'!D64*$D$11 -> 75.7165605 | E64: ='Table X12 Indices 2012=100'!E64*$E$11 -> 75.89498807 | F64: ='Table X12 Indices 2012=100'!F64*$F$11 -> 77.78688524 | G64: ='Table X12 Indices 2012=100'!G64*$G$11 -> 75.8565737 | H64: ='Table X12 Indices 2012=100'!H64*$H$11 -> 76 | I64: ='Table X12 Indices 2012=100'!I64*$I$11 -> 76.53721683 | J64: ='Table X12 Indices 2012=100'!J64*$J$11 -> 76.4234162 | K64: ='Table X12 Indices 2012=100'!K64*$K$11 -> 76.88564477 | L64: ='Table X12 Indices 2012=100'!L64*$L$11 -> 75.01976285
B65: 2 | C65: 2012 | D65: ='Table X12 Indices 2012=100'!D65*$D$11 -> 76.19426751 | E65: ='Table X12 Indices 2012=100'!E65*$E$11 -> 76.13365155 | F65: ='Table X12 Indices 2012=100'!F65*$F$11 -> 78.03278688 | G65: ='Table X12 Indices 2012=100'!G65*$G$11 -> 76.1752988 | H65: ='Table X12 Indices 2012=100'!H65*$H$11 -> 76.4 | I65: ='Table X12 Indices 2012=100'!I65*$I$11 -> 76.94174758 | J65: ='Table X12 Indices 2012=100'!J65*$J$11 -> 76.90457097 | K65: ='Table X12 Indices 2012=100'!K65*$K$11 -> 77.45336577 | L65: ='Table X12 Indices 2012=100'!L65*$L$11 -> 75.33596838
B66: 3 | C66: 2012 | D66: ='Table X12 Indices 2012=100'!D66*$D$11 -> 76.99044586 | E66: ='Table X12 Indices 2012=100'!E66*$E$11 -> 76.84964201 | F66: ='Table X12 Indices 2012=100'!F66*$F$11 -> 78.93442622 | G66: ='Table X12 Indices 2012=100'!G66*$G$11 -> 76.73306773 | H66: ='Table X12 Indices 2012=100'!H66*$H$11 -> 77.36 | I66: ='Table X12 Indices 2012=100'!I66*$I$11 -> 77.91262136 | J66: ='Table X12 Indices 2012=100'!J66*$J$11 -> 77.70649559 | K66: ='Table X12 Indices 2012=100'!K66*$K$11 -> 78.34549878 | L66: ='Table X12 Indices 2012=100'!L66*$L$11 -> 76.04743083
B67: 4 | C67: 2012 | D67: ='Table X12 Indices 2012=100'!D67*$D$11 -> 77.30891719 | E67: ='Table X12 Indices 2012=100'!E67*$E$11 -> 77.24741448 | F67: ='Table X12 Indices 2012=100'!F67*$F$11 -> 79.34426229 | G67: ='Table X12 Indices 2012=100'!G67*$G$11 -> 77.1314741 | H67: ='Table X12 Indices 2012=100'!H67*$H$11 -> 77.6 | I67: ='Table X12 Indices 2012=100'!I67*$I$11 -> 78.15533981 | J67: ='Table X12 Indices 2012=100'!J67*$J$11 -> 78.02726544 | K67: ='Table X12 Indices 2012=100'!K67*$K$11 -> 78.50770478 | L67: ='Table X12 Indices 2012=100'!L67*$L$11 -> 76.04743083
B68: 5 | C68: 2012 | D68: ='Table X12 Indices 2012=100'!D68*$D$11 -> 77.38853503 | E68: ='Table X12 Indices 2012=100'!E68*$E$11 -> 77.48607796 | F68: ='Table X12 Indices 2012=100'!F68*$F$11 -> 79.4262295 | G68: ='Table X12 Indices 2012=100'!G68*$G$11 -> 77.21115538 | H68: ='Table X12 Indices 2012=100'!H68*$H$11 -> 77.68 | I68: ='Table X12 Indices 2012=100'!I68*$I$11 -> 78.07443366 | J68: ='Table X12 Indices 2012=100'!J68*$J$11 -> 78.1074579 | K68: ='Table X12 Indices 2012=100'!K68*$K$11 -> 78.58880778 | L68: ='Table X12 Indices 2012=100'!L68*$L$11 -> 76.36363636
B69: 6 | C69: 2012 | D69: ='Table X12 Indices 2012=100'!D69*$D$11 -> 77.70700636 | E69: ='Table X12 Indices 2012=100'!E69*$E$11 -> 77.56563246 | F69: ='Table X12 Indices 2012=100'!F69*$F$11 -> 79.4262295 | G69: ='Table X12 Indices 2012=100'!G69*$G$11 -> 77.29083665 | H69: ='Table X12 Indices 2012=100'!H69*$H$11 -> 77.76 | I69: ='Table X12 Indices 2012=100'!I69*$I$11 -> 78.6407767 | J69: ='Table X12 Indices 2012=100'!J69*$J$11 -> 78.34803529 | K69: ='Table X12 Indices 2012=100'!K69*$K$11 -> 78.91321979 | L69: ='Table X12 Indices 2012=100'!L69*$L$11 -> 76.75889328
B70: 7 | C70: 2012 | D70: ='Table X12 Indices 2012=100'!D70*$D$11 -> 77.86624203 | E70: ='Table X12 Indices 2012=100'!E70*$E$11 -> 77.64518695 | F70: ='Table X12 Indices 2012=100'!F70*$F$11 -> 79.83606557 | G70: ='Table X12 Indices 2012=100'!G70*$G$11 -> 77.52988048 | H70: ='Table X12 Indices 2012=100'!H70*$H$11 -> 78 | I70: ='Table X12 Indices 2012=100'!I70*$I$11 -> 78.72168285 | J70: ='Table X12 Indices 2012=100'!J70*$J$11 -> 78.50842021 | K70: ='Table X12 Indices 2012=100'!K70*$K$11 -> 79.07542579 | L70: ='Table X12 Indices 2012=100'!L70*$L$11 -> 77.07509882
B71: 8 | C71: 2012 | D71: ='Table X12 Indices 2012=100'!D71*$D$11 -> 78.0254777 | E71: ='Table X12 Indices 2012=100'!E71*$E$11 -> 77.80429594 | F71: ='Table X12 Indices 2012=100'!F71*$F$11 -> 79.83606557 | G71: ='Table X12 Indices 2012=100'!G71*$G$11 -> 77.68924303 | H71: ='Table X12 Indices 2012=100'!H71*$H$11 -> 78.16 | I71: ='Table X12 Indices 2012=100'!I71*$I$11 -> 79.04530745 | J71: ='Table X12 Indices 2012=100'!J71*$J$11 -> 78.7489976 | K71: ='Table X12 Indices 2012=100'!K71*$K$11 -> 79.31873479 | L71: ='Table X12 Indices 2012=100'!L71*$L$11 -> 77.1541502
B72: 9 | C72: 2012 | D72: ='Table X12 Indices 2012=100'!D72*$D$11 -> 78.66242038 | E72: ='Table X12 Indices 2012=100'!E72*$E$11 -> 78.5202864 | F72: ='Table X12 Indices 2012=100'!F72*$F$11 -> 80.81967213 | G72: ='Table X12 Indices 2012=100'!G72*$G$11 -> 78.4063745 | H72: ='Table X12 Indices 2012=100'!H72*$H$11 -> 78.96 | I72: ='Table X12 Indices 2012=100'!I72*$I$11 -> 80.17799353 | J72: ='Table X12 Indices 2012=100'!J72*$J$11 -> 79.39053729 | K72: ='Table X12 Indices 2012=100'!K72*$K$11 -> 80.0486618 | L72: ='Table X12 Indices 2012=100'!L72*$L$11 -> 77.86561265
B73: 10 | C73: 2012 | D73: ='Table X12 Indices 2012=100'!D73*$D$11 -> 79.14012738 | E73: ='Table X12 Indices 2012=100'!E73*$E$11 -> 79.07716786 | F73: ='Table X12 Indices 2012=100'!F73*$F$11 -> 81.31147541 | G73: ='Table X12 Indices 2012=100'!G73*$G$11 -> 78.96414343 | H73: ='Table X12 Indices 2012=100'!H73*$H$11 -> 79.52 | I73: ='Table X12 Indices 2012=100'!I73*$I$11 -> 80.74433657 | J73: ='Table X12 Indices 2012=100'!J73*$J$11 -> 79.95188452 | K73: ='Table X12 Indices 2012=100'!K73*$K$11 -> 80.69748581 | L73: ='Table X12 Indices 2012=100'!L73*$L$11 -> 78.49802372
B74: 11 | C74: 2012 | D74: ='Table X12 Indices 2012=100'!D74*$D$11 -> 79.37898089 | E74: ='Table X12 Indices 2012=100'!E74*$E$11 -> 79.47494034 | F74: ='Table X12 Indices 2012=100'!F74*$F$11 -> 81.80327868 | G74: ='Table X12 Indices 2012=100'!G74*$G$11 -> 79.28286853 | H74: ='Table X12 Indices 2012=100'!H74*$H$11 -> 79.76 | I74: ='Table X12 Indices 2012=100'!I74*$I$11 -> 80.82524272 | J74: ='Table X12 Indices 2012=100'!J74*$J$11 -> 80.03207699 | K74: ='Table X12 Indices 2012=100'!K74*$K$11 -> 80.77858881 | L74: ='Table X12 Indices 2012=100'!L74*$L$11 -> 78.65612648
B75: 12 | C75: 2012 | D75: ='Table X12 Indices 2012=100'!D75*$D$11 -> 79.61783439 | E75: ='Table X12 Indices 2012=100'!E75*$E$11 -> 79.55449483 | F75: ='Table X12 Indices 2012=100'!F75*$F$11 -> 81.96721311 | G75: ='Table X12 Indices 2012=100'!G75*$G$11 -> 79.6812749 | H75: ='Table X12 Indices 2012=100'!H75*$H$11 -> 80 | I75: ='Table X12 Indices 2012=100'!I75*$I$11 -> 80.90614887 | J75: ='Table X12 Indices 2012=100'!J75*$J$11 -> 80.19246191 | K75: ='Table X12 Indices 2012=100'!K75*$K$11 -> 81.10300081 | L75: ='Table X12 Indices 2012=100'!L75*$L$11 -> 79.0513834
B76: 1 | C76: 2013 | D76: ='Table X12 Indices 2012=100'!D76*$D$11 -> 79.77707006 | E76: ='Table X12 Indices 2012=100'!E76*$E$11 -> 79.71360382 | F76: ='Table X12 Indices 2012=100'!F76*$F$11 -> 82.29508196 | G76: ='Table X12 Indices 2012=100'!G76*$G$11 -> 79.84063745 | H76: ='Table X12 Indices 2012=100'!H76*$H$11 -> 80.08 | I76: ='Table X12 Indices 2012=100'!I76*$I$11 -> 81.22977347 | J76: ='Table X12 Indices 2012=100'!J76*$J$11 -> 80.51323176 | K76: ='Table X12 Indices 2012=100'!K76*$K$11 -> 81.42741281 | L76: ='Table X12 Indices 2012=100'!L76*$L$11 -> 79.44664032
B77: 2 | C77: 2013 | D77: ='Table X12 Indices 2012=100'!D77*$D$11 -> 80.3343949 | E77: ='Table X12 Indices 2012=100'!E77*$E$11 -> 80.27048528 | F77: ='Table X12 Indices 2012=100'!F77*$F$11 -> 82.62295081 | G77: ='Table X12 Indices 2012=100'!G77*$G$11 -> 80.39840637 | H77: ='Table X12 Indices 2012=100'!H77*$H$11 -> 80.88 | I77: ='Table X12 Indices 2012=100'!I77*$I$11 -> 81.87702266 | J77: ='Table X12 Indices 2012=100'!J77*$J$11 -> 81.4755413 | K77: ='Table X12 Indices 2012=100'!K77*$K$11 -> 82.15733982 | L77: ='Table X12 Indices 2012=100'!L77*$L$11 -> 79.68379447
B78: 3 | C78: 2013 | D78: ='Table X12 Indices 2012=100'!D78*$D$11 -> 81.28980891 | E78: ='Table X12 Indices 2012=100'!E78*$E$11 -> 81.06603023 | F78: ='Table X12 Indices 2012=100'!F78*$F$11 -> 83.44262295 | G78: ='Table X12 Indices 2012=100'!G78*$G$11 -> 81.2749004 | H78: ='Table X12 Indices 2012=100'!H78*$H$11 -> 81.84 | I78: ='Table X12 Indices 2012=100'!I78*$I$11 -> 82.4433657 | J78: ='Table X12 Indices 2012=100'!J78*$J$11 -> 82.51804331 | K78: ='Table X12 Indices 2012=100'!K78*$K$11 -> 82.80616383 | L78: ='Table X12 Indices 2012=100'!L78*$L$11 -> 80.55335968
B79: 4 | C79: 2013 | D79: ='Table X12 Indices 2012=100'!D79*$D$11 -> 81.60828025 | E79: ='Table X12 Indices 2012=100'!E79*$E$11 -> 81.38424821 | F79: ='Table X12 Indices 2012=100'!F79*$F$11 -> 83.85245901 | G79: ='Table X12 Indices 2012=100'!G79*$G$11 -> 81.43426295 | H79: ='Table X12 Indices 2012=100'!H79*$H$11 -> 82.08 | I79: ='Table X12 Indices 2012=100'!I79*$I$11 -> 82.84789644 | J79: ='Table X12 Indices 2012=100'!J79*$J$11 -> 82.75862069 | K79: ='Table X12 Indices 2012=100'!K79*$K$11 -> 83.04947283 | L79: ='Table X12 Indices 2012=100'!L79*$L$11 -> 80.9486166
B80: 5 | C80: 2013 | D80: ='Table X12 Indices 2012=100'!D80*$D$11 -> 81.36942675 | E80: ='Table X12 Indices 2012=100'!E80*$E$11 -> 81.14558473 | F80: ='Table X12 Indices 2012=100'!F80*$F$11 -> 83.68852459 | G80: ='Table X12 Indices 2012=100'!G80*$G$11 -> 81.43426295 | H80: ='Table X12 Indices 2012=100'!H80*$H$11 -> 81.84 | I80: ='Table X12 Indices 2012=100'!I80*$I$11 -> 82.605178 | J80: ='Table X12 Indices 2012=100'!J80*$J$11 -> 82.51804331 | K80: ='Table X12 Indices 2012=100'!K80*$K$11 -> 82.96836983 | L80: ='Table X12 Indices 2012=100'!L80*$L$11 -> 80.79051383
B81: 6 | C81: 2013 | D81: ='Table X12 Indices 2012=100'!D81*$D$11 -> 81.60828025 | E81: ='Table X12 Indices 2012=100'!E81*$E$11 -> 81.38424821 | F81: ='Table X12 Indices 2012=100'!F81*$F$11 -> 83.93442622 | G81: ='Table X12 Indices 2012=100'!G81*$G$11 -> 81.83266932 | H81: ='Table X12 Indices 2012=100'!H81*$H$11 -> 82 | I81: ='Table X12 Indices 2012=100'!I81*$I$11 -> 82.76699029 | J81: ='Table X12 Indices 2012=100'!J81*$J$11 -> 82.83881315 | K81: ='Table X12 Indices 2012=100'!K81*$K$11 -> 83.04947283 | L81: ='Table X12 Indices 2012=100'!L81*$L$11 -> 80.79051383
B82: 7 | C82: 2013 | D82: ='Table X12 Indices 2012=100'!D82*$D$11 -> 82.40445859 | E82: ='Table X12 Indices 2012=100'!E82*$E$11 -> 82.10023866 | F82: ='Table X12 Indices 2012=100'!F82*$F$11 -> 84.83606557 | G82: ='Table X12 Indices 2012=100'!G82*$G$11 -> 82.5498008 | H82: ='Table X12 Indices 2012=100'!H82*$H$11 -> 82.96 | I82: ='Table X12 Indices 2012=100'!I82*$I$11 -> 83.41423948 | J82: ='Table X12 Indices 2012=100'!J82*$J$11 -> 83.64073777 | K82: ='Table X12 Indices 2012=100'!K82*$K$11 -> 83.69829684 | L82: ='Table X12 Indices 2012=100'!L82*$L$11 -> 81.81818182
B83: 8 | C83: 2013 | D83: ='Table X12 Indices 2012=100'!D83*$D$11 -> 82.72292993 | E83: ='Table X12 Indices 2012=100'!E83*$E$11 -> 82.33890215 | F83: ='Table X12 Indices 2012=100'!F83*$F$11 -> 85.24590163 | G83: ='Table X12 Indices 2012=100'!G83*$G$11 -> 82.8685259 | H83: ='Table X12 Indices 2012=100'!H83*$H$11 -> 83.2 | I83: ='Table X12 Indices 2012=100'!I83*$I$11 -> 83.73786408 | J83: ='Table X12 Indices 2012=100'!J83*$J$11 -> 83.88131516 | K83: ='Table X12 Indices 2012=100'!K83*$K$11 -> 84.02270884 | L83: ='Table X12 Indices 2012=100'!L83*$L$11 -> 82.52964427
B84: 9 | C84: 2013 | D84: ='Table X12 Indices 2012=100'!D84*$D$11 -> 83.35987261 | E84: ='Table X12 Indices 2012=100'!E84*$E$11 -> 82.89578361 | F84: ='Table X12 Indices 2012=100'!F84*$F$11 -> 85.57377049 | G84: ='Table X12 Indices 2012=100'!G84*$G$11 -> 83.26693227 | H84: ='Table X12 Indices 2012=100'!H84*$H$11 -> 83.52 | I84: ='Table X12 Indices 2012=100'!I84*$I$11 -> 84.14239482 | J84: ='Table X12 Indices 2012=100'!J84*$J$11 -> 84.20208501 | K84: ='Table X12 Indices 2012=100'!K84*$K$11 -> 84.59042984 | L84: ='Table X12 Indices 2012=100'!L84*$L$11 -> 82.76679842
B85: 10 | C85: 2013 | D85: ='Table X12 Indices 2012=100'!D85*$D$11 -> 83.51910828 | E85: ='Table X12 Indices 2012=100'!E85*$E$11 -> 83.21400159 | F85: ='Table X12 Indices 2012=100'!F85*$F$11 -> 85.6557377 | G85: ='Table X12 Indices 2012=100'!G85*$G$11 -> 83.58565737 | H85: ='Table X12 Indices 2012=100'!H85*$H$11 -> 83.6 | I85: ='Table X12 Indices 2012=100'!I85*$I$11 -> 84.38511327 | J85: ='Table X12 Indices 2012=100'!J85*$J$11 -> 84.44266239 | K85: ='Table X12 Indices 2012=100'!K85*$K$11 -> 84.83373885 | L85: ='Table X12 Indices 2012=100'!L85*$L$11 -> 83.00395257
B86: 11 | C86: 2013 | D86: ='Table X12 Indices 2012=100'!D86*$D$11 -> 83.59872611 | E86: ='Table X12 Indices 2012=100'!E86*$E$11 -> 83.29355609 | F86: ='Table X12 Indices 2012=100'!F86*$F$11 -> 85.90163934 | G86: ='Table X12 Indices 2012=100'!G86*$G$11 -> 83.74501992 | H86: ='Table X12 Indices 2012=100'!H86*$H$11 -> 83.68 | I86: ='Table X12 Indices 2012=100'!I86*$I$11 -> 84.54692557 | J86: ='Table X12 Indices 2012=100'!J86*$J$11 -> 84.36246993 | K86: ='Table X12 Indices 2012=100'!K86*$K$11 -> 84.91484185 | L86: ='Table X12 Indices 2012=100'!L86*$L$11 -> 83.16205534
B87: 12 | C87: 2013 | D87: ='Table X12 Indices 2012=100'!D87*$D$11 -> 83.59872611 | E87: ='Table X12 Indices 2012=100'!E87*$E$11 -> 83.53221957 | F87: ='Table X12 Indices 2012=100'!F87*$F$11 -> 85.98360655 | G87: ='Table X12 Indices 2012=100'!G87*$G$11 -> 83.90438247 | H87: ='Table X12 Indices 2012=100'!H87*$H$11 -> 84.16 | I87: ='Table X12 Indices 2012=100'!I87*$I$11 -> 84.70873787 | J87: ='Table X12 Indices 2012=100'!J87*$J$11 -> 84.68323978 | K87: ='Table X12 Indices 2012=100'!K87*$K$11 -> 85.07704785 | L87: ='Table X12 Indices 2012=100'!L87*$L$11 -> 83.24110672
B88: 1 | C88: 2014 | D88: ='Table X12 Indices 2012=100'!D88*$D$11 -> 84.31528662 | E88: ='Table X12 Indices 2012=100'!E88*$E$11 -> 84.08910104 | F88: ='Table X12 Indices 2012=100'!F88*$F$11 -> 86.63934426 | G88: ='Table X12 Indices 2012=100'!G88*$G$11 -> 84.38247012 | H88: ='Table X12 Indices 2012=100'!H88*$H$11 -> 84.8 | I88: ='Table X12 Indices 2012=100'!I88*$I$11 -> 85.35598706 | J88: ='Table X12 Indices 2012=100'!J88*$J$11 -> 85.24458701 | K88: ='Table X12 Indices 2012=100'!K88*$K$11 -> 85.64476886 | L88: ='Table X12 Indices 2012=100'!L88*$L$11 -> 84.50592885
B89: 2 | C89: 2014 | D89: ='Table X12 Indices 2012=100'!D89*$D$11 -> 84.95222929 | E89: ='Table X12 Indices 2012=100'!E89*$E$11 -> 85.12330947 | F89: ='Table X12 Indices 2012=100'!F89*$F$11 -> 87.37704918 | G89: ='Table X12 Indices 2012=100'!G89*$G$11 -> 85.17928287 | H89: ='Table X12 Indices 2012=100'!H89*$H$11 -> 85.6 | I89: ='Table X12 Indices 2012=100'!I89*$I$11 -> 86.2459547 | J89: ='Table X12 Indices 2012=100'!J89*$J$11 -> 86.36728148 | K89: ='Table X12 Indices 2012=100'!K89*$K$11 -> 86.53690186 | L89: ='Table X12 Indices 2012=100'!L89*$L$11 -> 85.05928854
B90: 3 | C90: 2014 | D90: ='Table X12 Indices 2012=100'!D90*$D$11 -> 86.14649681 | E90: ='Table X12 Indices 2012=100'!E90*$E$11 -> 86.31662689 | F90: ='Table X12 Indices 2012=100'!F90*$F$11 -> 88.36065573 | G90: ='Table X12 Indices 2012=100'!G90*$G$11 -> 86.13545817 | H90: ='Table X12 Indices 2012=100'!H90*$H$11 -> 86.96 | I90: ='Table X12 Indices 2012=100'!I90*$I$11 -> 87.13592233 | J90: ='Table X12 Indices 2012=100'!J90*$J$11 -> 87.48997594 | K90: ='Table X12 Indices 2012=100'!K90*$K$11 -> 87.51013787 | L90: ='Table X12 Indices 2012=100'!L90*$L$11 -> 86.32411067
B91: 4 | C91: 2014 | D91: ='Table X12 Indices 2012=100'!D91*$D$11 -> 86.38535031 | E91: ='Table X12 Indices 2012=100'!E91*$E$11 -> 86.71439936 | F91: ='Table X12 Indices 2012=100'!F91*$F$11 -> 88.7704918 | G91: ='Table X12 Indices 2012=100'!G91*$G$11 -> 86.61354582 | H91: ='Table X12 Indices 2012=100'!H91*$H$11 -> 87.6 | I91: ='Table X12 Indices 2012=100'!I91*$I$11 -> 87.54045308 | J91: ='Table X12 Indices 2012=100'!J91*$J$11 -> 87.89093825 | K91: ='Table X12 Indices 2012=100'!K91*$K$11 -> 87.91565288 | L91: ='Table X12 Indices 2012=100'!L91*$L$11 -> 86.48221344
B92: 5 | C92: 2014 | D92: ='Table X12 Indices 2012=100'!D92*$D$11 -> 86.70382165 | E92: ='Table X12 Indices 2012=100'!E92*$E$11 -> 86.79395386 | F92: ='Table X12 Indices 2012=100'!F92*$F$11 -> 89.01639344 | G92: ='Table X12 Indices 2012=100'!G92*$G$11 -> 86.77290837 | H92: ='Table X12 Indices 2012=100'!H92*$H$11 -> 87.68 | I92: ='Table X12 Indices 2012=100'!I92*$I$11 -> 87.86407767 | J92: ='Table X12 Indices 2012=100'!J92*$J$11 -> 87.97113072 | K92: ='Table X12 Indices 2012=100'!K92*$K$11 -> 88.32116788 | L92: ='Table X12 Indices 2012=100'!L92*$L$11 -> 87.11462451
B93: 6 | C93: 2014 | D93: ='Table X12 Indices 2012=100'!D93*$D$11 -> 86.94267515 | E93: ='Table X12 Indices 2012=100'!E93*$E$11 -> 86.95306285 | F93: ='Table X12 Indices 2012=100'!F93*$F$11 -> 89.34426229 | G93: ='Table X12 Indices 2012=100'!G93*$G$11 -> 87.17131474 | H93: ='Table X12 Indices 2012=100'!H93*$H$11 -> 87.92 | I93: ='Table X12 Indices 2012=100'!I93*$I$11 -> 88.67313916 | J93: ='Table X12 Indices 2012=100'!J93*$J$11 -> 88.29190056 | K93: ='Table X12 Indices 2012=100'!K93*$K$11 -> 88.48337388 | L93: ='Table X12 Indices 2012=100'!L93*$L$11 -> 87.50988142
B94: 7 | C94: 2014 | D94: ='Table X12 Indices 2012=100'!D94*$D$11 -> 87.7388535 | E94: ='Table X12 Indices 2012=100'!E94*$E$11 -> 87.6690533 | F94: ='Table X12 Indices 2012=100'!F94*$F$11 -> 90.49180327 | G94: ='Table X12 Indices 2012=100'!G94*$G$11 -> 87.72908366 | H94: ='Table X12 Indices 2012=100'!H94*$H$11 -> 88.56 | I94: ='Table X12 Indices 2012=100'!I94*$I$11 -> 89.4012945 | J94: ='Table X12 Indices 2012=100'!J94*$J$11 -> 88.93344026 | K94: ='Table X12 Indices 2012=100'!K94*$K$11 -> 88.88888889 | L94: ='Table X12 Indices 2012=100'!L94*$L$11 -> 87.98418972
B95: 8 | C95: 2014 | D95: ='Table X12 Indices 2012=100'!D95*$D$11 -> 87.977707 | E95: ='Table X12 Indices 2012=100'!E95*$E$11 -> 87.82816229 | F95: ='Table X12 Indices 2012=100'!F95*$F$11 -> 90.57377049 | G95: ='Table X12 Indices 2012=100'!G95*$G$11 -> 88.04780876 | H95: ='Table X12 Indices 2012=100'!H95*$H$11 -> 88.8 | I95: ='Table X12 Indices 2012=100'!I95*$I$11 -> 89.48220065 | J95: ='Table X12 Indices 2012=100'!J95*$J$11 -> 89.25421011 | K95: ='Table X12 Indices 2012=100'!K95*$K$11 -> 89.45660989 | L95: ='Table X12 Indices 2012=100'!L95*$L$11 -> 88.22134387
B96: 9 | C96: 2014 | D96: ='Table X12 Indices 2012=100'!D96*$D$11 -> 88.29617834 | E96: ='Table X12 Indices 2012=100'!E96*$E$11 -> 88.06682578 | F96: ='Table X12 Indices 2012=100'!F96*$F$11 -> 90.73770491 | G96: ='Table X12 Indices 2012=100'!G96*$G$11 -> 88.04780876 | H96: ='Table X12 Indices 2012=100'!H96*$H$11 -> 88.72 | I96: ='Table X12 Indices 2012=100'!I96*$I$11 -> 89.48220065 | J96: ='Table X12 Indices 2012=100'!J96*$J$11 -> 89.17401764 | K96: ='Table X12 Indices 2012=100'!K96*$K$11 -> 89.45660989 | L96: ='Table X12 Indices 2012=100'!L96*$L$11 -> 88.22134387
B97: 10 | C97: 2014 | D97: ='Table X12 Indices 2012=100'!D97*$D$11 -> 88.53503184 | E97: ='Table X12 Indices 2012=100'!E97*$E$11 -> 87.98727128 | F97: ='Table X12 Indices 2012=100'!F97*$F$11 -> 90.6557377 | G97: ='Table X12 Indices 2012=100'!G97*$G$11 -> 88.20717131 | H97: ='Table X12 Indices 2012=100'!H97*$H$11 -> 88.8 | I97: ='Table X12 Indices 2012=100'!I97*$I$11 -> 89.5631068 | J97: ='Table X12 Indices 2012=100'!J97*$J$11 -> 89.33440257 | K97: ='Table X12 Indices 2012=100'!K97*$K$11 -> 89.6188159 | L97: ='Table X12 Indices 2012=100'!L97*$L$11 -> 88.22134387
B98: 11 | C98: 2014 | D98: ='Table X12 Indices 2012=100'!D98*$D$11 -> 88.69426751 | E98: ='Table X12 Indices 2012=100'!E98*$E$11 -> 88.06682578 | F98: ='Table X12 Indices 2012=100'!F98*$F$11 -> 90.81967213 | G98: ='Table X12 Indices 2012=100'!G98*$G$11 -> 88.36653386 | H98: ='Table X12 Indices 2012=100'!H98*$H$11 -> 88.72 | I98: ='Table X12 Indices 2012=100'!I98*$I$11 -> 89.4012945 | J98: ='Table X12 Indices 2012=100'!J98*$J$11 -> 89.33440257 | K98: ='Table X12 Indices 2012=100'!K98*$K$11 -> 89.6188159 | L98: ='Table X12 Indices 2012=100'!L98*$L$11 -> 88.37944664
B99: 12 | C99: 2014 | D99: ='Table X12 Indices 2012=100'!D99*$D$11 -> 88.53503184 | E99: ='Table X12 Indices 2012=100'!E99*$E$11 -> 88.06682578 | F99: ='Table X12 Indices 2012=100'!F99*$F$11 -> 90.49180327 | G99: ='Table X12 Indices 2012=100'!G99*$G$11 -> 88.20717131 | H99: ='Table X12 Indices 2012=100'!H99*$H$11 -> 88.64 | I99: ='Table X12 Indices 2012=100'!I99*$I$11 -> 89.15857605 | J99: ='Table X12 Indices 2012=100'!J99*$J$11 -> 89.09382518 | K99: ='Table X12 Indices 2012=100'!K99*$K$11 -> 89.45660989 | L99: ='Table X12 Indices 2012=100'!L99*$L$11 -> 88.14229249
B100: 1 | C100: 2015 | D100: ='Table X12 Indices 2012=100'!D100*$D$11 -> 88.45541401 | E100: ='Table X12 Indices 2012=100'!E100*$E$11 -> 88.14638027 | F100: ='Table X12 Indices 2012=100'!F100*$F$11 -> 90.32786885 | G100: ='Table X12 Indices 2012=100'!G100*$G$11 -> 88.28685259 | H100: ='Table X12 Indices 2012=100'!H100*$H$11 -> 88.4 | I100: ='Table X12 Indices 2012=100'!I100*$I$11 -> 89.15857605 | J100: ='Table X12 Indices 2012=100'!J100*$J$11 -> 88.93344026 | K100: ='Table X12 Indices 2012=100'!K100*$K$11 -> 89.45660989 | L100: ='Table X12 Indices 2012=100'!L100*$L$11 -> 87.90513834
B101: 2 | C101: 2015 | D101: ='Table X12 Indices 2012=100'!D101*$D$11 -> 88.77388534 | E101: ='Table X12 Indices 2012=100'!E101*$E$11 -> 88.54415275 | F101: ='Table X12 Indices 2012=100'!F101*$F$11 -> 90.81967213 | G101: ='Table X12 Indices 2012=100'!G101*$G$11 -> 88.76494024 | H101: ='Table X12 Indices 2012=100'!H101*$H$11 -> 88.8 | I101: ='Table X12 Indices 2012=100'!I101*$I$11 -> 89.80582525 | J101: ='Table X12 Indices 2012=100'!J101*$J$11 -> 89.65517242 | K101: ='Table X12 Indices 2012=100'!K101*$K$11 -> 90.0243309 | L101: ='Table X12 Indices 2012=100'!L101*$L$11 -> 88.30039526
B102: 3 | C102: 2015 | D102: ='Table X12 Indices 2012=100'!D102*$D$11 -> 90.0477707 | E102: ='Table X12 Indices 2012=100'!E102*$E$11 -> 89.41925219 | F102: ='Table X12 Indices 2012=100'!F102*$F$11 -> 92.21311475 | G102: ='Table X12 Indices 2012=100'!G102*$G$11 -> 90.03984064 | H102: ='Table X12 Indices 2012=100'!H102*$H$11 -> 90 | I102: ='Table X12 Indices 2012=100'!I102*$I$11 -> 90.85760518 | J102: ='Table X12 Indices 2012=100'!J102*$J$11 -> 90.93825181 | K102: ='Table X12 Indices 2012=100'!K102*$K$11 -> 90.91646391 | L102: ='Table X12 Indices 2012=100'!L102*$L$11 -> 89.32806324
B103: 4 | C103: 2015 | D103: ='Table X12 Indices 2012=100'!D103*$D$11 -> 90.84394904 | E103: ='Table X12 Indices 2012=100'!E103*$E$11 -> 90.45346062 | F103: ='Table X12 Indices 2012=100'!F103*$F$11 -> 93.11475409 | G103: ='Table X12 Indices 2012=100'!G103*$G$11 -> 90.91633466 | H103: ='Table X12 Indices 2012=100'!H103*$H$11 -> 90.72 | I103: ='Table X12 Indices 2012=100'!I103*$I$11 -> 91.74757282 | J103: ='Table X12 Indices 2012=100'!J103*$J$11 -> 91.74017643 | K103: ='Table X12 Indices 2012=100'!K103*$K$11 -> 91.72749392 | L103: ='Table X12 Indices 2012=100'!L103*$L$11 -> 90.19762846
B104: 5 | C104: 2015 | D104: ='Table X12 Indices 2012=100'!D104*$D$11 -> 91.08280254 | E104: ='Table X12 Indices 2012=100'!E104*$E$11 -> 90.61256961 | F104: ='Table X12 Indices 2012=100'!F104*$F$11 -> 93.27868852 | G104: ='Table X12 Indices 2012=100'!G104*$G$11 -> 91.15537849 | H104: ='Table X12 Indices 2012=100'!H104*$H$11 -> 90.96 | I104: ='Table X12 Indices 2012=100'!I104*$I$11 -> 91.82847897 | J104: ='Table X12 Indices 2012=100'!J104*$J$11 -> 92.06094627 | K104: ='Table X12 Indices 2012=100'!K104*$K$11 -> 92.05190592 | L104: ='Table X12 Indices 2012=100'!L104*$L$11 -> 90.11857708
B105: 6 | C105: 2015 | D105: ='Table X12 Indices 2012=100'!D105*$D$11 -> 91.40127388 | E105: ='Table X12 Indices 2012=100'!E105*$E$11 -> 90.93078759 | F105: ='Table X12 Indices 2012=100'!F105*$F$11 -> 93.44262295 | G105: ='Table X12 Indices 2012=100'!G105*$G$11 -> 91.47410359 | H105: ='Table X12 Indices 2012=100'!H105*$H$11 -> 91.36 | I105: ='Table X12 Indices 2012=100'!I105*$I$11 -> 92.23300971 | J105: ='Table X12 Indices 2012=100'!J105*$J$11 -> 92.38171612 | K105: ='Table X12 Indices 2012=100'!K105*$K$11 -> 92.45742092 | L105: ='Table X12 Indices 2012=100'!L105*$L$11 -> 90.98814229
B106: 7 | C106: 2015 | D106: ='Table X12 Indices 2012=100'!D106*$D$11 -> 92.27707006 | E106: ='Table X12 Indices 2012=100'!E106*$E$11 -> 91.72633254 | F106: ='Table X12 Indices 2012=100'!F106*$F$11 -> 94.67213114 | G106: ='Table X12 Indices 2012=100'!G106*$G$11 -> 92.43027888 | H106: ='Table X12 Indices 2012=100'!H106*$H$11 -> 92.4 | I106: ='Table X12 Indices 2012=100'!I106*$I$11 -> 93.0420712 | J106: ='Table X12 Indices 2012=100'!J106*$J$11 -> 93.2638332 | K106: ='Table X12 Indices 2012=100'!K106*$K$11 -> 93.10624493 | L106: ='Table X12 Indices 2012=100'!L106*$L$11 -> 91.30434783
B107: 8 | C107: 2015 | D107: ='Table X12 Indices 2012=100'!D107*$D$11 -> 92.27707006 | E107: ='Table X12 Indices 2012=100'!E107*$E$11 -> 92.04455052 | F107: ='Table X12 Indices 2012=100'!F107*$F$11 -> 94.67213114 | G107: ='Table X12 Indices 2012=100'!G107*$G$11 -> 92.58964143 | H107: ='Table X12 Indices 2012=100'!H107*$H$11 -> 92.4 | I107: ='Table X12 Indices 2012=100'!I107*$I$11 -> 93.2038835 | J107: ='Table X12 Indices 2012=100'!J107*$J$11 -> 93.34402566 | K107: ='Table X12 Indices 2012=100'!K107*$K$11 -> 93.26845093 | L107: ='Table X12 Indices 2012=100'!L107*$L$11 -> 91.38339921
B108: 9 | C108: 2015 | D108: ='Table X12 Indices 2012=100'!D108*$D$11 -> 92.5955414 | E108: ='Table X12 Indices 2012=100'!E108*$E$11 -> 91.88544153 | F108: ='Table X12 Indices 2012=100'!F108*$F$11 -> 94.26229508 | G108: ='Table X12 Indices 2012=100'!G108*$G$11 -> 92.43027888 | H108: ='Table X12 Indices 2012=100'!H108*$H$11 -> 92.64 | I108: ='Table X12 Indices 2012=100'!I108*$I$11 -> 93.0420712 | J108: ='Table X12 Indices 2012=100'!J108*$J$11 -> 93.2638332 | K108: ='Table X12 Indices 2012=100'!K108*$K$11 -> 93.02514193 | L108: ='Table X12 Indices 2012=100'!L108*$L$11 -> 91.30434783
B109: 10 | C109: 2015 | D109: ='Table X12 Indices 2012=100'!D109*$D$11 -> 92.91401273 | E109: ='Table X12 Indices 2012=100'!E109*$E$11 -> 92.20365951 | F109: ='Table X12 Indices 2012=100'!F109*$F$11 -> 94.26229508 | G109: ='Table X12 Indices 2012=100'!G109*$G$11 -> 92.50996016 | H109: ='Table X12 Indices 2012=100'!H109*$H$11 -> 92.8 | I109: ='Table X12 Indices 2012=100'!I109*$I$11 -> 93.2038835 | J109: ='Table X12 Indices 2012=100'!J109*$J$11 -> 93.50441059 | K109: ='Table X12 Indices 2012=100'!K109*$K$11 -> 93.10624493 | L109: ='Table X12 Indices 2012=100'!L109*$L$11 -> 91.77865613
B110: 11 | C110: 2015 | D110: ='Table X12 Indices 2012=100'!D110*$D$11 -> 93.0732484 | E110: ='Table X12 Indices 2012=100'!E110*$E$11 -> 92.52187749 | F110: ='Table X12 Indices 2012=100'!F110*$F$11 -> 94.59016393 | G110: ='Table X12 Indices 2012=100'!G110*$G$11 -> 92.66932271 | H110: ='Table X12 Indices 2012=100'!H110*$H$11 -> 92.8 | I110: ='Table X12 Indices 2012=100'!I110*$I$11 -> 93.28478965 | J110: ='Table X12 Indices 2012=100'!J110*$J$11 -> 93.58460305 | K110: ='Table X12 Indices 2012=100'!K110*$K$11 -> 93.26845093 | L110: ='Table X12 Indices 2012=100'!L110*$L$11 -> 92.41106719
B111: 12 | C111: 2015 | D111: ='Table X12 Indices 2012=100'!D111*$D$11 -> 93.31210191 | E111: ='Table X12 Indices 2012=100'!E111*$E$11 -> 92.76054097 | F111: ='Table X12 Indices 2012=100'!F111*$F$11 -> 94.67213114 | G111: ='Table X12 Indices 2012=100'!G111*$G$11 -> 93.22709163 | H111: ='Table X12 Indices 2012=100'!H111*$H$11 -> 92.96 | I111: ='Table X12 Indices 2012=100'!I111*$I$11 -> 93.60841424 | J111: ='Table X12 Indices 2012=100'!J111*$J$11 -> 93.9053729 | K111: ='Table X12 Indices 2012=100'!K111*$K$11 -> 93.51175993 | L111: ='Table X12 Indices 2012=100'!L111*$L$11 -> 92.25296443
B112: 1 | C112: 2016 | D112: ='Table X12 Indices 2012=100'!D112*$D$11 -> 93.94904458 | E112: ='Table X12 Indices 2012=100'!E112*$E$11 -> 93.63564041 | F112: ='Table X12 Indices 2012=100'!F112*$F$11 -> 95.24590163 | G112: ='Table X12 Indices 2012=100'!G112*$G$11 -> 94.26294821 | H112: ='Table X12 Indices 2012=100'!H112*$H$11 -> 93.84 | I112: ='Table X12 Indices 2012=100'!I112*$I$11 -> 94.49838188 | J112: ='Table X12 Indices 2012=100'!J112*$J$11 -> 94.62710505 | K112: ='Table X12 Indices 2012=100'!K112*$K$11 -> 94.48499594 | L112: ='Table X12 Indices 2012=100'!L112*$L$11 -> 93.12252965
B113: 2 | C113: 2016 | D113: ='Table X12 Indices 2012=100'!D113*$D$11 -> 94.98407643 | E113: ='Table X12 Indices 2012=100'!E113*$E$11 -> 95.22673031 | F113: ='Table X12 Indices 2012=100'!F113*$F$11 -> 96.47540983 | G113: ='Table X12 Indices 2012=100'!G113*$G$11 -> 95.37848606 | H113: ='Table X12 Indices 2012=100'!H113*$H$11 -> 95.04 | I113: ='Table X12 Indices 2012=100'!I113*$I$11 -> 95.63106796 | J113: ='Table X12 Indices 2012=100'!J113*$J$11 -> 95.99037691 | K113: ='Table X12 Indices 2012=100'!K113*$K$11 -> 96.18815896 | L113: ='Table X12 Indices 2012=100'!L113*$L$11 -> 95.01976285
B114: 3 | C114: 2016 | D114: ='Table X12 Indices 2012=100'!D114*$D$11 -> 95.78025477 | E114: ='Table X12 Indices 2012=100'!E114*$E$11 -> 95.78361178 | F114: ='Table X12 Indices 2012=100'!F114*$F$11 -> 96.8852459 | G114: ='Table X12 Indices 2012=100'!G114*$G$11 -> 96.25498008 | H114: ='Table X12 Indices 2012=100'!H114*$H$11 -> 96 | I114: ='Table X12 Indices 2012=100'!I114*$I$11 -> 96.27831716 | J114: ='Table X12 Indices 2012=100'!J114*$J$11 -> 96.6319166 | K114: ='Table X12 Indices 2012=100'!K114*$K$11 -> 96.75587997 | L114: ='Table X12 Indices 2012=100'!L114*$L$11 -> 96.12648221
B115: 4 | C115: 2016 | D115: ='Table X12 Indices 2012=100'!D115*$D$11 -> 96.41719745 | E115: ='Table X12 Indices 2012=100'!E115*$E$11 -> 96.81782021 | F115: ='Table X12 Indices 2012=100'!F115*$F$11 -> 97.62295081 | G115: ='Table X12 Indices 2012=100'!G115*$G$11 -> 96.97211155 | H115: ='Table X12 Indices 2012=100'!H115*$H$11 -> 96.96 | I115: ='Table X12 Indices 2012=100'!I115*$I$11 -> 97.33009709 | J115: ='Table X12 Indices 2012=100'!J115*$J$11 -> 97.43384122 | K115: ='Table X12 Indices 2012=100'!K115*$K$11 -> 97.64801298 | L115: ='Table X12 Indices 2012=100'!L115*$L$11 -> 97.6284585
B116: 5 | C116: 2016 | D116: ='Table X12 Indices 2012=100'!D116*$D$11 -> 96.41719745 | E116: ='Table X12 Indices 2012=100'!E116*$E$11 -> 97.13603819 | F116: ='Table X12 Indices 2012=100'!F116*$F$11 -> 97.78688524 | G116: ='Table X12 Indices 2012=100'!G116*$G$11 -> 97.29083665 | H116: ='Table X12 Indices 2012=100'!H116*$H$11 -> 97.12 | I116: ='Table X12 Indices 2012=100'!I116*$I$11 -> 97.41100324 | J116: ='Table X12 Indices 2012=100'!J116*$J$11 -> 97.67441861 | K116: ='Table X12 Indices 2012=100'!K116*$K$11 -> 97.89132198 | L116: ='Table X12 Indices 2012=100'!L116*$L$11 -> 97.54940712
B117: 6 | C117: 2016 | D117: ='Table X12 Indices 2012=100'!D117*$D$11 -> 97.13375796 | E117: ='Table X12 Indices 2012=100'!E117*$E$11 -> 97.85202864 | F117: ='Table X12 Indices 2012=100'!F117*$F$11 -> 98.52459016 | G117: ='Table X12 Indices 2012=100'!G117*$G$11 -> 97.7689243 | H117: ='Table X12 Indices 2012=100'!H117*$H$11 -> 97.84 | I117: ='Table X12 Indices 2012=100'!I117*$I$11 -> 97.81553398 | J117: ='Table X12 Indices 2012=100'!J117*$J$11 -> 98.15557338 | K117: ='Table X12 Indices 2012=100'!K117*$K$11 -> 98.13463098 | L117: ='Table X12 Indices 2012=100'!L117*$L$11 -> 97.70750988
B118: 7 | C118: 2016 | D118: ='Table X12 Indices 2012=100'!D118*$D$11 -> 97.85031847 | E118: ='Table X12 Indices 2012=100'!E118*$E$11 -> 98.4089101 | F118: ='Table X12 Indices 2012=100'!F118*$F$11 -> 99.26229508 | G118: ='Table X12 Indices 2012=100'!G118*$G$11 -> 98.48605578 | H118: ='Table X12 Indices 2012=100'!H118*$H$11 -> 98.88 | I118: ='Table X12 Indices 2012=100'!I118*$I$11 -> 98.78640777 | J118: ='Table X12 Indices 2012=100'!J118*$J$11 -> 98.957498 | K118: ='Table X12 Indices 2012=100'!K118*$K$11 -> 98.78345499 | L118: ='Table X12 Indices 2012=100'!L118*$L$11 -> 98.49802372
B119: 8 | C119: 2016 | D119: ='Table X12 Indices 2012=100'!D119*$D$11 -> 97.6910828 | E119: ='Table X12 Indices 2012=100'!E119*$E$11 -> 98.72712808 | F119: ='Table X12 Indices 2012=100'!F119*$F$11 -> 99.18032786 | G119: ='Table X12 Indices 2012=100'!G119*$G$11 -> 98.64541833 | H119: ='Table X12 Indices 2012=100'!H119*$H$11 -> 98.72 | I119: ='Table X12 Indices 2012=100'!I119*$I$11 -> 98.86731392 | J119: ='Table X12 Indices 2012=100'!J119*$J$11 -> 98.79711307 | K119: ='Table X12 Indices 2012=100'!K119*$K$11 -> 98.86455799 | L119: ='Table X12 Indices 2012=100'!L119*$L$11 -> 98.49802372
B120: 9 | C120: 2016 | D120: ='Table X12 Indices 2012=100'!D120*$D$11 -> 98.08917197 | E120: ='Table X12 Indices 2012=100'!E120*$E$11 -> 98.80668258 | F120: ='Table X12 Indices 2012=100'!F120*$F$11 -> 99.09836065 | G120: ='Table X12 Indices 2012=100'!G120*$G$11 -> 99.0438247 | H120: ='Table X12 Indices 2012=100'!H120*$H$11 -> 98.96 | I120: ='Table X12 Indices 2012=100'!I120*$I$11 -> 98.78640777 | J120: ='Table X12 Indices 2012=100'!J120*$J$11 -> 98.957498 | K120: ='Table X12 Indices 2012=100'!K120*$K$11 -> 99.02676399 | L120: ='Table X12 Indices 2012=100'!L120*$L$11 -> 98.89328063
B121: 10 | C121: 2016 | D121: ='Table X12 Indices 2012=100'!D121*$D$11 -> 98.64649681 | E121: ='Table X12 Indices 2012=100'!E121*$E$11 -> 99.12490056 | F121: ='Table X12 Indices 2012=100'!F121*$F$11 -> 99.67213114 | G121: ='Table X12 Indices 2012=100'!G121*$G$11 -> 99.44223108 | H121: ='Table X12 Indices 2012=100'!H121*$H$11 -> 99.44 | I121: ='Table X12 Indices 2012=100'!I121*$I$11 -> 99.43365696 | J121: ='Table X12 Indices 2012=100'!J121*$J$11 -> 99.43865277 | K121: ='Table X12 Indices 2012=100'!K121*$K$11 -> 99.51338199 | L121: ='Table X12 Indices 2012=100'!L121*$L$11 -> 99.28853755
B122: 11 | C122: 2016 | D122: ='Table X12 Indices 2012=100'!D122*$D$11 -> 99.04458598 | E122: ='Table X12 Indices 2012=100'!E122*$E$11 -> 99.52267303 | F122: ='Table X12 Indices 2012=100'!F122*$F$11 -> 99.99999999 | G122: ='Table X12 Indices 2012=100'!G122*$G$11 -> 99.60159362 | H122: ='Table X12 Indices 2012=100'!H122*$H$11 -> 99.76 | I122: ='Table X12 Indices 2012=100'!I122*$I$11 -> 99.67637541 | J122: ='Table X12 Indices 2012=100'!J122*$J$11 -> 99.75942262 | K122: ='Table X12 Indices 2012=100'!K122*$K$11 -> 99.756691 | L122: ='Table X12 Indices 2012=100'!L122*$L$11 -> 99.84189723
B123: 12 | C123: 2016 | D123: ='Table X12 Indices 2012=100'!D123*$D$11 -> 99.99999999 | E123: ='Table X12 Indices 2012=100'!E123*$E$11 -> 100 | F123: ='Table X12 Indices 2012=100'!F123*$F$11 -> 99.99999999 | G123: ='Table X12 Indices 2012=100'!G123*$G$11 -> 100 | H123: ='Table X12 Indices 2012=100'!H123*$H$11 -> 100 | I123: ='Table X12 Indices 2012=100'!I123*$I$11 -> 100 | J123: ='Table X12 Indices 2012=100'!J123*$J$11 -> 100 | K123: ='Table X12 Indices 2012=100'!K123*$K$11 -> 100 | L123: ='Table X12 Indices 2012=100'!L123*$L$11 -> 100
B124: 2017 ↓ | D124: The regional indices found in Table 14 of P0141 are discontinued from January 2017. Please refer to and use the indices per province given in P0141 Table A / Tables 3 to 11 in the Additional Tables. *
D125: The listed Indices above and below are applicable from January 2017 onwards; be reminded to also update the base month indice for calculations taken from January 2017 (without affecting calculations prior to January 2017).
B126: 1 | C126: 2017 | D126: 100.5 | E126: 100.7 | F126: 100.6 | G126: 100.7 | H126: 100.6 | I126: 100.8 | J126: 100.7 | K126: 100.6 | L126: 100.6
B127: 2 | C127: 2017 | D127: 101.9 | E127: 101.5 | F127: 101.4 | G127: 101.5 | H127: 101.6 | I127: 101.7 | J127: 101.8 | K127: 101.4 | L127: 101.3
B128: 3 | C128: 2017 | D128: 102.5 | E128: 102.1 | F128: 101.6 | G128: 102 | H128: 102 | I128: 102 | J128: 102.4 | K128: 101.7 | L128: 102
B129: 4 | C129: 2017 | D129: 102.5 | E129: 102.2 | F129: 101.8 | G129: 102.3 | H129: 102.1 | I129: 101.9 | J129: 102.5 | K129: 101.8 | L129: 102.1
B130: 5 | C130: 2017 | D130: 102.7 | E130: 102.7 | F130: 102 | G130: 102.4 | H130: 102.3 | I130: 102.3 | J130: 102.8 | K130: 102.2 | L130: 102.1
B131: 6 | C131: 2017 | D131: 102.9 | E131: 102.7 | F131: 102.1 | G131: 102.7 | H131: 102.6 | I131: 102.2 | J131: 103.2 | K131: 102.4 | L131: 102.4
B132: 7 | C132: 2017 | D132: 103.2 | E132: 103 | F132: 102.5 | G132: 102.8 | H132: 102.7 | I132: 102.2 | J132: 103.5 | K132: 102.5 | L132: 102.6 | N132: SEE 'NO LONGER APPLICABLE- PLANT"
B133: 8 | C133: 2017 | D133: 103.3 | E133: 102.8 | F133: 102.7 | G133: 103.1 | H133: 102.9 | I133: 102.4 | J133: 103.5 | K133: 102.5 | L133: 102.4
B134: 9 | C134: 2017 | D134: 104.3 | E134: 103.5 | F134: 103.1 | G134: 103.4 | H134: 103.2 | I134: 102.7 | J134: 103.9 | K134: 102.8 | L134: 103.1
B135: 10 | C135: 2017 | D135: 104.8 | E135: 103.7 | F135: 103.2 | G135: 103.6 | H135: 103.5 | I135: 102.9 | J135: 104.2 | K135: 103 | L135: 103.4
B136: 11 | C136: 2017 | D136: 104.9 | E136: 103.8 | F136: 103.5 | G136: 103.8 | H136: 103.7 | I136: 103 | J136: 104.3 | K136: 103.3 | L136: 103.4
B137: 12 | C137: 2017 | D137: 105.3 | E137: 104.6 | F137: 103.8 | G137: 104.1 | H137: 104.1 | I137: 103.3 | J137: 104.8 | K137: 103.8 | L137: 104.1
D138: The regional indices found in Table 14 of P0141 are discontinued from January 2017. Please refer to and use the indices per province given in P0141 Table A / Tables 3 to 11 in the Additional Tables. *
D139: The listed Indices above are applicable from January 2017 onwards; be reminded to also update the base month indice for calculations taken from January 2017 (without affecting calculations prior to January 2017).
D142: 0.7917656374 | E142: 0.786163522 | F142: 0.7751937984 | G142: 0.7757951901 | H142: 0.8006405124 | I142: 0.772797527 | J142: 0.7886435331 | K142: 0.7874015748 | L142: 0.7974481659 | N142: 2.272 | O142: 2.89 | P142: 3.22 | Q142: 4.149 | R142: 1.909 | T142: 2.196 | U142: 1.992 | V142: 4.24 | W142: 4.205
B150: 2018 ↓ | D150: The indices below are a continuation of the Labour indices as per the previous years.
D151: Table A- Consumer Price Index: Main indices P0141
B152: Month | C152: Year | D152: Western Cape | E152: Eastern Cape | F152: Northern Cape | G152: Free State | H152: KwaZulu Natal | I152: North West | J152: Gauteng | K152: Mpumalanga | L152: Limpopo
B154: December | C154: 2017 | D154: 105.3 | E154: 104.6 | F154: 103.8 | G154: 104.1 | H154: 104.1 | I154: 103.3 | J154: 104.8 | K154: 103.8 | L154: 104.3
B155: Jan | C155: 2018 | D155: 105.7 | E155: 104.9 | F155: 104.3 | G155: 104.6 | H155: 104.4 | I155: 103.7 | J155: 105.1 | K155: 104.2 | L155: 104.3
B156: Feb | C156: 2018 | D156: 106.7 | E156: 105.6 | F156: 105 | G156: 105.4 | H156: 104.9 | I156: 104.5 | J156: 105.9 | K156: 104.7 | L156: 104.9
B157: Mar | C157: 2018 | D157: 107 | E157: 106 | F157: 105.1 | G157: 105.7 | H157: 105.2 | I157: 104.8 | J157: 106.4 | K157: 105 | L157: 105
B158: Apr | C158: 2018 | D158: 107.9 | E158: 106.8 | F158: 105.9 | G158: 106.4 | H158: 105.9 | I158: 105.4 | J158: 107.2 | K158: 105.7 | L158: 105.7
B159: May | C159: 2018 | D159: 108 | E159: 106.8 | F159: 105.9 | G159: 106.7 | H159: 106.2 | I159: 105.7 | J159: 107.4 | K159: 105.8 | L159: 105.8
B160: Jun | C160: 2018 | D160: 108.5 | E160: 107.1 | F160: 106.3 | G160: 107.4 | H160: 106.4 | I160: 105.9 | J160: 107.9 | K160: 106.2 | L160: 106.1
B161: Jul | C161: 2018 | D161: 109.3 | E161: 107.6 | F161: 106.7 | G161: 107.7 | H161: 107.3 | I161: 106.5 | J161: 108.9 | K161: 106.7 | L161: 106.7
B162: Aug | C162: 2018 | D162: 109.3 | E162: 107.6 | F162: 106.7 | G162: 107.6 | H162: 107.2 | I162: 106.5 | J162: 108.9 | K162: 106.6 | L162: 106.8
B163: Sep | C163: 2018 | D163: 110.1 | E163: 108.2 | F163: 107.5 | G163: 108.1 | H163: 107.6 | I163: 107 | J163: 109.2 | K163: 107.7 | L163: 107.1
B164: Oct | C164: 2018 | D164: 110.5 | E164: 108.8 | F164: 107.8 | G164: 108.5 | H164: 108.1 | I164: 107.4 | J164: 109.7 | K164: 108.2 | L164: 107.5
B165: Nov | C165: 2018 | D165: 110.9 | E165: 108.9 | F165: 108.1 | G165: 108.7 | H165: 108.4 | I165: 107.5 | J165: 109.9 | K165: 108.3 | L165: 107.8
B166: Dec | C166: 2018 | D166: 110.8 | E166: 108.7 | F166: 108 | G166: 108.7 | H166: 108.1 | I166: 106.9 | J166: 109.6 | K166: 108 | L166: 107.8
B172: 2019 ↓ | D172: The indices below are a continuation of the Labour indices as per the previous years.
D173: Table A- Consumer Price Index: Main indices P0141
B174: Month | C174: Year | D174: Western Cape | E174: Eastern Cape | F174: Northern Cape | G174: Free State | H174: KwaZulu Natal | I174: North West | J174: Gauteng | K174: Mpumalanga | L174: Limpopo
B176: Jan | C176: 2019 | D176: 110.6 | E176: 108.7 | F176: 108.2 | G176: 108.9 | H176: 108.2 | I176: 107.1 | J176: 109.4 | K176: 108.1 | L176: 107.9
B177: Feb | C177: 2019 | D177: 111.7 | E177: 109.8 | F177: 108.9 | G177: 109.7 | H177: 108.7 | I177: 107.9 | J177: 110.3 | K177: 108.9 | L177: 108.8
B178: Mar | C178: 2019 | D178: 112.9 | E178: 110.2 | F178: 109.7 | G178: 110.6 | H178: 109.5 | I178: 108.8 | J178: 111 | K178: 109.6 | L178: 110
B179: Apr | C179: 2019 | D179: 113.5 | E179: 110.9 | F179: 110.3 | G179: 111.2 | H179: 110 | I179: 109.5 | J179: 111.7 | K179: 110.2 | L179: 110.4
B180: May | C180: 2019 | D180: 113.8 | E180: 111 | F180: 110.4 | G180: 111.4 | H180: 110.4 | I180: 109.7 | J180: 112.1 | K180: 110.5 | L180: 111.1
B181: Jun | C181: 2019 | D181: 114.3 | E181: 111.3 | F181: 110.9 | G181: 111.6 | H181: 110.7 | I181: 110 | J181: 112.5 | K181: 110.8 | L181: 111.1
B182: Jul | C182: 2019 | D182: 114.6 | E182: 111.7 | F182: 111.5 | G182: 111.9 | H182: 111.3 | I182: 110.3 | J182: 113 | K182: 111.1 | L182: 111.7
B183: Aug | C183: 2019 | D183: 114.7 | E183: 111.9 | F183: 111.6 | G183: 112.1 | H183: 111.6 | I183: 110.6 | J183: 113.4 | K183: 111.3 | L183: 111.8
B184: Sep | C184: 2019 | D184: 115.2 | E184: 112.2 | F184: 111.9 | G184: 112.4 | H184: 111.9 | I184: 110.8 | J184: 113.6 | K184: 111.7 | L184: 112.2
B185: Oct | C185: 2019 | D185: 115.2 | E185: 112.2 | F185: 111.9 | G185: 112.5 | H185: 112 | I185: 110.8 | J185: 113.6 | K185: 111.8 | L185: 112.3
B186: Nov | C186: 2019 | D186: 115.4 | E186: 112.4 | F186: 111.9 | G186: 112.6 | H186: 112.1 | I186: 111 | J186: 113.6 | K186: 112.1 | L186: 112.2
B187: Dec | C187: 2019 | D187: 115.7 | E187: 112.7 | F187: 112.3 | G187: 112.8 | H187: 112.1 | I187: 111.1 | J187: 113.9 | K187: 112.2 | L187: 112.9
B193: 2020 ↓ | D193: The indices below are a continuation of the Labour indices as per the previous years.
D194: Table A- Consumer Price Index: Main indices P0141
B195: Month | C195: Year | D195: Western Cape | E195: Eastern Cape | F195: Northern Cape | G195: Free State | H195: KwaZulu Natal | I195: North West | J195: Gauteng | K195: Mpumalanga | L195: Limpopo
B197: Jan | C197: 2020 | D197: 116.2 | E197: 113 | F197: 113 | G197: 113.3 | H197: 112.5 | I197: 111.5 | J197: 114.2 | K197: 112.6 | L197: 113
B198: Feb | C198: 2020 | D198: 117.6 | E198: 114.1 | F198: 114 | G198: 114.2 | H198: 113.4 | I198: 112.4 | J198: 115.2 | K198: 113.4 | L198: 113.8
B199: Mar | C199: 2020 | D199: 118.3 | E199: 114.3 | F199: 114.2 | G199: 114.7 | H199: 113.9 | I199: 112.9 | J199: 115.5 | K199: 113.8 | L199: 114
B200: Apr | C200: 2020 | D200: 117.6 | E200: 113.6 | F200: 113.7 | G200: 114.2 | H200: 113.3 | I200: 112.3 | J200: 114.8 | K200: 113.2 | L200: 113.5
B201: May | C201: 2020 | D201: 116.8 | E201: 113.1 | F201: 113.1 | G201: 113.7 | H201: 112.8 | I201: 111.6 | J201: 114 | K201: 112.6 | L201: 112.9
B202: Jun | C202: 2020 | D202: 117.5 | E202: 113.7 | F202: 113.7 | G202: 114.1 | H202: 113.3 | I202: 112.1 | J202: 114.6 | K202: 113.2 | L202: 113.4
B203: Jul | C203: 2020 | D203: 118.8 | E203: 115.3 | F203: 115 | G203: 115.4 | H203: 114.6 | I203: 113.7 | J203: 116.3 | K203: 114.4 | L203: 115.2
B204: Aug | C204: 2020 | D204: 119.1 | E204: 115.5 | F204: 115.1 | G204: 115.5 | H204: 114.8 | I204: 113.9 | J204: 116.5 | K204: 114.5 | L204: 115.3
B205: Sep | C205: 2020 | D205: 119.4 | E205: 115.7 | F205: 115.4 | G205: 115.7 | H205: 115.1 | I205: 114.1 | J205: 116.6 | K205: 114.6 | L205: 115.5
B206: Oct | C206: 2020 | D206: 119.7 | E206: 116.1 | F206: 115.8 | G206: 116 | H206: 115.5 | I206: 114.4 | J206: 116.9 | K206: 115 | L206: 115.9
B207: Nov | C207: 2020 | D207: 119.7 | E207: 116.1 | F207: 115.9 | G207: 116.1 | H207: 115.6 | I207: 114.5 | J207: 116.9 | K207: 115.1 | L207: 116
B208: Dec | C208: 2020 | D208: 120 | E208: 116.4 | F208: 116.2 | G208: 116.4 | H208: 115.8 | I208: 114.7 | J208: 117.1 | K208: 115.4 | L208: 116.2
B213: 2021 ↓ | D213: The indices below are a continuation of the Labour indices as per the previous years.
D214: Table A- Consumer Price Index: Main indices P0141
B215: Month | C215: Year | D215: Western Cape | E215: Eastern Cape | F215: Northern Cape | G215: Free State | H215: KwaZulu Natal | I215: North West | J215: Gauteng | K215: Mpumalanga | L215: Limpopo
B217: Jan | C217: 2021 | D217: 120.4 | E217: 116.8 | F217: 116.6 | G217: 116.8 | H217: 116.2 | I217: 115.2 | J217: 117.5 | K217: 115.7 | L217: 116.6
B218: Feb | C218: 2021 | D218: 121.4 | E218: 117.6 | F218: 117.2 | G218: 117.5 | H218: 116.9 | I218: 116.1 | J218: 118.3 | K218: 116.5 | L218: 117.2
B219: Mar | C219: 2021 | D219: 122.3 | E219: 118.3 | F219: 117.9 | G219: 118.4 | H219: 117.7 | I219: 117.1 | J219: 119.1 | K219: 117.3 | L219: 118.2
B220: Apr | C220: 2021 | D220: 122.9 | E220: 119 | F220: 118.5 | G220: 119.1 | H220: 118.4 | I220: 117.8 | J220: 119.9 | K220: 118 | L220: 118.9
B221: May | C221: 2021 | D221: 123.1 | E221: 119.2 | F221: 118.8 | G221: 119.4 | H221: 118.6 | I221: 118.0 | J221: 120 | K221: 118.2 | L221: 119.2
B222: Jun | C222: 2021 | D222: 123.4 | E222: 119.8 | F222: 119.6 | G222: 119.8 | H222: 118.9 | I222: 118.9 | J222: 120.1 | K222: 118.4 | L222: 119.7
B223: Jul | C223: 2021 | D223: 124.7 | E223: 121 | F223: 120.7 | G223: 120.8 | H223: 120.1 | I223: 120 | J223: 121.5 | K223: 119.5 | L223: 120.7
B224: Aug | C224: 2021 | D224: 125.3 | E224: 121.4 | F224: 121.3 | G224: 121.2 | H224: 120.6 | I224: 120.4 | J224: 122.1 | K224: 120 | L224: 121.2
B225: Sep | C225: 2021 | D225: 125.5 | E225: 121.7 | F225: 121.6 | G225: 121.4 | H225: 120.9 | I225: 120.6 | J225: 122.3 | K225: 120.2 | L225: 121.4
B226: Oct | C226: 2021 | D226: 125.9 | E226: 122.2 | F226: 122 | G226: 121.8 | H226: 121.3 | I226: 121.1 | J226: 122.6 | K226: 120.7 | L226: 121.8
B227: Nov | C227: 2021 | D227: 126.5 | E227: 122.6 | F227: 122.4 | G227: 122.2 | H227: 121.8 | I227: 121.6 | J227: 123.3 | K227: 121.2 | L227: 122.4
B228: Dec | C228: 2021 | D228: 127.1 | E228: 123.1 | F228: 123.2 | G228: 123 | H228: 122.4 | I228: 122.2 | J228: 124 | K228: 122 | L228: 123
B232: 2022 ↓ | D232: The indices below are a continuation of the Labour indices as per the previous years.
D233: Table A- Consumer Price Index: Main indices P0141 December 2021= 100
B234: Month | C234: Year | D234: Western Cape | E234: Eastern Cape | F234: Northern Cape | G234: Free State | H234: KwaZulu Natal | I234: North West | J234: Gauteng | K234: Mpumalanga | L234: Limpopo
B236: Dec21 =100 Conversion Factor | D236: 1.271 | E236: 1.231 | F236: 1.232 | G236: 1.23 | H236: 1.224 | I236: 1.222 | J236: 1.24 | K236: 1.22 | L236: 1.23
B237: Jan | C237: 2022 | D237: 100 | E237: 100.4 | F237: 100.3 | G237: 100.3 | H237: 100.2 | I237: 100.2 | J237: 100.2 | K237: 100.3 | L237: 100.4
B238: Feb | C238: 2022 | D238: 100.7 | E238: 100.9 | F238: 100.9 | G238: 100.9 | H238: 100.8 | I238: 100.8 | J238: 100.8 | K238: 100.9 | L238: 101
... 46 more rows

Sheet Plant Material Fuel
C1: THE CORRECT MATERIAL INDEX NEED TO BE AGREED UPON FOR EACH PARTICULAR PROJECT (with consulting eng and client) Please refer to the SAFCEC recommendation document and a worked example for clarity; available on the SAFCEC website).
C2: Table 4 P0151.1 | D2: Civil engineering material price indices- Table 6 P0151.1 | Q2: Table 1 P0142.1
A3: 2018 ↓ | C3: Mining and construction plant and equipment price index | D3: Civil engineering material- total | E3: Civil engineering material (excluding bitumen) | F3: Civil engineering material (excluding reinforcing metal work) | G3: Civil engineering material (excluding reinforcing metal work and bitumen) | H3: Civil engineering material-structures (excluding bitumen) | I3: Civil engineering material -roads, general | J3: Civil engineering material-roads, general (excluding bitumen) | K3: Civil engineering material-roads, refurbishment | L3: Civil engineering material-roads, refurbishment (excluding bitumen) | M3: Civil engineering material -roads, reseal | N3: Civil engineering material -roads, reseal (excluding bitumen) | O3: Civil engineering material-bulk earthworks | P3: Civil engineering material-bulk earthworks (excluding bitumen) | Q3: Fuel Diesel
C4: 111.5 | D4: 111.5 | E4: 110.3 | F4: 112 | G4: 112 | H4: 112 | I4: 112 | J4: 112 | K4: 112 | L4: 112 | M4: 112 | N4: 112 | O4: 112 | P4: 112 | Q4: 109.6
A5: 2017 | B5: Dec | C5: 101 | D5: 111.5 | E5: 110.3 | F5: 112 | G5: 109.6 | H5: 113.6 | I5: 118 | J5: 118.2 | K5: 118.2 | L5: 119.1 | M5: 116.8 | N5: 116.8 | O5: 113.3 | P5: 113.8 | Q5: 117.8
B6: Jan | C6: 101.5 | D6: 112.8 | E6: 113 | F6: 113.8 | G6: 112.9 | H6: 117.1 | I6: 122 | J6: 124.3 | K6: 121.4 | L6: 125.8 | M6: 115.8 | N6: 122.6 | O6: 117.7 | P6: 119 | Q6: 115.6
B7: Feb | C7: 102 | D7: 111.2 | E7: 110.6 | F7: 112.1 | G7: 110.5 | H7: 114 | I7: 118.9 | J7: 120 | K7: 118.5 | L7: 121 | M7: 114.7 | N7: 118.5 | O7: 114.8 | P7: 115.6 | Q7: 114
B8: Mar | C8: 101.5 | D8: 111.3 | E8: 112.1 | F8: 112.1 | G8: 112.3 | H8: 115.3 | I8: 118.6 | J8: 121 | K8: 117.7 | L8: 122.3 | M8: 111.8 | N8: 120.1 | O8: 115.6 | P8: 116.8 | Q8: 109.9
B9: Apr | C9: 101.5 | D9: 111.4 | E9: 112.5 | F9: 111.8 | G9: 112.7 | H9: 115.6 | I9: 118.2 | J9: 120.8 | K9: 117.2 | L9: 122.2 | M9: 111.4 | N9: 119.7 | O9: 115.2 | P9: 116.4 | Q9: 115.4
B10: May | C10: 101.6 | D10: 112.3 | E10: 112.8 | F10: 112.9 | G10: 112.9 | H10: 116.1 | I10: 119.8 | J10: 121.9 | K10: 119.2 | L10: 123.5 | M10: 114.1 | N10: 120.9 | O10: 116.1 | P10: 117.2 | Q10: 121.5
B11: Jun | C11: 101.7 | D11: 114 | E11: 112.8 | F11: 114.8 | G11: 112.7 | H11: 116.2 | I11: 121 | J11: 121.4 | K11: 121.3 | L11: 122.6 | M11: 119.3 | N11: 120.3 | O11: 116.2 | P11: 116.7 | Q11: 128.8
B12: Jul | C12: 101.8 | D12: 116.9 | E12: 114.6 | F12: 117.6 | G12: 114.1 | H12: 118.8 | I12: 124.6 | J12: 124.1 | K12: 125.2 | L12: 125.1 | M12: 124.5 | N12: 122.1 | O12: 118.7 | P12: 118.9 | Q12: 130.9
B13: Aug | C13: 103.2 | D13: 116.5 | E13: 115 | F13: 116.7 | G13: 114.6 | H13: 119 | I13: 123.6 | J13: 123.8 | K13: 124 | L13: 125 | M13: 122.5 | N13: 122.4 | O13: 118.5 | P13: 119 | Q13: 130.5
B14: Sep | C14: 103.6 | D14: 117.8 | E14: 116.5 | F14: 117.1 | G14: 115.5 | H14: 121 | I14: 125 | J14: 125.3 | K14: 124.9 | L14: 125.9 | M14: 123.2 | N14: 123 | O14: 120.2 | P14: 120.6 | Q14: 130.5
B15: Oct | C15: 103.4 | D15: 121.1 | E15: 119 | F15: 119.7 | G15: 117.1 | H15: 124.2 | I15: 128.4 | J15: 127.8 | K15: 128.5 | L15: 128 | M15: 128.6 | N15: 125.1 | O15: 122.6 | P15: 122.8 | Q15: 141.9
B16: Nov | C16: 103.6 | D16: 122.3 | E16: 119.4 | F16: 121.4 | G16: 117.5 | H16: 124.7 | I16: 130 | J16: 128.8 | K16: 130.6 | L16: 129 | M16: 131.8 | N16: 126.1 | O16: 123.6 | P16: 123.5 | Q16: 146.5
B17: Dec | C17: 103.5 | D17: 121 | E17: 119.3 | F17: 119.9 | G17: 117.9 | H17: 124.4 | I17: 128.8 | J17: 128.9 | K17: 128.8 | L17: 129.4 | M17: 127.7 | N17: 126.5 | O17: 123.3 | P17: 123.7 | Q17: 132
C20: THE CORRECT MATERIAL INDEX NEED TO BE AGREED UPON FOR EACH PARTICULAR PROJECT (with consulting eng and client) Please refer to the SAFCEC recommendation document and a worked example for clarity; available on the SAFCEC website).
C21: Table 4 P0151.1 | D21: Civil engineering material price indices- Table 6 P0151.1 | Q21: Table 1 P0142.1
A22: 2019 ↓ | C22: Mining and construction plant and equipment price index | D22: Civil engineering material- total | E22: Civil engineering material (excluding bitumen) | F22: Civil engineering material (excluding reinforcing metal work) | G22: Civil engineering material (excluding reinforcing metal work and bitumen) | H22: Civil engineering material-structures (excluding bitumen) | I22: Civil engineering material -roads, general | J22: Civil engineering material-roads, general (excluding bitumen) | K22: Civil engineering material-roads, refurbishment | L22: Civil engineering material-roads, refurbishment (excluding bitumen) | M22: Civil engineering material -roads, reseal | N22: Civil engineering material -roads, reseal (excluding bitumen) | O22: Civil engineering material-bulk earthworks | P22: Civil engineering material-bulk earthworks (excluding bitumen) | Q22: Fuel Diesel
C23: 111.5 | D23: 111.5 | E23: 110.3 | F23: 112 | G23: 112 | H23: 112 | I23: 112 | J23: 112 | K23: 112 | L23: 112 | M23: 112 | N23: 112 | O23: 112 | P23: 112 | Q23: 109.6
B24: Jan | C24: 105.9 | D24: 118.3 | E24: 118.9 | F24: 117.2 | G24: 117.6 | H24: 123.6 | I24: 126 | J24: 128.3 | K24: 124.9 | L24: 129.1 | M24: 119.7 | N24: 126.3 | O24: 122.4 | P24: 123.5 | Q24: 117.9
B25: Feb | C25: 105.3 | D25: 119.2 | E25: 119.8 | F25: 118.6 | G25: 118.8 | H25: 124.1 | I25: 126.7 | J25: 128.8 | K25: 125.9 | L25: 129.6 | M25: 120.5 | N25: 126.9 | O25: 123.4 | P25: 124.4 | Q25: 118
B26: Mar | C26: 105.5 | D26: 121.4 | E26: 120.6 | F26: 121.9 | G26: 119.9 | H26: 124.3 | I26: 127.8 | J26: 128.4 | K26: 127.9 | L26: 129.5 | M26: 125.4 | N26: 127.2 | O26: 124 | P26: 124.4 | Q26: 126.4
B27: Apr | C27: 105.6 | D27: 122.6 | E27: 120.6 | F27: 123.5 | G27: 119.8 | H27: 124.4 | I27: 129.2 | J27: 128.6 | K27: 129.9 | L27: 129.6 | M27: 129.3 | N27: 127.3 | O27: 124.5 | P27: 124.6 | Q27: 133.7
B28: May | C28: 105.5 | D28: 124.7 | E28: 122.6 | F28: 126.2 | G28: 122.3 | H28: 126.1 | I28: 130.3 | J28: 129.5 | K28: 131.4 | L28: 131 | M28: 131.4 | N28: 129.3 | O28: 126 | P28: 125.9 | Q28: 133.8
B29: Jun | C29: 105.5 | D29: 124 | E29: 121.1 | F29: 125.2 | G29: 120.5 | H29: 124.5 | I29: 130 | J29: 128.5 | K29: 131.1 | L29: 129.4 | M29: 132.2 | N29: 127.2 | O29: 124.7 | P29: 124.4 | Q29: 136.8
B30: Jul | C30: 106 | D30: 123.5 | E30: 121.7 | F30: 123.9 | G30: 120.7 | H30: 125.3 | I30: 129.2 | J30: 128.5 | K30: 129.5 | L30: 128.9 | M30: 129.5 | N30: 126.6 | O30: 124.4 | P30: 124.2 | Q30: 130.4
B31: Aug | C31: 106.1 | D31: 124.3 | E31: 122 | F31: 125 | G31: 121.5 | H31: 125.4 | I31: 130 | J31: 128.9 | K31: 130.7 | L31: 129.6 | M31: 131.2 | N31: 127 | O31: 124.9 | P31: 124.7 | Q31: 129.1
B32: Sep | C32: 106.2 | D32: 123.8 | E32: 122.8 | F32: 124.3 | G32: 122.2 | H32: 126 | I32: 129.3 | J32: 129.3 | K32: 129.4 | L32: 130.1 | M32: 128 | N32: 127.6 | O32: 125 | P32: 125.1 | Q32: 131.5
B33: Oct | C33: 106.3 | D33: 125.2 | E33: 123.1 | F33: 125.8 | G33: 122.6 | H33: 126.2 | I33: 130.1 | J33: 129 | K33: 130.8 | L33: 129.6 | M33: 131.5 | N33: 127.5 | O33: 125.3 | P33: 124.9 | Q33: 133.8
B34: Nov | C34: 106.2 | D34: 122 | E34: 122.1 | F34: 122 | G34: 121.8 | H34: 125.1 | I34: 127.1 | J34: 128 | K34: 126.5 | L34: 128.6 | M34: 123.7 | N34: 126.5 | O34: 123.8 | P34: 124.2 | Q34: 132.4
B35: Dec | C35: 106.3 | D35: 119.1 | E35: 122 | F35: 118 | G35: 121.6 | H35: 124.9 | I35: 124.3 | J35: 127.8 | K35: 122 | L35: 128.3 | M35: 114.8 | N35: 126.1 | O35: 122.7 | P35: 123.9 | Q35: 131
C39: THE CORRECT MATERIAL INDEX NEED TO BE AGREED UPON FOR EACH PARTICULAR PROJECT (with consulting eng and client) Please refer to the SAFCEC recommendation document and a worked example for clarity; available on the SAFCEC website).
C40: Table 4 P0151.1 | D40: Civil engineering material price indices- Table 6 P0151.1 | Q40: Table 1 P0142.1
A41: 2020 ↓ | C41: Mining and construction plant and equipment price index | D41: Civil engineering material- total | E41: Civil engineering material (excluding bitumen) | F41: Civil engineering material (excluding reinforcing metal work) | G41: Civil engineering material (excluding reinforcing metal work and bitumen) | H41: Civil engineering material-structures (excluding bitumen) | I41: Civil engineering material -roads, general | J41: Civil engineering material-roads, general (excluding bitumen) | K41: Civil engineering material-roads, refurbishment | L41: Civil engineering material-roads, refurbishment (excluding bitumen) | M41: Civil engineering material -roads, reseal | N41: Civil engineering material -roads, reseal (excluding bitumen) | O41: Civil engineering material-bulk earthworks | P41: Civil engineering material-bulk earthworks (excluding bitumen) | Q41: Fuel Diesel
B43: Jan | C43: 108.5 | D43: 120.2 | E43: 123.2 | F43: 119.3 | G43: 123.2 | H43: 125.7 | I43: 124.4 | J43: 128 | K43: 122.4 | L43: 128.9 | M43: 115.1 | N43: 127.1 | O43: 123.4 | P43: 124.6 | Q43: 131.8
B44: Feb | C44: 109 | D44: 121.2 | E44: 122.2 | F44: 121 | G44: 121.9 | H44: 124.8 | I44: 125.4 | J44: 127.1 | K44: 124.4 | L44: 127.7 | M44: 120.4 | N44: 125.6 | O44: 123 | P44: 123.6 | Q44: 131.3
B45: Mar | C45: 109.9 | D45: 120.7 | E45: 122 | F45: 120.2 | G45: 121.7 | H45: 124.7 | I45: 125 | J45: 127 | K45: 123.8 | L45: 127.6 | M45: 119.2 | N45: 125.5 | O45: 122.8 | P45: 123.5 | Q45: 126.4
B46: Apr | C46: 111 | D46: 114.9 | E46: 115.9 | F46: 117.7 | G46: 115.4 | H46: 119.3 | I46: 121.8 | J46: 124.2 | K46: 121.7 | L46: 126.5 | M46: 115.6 | N46: 124.1 | O46: 119.9 | P46: 121.1 | Q46: 113.8
B47: May | C47: 112.7 | D47: 113.4 | E47: 115.4 | F47: 115.7 | G47: 114.8 | H47: 118.3 | I47: 119.2 | J47: 122.2 | K47: 118.3 | L47: 124 | M47: 111.3 | N47: 121.6 | O47: 118.3 | P47: 119.5 | Q47: 99.3
B48: Jun | C48: 112.8 | D48: 114.4 | E48: 117.3 | F48: 114.9 | G48: 115.6 | H48: 120.7 | I48: 119.8 | J48: 123.5 | K48: 118.1 | L48: 124.8 | M48: 110.3 | N48: 122 | O48: 118.7 | P48: 120.2 | Q48: 101.2
B49: Jul | C49: 112.8 | D49: 116.4 | E49: 117.8 | F49: 117.3 | G49: 116 | H49: 121 | I49: 121.3 | J49: 123.4 | K49: 120.6 | L49: 124.6 | M49: 115.6 | N49: 121.9 | O49: 119.3 | P49: 120.2 | Q49: 116.9
B50: Aug | C50: 115.2 | D50: 118.2 | E50: 119.3 | F50: 119 | G50: 117.9 | H50: 122.7 | I50: 122.9 | J50: 124.8 | K50: 122.2 | L50: 125.9 | M50: 117.8 | N50: 123.9 | O50: 121 | P50: 121.8 | Q50: 121
B51: Sep | C51: 115.1 | D51: 120.4 | E51: 120.6 | F51: 120.8 | G51: 118.4 | H51: 124.5 | I51: 125.3 | J51: 126.2 | K51: 124.8 | L51: 126.9 | M51: 122 | N51: 124.4 | O51: 122.3 | P51: 122.7 | Q51: 119.1
B52: Oct | C52: 116.2 | D52: 120.6 | E52: 121.9 | F52: 120.2 | G52: 119.3 | H52: 126.4 | I52: 125.4 | J52: 127.4 | K52: 124.3 | L52: 127.9 | M52: 120 | N52: 125.2 | O52: 122.9 | P52: 123.7 | Q52: 110.7
B53: Nov | C53: 116 | D53: 120.6 | E53: 121.9 | F53: 118.6 | G53: 117.8 | H53: 127.7 | I53: 126.1 | J53: 128.2 | K53: 124.1 | L53: 127.7 | M53: 120 | N53: 124.3 | O53: 123 | P53: 123.7 | Q53: 109.7
B54: Dec | C54: 115.9 | D54: 122.8 | E54: 124.9 | F54: 121.3 | G54: 121.5 | H54: 130.8 | I54: 128.5 | J54: 131.4 | K54: 126.8 | L54: 131.8 | M54: 121.3 | N54: 128.2 | O54: 125.7 | P54: 126.8 | Q54: 111.5 | R54: 100
C57: Table 4 P0151.1 | D57: Civil engineering material price indices- Table 6 P0151.1 | Q57: Table 1 P0142.1
A58: 2021 ↓ | C58: Mining and construction plant and equipment price index | D58: Civil engineering material- total | E58: Civil engineering material (excluding bitumen) | F58: Civil engineering material (excluding reinforcing metal work) | G58: Civil engineering material (excluding reinforcing metal work and bitumen) | H58: Civil engineering material-structures (excluding bitumen) | I58: Civil engineering material -roads, general | J58: Civil engineering material-roads, general (excluding bitumen) | K58: Civil engineering material-roads, refurbishment | L58: Civil engineering material-roads, refurbishment (excluding bitumen) | M58: Civil engineering material -roads, reseal | N58: Civil engineering material -roads, reseal (excluding bitumen) | O58: Civil engineering material-bulk earthworks | P58: Civil engineering material-bulk earthworks (excluding bitumen) | Q58: Fuel Diesel, Dec 2020= 100 | R58: To convert 2016=100 Conversion Factor = 1.115000
B60: Jan | C60: 116.6 | D60: 125.4 | E60: 126.9 | F60: 122.1 | G60: 122.4 | H60: 131.7 | I60: 128.1 | J60: 129.9 | K60: 126.9 | L60: 129.7 | M60: 124.3 | N60: 127 | O60: 124.9 | P60: 125.5 | Q60: 104.5
B61: Feb | C61: 115.3 | D61: 130.1 | E61: 131.7 | F61: 126.3 | G61: 126.2 | H61: 137.3 | I61: 131.8 | J61: 133.5 | K61: 130.7 | L61: 132.9 | M61: 129.4 | N61: 131.6 | O61: 128.4 | P61: 128.3 | Q61: 109.3
B62: Mar | C62: 115.3 | D62: 133.2 | E62: 133.4 | F62: 130.6 | G62: 128.3 | H62: 139.5 | I62: 135.9 | J62: 136.6 | K62: 135.6 | L62: 136.1 | M62: 135.8 | N62: 134.9 | O62: 131.6 | P62: 131.7 | Q62: 113.8
B63: Apr | C63: 114.7 | D63: 136.3 | E63: 135.4 | F63: 132.7 | G63: 129.4 | H63: 142.3 | I63: 138.6 | J63: 138.2 | K63: 138.4 | L63: 137.1 | M63: 140.8 | N63: 135.4 | O63: 133.1 | P63: 132.8 | Q63: 119
B64: May | C64: 114.6 | D64: 138.3 | E64: 138.2 | F64: 133.4 | G64: 131.7 | H64: 145.2 | I64: 140.0 | J64: 140.1 | K64: 139.4 | L64: 139.1 | M64: 141.3 | N64: 136.8 | O64: 134.2 | P64: 134.1 | Q64: 116.5
B65: Jun | C65: 114.8 | D65: 140.8 | E65: 141.6 | F65: 132.7 | G65: 132.1 | H65: 150.1 | I65: 141.5 | J65: 142.3 | K65: 139.7 | L65: 139.5 | M65: 142.1 | N65: 136.6 | O65: 135 | P65: 134.9 | Q65: 118.2
B66: Jul | C66: 114.9 | D66: 141.9 | E66: 142.2 | F66: 134 | G66: 132.8 | H66: 151.5 | I66: 142.7 | J66: 142.9 | K66: 140.9 | L66: 139.7 | M66: 144.5 | N66: 137.7 | O66: 135.9 | P66: 135.6 | Q66: 122
B67: Aug | C67: 115.1 | D67: 142.5 | E67: 141.6 | F67: 134.1 | G67: 132 | H67: 151.4 | I67: 143.7 | J67: 142.8 | K67: 142.2 | L67: 139.1 | M67: 147.9 | N67: 137.4 | O67: 135.9 | P67: 135.2 | Q67: 126.5
B68: Sep | C68: 115.2 | D68: 143.7 | E68: 142.5 | F68: 136.2 | G68: 133 | H68: 151.7 | I68: 143.6 | J68: 142.1 | K68: 142.9 | L68: 138.9 | M68: 149.4 | N68: 137.1 | O68: 139.4 | P68: 138.6 | Q68: 125.3
B69: Oct | C69: 115.3 | D69: 144.8 | E69: 142.2 | F69: 137.6 | G69: 132.4 | H69: 152 | I69: 145.3 | J69: 142.6 | K69: 145 | L69: 139.2 | M69: 153.5 | N69: 137.2 | O69: 140 | P69: 138.8 | Q69: 127.2
B70: Nov | C70: 115.5 | D70: 147.7 | E70: 143 | F70: 140.6 | G70: 133.3 | H70: 152.5 | I70: 147.5 | J70: 142.8 | K70: 148.7 | L70: 139.3 | M70: 161.2 | N70: 137.9 | O70: 141 | P70: 139.1 | Q70: 139.4
B71: Dec | C71: 115.7 | D71: 147.5 | E71: 143.2 | F71: 140.1 | G71: 133.5 | H71: 153.6 | I71: 149.2 | J71: 144.9 | K71: 149.5 | L71: 141 | M71: 160.4 | N71: 138.7 | O71: 142.5 | P71: 140.7 | Q71: 145.5
C74: Table 4 P0151.1 Dec 2021=100 | D74: Civil engineering material price indices- Table 6 P0151.1 Dec 2021 =100 | Q74: Table 1 P0142.1
A75: 2022 ↓ | C75: Mining and construction plant and equipment price index | D75: Civil engineering material- total | E75: Civil engineering material (excluding bitumen) | F75: Civil engineering material (excluding reinforcing metal work) | G75: Civil engineering material (excluding reinforcing metal work and bitumen) | H75: Civil engineering material-structures (excluding bitumen) | I75: Civil engineering material -roads, general | J75: Civil engineering material-roads, general (excluding bitumen) | K75: Civil engineering material-roads, refurbishment | L75: Civil engineering material-roads, refurbishment (excluding bitumen) | M75: Civil engineering material -roads, reseal | N75: Civil engineering material -roads, reseal (excluding bitumen) | O75: Civil engineering material-bulk earthworks | P75: Civil engineering material-bulk earthworks (excluding bitumen) | Q75: Fuel Diesel, Dec 2020= 100 | R75: To convert 2016=100 Conversion Factor = 1.115000
A76: Dec2021=100 Conversion Factor | C76: 1.157 | D76: 1.475 | E76: 1.432 | F76: 1.401 | G76: 1.335 | H76: 1.536 | I76: 1.492 | J76: 1.449 | K76: 1.495 | L76: 1.41 | M76: 1.604 | N76: 1.387 | O76: 1.425 | P76: 1.407
B77: Jan | C77: 104.8 | D77: 103 | E77: 103.9 | F77: 103.5 | G77: 104.8 | H77: 103.9 | I77: 103.4 | J77: 104.8 | K77: 103.4 | L77: 105.9 | M77: 100.7 | N77: 106.5 | O77: 104.2 | P77: 104.8 | Q77: 139.8
B78: Feb | C78: 105 | D78: 103.7 | E78: 103.7 | F78: 104.2 | G78: 104.5 | H78: 103.1 | I78: 103.1 | J78: 103.3 | K78: 103.5 | L78: 104.1 | M78: 103 | N78: 104.7 | O78: 103.4 | P78: 103.5 | Q78: 146.4
B79: Mar | C79: 106.7 | D79: 104.5 | E79: 103.7 | F79: 105.3 | G79: 104.5 | H79: 102.9 | I79: 103.2 | J79: 102.4 | K79: 104.2 | L79: 103.1 | M79: 105.6 | N79: 104 | O79: 103.7 | P79: 103.4 | Q79: 158.4
B80: Apr | C80: 106.7 | D80: 107.5 | E80: 106.4 | F80: 109.8 | G80: 105.6 | H80: 107.1 | I80: 108.6 | J80: 104.89 | K80: 110.9 | L80: 104.8 | M80: 118.1 | N80: 105.2 | O80: 106.6 | P80: 105.4 | Q80: 171.7
B81: May | C81: 107.1 | D81: 109.8 | E81: 107.9 | F81: 112.2 | G81: 107.4 | H81: 108.2 | I81: 110.2 | J81: 105.9 | K81: 112.9 | L81: 105.7 | M81: 121.3 | N81: 106.5 | O81: 108 | P81: 106.5 | Q81: 179.4
B82: Jun | C82: 107.5 | D82: 111.1 | E82: 109.3 | F82: 116.8 | G82: 109.2 | H82: 109.8 | I82: 113.8 | J82: 107.8 | K82: 117.8 | L82: 108.1 | M82: 128.5 | N82: 108.7 | O82: 110.5 | P82: 108.4 | Q82: 188.3
B83: Jul | C83: 109.1 | D83: 112.2 | E83: 110 | F83: 119 | G83: 110.1 | H83: 110 | I83: 114.7 | J83: 107.5 | K83: 119.7 | L83: 108 | M83: 133 | N83: 109.4 | O83: 110.7 | P83: 108.2 | Q83: 207.3
B84: Aug | C84: 109.6 | D84: 110.4 | E84: 109.1 | F84: 117.1 | G84: 109.4 | H84: 109.1 | I84: 113.4 | J84: 107.4 | K84: 117.9 | L84: 108 | M84: 129.1 | N84: 109.2 | O84: 109.9 | P84: 107.9 | Q84: 199.9
B85: Sep | C85: 110 | D85: 110 | E85: 108.3 | F85: 115.5 | G85: 108.4 | H85: 108 | I85: 111.7 | J85: 106.5 | K85: 115.2 | L85: 106.6 | M85: 124.3 | N85: 109 | O85: 109.5 | P85: 107.6 | Q85: 195.7
B86: Oct | C86: 110.2 | D86: 109.2 | E86: 107.2 | F86: 116.5 | G86: 108.3 | H86: 105.3 | I86: 110.4 | J86: 104.8 | K86: 114.9 | L86: 106.4 | M86: 123.9 | N86: 107.8 | O86: 108.5 | P86: 106.6 | Q86: 196.7
B87: Nov | C87: 110.8 | D87: 108.8 | E87: 107 | F87: 115 | G87: 108.1 | H87: 105.8 | I87: 110 | J87: 105.1 | K87: 113.9 | L87: 106 | M87: 122.2 | N87: 108.1 | O87: 108.4 | P87: 106.7 | Q87: 208.6
B88: Dec | C88: 110.7 | D88: 108.8 | E88: 107 | F88: 114.5 | G88: 108.1 | H88: 105.9 | I88: 110.4 | J88: 105.9 | K88: 113.8 | L88: 106.8 | M88: 121.3 | N88: 108.7 | O88: 108.6 | P88: 107.2 | Q88: 195.8
C91: Table 4 P0151.1 Dec 2021=100 | D91: Civil engineering material price indices- Table 6 P0151.1 Dec 2021 =100 | Q91: Table 1 P0142.1
A92: 2023 ↓ | C92: Mining and construction plant and equipment price index | D92: Civil engineering material- total | E92: Civil engineering material (excluding bitumen) | F92: Civil engineering material (excluding reinforcing metal work) | G92: Civil engineering material (excluding reinforcing metal work and bitumen) | H92: Civil engineering material-structures (excluding bitumen) | I92: Civil engineering material -roads, general | J92: Civil engineering material-roads, general (excluding bitumen) | K92: Civil engineering material-roads, refurbishment | L92: Civil engineering material-roads, refurbishment (excluding bitumen) | M92: Civil engineering material -roads, reseal | N92: Civil engineering material -roads, reseal (excluding bitumen) | O92: Civil engineering material-bulk earthworks | P92: Civil engineering material-bulk earthworks (excluding bitumen) | Q92: Fuel Diesel, Dec 2020= 100 | R92: To convert 2016=100 Conversion Factor = 1.115000
A93: Dec2021=100 Conversion Factor | C93: 1.157 | D93: 1.475 | E93: 1.432 | F93: 1.401 | G93: 1.335 | H93: 1.536 | I93: 1.492 | J93: 1.449 | K93: 1.495 | L93: 1.41 | M93: 1.604 | N93: 1.387 | O93: 1.425 | P93: 1.407
B94: Jan | C94: 113.7 | D94: 111.2 | E94: 110.9 | F94: 117.9 | G94: 112.9 | H94: 109.1 | I94: 113.7 | J94: 110.8 | K94: 116.8 | L94: 112.5 | M94: 121.2 | N94: 114.4 | O94: 112.4 | P94: 111.5 | Q94: 173.2
B95: Feb | C95: 113.9 | D95: 113.1 | E95: 113.3 | F95: 121.1 | G95: 115.7 | H95: 110.8 | I95: 115.1 | J95: 112 | K95: 118.5 | L95: 114 | M95: 123 | N95: 116.1 | O95: 114.1 | P95: 113.1 | Q95: 173.5
B96: Mar | C96: 114.1 | D96: 112.2 | E96: 111.8 | F96: 120.3 | G96: 113.4 | H96: 109.6 | I96: 115.4 | J96: 111.2 | K96: 118.9 | L96: 112.7 | M96: 125.1 | N96: 113.7 | O96: 113 | P96: 111.7 | Q96: 176
B97: Apr | C97: 115.4 | D97: 110.4 | E97: 111.1 | F97: 120.6 | G97: 112.5 | H97: 109.6 | I97: 116.1 | J97: 111.5 | K97: 119.9 | L97: 113.1 | M97: 126.8 | N97: 113.9 | O97: 113.2 | P97: 111.8 | Q97: 169.6
B98: May | C98: 115.7 | D98: 112.1 | E98: 111.5 | F98: 120.8 | G98: 113.1 | H98: 109.2 | I98: 115.4 | J98: 110.5 | K98: 119.3 | L98: 112 | M98: 126.8 | N98: 112.9 | O98: 112.7 | P98: 111.1 | Q98: 164.6
B99: Jun | C99: 116.1 | D99: 112.2 | E99: 111.1 | F99: 123.4 | G99: 112.7 | H99: 108.8 | I99: 117.3 | J99: 110.5 | K99: 122.6 | L99: 112 | M99: 133.4 | N99: 112.9 | O99: 113.2 | P99: 111 | Q99: 157.8
B100: Jul | C100: 120.6 | D100: 113.8 | E100: 112.2 | F100: 121.8 | G100: 114.3 | H100: 109.3 | I100: 115.7 | J100: 111 | K100: 119.8 | L100: 113 | M100: 126.6 | N100: 114.2 | O100: 114.4 | P100: 113 | Q100: 159.1
B101: Aug | C101: 121 | D101: 113.8 | E101: 112.3 | F101: 123.6 | G101: 114.5 | H101: 108.8 | I101: 116.2 | J101: 110.6 | K101: 121.1 | L101: 112.8 | M101: 129.3 | N101: 113.6 | O101: 114.3 | P101: 112.6 | Q101: 165
B102: Sep | C102: 121 | D102: 114.1 | E102: 112.2 | F102: 125.6 | G102: 114.3 | H102: 108.8 | I102: 117.7 | J102: 110.5 | K102: 123.5 | L102: 112.6 | M102: 134.3 | N102: 113.5 | O102: 114.7 | P102: 112.5 | Q102: 188.1
B103: Oct | C103: 121 | D103: 114.4 | E103: 112.1 | F103: 127.9 | G103: 114.3 | H103: 109.1 | I103: 119.6 | J103: 110.8 | K103: 126.4 | L103: 113 | M103: 140 | N103: 114.1 | O103: 115.6 | P103: 112.8 | Q103: 204.2
B104: Nov | C104: 121 | D104: 114.7 | E104: 112.3 | F104: 127.7 | G104: 114.5 | H104: 108.7 | I104: 118.5 | J104: 109.7 | K104: 125.1 | L104: 111.6 | M104: 139 | N104: 113 | O104: 114.8 | P104: 111.9 | Q104: 197.3
B105: Dec | C105: 121.1 | D105: 114.5 | E105: 112.4 | F105: 127.8 | G105: 114.6 | H105: 108.4 | I105: 117.8 | J105: 108.9 | K105: 124.6 | L105: 110.7 | M105: 139 | N105: 112.7 | O105: 114.1 | P105: 111.2 | Q105: 177.6
C108: Table 4 P0151.1 Dec 2023=100 | D108: Civil engineering material price indices- Table 6 P0151.1 Dec 2023 =100 | Q108: Table 1 P0142.1
A109: 2024 ↓ | C109: Mining and construction plant and equipment price index | D109: Civil engineering material- total | E109: Civil engineering material (excluding bitumen) | F109: Civil engineering material (excluding reinforcing metal work) | G109: Civil engineering material (excluding reinforcing metal work and bitumen) | H109: Civil engineering material-structures (excluding bitumen) | I109: Civil engineering material -roads, general | J109: Civil engineering material-roads, general (excluding bitumen) | K109: Civil engineering material-roads, refurbishment | L109: Civil engineering material-roads, refurbishment (excluding bitumen) | M109: Civil engineering material -roads, reseal | N109: Civil engineering material -roads, reseal (excluding bitumen) | O109: Civil engineering material-bulk earthworks | P109: Civil engineering material-bulk earthworks (excluding bitumen) | Q109: Fuel Diesel, Dec 2023= 100 | R109: To convert 2016=100 Conversion Factor = 1,776 000
A110: Dec2023=100 Conversion Factor | C110: 1.211 | D110: 1.145 | E110: 1.124 | F110: 1.278 | G110: 1.146 | H110: 1.084 | I110: 1.178 | J110: 1.089 | K110: 1.246 | L110: 1.107 | M110: 1.39 | N110: 1.127 | O110: 1.141 | P110: 1.112 | Q110: 1.776
B111: Jan | C111: 100.5 | D111: 103.6 | E111: 103.9 | F111: 103.2 | G111: 103.1 | H111: 103.7 | I111: 102.3 | J111: 103.5 | K111: 101.7 | L111: 103.2 | M111: 99.5 | N111: 102.9 | O111: 102.6 | P111: 102.9 | Q111: 94.3
B112: Feb | C112: 100.7 | D112: 105.3 | E112: 105.7 | F112: 105.1 | G112: 105.2 | H112: 105.4 | I112: 104.5 | J112: 106.5 | K112: 92.8 | L112: 106.9 | M112: 100 | N112: 106.5 | O112: 105.1 | P112: 105.8 | Q112: 97.6
B113: Mar | C113: 100.6 | D113: 104.9 | E113: 105.3 | F113: 104.4 | G113: 104.5 | H113: 105.1 | I113: 104.3 | J113: 106.2 | K113: 103.6 | L113: 106.3 | M113: 99.7 | N113: 105.9 | O113: 104.8 | P113: 105.5 | Q113: 102.9
B114: Apr | C114: 101.6 | D114: 105 | E114: 105.5 | F114: 104.5 | G114: 104.7 | H114: 105.2 | I114: 103.1 | J114: 105.2 | K114: 102.4 | L114: 105 | M114: 98.8 | N114: 104.9 | O114: 103.8 | P114: 104.5 | Q114: 102.7
B115: May | C115: 101.6 | D115: 105.1 | E115: 105.3 | F115: 104.6 | G115: 104.6 | H115: 105.1 | I115: 104.2 | J115: 105.2 | K115: 103.7 | L115: 104.9 | M115: 102 | N115: 104.7 | O115: 104.6 | P115: 105 | Q115: 101.2
B116: Jun | C116: 101.7 | D116: 104.7 | E116: 104.9 | F116: 104.3 | G116: 104.3 | H116: 104.7 | I116: 103.1 | J116: 104.2 | K116: 103 | L116: 104 | M116: 101.7 | N116: 104.2 | O116: 103.8 | P116: 104.2 | Q116: 101.7
B117: Jul | C117: 101.7 | D117: 104.8 | E117: 105 | F117: 104.5 | G117: 104.4 | H117: 104.8 | I117: 103.4 | J117: 104.3 | K117: 103.1 | L117: 103.9 | M117: 101.9 | N117: 104 | O117: 103.9 | P117: 104.2 | Q117: 94.6
B118: Aug | C118: 107.8 | D118: 104.9 | E118: 105.2 | F118: 104.9 | G118: 104.8 | H118: 104.9 | I118: 103.5 | J118: 104.7 | K118: 103.5 | L118: 104.7 | M118: 101.9 | N118: 105 | O118: 104.1 | P118: 104.6 | Q118: 93.6
B119: Sept | C119: 107.8 | D119: 104.8 | E119: 105.0 | F119: 104.9 | G119: 104.8 | H119: 104.8 | I119: 103.3 | J119: 104.5 | K119: 103.3 | L119: 104.6 | M119: 101.6 | N119: 104.9 | O119: 103.9 | P119: 104.4 | Q119: 89.3
B120: Oct | C120: 107.6 | D120: 100.4 | E120: 100.5 | F120: 100.3 | G120: 100.8 | H120: 100.3 | I120: 101.1 | J120: 102.0 | K120: 101.2 | L120: 102.6 | M120: 99.4 | N120: 102.3 | O120: 101.8 | P120: 102.3 | Q120: 84.1
B121: Nov | C121: 107.2 | D121: 102.0 | E121: 102.2 | F121: 102.3 | G121: 102.8 | H121: 102.0 | I121: 102.0 | J121: 103.2 | K121: 102.6 | L121: 104.1 | M121: 100.3 | N121: 104.2 | O121: 103.0 | P121: 103.5 | Q121: 85.0
B122: Dec | C122: 107.2 | D122: 102.7 | E122: 102.9 | F122: 103.0 | G122: 103.5 | H122: 102.8 | I122: 103.7 | J122: 105.1 | K122: 104.0 | L122: 106.1 | M122: 100.6 | N122: 105.7 | O122: 104.5 | P122: 105.2 | Q122: 87.6
B123: 2025-01-25 | C123: 111.4 | D123: 102.8 | E123: 103.1 | F123: 103.2 | G123: 103.8 | H123: 102.9 | I123: 104.0 | J123: 105.8 | K123: 104.4 | L123: 107.0 | M123: 100.6 | N123: 106.5 | O123: 104.9 | P123: 105.7 | Q123: 88.0
B124: Feb | C124: 111.3 | D124: 107.4 | E124: 107.8 | F124: 107.8 | G124: 108.0 | H124: 107.5 | I124: 107.1 | J124: 109.5 | K124: 107.3 | L124: 110.6 | M124: 102.3 | N124: 110.5 | O124: 107.9 | P124: 109.0 | Q124: 92.8

Sheet No Longer Applicable - Plant
C2: Table X16 (Indice base 100 as at Dec 2016) | L2: 2016 / 100
C4: Refer to P0151 - Contract Price Adjustment Provisions (CPAP): | I4: * NEW DIESEL INDICES APPLICABLE FROM MAR '16 PROVIDED FROM JAN '08 BY STATS-SA
C5: Work Groups and Selected Materials Indices: Table 3 and Table 4
C7: 2.272 | D7: 2.89 | E7: 3.22 | F7: 4.149 | G7: 1.909 | I7: 2.196 | J7: 1.992 | K7: 4.24 | L7: 4.205
C9: DEC 2016 = 100
C11: 0.8756567426 | D11: 0.8431703204 | E11: 0.9727626459 | F11: 0.9813542689 | G11: 0.7692307692 | I11: 0.7930214116 | J11: 0.852514919 | K11: 0.9746588694 | L11: 0.9881422925
C13: 3 | D13: 4
C14: Materials for Civil Engineering | D14: Materials for Concrete Works | E14: Materials for Roads & E/Works | F14: * Diesel Fuel Wholesale Total | G14: Civil Engineering Plant | I14: Plant for Concrete Works | J14: Plant for Roads & E/Works | K14: * Diesel Fuel Wholesale
K15: * Inland | L15: * Coastal
C16: =ROUND('Table X12 Indices 2012=100'!N16*$C$11,1) -> 70.9 | F16: =ROUND('Table X12 Indices 2012=100'!Q16*$F$11,1) -> 72.5 | G16: =ROUND('Table X12 Indices 2012=100'!R16*$G$11,1) -> 61.9 | K16: =ROUND('Table X12 Indices 2012=100'!U16*$K$11,1) -> 66.9 | L16: =ROUND('Table X12 Indices 2012=100'!V16*$L$11,1) -> 66.9
C17: =ROUND('Table X12 Indices 2012=100'!N17*$C$11,1) -> 72 | F17: =ROUND('Table X12 Indices 2012=100'!Q17*$F$11,1) -> 76.6 | G17: =ROUND('Table X12 Indices 2012=100'!R17*$G$11,1) -> 65 | K17: =ROUND('Table X12 Indices 2012=100'!U17*$K$11,1) -> 67.5 | L17: =ROUND('Table X12 Indices 2012=100'!V17*$L$11,1) -> 67.6
C18: =ROUND('Table X12 Indices 2012=100'!N18*$C$11,1) -> 72.4 | F18: =ROUND('Table X12 Indices 2012=100'!Q18*$F$11,1) -> 87.6 | G18: =ROUND('Table X12 Indices 2012=100'!R18*$G$11,1) -> 65 | K18: =ROUND('Table X12 Indices 2012=100'!U18*$K$11,1) -> 74.7 | L18: =ROUND('Table X12 Indices 2012=100'!V18*$L$11,1) -> 74.9
C19: =ROUND('Table X12 Indices 2012=100'!N19*$C$11,1) -> 73.6 | F19: =ROUND('Table X12 Indices 2012=100'!Q19*$F$11,1) -> 101.3 | G19: =ROUND('Table X12 Indices 2012=100'!R19*$G$11,1) -> 65 | K19: =ROUND('Table X12 Indices 2012=100'!U19*$K$11,1) -> 86.6 | L19: =ROUND('Table X12 Indices 2012=100'!V19*$L$11,1) -> 87
C20: =ROUND('Table X12 Indices 2012=100'!N20*$C$11,1) -> 76.7 | F20: =ROUND('Table X12 Indices 2012=100'!Q20*$F$11,1) -> 112.3 | G20: =ROUND('Table X12 Indices 2012=100'!R20*$G$11,1) -> 67.8 | K20: =ROUND('Table X12 Indices 2012=100'!U20*$K$11,1) -> 93 | L20: =ROUND('Table X12 Indices 2012=100'!V20*$L$11,1) -> 93.6
C21: =ROUND('Table X12 Indices 2012=100'!N21*$C$11,1) -> 77.8 | F21: =ROUND('Table X12 Indices 2012=100'!Q21*$F$11,1) -> 123.9 | G21: =ROUND('Table X12 Indices 2012=100'!R21*$G$11,1) -> 67.8 | K21: =ROUND('Table X12 Indices 2012=100'!U21*$K$11,1) -> 99.6 | L21: =ROUND('Table X12 Indices 2012=100'!V21*$L$11,1) -> 100.3
C22: =ROUND('Table X12 Indices 2012=100'!N22*$C$11,1) -> 78.5 | F22: =ROUND('Table X12 Indices 2012=100'!Q22*$F$11,1) -> 122.1 | G22: =ROUND('Table X12 Indices 2012=100'!R22*$G$11,1) -> 67.8 | K22: =ROUND('Table X12 Indices 2012=100'!U22*$K$11,1) -> 105.5 | L22: =ROUND('Table X12 Indices 2012=100'!V22*$L$11,1) -> 106.2
C23: =ROUND('Table X12 Indices 2012=100'!N23*$C$11,1) -> 83.7 | F23: =ROUND('Table X12 Indices 2012=100'!Q23*$F$11,1) -> 100.1 | G23: =ROUND('Table X12 Indices 2012=100'!R23*$G$11,1) -> 70.7 | K23: =ROUND('Table X12 Indices 2012=100'!U23*$K$11,1) -> 103.9 | L23: =ROUND('Table X12 Indices 2012=100'!V23*$L$11,1) -> 104.6
C24: =ROUND('Table X12 Indices 2012=100'!N24*$C$11,1) -> 84.3 | F24: =ROUND('Table X12 Indices 2012=100'!Q24*$F$11,1) -> 94 | G24: =ROUND('Table X12 Indices 2012=100'!R24*$G$11,1) -> 70.7 | K24: =ROUND('Table X12 Indices 2012=100'!U24*$K$11,1) -> 90.6 | L24: =ROUND('Table X12 Indices 2012=100'!V24*$L$11,1) -> 91.1
C25: =ROUND('Table X12 Indices 2012=100'!N25*$C$11,1) -> 84.7 | F25: =ROUND('Table X12 Indices 2012=100'!Q25*$F$11,1) -> 90.1 | G25: =ROUND('Table X12 Indices 2012=100'!R25*$G$11,1) -> 70.7 | K25: =ROUND('Table X12 Indices 2012=100'!U25*$K$11,1) -> 85.5 | L25: =ROUND('Table X12 Indices 2012=100'!V25*$L$11,1) -> 85.8
C26: =ROUND('Table X12 Indices 2012=100'!N26*$C$11,1) -> 84.5 | F26: =ROUND('Table X12 Indices 2012=100'!Q26*$F$11,1) -> 80.4 | G26: =ROUND('Table X12 Indices 2012=100'!R26*$G$11,1) -> 74.5 | K26: =ROUND('Table X12 Indices 2012=100'!U26*$K$11,1) -> 83.2 | L26: =ROUND('Table X12 Indices 2012=100'!V26*$L$11,1) -> 83.5
C27: =ROUND('Table X12 Indices 2012=100'!N27*$C$11,1) -> 83.5 | F27: =ROUND('Table X12 Indices 2012=100'!Q27*$F$11,1) -> 65.4 | G27: =ROUND('Table X12 Indices 2012=100'!R27*$G$11,1) -> 74.5 | K27: =ROUND('Table X12 Indices 2012=100'!U27*$K$11,1) -> 75.7 | L27: =ROUND('Table X12 Indices 2012=100'!V27*$L$11,1) -> 75.9
C28: =ROUND('Table X12 Indices 2012=100'!N28*$C$11,1) -> 84.7 | F28: =ROUND('Table X12 Indices 2012=100'!Q28*$F$11,1) -> 68.4 | G28: =ROUND('Table X12 Indices 2012=100'!R28*$G$11,1) -> 74.5 | K28: =ROUND('Table X12 Indices 2012=100'!U28*$K$11,1) -> 60.3 | L28: =ROUND('Table X12 Indices 2012=100'!V28*$L$11,1) -> 60.1
C29: =ROUND('Table X12 Indices 2012=100'!N29*$C$11,1) -> 83.1 | F29: =ROUND('Table X12 Indices 2012=100'!Q29*$F$11,1) -> 64.7 | G29: =ROUND('Table X12 Indices 2012=100'!R29*$G$11,1) -> 77.8 | K29: =ROUND('Table X12 Indices 2012=100'!U29*$K$11,1) -> 59.8 | L29: =ROUND('Table X12 Indices 2012=100'!V29*$L$11,1) -> 59.7
C30: =ROUND('Table X12 Indices 2012=100'!N30*$C$11,1) -> 82.7 | F30: =ROUND('Table X12 Indices 2012=100'!Q30*$F$11,1) -> 60.5 | G30: =ROUND('Table X12 Indices 2012=100'!R30*$G$11,1) -> 77.8 | K30: =ROUND('Table X12 Indices 2012=100'!U30*$K$11,1) -> 56.3 | L30: =ROUND('Table X12 Indices 2012=100'!V30*$L$11,1) -> 56
C31: =ROUND('Table X12 Indices 2012=100'!N31*$C$11,1) -> 82.2 | F31: =ROUND('Table X12 Indices 2012=100'!Q31*$F$11,1) -> 59.7 | G31: =ROUND('Table X12 Indices 2012=100'!R31*$G$11,1) -> 77.8 | K31: =ROUND('Table X12 Indices 2012=100'!U31*$K$11,1) -> 60 | L31: =ROUND('Table X12 Indices 2012=100'!V31*$L$11,1) -> 59.8
C32: =ROUND('Table X12 Indices 2012=100'!N32*$C$11,1) -> 80.6 | F32: =ROUND('Table X12 Indices 2012=100'!Q32*$F$11,1) -> 59.9 | G32: =ROUND('Table X12 Indices 2012=100'!R32*$G$11,1) -> 76.2 | K32: =ROUND('Table X12 Indices 2012=100'!U32*$K$11,1) -> 60.8 | L32: =ROUND('Table X12 Indices 2012=100'!V32*$L$11,1) -> 60.5
C33: =ROUND('Table X12 Indices 2012=100'!N33*$C$11,1) -> 80.5 | F33: =ROUND('Table X12 Indices 2012=100'!Q33*$F$11,1) -> 61.2 | G33: =ROUND('Table X12 Indices 2012=100'!R33*$G$11,1) -> 76.2 | K33: =ROUND('Table X12 Indices 2012=100'!U33*$K$11,1) -> 59.6 | L33: =ROUND('Table X12 Indices 2012=100'!V33*$L$11,1) -> 59.5
C34: =ROUND('Table X12 Indices 2012=100'!N34*$C$11,1) -> 81.4 | F34: =ROUND('Table X12 Indices 2012=100'!Q34*$F$11,1) -> 63.5 | G34: =ROUND('Table X12 Indices 2012=100'!R34*$G$11,1) -> 76.2 | K34: =ROUND('Table X12 Indices 2012=100'!U34*$K$11,1) -> 63.3 | L34: =ROUND('Table X12 Indices 2012=100'!V34*$L$11,1) -> 63.2
C35: =ROUND('Table X12 Indices 2012=100'!N35*$C$11,1) -> 81 | F35: =ROUND('Table X12 Indices 2012=100'!Q35*$F$11,1) -> 62.5 | G35: =ROUND('Table X12 Indices 2012=100'!R35*$G$11,1) -> 76.9 | K35: =ROUND('Table X12 Indices 2012=100'!U35*$K$11,1) -> 61.4 | L35: =ROUND('Table X12 Indices 2012=100'!V35*$L$11,1) -> 61.4
C36: =ROUND('Table X12 Indices 2012=100'!N36*$C$11,1) -> 80.8 | F36: =ROUND('Table X12 Indices 2012=100'!Q36*$F$11,1) -> 65 | G36: =ROUND('Table X12 Indices 2012=100'!R36*$G$11,1) -> 76.9 | K36: =ROUND('Table X12 Indices 2012=100'!U36*$K$11,1) -> 64.5 | L36: =ROUND('Table X12 Indices 2012=100'!V36*$L$11,1) -> 64.5
C37: =ROUND('Table X12 Indices 2012=100'!N37*$C$11,1) -> 80.7 | F37: =ROUND('Table X12 Indices 2012=100'!Q37*$F$11,1) -> 61.4 | G37: =ROUND('Table X12 Indices 2012=100'!R37*$G$11,1) -> 76.9 | K37: =ROUND('Table X12 Indices 2012=100'!U37*$K$11,1) -> 61.6 | L37: =ROUND('Table X12 Indices 2012=100'!V37*$L$11,1) -> 61.6
C38: =ROUND('Table X12 Indices 2012=100'!N38*$C$11,1) -> 80.8 | F38: =ROUND('Table X12 Indices 2012=100'!Q38*$F$11,1) -> 62.5 | G38: =ROUND('Table X12 Indices 2012=100'!R38*$G$11,1) -> 75.8 | K38: =ROUND('Table X12 Indices 2012=100'!U38*$K$11,1) -> 62.5 | L38: =ROUND('Table X12 Indices 2012=100'!V38*$L$11,1) -> 62.5
C39: =ROUND('Table X12 Indices 2012=100'!N39*$C$11,1) -> 80.8 | F39: =ROUND('Table X12 Indices 2012=100'!Q39*$F$11,1) -> 65.7 | G39: =ROUND('Table X12 Indices 2012=100'!R39*$G$11,1) -> 75.8 | K39: =ROUND('Table X12 Indices 2012=100'!U39*$K$11,1) -> 64.8 | L39: =ROUND('Table X12 Indices 2012=100'!V39*$L$11,1) -> 64.8
C40: =ROUND('Table X12 Indices 2012=100'!N40*$C$11,1) -> 81.9 | F40: =ROUND('Table X12 Indices 2012=100'!Q40*$F$11,1) -> 64.2 | G40: =ROUND('Table X12 Indices 2012=100'!R40*$G$11,1) -> 75.8 | K40: =ROUND('Table X12 Indices 2012=100'!U40*$K$11,1) -> 63.5 | L40: =ROUND('Table X12 Indices 2012=100'!V40*$L$11,1) -> 63.5
C41: =ROUND('Table X12 Indices 2012=100'!N41*$C$11,1) -> 82.1 | F41: =ROUND('Table X12 Indices 2012=100'!Q41*$F$11,1) -> 65.8 | G41: =ROUND('Table X12 Indices 2012=100'!R41*$G$11,1) -> 75.8 | K41: =ROUND('Table X12 Indices 2012=100'!U41*$K$11,1) -> 64.4 | L41: =ROUND('Table X12 Indices 2012=100'!V41*$L$11,1) -> 64.4
C42: =ROUND('Table X12 Indices 2012=100'!N42*$C$11,1) -> 82.1 | F42: =ROUND('Table X12 Indices 2012=100'!Q42*$F$11,1) -> 66.9 | G42: =ROUND('Table X12 Indices 2012=100'!R42*$G$11,1) -> 76.2 | K42: =ROUND('Table X12 Indices 2012=100'!U42*$K$11,1) -> 64.8 | L42: =ROUND('Table X12 Indices 2012=100'!V42*$L$11,1) -> 64.8
C43: =ROUND('Table X12 Indices 2012=100'!N43*$C$11,1) -> 82 | F43: =ROUND('Table X12 Indices 2012=100'!Q43*$F$11,1) -> 70.8 | G43: =ROUND('Table X12 Indices 2012=100'!R43*$G$11,1) -> 76.2 | K43: =ROUND('Table X12 Indices 2012=100'!U43*$K$11,1) -> 69.4 | L43: =ROUND('Table X12 Indices 2012=100'!V43*$L$11,1) -> 69.6
C44: =ROUND('Table X12 Indices 2012=100'!N44*$C$11,1) -> 83 | F44: =ROUND('Table X12 Indices 2012=100'!Q44*$F$11,1) -> 72.6 | G44: =ROUND('Table X12 Indices 2012=100'!R44*$G$11,1) -> 75.6 | K44: =ROUND('Table X12 Indices 2012=100'!U44*$K$11,1) -> 72 | L44: =ROUND('Table X12 Indices 2012=100'!V44*$L$11,1) -> 72.1
C45: =ROUND('Table X12 Indices 2012=100'!N45*$C$11,1) -> 83.5 | F45: =ROUND('Table X12 Indices 2012=100'!Q45*$F$11,1) -> 71.6 | G45: =ROUND('Table X12 Indices 2012=100'!R45*$G$11,1) -> 75.5 | K45: =ROUND('Table X12 Indices 2012=100'!U45*$K$11,1) -> 70.7 | L45: =ROUND('Table X12 Indices 2012=100'!V45*$L$11,1) -> 70.8
C46: =ROUND('Table X12 Indices 2012=100'!N46*$C$11,1) -> 82.5 | F46: =ROUND('Table X12 Indices 2012=100'!Q46*$F$11,1) -> 70.6 | G46: =ROUND('Table X12 Indices 2012=100'!R46*$G$11,1) -> 75.5 | K46: =ROUND('Table X12 Indices 2012=100'!U46*$K$11,1) -> 69.3 | L46: =ROUND('Table X12 Indices 2012=100'!V46*$L$11,1) -> 69.5
C47: =ROUND('Table X12 Indices 2012=100'!N47*$C$11,1) -> 82 | F47: =ROUND('Table X12 Indices 2012=100'!Q47*$F$11,1) -> 69.9 | G47: =ROUND('Table X12 Indices 2012=100'!R47*$G$11,1) -> 75.2 | K47: =ROUND('Table X12 Indices 2012=100'!U47*$K$11,1) -> 68 | L47: =ROUND('Table X12 Indices 2012=100'!V47*$L$11,1) -> 68.2
C48: =ROUND('Table X12 Indices 2012=100'!N48*$C$11,1) -> 82 | F48: =ROUND('Table X12 Indices 2012=100'!Q48*$F$11,1) -> 69.3 | G48: =ROUND('Table X12 Indices 2012=100'!R48*$G$11,1) -> 75.2 | K48: =ROUND('Table X12 Indices 2012=100'!U48*$K$11,1) -> 68 | L48: =ROUND('Table X12 Indices 2012=100'!V48*$L$11,1) -> 68.2
C49: =ROUND('Table X12 Indices 2012=100'!N49*$C$11,1) -> 82.4 | D49: =ROUND('Table X12 Indices 2012=100'!O49*$D$11,1) -> 72.6 | E49: =ROUND('Table X12 Indices 2012=100'!P49*$E$11,1) -> 80 | F49: =ROUND('Table X12 Indices 2012=100'!Q49*$F$11,1) -> 69.5 | G49: =ROUND('Table X12 Indices 2012=100'!R49*$G$11,1) -> 75.3 | I49: =ROUND('Table X12 Indices 2012=100'!S49*$I$11,1) -> 74.1 | J49: =ROUND('Table X12 Indices 2012=100'!T49*$J$11,1) -> 81.1 | K49: =ROUND('Table X12 Indices 2012=100'!U49*$K$11,1) -> 67.8 | L49: =ROUND('Table X12 Indices 2012=100'!V49*$L$11,1) -> 68
C50: =ROUND('Table X12 Indices 2012=100'!N50*$C$11,1) -> 82 | D50: =ROUND('Table X12 Indices 2012=100'!O50*$D$11,1) -> 72.6 | E50: =ROUND('Table X12 Indices 2012=100'!P50*$E$11,1) -> 80 | F50: =ROUND('Table X12 Indices 2012=100'!Q50*$F$11,1) -> 71.3 | G50: =ROUND('Table X12 Indices 2012=100'!R50*$G$11,1) -> 75.5 | I50: =ROUND('Table X12 Indices 2012=100'!S50*$I$11,1) -> 74.1 | J50: =ROUND('Table X12 Indices 2012=100'!T50*$J$11,1) -> 81.3 | K50: =ROUND('Table X12 Indices 2012=100'!U50*$K$11,1) -> 70.1 | L50: =ROUND('Table X12 Indices 2012=100'!V50*$L$11,1) -> 70.3
C51: =ROUND('Table X12 Indices 2012=100'!N51*$C$11,1) -> 82.1 | D51: =ROUND('Table X12 Indices 2012=100'!O51*$D$11,1) -> 72.5 | E51: =ROUND('Table X12 Indices 2012=100'!P51*$E$11,1) -> 80.4 | F51: =ROUND('Table X12 Indices 2012=100'!Q51*$F$11,1) -> 73.8 | G51: =ROUND('Table X12 Indices 2012=100'!R51*$G$11,1) -> 74.8 | I51: =ROUND('Table X12 Indices 2012=100'!S51*$I$11,1) -> 72.8 | J51: =ROUND('Table X12 Indices 2012=100'!T51*$J$11,1) -> 81 | K51: =ROUND('Table X12 Indices 2012=100'!U51*$K$11,1) -> 70.1 | L51: =ROUND('Table X12 Indices 2012=100'!V51*$L$11,1) -> 70.3
C52: =ROUND('Table X12 Indices 2012=100'!N52*$C$11,1) -> 83 | D52: =ROUND('Table X12 Indices 2012=100'!O52*$D$11,1) -> 73 | E52: =ROUND('Table X12 Indices 2012=100'!P52*$E$11,1) -> 80.5 | F52: =ROUND('Table X12 Indices 2012=100'!Q52*$F$11,1) -> 76.5 | G52: =ROUND('Table X12 Indices 2012=100'!R52*$G$11,1) -> 74.2 | I52: =ROUND('Table X12 Indices 2012=100'!S52*$I$11,1) -> 72.9 | J52: =ROUND('Table X12 Indices 2012=100'!T52*$J$11,1) -> 80.9 | K52: =ROUND('Table X12 Indices 2012=100'!U52*$K$11,1) -> 72.2 | L52: =ROUND('Table X12 Indices 2012=100'!V52*$L$11,1) -> 72.4
C53: =ROUND('Table X12 Indices 2012=100'!N53*$C$11,1) -> 83.2 | D53: =ROUND('Table X12 Indices 2012=100'!O53*$D$11,1) -> 75.2 | E53: =ROUND('Table X12 Indices 2012=100'!P53*$E$11,1) -> 82.2 | F53: =ROUND('Table X12 Indices 2012=100'!Q53*$F$11,1) -> 83.7 | G53: =ROUND('Table X12 Indices 2012=100'!R53*$G$11,1) -> 75.2 | I53: =ROUND('Table X12 Indices 2012=100'!S53*$I$11,1) -> 73.2 | J53: =ROUND('Table X12 Indices 2012=100'!T53*$J$11,1) -> 81.5 | K53: =ROUND('Table X12 Indices 2012=100'!U53*$K$11,1) -> 75 | L53: =ROUND('Table X12 Indices 2012=100'!V53*$L$11,1) -> 75.3
C54: =ROUND('Table X12 Indices 2012=100'!N54*$C$11,1) -> 83.8 | D54: =ROUND('Table X12 Indices 2012=100'!O54*$D$11,1) -> 76.3 | E54: =ROUND('Table X12 Indices 2012=100'!P54*$E$11,1) -> 85.5 | F54: =ROUND('Table X12 Indices 2012=100'!Q54*$F$11,1) -> 89.2 | G54: =ROUND('Table X12 Indices 2012=100'!R54*$G$11,1) -> 75.5 | I54: =ROUND('Table X12 Indices 2012=100'!S54*$I$11,1) -> 73.7 | J54: =ROUND('Table X12 Indices 2012=100'!T54*$J$11,1) -> 81.8 | K54: =ROUND('Table X12 Indices 2012=100'!U54*$K$11,1) -> 80.9 | L54: =ROUND('Table X12 Indices 2012=100'!V54*$L$11,1) -> 81.3
C55: =ROUND('Table X12 Indices 2012=100'!N55*$C$11,1) -> 83.3 | D55: =ROUND('Table X12 Indices 2012=100'!O55*$D$11,1) -> 76.3 | E55: =ROUND('Table X12 Indices 2012=100'!P55*$E$11,1) -> 88.4 | F55: =ROUND('Table X12 Indices 2012=100'!Q55*$F$11,1) -> 94.6 | G55: =ROUND('Table X12 Indices 2012=100'!R55*$G$11,1) -> 75.5 | I55: =ROUND('Table X12 Indices 2012=100'!S55*$I$11,1) -> 73.7 | J55: =ROUND('Table X12 Indices 2012=100'!T55*$J$11,1) -> 82.1 | K55: =ROUND('Table X12 Indices 2012=100'!U55*$K$11,1) -> 87.4 | L55: =ROUND('Table X12 Indices 2012=100'!V55*$L$11,1) -> 87.4
C56: =ROUND('Table X12 Indices 2012=100'!N56*$C$11,1) -> 83.1 | D56: =ROUND('Table X12 Indices 2012=100'!O56*$D$11,1) -> 76.2 | E56: =ROUND('Table X12 Indices 2012=100'!P56*$E$11,1) -> 88.8 | F56: =ROUND('Table X12 Indices 2012=100'!Q56*$F$11,1) -> 93.6 | G56: =ROUND('Table X12 Indices 2012=100'!R56*$G$11,1) -> 75.5 | I56: =ROUND('Table X12 Indices 2012=100'!S56*$I$11,1) -> 74.2 | J56: =ROUND('Table X12 Indices 2012=100'!T56*$J$11,1) -> 82.7 | K56: =ROUND('Table X12 Indices 2012=100'!U56*$K$11,1) -> 88.9 | L56: =ROUND('Table X12 Indices 2012=100'!V56*$L$11,1) -> 88.8
C57: =ROUND('Table X12 Indices 2012=100'!N57*$C$11,1) -> 83.3 | D57: =ROUND('Table X12 Indices 2012=100'!O57*$D$11,1) -> 77.4 | E57: =ROUND('Table X12 Indices 2012=100'!P57*$E$11,1) -> 88.9 | F57: =ROUND('Table X12 Indices 2012=100'!Q57*$F$11,1) -> 90.9 | G57: =ROUND('Table X12 Indices 2012=100'!R57*$G$11,1) -> 76.1 | I57: =ROUND('Table X12 Indices 2012=100'!S57*$I$11,1) -> 74.2 | J57: =ROUND('Table X12 Indices 2012=100'!T57*$J$11,1) -> 83 | K57: =ROUND('Table X12 Indices 2012=100'!U57*$K$11,1) -> 85.4 | L57: =ROUND('Table X12 Indices 2012=100'!V57*$L$11,1) -> 85.3
C58: =ROUND('Table X12 Indices 2012=100'!N58*$C$11,1) -> 84.4 | D58: =ROUND('Table X12 Indices 2012=100'!O58*$D$11,1) -> 78.1 | E58: =ROUND('Table X12 Indices 2012=100'!P58*$E$11,1) -> 89.5 | F58: =ROUND('Table X12 Indices 2012=100'!Q58*$F$11,1) -> 90.3 | G58: =ROUND('Table X12 Indices 2012=100'!R58*$G$11,1) -> 76.2 | I58: =ROUND('Table X12 Indices 2012=100'!S58*$I$11,1) -> 75.9 | J58: =ROUND('Table X12 Indices 2012=100'!T58*$J$11,1) -> 82.9 | K58: =ROUND('Table X12 Indices 2012=100'!U58*$K$11,1) -> 84.3 | L58: =ROUND('Table X12 Indices 2012=100'!V58*$L$11,1) -> 84.2
C59: =ROUND('Table X12 Indices 2012=100'!N59*$C$11,1) -> 84.7 | D59: =ROUND('Table X12 Indices 2012=100'!O59*$D$11,1) -> 78.4 | E59: =ROUND('Table X12 Indices 2012=100'!P59*$E$11,1) -> 89.7 | F59: =ROUND('Table X12 Indices 2012=100'!Q59*$F$11,1) -> 90.1 | G59: =ROUND('Table X12 Indices 2012=100'!R59*$G$11,1) -> 76.3 | I59: =ROUND('Table X12 Indices 2012=100'!S59*$I$11,1) -> 77.3 | J59: =ROUND('Table X12 Indices 2012=100'!T59*$J$11,1) -> 83.1 | K59: =ROUND('Table X12 Indices 2012=100'!U59*$K$11,1) -> 85.8 | L59: =ROUND('Table X12 Indices 2012=100'!V59*$L$11,1) -> 85.6
C60: =ROUND('Table X12 Indices 2012=100'!N60*$C$11,1) -> 84.9 | D60: =ROUND('Table X12 Indices 2012=100'!O60*$D$11,1) -> 79.5 | E60: =ROUND('Table X12 Indices 2012=100'!P60*$E$11,1) -> 89.1 | F60: =ROUND('Table X12 Indices 2012=100'!Q60*$F$11,1) -> 90.1 | G60: =ROUND('Table X12 Indices 2012=100'!R60*$G$11,1) -> 76.2 | I60: =ROUND('Table X12 Indices 2012=100'!S60*$I$11,1) -> 77.2 | J60: =ROUND('Table X12 Indices 2012=100'!T60*$J$11,1) -> 83.1 | K60: =ROUND('Table X12 Indices 2012=100'!U60*$K$11,1) -> 85.8 | L60: =ROUND('Table X12 Indices 2012=100'!V60*$L$11,1) -> 85.6
C61: =ROUND('Table X12 Indices 2012=100'!N61*$C$11,1) -> 85.4 | D61: =ROUND('Table X12 Indices 2012=100'!O61*$D$11,1) -> 80.8 | E61: =ROUND('Table X12 Indices 2012=100'!P61*$E$11,1) -> 89.5 | F61: =ROUND('Table X12 Indices 2012=100'!Q61*$F$11,1) -> 93.6 | G61: =ROUND('Table X12 Indices 2012=100'!R61*$G$11,1) -> 75.6 | I61: =ROUND('Table X12 Indices 2012=100'!S61*$I$11,1) -> 77 | J61: =ROUND('Table X12 Indices 2012=100'!T61*$J$11,1) -> 82.9 | K61: =ROUND('Table X12 Indices 2012=100'!U61*$K$11,1) -> 89 | L61: =ROUND('Table X12 Indices 2012=100'!V61*$L$11,1) -> 88.9
C62: =ROUND('Table X12 Indices 2012=100'!N62*$C$11,1) -> 86 | D62: =ROUND('Table X12 Indices 2012=100'!O62*$D$11,1) -> 83.5 | E62: =ROUND('Table X12 Indices 2012=100'!P62*$E$11,1) -> 91.7 | F62: =ROUND('Table X12 Indices 2012=100'!Q62*$F$11,1) -> 98.5 | G62: =ROUND('Table X12 Indices 2012=100'!R62*$G$11,1) -> 75.6 | I62: =ROUND('Table X12 Indices 2012=100'!S62*$I$11,1) -> 77.1 | J62: =ROUND('Table X12 Indices 2012=100'!T62*$J$11,1) -> 83.1 | K62: =ROUND('Table X12 Indices 2012=100'!U62*$K$11,1) -> 92.3 | L62: =ROUND('Table X12 Indices 2012=100'!V62*$L$11,1) -> 92.3
C63: =ROUND('Table X12 Indices 2012=100'!N63*$C$11,1) -> 86.2 | D63: =ROUND('Table X12 Indices 2012=100'!O63*$D$11,1) -> 83.6 | E63: =ROUND('Table X12 Indices 2012=100'!P63*$E$11,1) -> 94 | F63: =ROUND('Table X12 Indices 2012=100'!Q63*$F$11,1) -> 100.1 | G63: =ROUND('Table X12 Indices 2012=100'!R63*$G$11,1) -> 75.9 | I63: =ROUND('Table X12 Indices 2012=100'!S63*$I$11,1) -> 77.2 | J63: =ROUND('Table X12 Indices 2012=100'!T63*$J$11,1) -> 83.5 | K63: =ROUND('Table X12 Indices 2012=100'!U63*$K$11,1) -> 95.2 | L63: =ROUND('Table X12 Indices 2012=100'!V63*$L$11,1) -> 96.7
C64: =ROUND('Table X12 Indices 2012=100'!N64*$C$11,1) -> 86.5 | D64: =ROUND('Table X12 Indices 2012=100'!O64*$D$11,1) -> 84 | E64: =ROUND('Table X12 Indices 2012=100'!P64*$E$11,1) -> 94.3 | F64: =ROUND('Table X12 Indices 2012=100'!Q64*$F$11,1) -> 97.6 | G64: =ROUND('Table X12 Indices 2012=100'!R64*$G$11,1) -> 76 | I64: =ROUND('Table X12 Indices 2012=100'!S64*$I$11,1) -> 77.2 | J64: =ROUND('Table X12 Indices 2012=100'!T64*$J$11,1) -> 83.4 | K64: =ROUND('Table X12 Indices 2012=100'!U64*$K$11,1) -> 94.7 | L64: =ROUND('Table X12 Indices 2012=100'!V64*$L$11,1) -> 94.8
C65: =ROUND('Table X12 Indices 2012=100'!N65*$C$11,1) -> 87.3 | D65: =ROUND('Table X12 Indices 2012=100'!O65*$D$11,1) -> 84.7 | E65: =ROUND('Table X12 Indices 2012=100'!P65*$E$11,1) -> 96.1 | F65: =ROUND('Table X12 Indices 2012=100'!Q65*$F$11,1) -> 97.5 | G65: =ROUND('Table X12 Indices 2012=100'!R65*$G$11,1) -> 76.3 | I65: =ROUND('Table X12 Indices 2012=100'!S65*$I$11,1) -> 77.6 | J65: =ROUND('Table X12 Indices 2012=100'!T65*$J$11,1) -> 83.5 | K65: =ROUND('Table X12 Indices 2012=100'!U65*$K$11,1) -> 94.7 | L65: =ROUND('Table X12 Indices 2012=100'!V65*$L$11,1) -> 94.7
C66: =ROUND('Table X12 Indices 2012=100'!N66*$C$11,1) -> 87.9 | D66: =ROUND('Table X12 Indices 2012=100'!O66*$D$11,1) -> 84.7 | E66: =ROUND('Table X12 Indices 2012=100'!P66*$E$11,1) -> 95.8 | F66: =ROUND('Table X12 Indices 2012=100'!Q66*$F$11,1) -> 98.7 | G66: =ROUND('Table X12 Indices 2012=100'!R66*$G$11,1) -> 75.8 | I66: =ROUND('Table X12 Indices 2012=100'!S66*$I$11,1) -> 77.4 | J66: =ROUND('Table X12 Indices 2012=100'!T66*$J$11,1) -> 83.4 | K66: =ROUND('Table X12 Indices 2012=100'!U66*$K$11,1) -> 95.6 | L66: =ROUND('Table X12 Indices 2012=100'!V66*$L$11,1) -> 95.7
C67: =ROUND('Table X12 Indices 2012=100'!N67*$C$11,1) -> 87.8 | D67: =ROUND('Table X12 Indices 2012=100'!O67*$D$11,1) -> 84.7 | E67: =ROUND('Table X12 Indices 2012=100'!P67*$E$11,1) -> 95.8 | F67: =ROUND('Table X12 Indices 2012=100'!Q67*$F$11,1) -> 100.7 | G67: =ROUND('Table X12 Indices 2012=100'!R67*$G$11,1) -> 76 | I67: =ROUND('Table X12 Indices 2012=100'!S67*$I$11,1) -> 78.7 | J67: =ROUND('Table X12 Indices 2012=100'!T67*$J$11,1) -> 85 | K67: =ROUND('Table X12 Indices 2012=100'!U67*$K$11,1) -> 100.3 | L67: =ROUND('Table X12 Indices 2012=100'!V67*$L$11,1) -> 100.1
C68: =ROUND('Table X12 Indices 2012=100'!N68*$C$11,1) -> 87.5 | D68: =ROUND('Table X12 Indices 2012=100'!O68*$D$11,1) -> 84.3 | E68: =ROUND('Table X12 Indices 2012=100'!P68*$E$11,1) -> 97.6 | F68: =ROUND('Table X12 Indices 2012=100'!Q68*$F$11,1) -> 101.7 | G68: =ROUND('Table X12 Indices 2012=100'!R68*$G$11,1) -> 76.7 | I68: =ROUND('Table X12 Indices 2012=100'!S68*$I$11,1) -> 79 | J68: =ROUND('Table X12 Indices 2012=100'!T68*$J$11,1) -> 85.3 | K68: =ROUND('Table X12 Indices 2012=100'!U68*$K$11,1) -> 101.2 | L68: =ROUND('Table X12 Indices 2012=100'!V68*$L$11,1) -> 101
C69: =ROUND('Table X12 Indices 2012=100'!N69*$C$11,1) -> 87.4 | D69: =ROUND('Table X12 Indices 2012=100'!O69*$D$11,1) -> 84.3 | E69: =ROUND('Table X12 Indices 2012=100'!P69*$E$11,1) -> 97.9 | F69: =ROUND('Table X12 Indices 2012=100'!Q69*$F$11,1) -> 97.8 | G69: =ROUND('Table X12 Indices 2012=100'!R69*$G$11,1) -> 76.8 | I69: =ROUND('Table X12 Indices 2012=100'!S69*$I$11,1) -> 79.1 | J69: =ROUND('Table X12 Indices 2012=100'!T69*$J$11,1) -> 85.6 | K69: =ROUND('Table X12 Indices 2012=100'!U69*$K$11,1) -> 98.9 | L69: =ROUND('Table X12 Indices 2012=100'!V69*$L$11,1) -> 99
C70: =ROUND('Table X12 Indices 2012=100'!N70*$C$11,1) -> 87.6 | D70: =ROUND('Table X12 Indices 2012=100'!O70*$D$11,1) -> 84.6 | E70: =ROUND('Table X12 Indices 2012=100'!P70*$E$11,1) -> 98.2 | F70: =ROUND('Table X12 Indices 2012=100'!Q70*$F$11,1) -> 90.4 | G70: =ROUND('Table X12 Indices 2012=100'!R70*$G$11,1) -> 77 | I70: =ROUND('Table X12 Indices 2012=100'!S70*$I$11,1) -> 79.5 | J70: =ROUND('Table X12 Indices 2012=100'!T70*$J$11,1) -> 85.6 | K70: =ROUND('Table X12 Indices 2012=100'!U70*$K$11,1) -> 93.2 | L70: =ROUND('Table X12 Indices 2012=100'!V70*$L$11,1) -> 92.8
C71: =ROUND('Table X12 Indices 2012=100'!N71*$C$11,1) -> 87.8 | D71: =ROUND('Table X12 Indices 2012=100'!O71*$D$11,1) -> 84.6 | E71: =ROUND('Table X12 Indices 2012=100'!P71*$E$11,1) -> 98 | F71: =ROUND('Table X12 Indices 2012=100'!Q71*$F$11,1) -> 92.5 | G71: =ROUND('Table X12 Indices 2012=100'!R71*$G$11,1) -> 77.2 | I71: =ROUND('Table X12 Indices 2012=100'!S71*$I$11,1) -> 79.1 | J71: =ROUND('Table X12 Indices 2012=100'!T71*$J$11,1) -> 85.8 | K71: =ROUND('Table X12 Indices 2012=100'!U71*$K$11,1) -> 94.5 | L71: =ROUND('Table X12 Indices 2012=100'!V71*$L$11,1) -> 94.1
C72: =ROUND('Table X12 Indices 2012=100'!N72*$C$11,1) -> 87.7 | D72: =ROUND('Table X12 Indices 2012=100'!O72*$D$11,1) -> 84.6 | E72: =ROUND('Table X12 Indices 2012=100'!P72*$E$11,1) -> 97.8 | F72: =ROUND('Table X12 Indices 2012=100'!Q72*$F$11,1) -> 98.4 | G72: =ROUND('Table X12 Indices 2012=100'!R72*$G$11,1) -> 77.5 | I72: =ROUND('Table X12 Indices 2012=100'!S72*$I$11,1) -> 80.6 | J72: =ROUND('Table X12 Indices 2012=100'!T72*$J$11,1) -> 85.8 | K72: =ROUND('Table X12 Indices 2012=100'!U72*$K$11,1) -> 100.9 | L72: =ROUND('Table X12 Indices 2012=100'!V72*$L$11,1) -> 100.6
C73: =ROUND('Table X12 Indices 2012=100'!N73*$C$11,1) -> 87.4 | D73: =ROUND('Table X12 Indices 2012=100'!O73*$D$11,1) -> 83.4 | E73: =ROUND('Table X12 Indices 2012=100'!P73*$E$11,1) -> 97.9 | F73: =ROUND('Table X12 Indices 2012=100'!Q73*$F$11,1) -> 103.3 | G73: =ROUND('Table X12 Indices 2012=100'!R73*$G$11,1) -> 77.5 | I73: =ROUND('Table X12 Indices 2012=100'!S73*$I$11,1) -> 80.9 | J73: =ROUND('Table X12 Indices 2012=100'!T73*$J$11,1) -> 86.2 | K73: =ROUND('Table X12 Indices 2012=100'!U73*$K$11,1) -> 101.4 | L73: =ROUND('Table X12 Indices 2012=100'!V73*$L$11,1) -> 104.3
C74: =ROUND('Table X12 Indices 2012=100'!N74*$C$11,1) -> 87.7 | D74: =ROUND('Table X12 Indices 2012=100'!O74*$D$11,1) -> 83.4 | E74: =ROUND('Table X12 Indices 2012=100'!P74*$E$11,1) -> 98.6 | F74: =ROUND('Table X12 Indices 2012=100'!Q74*$F$11,1) -> 104.8 | G74: =ROUND('Table X12 Indices 2012=100'!R74*$G$11,1) -> 77.8 | I74: =ROUND('Table X12 Indices 2012=100'!S74*$I$11,1) -> 81.3 | J74: =ROUND('Table X12 Indices 2012=100'!T74*$J$11,1) -> 86.5 | K74: =ROUND('Table X12 Indices 2012=100'!U74*$K$11,1) -> 103.8 | L74: =ROUND('Table X12 Indices 2012=100'!V74*$L$11,1) -> 105.2
C75: =ROUND('Table X12 Indices 2012=100'!N75*$C$11,1) -> 87.9 | D75: =ROUND('Table X12 Indices 2012=100'!O75*$D$11,1) -> 84.3 | E75: =ROUND('Table X12 Indices 2012=100'!P75*$E$11,1) -> 99.5 | F75: =ROUND('Table X12 Indices 2012=100'!Q75*$F$11,1) -> 104 | G75: =ROUND('Table X12 Indices 2012=100'!R75*$G$11,1) -> 78.1 | I75: =ROUND('Table X12 Indices 2012=100'!S75*$I$11,1) -> 81.4 | J75: =ROUND('Table X12 Indices 2012=100'!T75*$J$11,1) -> 86.7 | K75: =ROUND('Table X12 Indices 2012=100'!U75*$K$11,1) -> 103.3 | L75: =ROUND('Table X12 Indices 2012=100'!V75*$L$11,1) -> 104.7 | N75: Conversion ↑
C76: =ROUND('Table X12 Indices 2012=100'!N76*$C$11,1) -> 89.1 | D76: =ROUND('Table X12 Indices 2012=100'!O76*$D$11,1) -> 87 | E76: =ROUND('Table X12 Indices 2012=100'!P76*$E$11,1) -> 101.6 | F76: =ROUND('Table X12 Indices 2012=100'!Q76*$F$11,1) -> 101.5 | G76: =ROUND('Table X12 Indices 2012=100'!R76*$G$11,1) -> 78.7 | I76: =ROUND('Table X12 Indices 2012=100'!S76*$I$11,1) -> 81.8 | J76: =ROUND('Table X12 Indices 2012=100'!T76*$J$11,1) -> 87.3 | K76: =ROUND('Table X12 Indices 2012=100'!U76*$K$11,1) -> 100.8 | L76: =ROUND('Table X12 Indices 2012=100'!V76*$L$11,1) -> 102.2 | N76: New indices ↓
C77: =ROUND('Table X12 Indices 2012=100'!N77*$C$11,1) -> 89.5 | D77: =ROUND('Table X12 Indices 2012=100'!O77*$D$11,1) -> 88.4 | E77: =ROUND('Table X12 Indices 2012=100'!P77*$E$11,1) -> 102.2 | F77: =ROUND('Table X12 Indices 2012=100'!Q77*$F$11,1) -> 103 | G77: =ROUND('Table X12 Indices 2012=100'!R77*$G$11,1) -> 78.8 | I77: =ROUND('Table X12 Indices 2012=100'!S77*$I$11,1) -> 81.8 | J77: =ROUND('Table X12 Indices 2012=100'!T77*$J$11,1) -> 87.3 | K77: =ROUND('Table X12 Indices 2012=100'!U77*$K$11,1) -> 102.3 | L77: =ROUND('Table X12 Indices 2012=100'!V77*$L$11,1) -> 103.8
C78: =ROUND('Table X12 Indices 2012=100'!N78*$C$11,1) -> 90.3 | D78: =ROUND('Table X12 Indices 2012=100'!O78*$D$11,1) -> 88.1 | E78: =ROUND('Table X12 Indices 2012=100'!P78*$E$11,1) -> 102 | F78: =ROUND('Table X12 Indices 2012=100'!Q78*$F$11,1) -> 108.4 | G78: =ROUND('Table X12 Indices 2012=100'!R78*$G$11,1) -> 79.7 | I78: =ROUND('Table X12 Indices 2012=100'!S78*$I$11,1) -> 82.1 | J78: =ROUND('Table X12 Indices 2012=100'!T78*$J$11,1) -> 88.3 | K78: =ROUND('Table X12 Indices 2012=100'!U78*$K$11,1) -> 107.7 | L78: =ROUND('Table X12 Indices 2012=100'!V78*$L$11,1) -> 109.3
C79: =ROUND('Table X12 Indices 2012=100'!N79*$C$11,1) -> 91 | D79: =ROUND('Table X12 Indices 2012=100'!O79*$D$11,1) -> 89.6 | E79: =ROUND('Table X12 Indices 2012=100'!P79*$E$11,1) -> 102.7 | F79: =ROUND('Table X12 Indices 2012=100'!Q79*$F$11,1) -> 109.2 | G79: =ROUND('Table X12 Indices 2012=100'!R79*$G$11,1) -> 79.8 | I79: =ROUND('Table X12 Indices 2012=100'!S79*$I$11,1) -> 82.2 | J79: =ROUND('Table X12 Indices 2012=100'!T79*$J$11,1) -> 88.3 | K79: =ROUND('Table X12 Indices 2012=100'!U79*$K$11,1) -> 108.5 | L79: =ROUND('Table X12 Indices 2012=100'!V79*$L$11,1) -> 110
C80: =ROUND('Table X12 Indices 2012=100'!N80*$C$11,1) -> 91.2 | D80: =ROUND('Table X12 Indices 2012=100'!O80*$D$11,1) -> 90.4 | E80: =ROUND('Table X12 Indices 2012=100'!P80*$E$11,1) -> 104.2 | F80: =ROUND('Table X12 Indices 2012=100'!Q80*$F$11,1) -> 104.1 | G80: =ROUND('Table X12 Indices 2012=100'!R80*$G$11,1) -> 80.4 | I80: =ROUND('Table X12 Indices 2012=100'!S80*$I$11,1) -> 82.6 | J80: =ROUND('Table X12 Indices 2012=100'!T80*$J$11,1) -> 88.6 | K80: =ROUND('Table X12 Indices 2012=100'!U80*$K$11,1) -> 103.5 | L80: =ROUND('Table X12 Indices 2012=100'!V80*$L$11,1) -> 104.7
C81: =ROUND('Table X12 Indices 2012=100'!N81*$C$11,1) -> 91.9 | D81: =ROUND('Table X12 Indices 2012=100'!O81*$D$11,1) -> 90.5 | E81: =ROUND('Table X12 Indices 2012=100'!P81*$E$11,1) -> 105.4 | F81: =ROUND('Table X12 Indices 2012=100'!Q81*$F$11,1) -> 103.7 | G81: =ROUND('Table X12 Indices 2012=100'!R81*$G$11,1) -> 81.1 | I81: =ROUND('Table X12 Indices 2012=100'!S81*$I$11,1) -> 83 | J81: =ROUND('Table X12 Indices 2012=100'!T81*$J$11,1) -> 89.3 | K81: =ROUND('Table X12 Indices 2012=100'!U81*$K$11,1) -> 103.1 | L81: =ROUND('Table X12 Indices 2012=100'!V81*$L$11,1) -> 104.3
C82: =ROUND('Table X12 Indices 2012=100'!N82*$C$11,1) -> 92.3 | D82: =ROUND('Table X12 Indices 2012=100'!O82*$D$11,1) -> 90.5 | E82: =ROUND('Table X12 Indices 2012=100'!P82*$E$11,1) -> 106.4 | F82: =ROUND('Table X12 Indices 2012=100'!Q82*$F$11,1) -> 111 | G82: =ROUND('Table X12 Indices 2012=100'!R82*$G$11,1) -> 82.4 | I82: =ROUND('Table X12 Indices 2012=100'!S82*$I$11,1) -> 84.8 | J82: =ROUND('Table X12 Indices 2012=100'!T82*$J$11,1) -> 90.5 | K82: =ROUND('Table X12 Indices 2012=100'!U82*$K$11,1) -> 110.2 | L82: =ROUND('Table X12 Indices 2012=100'!V82*$L$11,1) -> 111.8
C83: =ROUND('Table X12 Indices 2012=100'!N83*$C$11,1) -> 92.5 | D83: =ROUND('Table X12 Indices 2012=100'!O83*$D$11,1) -> 90.3 | E83: =ROUND('Table X12 Indices 2012=100'!P83*$E$11,1) -> 106.1 | F83: =ROUND('Table X12 Indices 2012=100'!Q83*$F$11,1) -> 114 | G83: =ROUND('Table X12 Indices 2012=100'!R83*$G$11,1) -> 83.2 | I83: =ROUND('Table X12 Indices 2012=100'!S83*$I$11,1) -> 85.2 | J83: =ROUND('Table X12 Indices 2012=100'!T83*$J$11,1) -> 90.9 | K83: =ROUND('Table X12 Indices 2012=100'!U83*$K$11,1) -> 113.2 | L83: =ROUND('Table X12 Indices 2012=100'!V83*$L$11,1) -> 114.8
C84: =ROUND('Table X12 Indices 2012=100'!N84*$C$11,1) -> 92 | D84: =ROUND('Table X12 Indices 2012=100'!O84*$D$11,1) -> 90.3 | E84: =ROUND('Table X12 Indices 2012=100'!P84*$E$11,1) -> 105.4 | F84: =ROUND('Table X12 Indices 2012=100'!Q84*$F$11,1) -> 115.3 | G84: =ROUND('Table X12 Indices 2012=100'!R84*$G$11,1) -> 83.5 | I84: =ROUND('Table X12 Indices 2012=100'!S84*$I$11,1) -> 85.3 | J84: =ROUND('Table X12 Indices 2012=100'!T84*$J$11,1) -> 91.2 | K84: =ROUND('Table X12 Indices 2012=100'!U84*$K$11,1) -> 114.4 | L84: =ROUND('Table X12 Indices 2012=100'!V84*$L$11,1) -> 116.1
C85: =ROUND('Table X12 Indices 2012=100'!N85*$C$11,1) -> 92.1 | D85: =ROUND('Table X12 Indices 2012=100'!O85*$D$11,1) -> 90.4 | E85: =ROUND('Table X12 Indices 2012=100'!P85*$E$11,1) -> 105.5 | F85: =ROUND('Table X12 Indices 2012=100'!Q85*$F$11,1) -> 115.1 | G85: =ROUND('Table X12 Indices 2012=100'!R85*$G$11,1) -> 84.2 | I85: =ROUND('Table X12 Indices 2012=100'!S85*$I$11,1) -> 85.8 | J85: =ROUND('Table X12 Indices 2012=100'!T85*$J$11,1) -> 91.7 | K85: =ROUND('Table X12 Indices 2012=100'!U85*$K$11,1) -> 114.2 | L85: =ROUND('Table X12 Indices 2012=100'!V85*$L$11,1) -> 115.9
C86: =ROUND('Table X12 Indices 2012=100'!N86*$C$11,1) -> 92 | D86: =ROUND('Table X12 Indices 2012=100'!O86*$D$11,1) -> 90.3 | E86: =ROUND('Table X12 Indices 2012=100'!P86*$E$11,1) -> 104.9 | F86: =ROUND('Table X12 Indices 2012=100'!Q86*$F$11,1) -> 113.6 | G86: =ROUND('Table X12 Indices 2012=100'!R86*$G$11,1) -> 84.5 | I86: =ROUND('Table X12 Indices 2012=100'!S86*$I$11,1) -> 86.1 | J86: =ROUND('Table X12 Indices 2012=100'!T86*$J$11,1) -> 92.2 | K86: =ROUND('Table X12 Indices 2012=100'!U86*$K$11,1) -> 112.9 | L86: =ROUND('Table X12 Indices 2012=100'!V86*$L$11,1) -> 114.5
C87: =ROUND('Table X12 Indices 2012=100'!N87*$C$11,1) -> 92 | D87: =ROUND('Table X12 Indices 2012=100'!O87*$D$11,1) -> 90.2 | E87: =ROUND('Table X12 Indices 2012=100'!P87*$E$11,1) -> 105.1 | F87: =ROUND('Table X12 Indices 2012=100'!Q87*$F$11,1) -> 114.6 | G87: =ROUND('Table X12 Indices 2012=100'!R87*$G$11,1) -> 84.7 | I87: =ROUND('Table X12 Indices 2012=100'!S87*$I$11,1) -> 86.2 | J87: =ROUND('Table X12 Indices 2012=100'!T87*$J$11,1) -> 92.4 | K87: =ROUND('Table X12 Indices 2012=100'!U87*$K$11,1) -> 113.7 | L87: =ROUND('Table X12 Indices 2012=100'!V87*$L$11,1) -> 115.4
C88: =ROUND('Table X12 Indices 2012=100'!N88*$C$11,1) -> 92.7 | D88: =ROUND('Table X12 Indices 2012=100'!O88*$D$11,1) -> 91.1 | E88: =ROUND('Table X12 Indices 2012=100'!P88*$E$11,1) -> 106.1 | F88: =ROUND('Table X12 Indices 2012=100'!Q88*$F$11,1) -> 117.6 | G88: =ROUND('Table X12 Indices 2012=100'!R88*$G$11,1) -> 85.2 | I88: =ROUND('Table X12 Indices 2012=100'!S88*$I$11,1) -> 86.3 | J88: =ROUND('Table X12 Indices 2012=100'!T88*$J$11,1) -> 92.4 | K88: =ROUND('Table X12 Indices 2012=100'!U88*$K$11,1) -> 116.7 | L88: =ROUND('Table X12 Indices 2012=100'!V88*$L$11,1) -> 118.5
C89: =ROUND('Table X12 Indices 2012=100'!N89*$C$11,1) -> 92.8 | D89: =ROUND('Table X12 Indices 2012=100'!O89*$D$11,1) -> 93.8 | E89: =ROUND('Table X12 Indices 2012=100'!P89*$E$11,1) -> 109.7 | F89: =ROUND('Table X12 Indices 2012=100'!Q89*$F$11,1) -> 119.8 | G89: =ROUND('Table X12 Indices 2012=100'!R89*$G$11,1) -> 86.4 | I89: =ROUND('Table X12 Indices 2012=100'!S89*$I$11,1) -> 91.8 | J89: =ROUND('Table X12 Indices 2012=100'!T89*$J$11,1) -> 92.9 | K89: =ROUND('Table X12 Indices 2012=100'!U89*$K$11,1) -> 118.9 | L89: =ROUND('Table X12 Indices 2012=100'!V89*$L$11,1) -> 120.8
C90: =ROUND('Table X12 Indices 2012=100'!N90*$C$11,1) -> 93.8 | D90: =ROUND('Table X12 Indices 2012=100'!O90*$D$11,1) -> 94.5 | E90: =ROUND('Table X12 Indices 2012=100'!P90*$E$11,1) -> 111.2 | F90: =ROUND('Table X12 Indices 2012=100'!Q90*$F$11,1) -> 122.4 | G90: =ROUND('Table X12 Indices 2012=100'!R90*$G$11,1) -> 86.2 | I90: =ROUND('Table X12 Indices 2012=100'!S90*$I$11,1) -> 92.1 | J90: =ROUND('Table X12 Indices 2012=100'!T90*$J$11,1) -> 93.4 | K90: =ROUND('Table X12 Indices 2012=100'!U90*$K$11,1) -> 121.3 | L90: =ROUND('Table X12 Indices 2012=100'!V90*$L$11,1) -> 123.3
C91: =ROUND('Table X12 Indices 2012=100'!N91*$C$11,1) -> 94.1 | D91: =ROUND('Table X12 Indices 2012=100'!O91*$D$11,1) -> 94.9 | E91: =ROUND('Table X12 Indices 2012=100'!P91*$E$11,1) -> 111.1 | F91: =ROUND('Table X12 Indices 2012=100'!Q91*$F$11,1) -> 121.3 | G91: =ROUND('Table X12 Indices 2012=100'!R91*$G$11,1) -> 86.8 | I91: =ROUND('Table X12 Indices 2012=100'!S91*$I$11,1) -> 93.2 | J91: =ROUND('Table X12 Indices 2012=100'!T91*$J$11,1) -> 95 | K91: =ROUND('Table X12 Indices 2012=100'!U91*$K$11,1) -> 120.6 | L91: =ROUND('Table X12 Indices 2012=100'!V91*$L$11,1) -> 122.1
C92: =ROUND('Table X12 Indices 2012=100'!N92*$C$11,1) -> 94.3 | D92: =ROUND('Table X12 Indices 2012=100'!O92*$D$11,1) -> 94.8 | E92: =ROUND('Table X12 Indices 2012=100'!P92*$E$11,1) -> 110.5 | F92: =ROUND('Table X12 Indices 2012=100'!Q92*$F$11,1) -> 118.5 | G92: =ROUND('Table X12 Indices 2012=100'!R92*$G$11,1) -> 87.2 | I92: =ROUND('Table X12 Indices 2012=100'!S92*$I$11,1) -> 93.3 | J92: =ROUND('Table X12 Indices 2012=100'!T92*$J$11,1) -> 95.3 | K92: =ROUND('Table X12 Indices 2012=100'!U92*$K$11,1) -> 117.8 | L92: =ROUND('Table X12 Indices 2012=100'!V92*$L$11,1) -> 119.3
C93: =ROUND('Table X12 Indices 2012=100'!N93*$C$11,1) -> 94.6 | D93: =ROUND('Table X12 Indices 2012=100'!O93*$D$11,1) -> 94.8 | E93: =ROUND('Table X12 Indices 2012=100'!P93*$E$11,1) -> 111 | F93: =ROUND('Table X12 Indices 2012=100'!Q93*$F$11,1) -> 116.4 | G93: =ROUND('Table X12 Indices 2012=100'!R93*$G$11,1) -> 87.4 | I93: =ROUND('Table X12 Indices 2012=100'!S93*$I$11,1) -> 92.5 | J93: =ROUND('Table X12 Indices 2012=100'!T93*$J$11,1) -> 94.5 | K93: =ROUND('Table X12 Indices 2012=100'!U93*$K$11,1) -> 115.7 | L93: =ROUND('Table X12 Indices 2012=100'!V93*$L$11,1) -> 117.1
C94: =ROUND('Table X12 Indices 2012=100'!N94*$C$11,1) -> 94.6 | D94: =ROUND('Table X12 Indices 2012=100'!O94*$D$11,1) -> 94.4 | E94: =ROUND('Table X12 Indices 2012=100'!P94*$E$11,1) -> 112 | F94: =ROUND('Table X12 Indices 2012=100'!Q94*$F$11,1) -> 117.7 | G94: =ROUND('Table X12 Indices 2012=100'!R94*$G$11,1) -> 87.5 | I94: =ROUND('Table X12 Indices 2012=100'!S94*$I$11,1) -> 92.2 | J94: =ROUND('Table X12 Indices 2012=100'!T94*$J$11,1) -> 94.3 | K94: =ROUND('Table X12 Indices 2012=100'!U94*$K$11,1) -> 117 | L94: =ROUND('Table X12 Indices 2012=100'!V94*$L$11,1) -> 118.4
C95: =ROUND('Table X12 Indices 2012=100'!N95*$C$11,1) -> 94.6 | D95: =ROUND('Table X12 Indices 2012=100'!O95*$D$11,1) -> 94.4 | E95: =ROUND('Table X12 Indices 2012=100'!P95*$E$11,1) -> 110.9 | F95: =ROUND('Table X12 Indices 2012=100'!Q95*$F$11,1) -> 117.2 | G95: =ROUND('Table X12 Indices 2012=100'!R95*$G$11,1) -> 87.6 | I95: =ROUND('Table X12 Indices 2012=100'!S95*$I$11,1) -> 92.9 | J95: =ROUND('Table X12 Indices 2012=100'!T95*$J$11,1) -> 94.4 | K95: =ROUND('Table X12 Indices 2012=100'!U95*$K$11,1) -> 116.5 | L95: =ROUND('Table X12 Indices 2012=100'!V95*$L$11,1) -> 117.9
C96: =ROUND('Table X12 Indices 2012=100'!N96*$C$11,1) -> 95.2 | D96: =ROUND('Table X12 Indices 2012=100'!O96*$D$11,1) -> 95.4 | E96: =ROUND('Table X12 Indices 2012=100'!P96*$E$11,1) -> 111 | F96: =ROUND('Table X12 Indices 2012=100'!Q96*$F$11,1) -> 114.8 | G96: =ROUND('Table X12 Indices 2012=100'!R96*$G$11,1) -> 87.6 | I96: =ROUND('Table X12 Indices 2012=100'!S96*$I$11,1) -> 92.9 | J96: =ROUND('Table X12 Indices 2012=100'!T96*$J$11,1) -> 94.3 | K96: =ROUND('Table X12 Indices 2012=100'!U96*$K$11,1) -> 114.2 | L96: =ROUND('Table X12 Indices 2012=100'!V96*$L$11,1) -> 115.5
C97: =ROUND('Table X12 Indices 2012=100'!N97*$C$11,1) -> 95.3 | D97: =ROUND('Table X12 Indices 2012=100'!O97*$D$11,1) -> 95.4 | E97: =ROUND('Table X12 Indices 2012=100'!P97*$E$11,1) -> 111.3 | F97: =ROUND('Table X12 Indices 2012=100'!Q97*$F$11,1) -> 113.6 | G97: =ROUND('Table X12 Indices 2012=100'!R97*$G$11,1) -> 87.2 | I97: =ROUND('Table X12 Indices 2012=100'!S97*$I$11,1) -> 92.9 | J97: =ROUND('Table X12 Indices 2012=100'!T97*$J$11,1) -> 93.3 | K97: =ROUND('Table X12 Indices 2012=100'!U97*$K$11,1) -> 113.1 | L97: =ROUND('Table X12 Indices 2012=100'!V97*$L$11,1) -> 114.2
C98: =ROUND('Table X12 Indices 2012=100'!N98*$C$11,1) -> 95 | D98: =ROUND('Table X12 Indices 2012=100'!O98*$D$11,1) -> 96.1 | E98: =ROUND('Table X12 Indices 2012=100'!P98*$E$11,1) -> 110.6 | F98: =ROUND('Table X12 Indices 2012=100'!Q98*$F$11,1) -> 108 | G98: =ROUND('Table X12 Indices 2012=100'!R98*$G$11,1) -> 87.4 | I98: =ROUND('Table X12 Indices 2012=100'!S98*$I$11,1) -> 92.9 | J98: =ROUND('Table X12 Indices 2012=100'!T98*$J$11,1) -> 93.3 | K98: =ROUND('Table X12 Indices 2012=100'!U98*$K$11,1) -> 107.5 | L98: =ROUND('Table X12 Indices 2012=100'!V98*$L$11,1) -> 108.5
C99: =ROUND('Table X12 Indices 2012=100'!N99*$C$11,1) -> 94.7 | D99: =ROUND('Table X12 Indices 2012=100'!O99*$D$11,1) -> 96.1 | E99: =ROUND('Table X12 Indices 2012=100'!P99*$E$11,1) -> 107.5 | F99: =ROUND('Table X12 Indices 2012=100'!Q99*$F$11,1) -> 103 | G99: =ROUND('Table X12 Indices 2012=100'!R99*$G$11,1) -> 87.4 | I99: =ROUND('Table X12 Indices 2012=100'!S99*$I$11,1) -> 92.9 | J99: =ROUND('Table X12 Indices 2012=100'!T99*$J$11,1) -> 93.3 | K99: =ROUND('Table X12 Indices 2012=100'!U99*$K$11,1) -> 102.6 | L99: =ROUND('Table X12 Indices 2012=100'!V99*$L$11,1) -> 103.6
C100: =ROUND('Table X12 Indices 2012=100'!N100*$C$11,1) -> 92.9 | D100: =ROUND('Table X12 Indices 2012=100'!O100*$D$11,1) -> 93.8 | E100: =ROUND('Table X12 Indices 2012=100'!P100*$E$11,1) -> 104.3 | F100: =ROUND('Table X12 Indices 2012=100'!Q100*$F$11,1) -> 93.5 | G100: =ROUND('Table X12 Indices 2012=100'!R100*$G$11,1) -> 88.3 | I100: =ROUND('Table X12 Indices 2012=100'!S100*$I$11,1) -> 93.6 | J100: =ROUND('Table X12 Indices 2012=100'!T100*$J$11,1) -> 93.9 | K100: =ROUND('Table X12 Indices 2012=100'!U100*$K$11,1) -> 93.2 | L100: =ROUND('Table X12 Indices 2012=100'!V100*$L$11,1) -> 93.8
C101: =ROUND('Table X12 Indices 2012=100'!N101*$C$11,1) -> 92.4 | D101: =ROUND('Table X12 Indices 2012=100'!O101*$D$11,1) -> 94.4 | E101: =ROUND('Table X12 Indices 2012=100'!P101*$E$11,1) -> 99.6 | F101: =ROUND('Table X12 Indices 2012=100'!Q101*$F$11,1) -> 84.1 | G101: =ROUND('Table X12 Indices 2012=100'!R101*$G$11,1) -> 88.8 | I101: =ROUND('Table X12 Indices 2012=100'!S101*$I$11,1) -> 93.7 | J101: =ROUND('Table X12 Indices 2012=100'!T101*$J$11,1) -> 94.2 | K101: =ROUND('Table X12 Indices 2012=100'!U101*$K$11,1) -> 84 | L101: =ROUND('Table X12 Indices 2012=100'!V101*$L$11,1) -> 84.2
C102: =ROUND('Table X12 Indices 2012=100'!N102*$C$11,1) -> 92.1 | D102: =ROUND('Table X12 Indices 2012=100'!O102*$D$11,1) -> 93.8 | E102: =ROUND('Table X12 Indices 2012=100'!P102*$E$11,1) -> 101.5 | F102: =ROUND('Table X12 Indices 2012=100'!Q102*$F$11,1) -> 90.9 | G102: =ROUND('Table X12 Indices 2012=100'!R102*$G$11,1) -> 88.8 | I102: =ROUND('Table X12 Indices 2012=100'!S102*$I$11,1) -> 93.7 | J102: =ROUND('Table X12 Indices 2012=100'!T102*$J$11,1) -> 94.2 | K102: =ROUND('Table X12 Indices 2012=100'!U102*$K$11,1) -> 90.6 | L102: =ROUND('Table X12 Indices 2012=100'!V102*$L$11,1) -> 91.1
C103: =ROUND('Table X12 Indices 2012=100'!N103*$C$11,1) -> 89.5 | D103: =ROUND('Table X12 Indices 2012=100'!O103*$D$11,1) -> 90.6 | E103: =ROUND('Table X12 Indices 2012=100'!P103*$E$11,1) -> 99.8 | F103: =ROUND('Table X12 Indices 2012=100'!Q103*$F$11,1) -> 102.2 | G103: =ROUND('Table X12 Indices 2012=100'!R103*$G$11,1) -> 89 | I103: =ROUND('Table X12 Indices 2012=100'!S103*$I$11,1) -> 92.2 | J103: =ROUND('Table X12 Indices 2012=100'!T103*$J$11,1) -> 92.8 | K103: =ROUND('Table X12 Indices 2012=100'!U103*$K$11,1) -> 101.9 | L103: =ROUND('Table X12 Indices 2012=100'!V103*$L$11,1) -> 102.5
C104: =ROUND('Table X12 Indices 2012=100'!N104*$C$11,1) -> 88.2 | D104: =ROUND('Table X12 Indices 2012=100'!O104*$D$11,1) -> 89 | E104: =ROUND('Table X12 Indices 2012=100'!P104*$E$11,1) -> 99 | F104: =ROUND('Table X12 Indices 2012=100'!Q104*$F$11,1) -> 101.7 | G104: =ROUND('Table X12 Indices 2012=100'!R104*$G$11,1) -> 89.2 | I104: =ROUND('Table X12 Indices 2012=100'!S104*$I$11,1) -> 92.2 | J104: =ROUND('Table X12 Indices 2012=100'!T104*$J$11,1) -> 92.7 | K104: =ROUND('Table X12 Indices 2012=100'!U104*$K$11,1) -> 101.4 | L104: =ROUND('Table X12 Indices 2012=100'!V104*$L$11,1) -> 102
C105: =ROUND('Table X12 Indices 2012=100'!N105*$C$11,1) -> 88.4 | D105: =ROUND('Table X12 Indices 2012=100'!O105*$D$11,1) -> 88.8 | E105: =ROUND('Table X12 Indices 2012=100'!P105*$E$11,1) -> 100.2 | F105: =ROUND('Table X12 Indices 2012=100'!Q105*$F$11,1) -> 106.2 | G105: =ROUND('Table X12 Indices 2012=100'!R105*$G$11,1) -> 89.2 | I105: =ROUND('Table X12 Indices 2012=100'!S105*$I$11,1) -> 92.5 | J105: =ROUND('Table X12 Indices 2012=100'!T105*$J$11,1) -> 92.4 | K105: =ROUND('Table X12 Indices 2012=100'!U105*$K$11,1) -> 105.8 | L105: =ROUND('Table X12 Indices 2012=100'!V105*$L$11,1) -> 106.6
C106: =ROUND('Table X12 Indices 2012=100'!N106*$C$11,1) -> 88.2 | D106: =ROUND('Table X12 Indices 2012=100'!O106*$D$11,1) -> 88.9 | E106: =ROUND('Table X12 Indices 2012=100'!P106*$E$11,1) -> 98.5 | F106: =ROUND('Table X12 Indices 2012=100'!Q106*$F$11,1) -> 106.6 | G106: =ROUND('Table X12 Indices 2012=100'!R106*$G$11,1) -> 89.3 | I106: =ROUND('Table X12 Indices 2012=100'!S106*$I$11,1) -> 92.9 | J106: =ROUND('Table X12 Indices 2012=100'!T106*$J$11,1) -> 91.9 | K106: =ROUND('Table X12 Indices 2012=100'!U106*$K$11,1) -> 106.1 | L106: =ROUND('Table X12 Indices 2012=100'!V106*$L$11,1) -> 106.9
C107: =ROUND('Table X12 Indices 2012=100'!N107*$C$11,1) -> 88.5 | D107: =ROUND('Table X12 Indices 2012=100'!O107*$D$11,1) -> 89.4 | E107: =ROUND('Table X12 Indices 2012=100'!P107*$E$11,1) -> 98.4 | F107: =ROUND('Table X12 Indices 2012=100'!Q107*$F$11,1) -> 99.5 | G107: =ROUND('Table X12 Indices 2012=100'!R107*$G$11,1) -> 89.5 | I107: =ROUND('Table X12 Indices 2012=100'!S107*$I$11,1) -> 93.4 | J107: =ROUND('Table X12 Indices 2012=100'!T107*$J$11,1) -> 92.2 | K107: =ROUND('Table X12 Indices 2012=100'!U107*$K$11,1) -> 99.3 | L107: =ROUND('Table X12 Indices 2012=100'!V107*$L$11,1) -> 99.8
C108: =ROUND('Table X12 Indices 2012=100'!N108*$C$11,1) -> 88.1 | D108: =ROUND('Table X12 Indices 2012=100'!O108*$D$11,1) -> 89.1 | E108: =ROUND('Table X12 Indices 2012=100'!P108*$E$11,1) -> 95.4 | F108: =ROUND('Table X12 Indices 2012=100'!Q108*$F$11,1) -> 94.6 | G108: =ROUND('Table X12 Indices 2012=100'!R108*$G$11,1) -> 90.3 | I108: =ROUND('Table X12 Indices 2012=100'!S108*$I$11,1) -> 93.8 | J108: =ROUND('Table X12 Indices 2012=100'!T108*$J$11,1) -> 92.8 | K108: =ROUND('Table X12 Indices 2012=100'!U108*$K$11,1) -> 94.3 | L108: =ROUND('Table X12 Indices 2012=100'!V108*$L$11,1) -> 94.8
C109: =ROUND('Table X12 Indices 2012=100'!N109*$C$11,1) -> 88.4 | D109: =ROUND('Table X12 Indices 2012=100'!O109*$D$11,1) -> 89.1 | E109: =ROUND('Table X12 Indices 2012=100'!P109*$E$11,1) -> 93 | F109: =ROUND('Table X12 Indices 2012=100'!Q109*$F$11,1) -> 99.5 | G109: =ROUND('Table X12 Indices 2012=100'!R109*$G$11,1) -> 91.8 | I109: =ROUND('Table X12 Indices 2012=100'!S109*$I$11,1) -> 94.8 | J109: =ROUND('Table X12 Indices 2012=100'!T109*$J$11,1) -> 93.5 | K109: =ROUND('Table X12 Indices 2012=100'!U109*$K$11,1) -> 99.2 | L109: =ROUND('Table X12 Indices 2012=100'!V109*$L$11,1) -> 99.7
C110: =ROUND('Table X12 Indices 2012=100'!N110*$C$11,1) -> 88.4 | D110: =ROUND('Table X12 Indices 2012=100'!O110*$D$11,1) -> 89 | E110: =ROUND('Table X12 Indices 2012=100'!P110*$E$11,1) -> 93.3 | F110: =ROUND('Table X12 Indices 2012=100'!Q110*$F$11,1) -> 98.6 | G110: =ROUND('Table X12 Indices 2012=100'!R110*$G$11,1) -> 91.8 | I110: =ROUND('Table X12 Indices 2012=100'!S110*$I$11,1) -> 95.3 | J110: =ROUND('Table X12 Indices 2012=100'!T110*$J$11,1) -> 93.9 | K110: =ROUND('Table X12 Indices 2012=100'!U110*$K$11,1) -> 98.3 | L110: =ROUND('Table X12 Indices 2012=100'!V110*$L$11,1) -> 98.9
C111: =ROUND('Table X12 Indices 2012=100'!N111*$C$11,1) -> 88.1 | D111: =ROUND('Table X12 Indices 2012=100'!O111*$D$11,1) -> 89.4 | E111: =ROUND('Table X12 Indices 2012=100'!P111*$E$11,1) -> 94.9 | F111: =ROUND('Table X12 Indices 2012=100'!Q111*$F$11,1) -> 98.3 | G111: =ROUND('Table X12 Indices 2012=100'!R111*$G$11,1) -> 91.8 | I111: =ROUND('Table X12 Indices 2012=100'!S111*$I$11,1) -> 95.4 | J111: =ROUND('Table X12 Indices 2012=100'!T111*$J$11,1) -> 93.9 | K111: =ROUND('Table X12 Indices 2012=100'!U111*$K$11,1) -> 98.1 | L111: =ROUND('Table X12 Indices 2012=100'!V111*$L$11,1) -> 98.5
C112: =ROUND('Table X12 Indices 2012=100'!N112*$C$11,1) -> 90.5 | D112: =ROUND('Table X12 Indices 2012=100'!O112*$D$11,1) -> 91.3 | E112: =ROUND('Table X12 Indices 2012=100'!P112*$E$11,1) -> 94.2 | F112: =ROUND('Table X12 Indices 2012=100'!Q112*$F$11,1) -> 91.3 | G112: =ROUND('Table X12 Indices 2012=100'!R112*$G$11,1) -> 96.5 | I112: =ROUND('Table X12 Indices 2012=100'!S112*$I$11,1) -> 98.6 | J112: =ROUND('Table X12 Indices 2012=100'!T112*$J$11,1) -> 96.8 | K112: =ROUND('Table X12 Indices 2012=100'!U112*$K$11,1) -> 91.1 | L112: =ROUND('Table X12 Indices 2012=100'!V112*$L$11,1) -> 91.4
C113: =ROUND('Table X12 Indices 2012=100'!N113*$C$11,1) -> 92.5 | D113: =ROUND('Table X12 Indices 2012=100'!O113*$D$11,1) -> 93.9 | E113: =ROUND('Table X12 Indices 2012=100'!P113*$E$11,1) -> 94.6 | F113: =ROUND('Table X12 Indices 2012=100'!Q113*$F$11,1) -> 85.6 | G113: =ROUND('Table X12 Indices 2012=100'!R113*$G$11,1) -> 96.8 | I113: =ROUND('Table X12 Indices 2012=100'!S113*$I$11,1) -> 98.3 | J113: =ROUND('Table X12 Indices 2012=100'!T113*$J$11,1) -> 97.3 | K113: =ROUND('Table X12 Indices 2012=100'!U113*$K$11,1) -> 85.5 | L113: =ROUND('Table X12 Indices 2012=100'!V113*$L$11,1) -> 85.6
C114: =ROUND('Table X12 Indices 2012=100'!N114*$C$11,1) -> 92.6 | D114: =ROUND('Table X12 Indices 2012=100'!O114*$D$11,1) -> 92.7 | E114: =ROUND('Table X12 Indices 2012=100'!P114*$E$11,1) -> 93 | F114: =ROUND('Table X12 Indices 2012=100'!Q114*$F$11,1) -> 86.9 | G114: =ROUND('Table X12 Indices 2012=100'!R114*$G$11,1) -> 97.8 | I114: =ROUND('Table X12 Indices 2012=100'!S114*$I$11,1) -> 99.3 | J114: =ROUND('Table X12 Indices 2012=100'!T114*$J$11,1) -> 98.3 | K114: =ROUND('Table X12 Indices 2012=100'!U114*$K$11,1) -> 86.8 | L114: =ROUND('Table X12 Indices 2012=100'!V114*$L$11,1) -> 87
C115: =ROUND('Table X12 Indices 2012=100'!N115*$C$11,1) -> 93.3 | D115: =ROUND('Table X12 Indices 2012=100'!O115*$D$11,1) -> 95.4 | E115: =ROUND('Table X12 Indices 2012=100'!P115*$E$11,1) -> 94.6 | F115: =ROUND('Table X12 Indices 2012=100'!Q115*$F$11,1) -> 95.5 | G115: =ROUND('Table X12 Indices 2012=100'!R115*$G$11,1) -> 98.3 | I115: =ROUND('Table X12 Indices 2012=100'!S115*$I$11,1) -> 99.3 | J115: =ROUND('Table X12 Indices 2012=100'!T115*$J$11,1) -> 98.4 | K115: =ROUND('Table X12 Indices 2012=100'!U115*$K$11,1) -> 95.5 | L115: =ROUND('Table X12 Indices 2012=100'!V115*$L$11,1) -> 95.5
C116: =ROUND('Table X12 Indices 2012=100'!N116*$C$11,1) -> 95.6 | D116: =ROUND('Table X12 Indices 2012=100'!O116*$D$11,1) -> 98.8 | E116: =ROUND('Table X12 Indices 2012=100'!P116*$E$11,1) -> 96.1 | F116: =ROUND('Table X12 Indices 2012=100'!Q116*$F$11,1) -> 95.4 | G116: =ROUND('Table X12 Indices 2012=100'!R116*$G$11,1) -> 99.1 | I116: =ROUND('Table X12 Indices 2012=100'!S116*$I$11,1) -> 99.5 | J116: =ROUND('Table X12 Indices 2012=100'!T116*$J$11,1) -> 99.3 | K116: =ROUND('Table X12 Indices 2012=100'!U116*$K$11,1) -> 95.4 | L116: =ROUND('Table X12 Indices 2012=100'!V116*$L$11,1) -> 95.4
C117: =ROUND('Table X12 Indices 2012=100'!N117*$C$11,1) -> 95.8 | D117: =ROUND('Table X12 Indices 2012=100'!O117*$D$11,1) -> 98.7 | E117: =ROUND('Table X12 Indices 2012=100'!P117*$E$11,1) -> 99.1 | F117: =ROUND('Table X12 Indices 2012=100'!Q117*$F$11,1) -> 102.5 | G117: =ROUND('Table X12 Indices 2012=100'!R117*$G$11,1) -> 99.9 | I117: =ROUND('Table X12 Indices 2012=100'!S117*$I$11,1) -> 100.2 | J117: =ROUND('Table X12 Indices 2012=100'!T117*$J$11,1) -> 100.6 | K117: =ROUND('Table X12 Indices 2012=100'!U117*$K$11,1) -> 102.3 | L117: =ROUND('Table X12 Indices 2012=100'!V117*$L$11,1) -> 102.5
C118: =ROUND('Table X12 Indices 2012=100'!N118*$C$11,1) -> 95.3 | D118: =ROUND('Table X12 Indices 2012=100'!O118*$D$11,1) -> 97.6 | E118: =ROUND('Table X12 Indices 2012=100'!P118*$E$11,1) -> 99.6 | F118: =ROUND('Table X12 Indices 2012=100'!Q118*$F$11,1) -> 106.3 | G118: =ROUND('Table X12 Indices 2012=100'!R118*$G$11,1) -> 100.4 | I118: =ROUND('Table X12 Indices 2012=100'!S118*$I$11,1) -> 99.8 | J118: =ROUND('Table X12 Indices 2012=100'!T118*$J$11,1) -> 100.3 | K118: =ROUND('Table X12 Indices 2012=100'!U118*$K$11,1) -> 106.1 | L118: =ROUND('Table X12 Indices 2012=100'!V118*$L$11,1) -> 106.4
C119: =ROUND('Table X12 Indices 2012=100'!N119*$C$11,1) -> 96.4 | D119: =ROUND('Table X12 Indices 2012=100'!O119*$D$11,1) -> 97.9 | E119: =ROUND('Table X12 Indices 2012=100'!P119*$E$11,1) -> 100.1 | F119: =ROUND('Table X12 Indices 2012=100'!Q119*$F$11,1) -> 99.5 | G119: =ROUND('Table X12 Indices 2012=100'!R119*$G$11,1) -> 100.8 | I119: =ROUND('Table X12 Indices 2012=100'!S119*$I$11,1) -> 100.5 | J119: =ROUND('Table X12 Indices 2012=100'!T119*$J$11,1) -> 101 | K119: =ROUND('Table X12 Indices 2012=100'!U119*$K$11,1) -> 99.4 | L119: =ROUND('Table X12 Indices 2012=100'!V119*$L$11,1) -> 99.5
C120: =ROUND('Table X12 Indices 2012=100'!N120*$C$11,1) -> 95.5 | D120: =ROUND('Table X12 Indices 2012=100'!O120*$D$11,1) -> 97.6 | E120: =ROUND('Table X12 Indices 2012=100'!P120*$E$11,1) -> 98.2 | F120: =ROUND('Table X12 Indices 2012=100'!Q120*$F$11,1) -> 95 | G120: =ROUND('Table X12 Indices 2012=100'!R120*$G$11,1) -> 100.8 | I120: =ROUND('Table X12 Indices 2012=100'!S120*$I$11,1) -> 100.5 | J120: =ROUND('Table X12 Indices 2012=100'!T120*$J$11,1) -> 101.1 | K120: =ROUND('Table X12 Indices 2012=100'!U120*$K$11,1) -> 95.1 | L120: =ROUND('Table X12 Indices 2012=100'!V120*$L$11,1) -> 95
C121: =ROUND('Table X12 Indices 2012=100'!N121*$C$11,1) -> 96 | D121: =ROUND('Table X12 Indices 2012=100'!O121*$D$11,1) -> 97.6 | E121: =ROUND('Table X12 Indices 2012=100'!P121*$E$11,1) -> 99 | F121: =ROUND('Table X12 Indices 2012=100'!Q121*$F$11,1) -> 97.2 | G121: =ROUND('Table X12 Indices 2012=100'!R121*$G$11,1) -> 100.7 | I121: =ROUND('Table X12 Indices 2012=100'!S121*$I$11,1) -> 100.4 | J121: =ROUND('Table X12 Indices 2012=100'!T121*$J$11,1) -> 100.9 | K121: =ROUND('Table X12 Indices 2012=100'!U121*$K$11,1) -> 97.2 | L121: =ROUND('Table X12 Indices 2012=100'!V121*$L$11,1) -> 97.1
C122: =ROUND('Table X12 Indices 2012=100'!N122*$C$11,1) -> 96.1 | D122: =ROUND('Table X12 Indices 2012=100'!O122*$D$11,1) -> 97.6 | E122: =ROUND('Table X12 Indices 2012=100'!P122*$E$11,1) -> 99.5 | F122: =ROUND('Table X12 Indices 2012=100'!Q122*$F$11,1) -> 102.9 | G122: =ROUND('Table X12 Indices 2012=100'!R122*$G$11,1) -> 100.5 | I122: =ROUND('Table X12 Indices 2012=100'!S122*$I$11,1) -> 100.2 | J122: =ROUND('Table X12 Indices 2012=100'!T122*$J$11,1) -> 100.7 | K122: =ROUND('Table X12 Indices 2012=100'!U122*$K$11,1) -> 102.9 | L122: =ROUND('Table X12 Indices 2012=100'!V122*$L$11,1) -> 103.1
C123: =ROUND('Table X12 Indices 2012=100'!N123*$C$11,1) -> 100 | D123: =ROUND('Table X12 Indices 2012=100'!O123*$D$11,1) -> 100 | E123: =ROUND('Table X12 Indices 2012=100'!P123*$E$11,1) -> 100 | F123: =ROUND('Table X12 Indices 2012=100'!Q123*$F$11,1) -> 100 | G123: =ROUND('Table X12 Indices 2012=100'!R123*$G$11,1) -> 100 | I123: =ROUND('Table X12 Indices 2012=100'!S123*$I$11,1) -> 100 | J123: =ROUND('Table X12 Indices 2012=100'!T123*$J$11,1) -> 100 | K123: =ROUND('Table X12 Indices 2012=100'!U123*$K$11,1) -> 100 | L123: =ROUND('Table X12 Indices 2012=100'!V123*$L$11,1) -> 100
C124: PLEASE REFER TO THE ADVICE NOTE REGARDING NEW DIESEL INDICES (APPLICABLE FROM MAR '16 ONWARDS) | N124: Taking 2012 = 100 indices and converting it to 2016 = 100 indices
C125: All CPA calculations going beyond Feb '16 will be required to be re-calculated based on the new diesel indices available from Jan '08 | N125: Conversion ↑ | O125: latest base change
C126: 100.5 | D126: 101.7 | E126: 103.8 | F126: 103.6 | G126: 99.9 | I126: 100 | J126: 100 | K126: 103.5 | L126: 103.7 | N126: New indices ↓
C127: 102.1 | D127: 102.9 | E127: 105.6 | F127: 105.5 | G127: 100.4 | I127: 100.6 | J127: 101.1 | K127: 105.4 | L127: 105.6
C128: 101.6 | D128: 102.1 | E128: 104 | F128: 105.4 | G128: 100.4 | I128: 100.6 | J128: 101 | K128: 105.3 | L128: 105.4
C129: 101.5 | D129: 102.7 | E129: 103.5 | F129: 104.4 | G129: 101.5 | I129: 102.1 | J129: 103.1 | K129: 104.3 | L129: 104.4
C130: 103.3 | D130: 105 | E130: 105.9 | F130: 107.1 | G130: 101.6 | I130: 102.3 | J130: 102.7 | K130: 107 | L130: 107.3
C131: 103.3 | D131: 105.1 | E131: 104.3 | F131: 105 | G131: 101 | I131: 102.1 | J131: 102.3 | K131: 104.9 | L131: 105.1
C132: 103 | D132: 105.3 | E132: 103.1 | F132: 99.5 | G132: 101.1 | I132: 102.2 | J132: 102.4 | K132: 99.5 | L132: 99.5
C133: 104.2 | D133: 107.3 | E133: 103.8 | F133: 102.2 | G133: 101.2 | I133: 102.3 | J133: 102.3 | K133: 102.1 | L133: 102.2
C134: 105.8 | D134: 110.1 | E134: 106 | F134: 106.2 | G134: 100.8 | I134: 102 | J134: 102 | K134: 106.1 | L134: 106.3
C135: 106.8 | D135: 111.2 | E135: 106.7 | F135: 110.1 | G135: 101.4 | I135: 102.5 | J135: 102.6 | K135: 109.9 | L135: 110.3
C136: 107 | D136: 111.2 | E136: 108.5 | F136: 112.2 | G136: 102.1 | I136: 102.6 | J136: 103.5 | K136: 112 | L136: 112.4
C137: 107.3 | D137: 112.6 | E137: 113.3 | F137: 117.8 | G137: 101.9 | I137: 102.6 | J137: 103.4 | K137: 117.5 | L137: 118.1
C138: PLEASE REFER TO THE ADVICE NOTE REGARDING NEW DIESEL INDICES (APPLICABLE FROM MAR '16 ONWARDS)
C139: All CPA calculations going beyond Feb '16 will be required to be re-calculated based on the new diesel indices available from Jan '08
C142: 2.272 | D142: 2.89 | E142: 3.22 | F142: 4.149 | G142: 1.909 | I142: 2.196 | J142: 1.992 | K142: 4.24 | L142: 4.205

Sheet Table X12 Indices 2012=100
D2: Table X12 (Indice base 100 as at Dec 2012) | L2: 2012 / 100 | N2: Table X12 (Indice base 100 as at Dec 2012) | V2: 2012 / 100
D4: Refer to CPI Index P0141 / Additional Tables | H4: * The alternative / replacement indices are those published per province found in P0141 Table A / Tables 3 to 11 in the Additional Tables. | N4: Refer to P0151 - Contract Price Adjustment Provisions (CPAP): | S4: * NEW DIESEL INDICES APPLICABLE FROM MAR '16 PROVIDED FROM JAN '08 BY STATS-SA
D5: Table A or Tables 3 to 11 - CPI for each province | N5: Work Groups and Selected Materials Indices: Table 3 and Table 4
B7: Conversion Factors: | D7: 0.7917656374 | E7: 0.786163522 | F7: 0.7751937984 | G7: 0.7757951901 | H7: 0.8006405124 | I7: 0.772797527 | J7: 0.7886435331 | K7: 0.7874015748 | L7: 0.7974481659 | N7: 2.272 | O7: 2.89 | P7: 3.22 | Q7: 4.149 | R7: 1.909 | S7: 2.196 | T7: 1.992 | U7: 4.24 | V7: 4.205
B9: Conversion factor | D9: DEC 2012 = 100 | N9: DEC 2012 = 100
C11: 2016-->2012 | D11: ='Consumer Price Index'!D11 -> 0.7961783439 | E11: ='Consumer Price Index'!E11 -> 0.7955449483 | F11: ='Consumer Price Index'!F11 -> 0.8196721311 | G11: ='Consumer Price Index'!G11 -> 0.796812749 | H11: ='Consumer Price Index'!H11 -> 0.8 | I11: ='Consumer Price Index'!I11 -> 0.8090614887 | J11: ='Consumer Price Index'!J11 -> 0.8019246191 | K11: ='Consumer Price Index'!K11 -> 0.8110300081 | L11: ='Consumer Price Index'!L11 -> 0.790513834 | N11: 0.8756567426 | O11: 0.8431703204 | P11: 0.9727626459 | Q11: 0.9813542689 | R11: 0.7692307692 | S11: 0.7930214116 | T11: 0.852514919 | U11: 0.9746588694 | V11: 0.9881422925
B13: Table A / Tables * | D13: 3 | E13: 4 | F13: 5 | G13: 6 | H13: 7 | I13: 8 | J13: 9 | K13: 10 | L13: 11 | N13: 3 | O13: 4
B14: Month | C14: Year | D14: Western Cape | E14: Eastern Cape | F14: Northern Cape | G14: Free State | H14: KwaZulu Natal | I14: North West | J14: Gauteng | K14: Mpumalanga | L14: Limpopo | N14: Materials for Civil Engineering | O14: Materials for Concrete Works | P14: Materials for Roads & E/Works | Q14: * Diesel Fuel Wholesale Total | R14: Civil Engineering Plant | S14: Plant for Concrete Works | T14: Plant for Roads & E/Works | U14: * Diesel Fuel Wholesale
U15: * Inland | V15: * Coastal
B16: 1 | C16: 2008 | D16: 75.5 | E16: 74 | F16: 74.5 | G16: 74.5 | H16: 75.5 | I16: 74.6 | J16: 75.6 | K16: 74.7 | L16: 75.4 | N16: 81 | Q16: 73.9 | R16: 80.5 | U16: 68.6 | V16: 67.7
B17: 2 | C17: 2008 | D17: 75.8 | E17: 74.3 | F17: 74.7 | G17: 74.8 | H17: 75.9 | I17: 75.1 | J17: 76.2 | K17: 75 | L17: 75.8 | N17: 82.2 | Q17: 78.1 | R17: 84.5 | U17: 69.3 | V17: 68.4
B18: 3 | C18: 2008 | D18: 77 | E18: 75.3 | F18: 75.6 | G18: 75.9 | H18: 76.5 | I18: 76.2 | J18: 77.5 | K18: 75.5 | L18: 76.6 | N18: 82.7 | Q18: 89.3 | R18: 84.5 | U18: 76.6 | V18: 75.8
B19: 4 | C19: 2008 | D19: 77.5 | E19: 75.9 | F19: 76.2 | G19: 76.4 | H19: 77.2 | I19: 76.8 | J19: 77.9 | K19: 75.9 | L19: 77.3 | N19: 84.1 | Q19: 103.2 | R19: 84.5 | U19: 88.9 | V19: 88
B20: 5 | C20: 2008 | D20: 78 | E20: 76.6 | F20: 76.8 | G20: 76.9 | H20: 77.7 | I20: 77.4 | J20: 78.5 | K20: 76.6 | L20: 77.6 | N20: 87.6 | Q20: 114.4 | R20: 88.2 | U20: 95.4 | V20: 94.7
B21: 6 | C21: 2008 | D21: 78.8 | E21: 77.7 | F21: 77.8 | G21: 77.8 | H21: 79.2 | I21: 78.5 | J21: 79.7 | K21: 77.6 | L21: 78.9 | N21: 88.8 | Q21: 126.3 | R21: 88.2 | U21: 102.2 | V21: 101.5
B22: 7 | C22: 2008 | D22: 79.9 | E22: 78.7 | F22: 78.6 | G22: 78.7 | H22: 80.6 | I22: 79.4 | J22: 80.6 | K22: 78.7 | L22: 79.9 | N22: 89.7 | Q22: 124.4 | R22: 88.2 | U22: 108.2 | V22: 107.5
B23: 8 | C23: 2008 | D23: 80.3 | E23: 79.4 | F23: 79.5 | G23: 79.3 | H23: 81.1 | I23: 80.1 | J23: 81 | K23: 79.2 | L23: 80.6 | N23: 95.6 | Q23: 102 | R23: 91.9 | U23: 106.6 | V23: 105.9
B24: 9 | C24: 2008 | D24: 80.9 | E24: 80.2 | F24: 80 | G24: 79.9 | H24: 81.5 | I24: 80.8 | J24: 81.3 | K24: 79.6 | L24: 81 | N24: 96.3 | Q24: 95.8 | R24: 91.9 | U24: 93 | V24: 92.2
B25: 10 | C25: 2008 | D25: 81.2 | E25: 80.5 | F25: 80.5 | G25: 80.1 | H25: 81.9 | I25: 81 | J25: 81.4 | K25: 80.1 | L25: 81.4 | N25: 96.7 | Q25: 91.8 | R25: 91.9 | U25: 87.7 | V25: 86.8
B26: 11 | C26: 2008 | D26: 81.3 | E26: 80.5 | F26: 80.5 | G26: 80.2 | H26: 81.9 | I26: 81.1 | J26: 81.5 | K26: 80.2 | L26: 81.7 | N26: 96.5 | Q26: 81.9 | R26: 96.8 | U26: 85.4 | V26: 84.5
B27: 12 | C27: 2008 | D27: 81.2 | E27: 80.2 | F27: 80.1 | G27: 80.1 | H27: 82 | I27: 81 | J27: 81.3 | K27: 80.2 | L27: 81.6 | N27: 95.3 | Q27: 66.6 | R27: 96.8 | U27: 77.7 | V27: 76.8
B28: 1 | C28: 2009 | D28: 81.3 | E28: 80.9 | F28: 80.2 | G28: 80.5 | H28: 82.8 | I28: 81.1 | J28: 81.5 | K28: 81 | L28: 82.1 | N28: 96.7 | Q28: 69.7 | R28: 96.8 | U28: 61.9 | V28: 60.8
B29: 2 | C29: 2009 | D29: 82.1 | E29: 81.7 | F29: 81.2 | G29: 81.4 | H29: 83.4 | I29: 82.1 | J29: 82.5 | K29: 82.2 | L29: 82.7 | N29: 94.9 | Q29: 65.9 | R29: 101.1 | U29: 61.4 | V29: 60.4
B30: 3 | C30: 2009 | D30: 83.3 | E30: 82.7 | F30: 82.1 | G30: 82.4 | H30: 84.4 | I30: 83.6 | J30: 83.7 | K30: 83.1 | L30: 83.8 | N30: 94.5 | Q30: 61.6 | R30: 101.1 | U30: 57.8 | V30: 56.7
B31: 4 | C31: 2009 | D31: 83.7 | E31: 83.2 | F31: 82.8 | G31: 82.9 | H31: 84.9 | I31: 83.7 | J31: 84.1 | K31: 83.6 | L31: 84.1 | N31: 93.9 | Q31: 60.8 | R31: 101.1 | U31: 61.6 | V31: 60.5
B32: 5 | C32: 2009 | D32: 84 | E32: 83.4 | F32: 82.9 | G32: 83.1 | H32: 85 | I32: 84 | J32: 84.4 | K32: 83.9 | L32: 84.4 | N32: 92 | Q32: 61 | R32: 99.1 | U32: 62.4 | V32: 61.2
B33: 6 | C33: 2009 | D33: 84.3 | E33: 83.7 | F33: 83.3 | G33: 83.4 | H33: 85.3 | I33: 84.1 | J33: 84.8 | K33: 83.9 | L33: 84.4 | N33: 91.9 | Q33: 62.4 | R33: 99.1 | U33: 61.1 | V33: 60.2
B34: 7 | C34: 2009 | D34: 85.3 | E34: 84.4 | F34: 84.2 | G34: 84.3 | H34: 85.9 | I34: 85 | J34: 85.8 | K34: 84.8 | L34: 84.8 | N34: 93 | Q34: 64.7 | R34: 99.1 | U34: 64.9 | V34: 64
B35: 8 | C35: 2009 | D35: 85.6 | E35: 84.6 | F35: 84.4 | G35: 84.5 | H35: 86 | I35: 85.3 | J35: 86.1 | K35: 85.1 | L35: 85.2 | N35: 92.5 | Q35: 63.7 | R35: 100 | U35: 63 | V35: 62.1
B36: 9 | C36: 2009 | D36: 86 | E36: 84.9 | F36: 84.7 | G36: 84.7 | H36: 86.2 | I36: 85.4 | J36: 86.3 | K36: 85.4 | L36: 85.2 | N36: 92.3 | Q36: 66.2 | R36: 100 | U36: 66.2 | V36: 65.3
B37: 10 | C37: 2009 | D37: 86.1 | E37: 85 | F37: 84.7 | G37: 84.6 | H37: 86.3 | I37: 85.3 | J37: 86.3 | K37: 85.5 | L37: 85.2 | N37: 92.2 | Q37: 62.6 | R37: 100 | U37: 63.2 | V37: 62.3
B38: 11 | C38: 2009 | D38: 86.1 | E38: 84.9 | F38: 84.7 | G38: 84.7 | H38: 86.2 | I38: 85.2 | J38: 86.3 | K38: 85.5 | L38: 85.5 | N38: 92.3 | Q38: 63.7 | R38: 98.5 | U38: 64.1 | V38: 63.2
B39: 12 | C39: 2009 | D39: 86.6 | E39: 85.1 | F39: 84.8 | G39: 84.9 | H39: 86.5 | I39: 85.4 | J39: 86.4 | K39: 85.5 | L39: 85.5 | N39: 92.3 | Q39: 66.9 | R39: 98.5 | U39: 66.5 | V39: 65.6
B40: 1 | C40: 2010 | D40: 86.8 | E40: 85.2 | F40: 84.7 | G40: 85.1 | H40: 86.8 | I40: 85.6 | J40: 86.7 | K40: 85.8 | L40: 85.7 | N40: 93.5 | Q40: 65.4 | R40: 98.5 | U40: 65.2 | V40: 64.3
B41: 2 | C41: 2010 | D41: 87.1 | E41: 85.6 | F41: 85.1 | G41: 85.7 | H41: 87.1 | I41: 86.3 | J41: 87.3 | K41: 86.3 | L41: 86.2 | N41: 93.8 | Q41: 67.1 | R41: 98.5 | U41: 66.1 | V41: 65.2
B42: 3 | C42: 2010 | D42: 88.1 | E42: 86.3 | F42: 85.7 | G42: 86.3 | H42: 87.7 | I42: 86.9 | J42: 88.1 | K42: 86.9 | L42: 87.1 | N42: 93.8 | Q42: 68.2 | R42: 99 | U42: 66.5 | V42: 65.6
B43: 4 | C43: 2010 | D43: 88.3 | E43: 86.5 | F43: 85.9 | G43: 86.6 | H43: 87.8 | I43: 87 | J43: 88.2 | K43: 87 | L43: 87 | N43: 93.7 | Q43: 72.1 | R43: 99 | U43: 71.2 | V43: 70.4
B44: 5 | C44: 2010 | D44: 88.4 | E44: 86.7 | F44: 86.2 | G44: 86.7 | H44: 88 | I44: 87.3 | J44: 88.3 | K44: 87.2 | L44: 87 | N44: 94.8 | Q44: 74 | R44: 98.3 | U44: 73.9 | V44: 73
B45: 6 | C45: 2010 | D45: 88.3 | E45: 86.8 | F45: 86.2 | G45: 86.7 | H45: 88 | I45: 87.2 | J45: 88.3 | K45: 87.1 | L45: 87 | N45: 95.4 | Q45: 73 | R45: 98.2 | U45: 72.5 | V45: 71.7
B46: 7 | C46: 2010 | D46: 88.7 | E46: 87.2 | F46: 86.8 | G46: 87.2 | H46: 88.4 | I46: 87.6 | J46: 89 | K46: 87.6 | L46: 87.7 | N46: 94.2 | Q46: 71.9 | R46: 98.1 | U46: 71.1 | V46: 70.3
B47: 8 | C47: 2010 | D47: 88.8 | E47: 87.7 | F47: 86.8 | G47: 87.5 | H47: 88.4 | I47: 87.7 | J47: 89 | K47: 87.8 | L47: 87.8 | N47: 93.6 | Q47: 71.2 | R47: 97.8 | U47: 69.8 | V47: 69
B48: 9 | C48: 2010 | D48: 88.9 | E48: 88 | F48: 87.1 | G48: 87.9 | H48: 88.4 | I48: 87.8 | J48: 89 | K48: 88 | L48: 87.7 | N48: 93.6 | Q48: 70.6 | R48: 97.8 | U48: 69.8 | V48: 69
B49: 10 | C49: 2010 | D49: 89.1 | E49: 88.1 | F49: 87.2 | G49: 88.2 | H49: 88.5 | I49: 87.8 | J49: 89.2 | K49: 88.3 | L49: 88.2 | N49: 94.1 | O49: 86.1 | P49: 82.2 | Q49: 70.8 | R49: 97.9 | S49: 93.4 | T49: 95.1 | U49: 69.6 | V49: 68.8
B50: 11 | C50: 2010 | D50: 89.2 | E50: 88.1 | F50: 87.2 | G50: 88.2 | H50: 88.7 | I50: 88.1 | J50: 89.4 | K50: 88.2 | L50: 88 | N50: 93.7 | O50: 86.1 | P50: 82.2 | Q50: 72.7 | R50: 98.2 | S50: 93.5 | T50: 95.4 | U50: 71.9 | V50: 71.1
B51: 12 | C51: 2010 | D51: 89.4 | E51: 88.2 | F51: 87.1 | G51: 88.3 | H51: 88.8 | I51: 88.1 | J51: 89.6 | K51: 88.3 | L51: 88.5 | N51: 93.8 | O51: 86 | P51: 82.7 | Q51: 75.2 | R51: 97.3 | S51: 91.8 | T51: 95 | U51: 71.9 | V51: 71.1
B52: 1 | C52: 2011 | D52: 89.8 | E52: 88.9 | F52: 87.9 | G52: 89 | H52: 89.3 | I52: 88.7 | J52: 89.9 | K52: 88.8 | L52: 88.8 | N52: 94.8 | O52: 86.6 | P52: 82.8 | Q52: 78 | R52: 96.5 | S52: 91.9 | T52: 94.9 | U52: 74.1 | V52: 73.3
B53: 2 | C53: 2011 | D53: 90.4 | E53: 89.4 | F53: 88.3 | G53: 89.5 | H53: 89.9 | I53: 89.4 | J53: 90.5 | K53: 89.5 | L53: 88.7 | N53: 95 | O53: 89.2 | P53: 84.5 | Q53: 85.3 | R53: 97.7 | S53: 92.3 | T53: 95.6 | U53: 77 | V53: 76.2
B54: 3 | C54: 2011 | D54: 91.6 | E54: 90.4 | F54: 89.5 | G54: 90.6 | H54: 90.7 | I54: 90.4 | J54: 91.6 | K54: 90.6 | L54: 90.4 | N54: 95.7 | O54: 90.5 | P54: 87.9 | Q54: 90.9 | R54: 98.1 | S54: 92.9 | T54: 96 | U54: 83 | V54: 82.3
B55: 4 | C55: 2011 | D55: 91.9 | E55: 90.7 | F55: 90 | G55: 91.1 | H55: 91 | I55: 90.7 | J55: 91.7 | K55: 90.9 | L55: 90.8 | N55: 95.1 | O55: 90.5 | P55: 90.9 | Q55: 96.4 | R55: 98.2 | S55: 92.9 | T55: 96.3 | U55: 89.7 | V55: 88.4
B56: 5 | C56: 2011 | D56: 92.3 | E56: 91.2 | F56: 90.3 | G56: 91.5 | H56: 91.4 | I56: 91.1 | J56: 92.3 | K56: 91.4 | L56: 91.4 | N56: 94.9 | O56: 90.4 | P56: 91.3 | Q56: 95.4 | R56: 98.2 | S56: 93.6 | T56: 97 | U56: 91.2 | V56: 89.9
B57: 6 | C57: 2011 | D57: 92.7 | E57: 92.1 | F57: 90.6 | G57: 91.7 | H57: 91.9 | I57: 91.8 | J57: 92.7 | K57: 91.6 | L57: 92 | N57: 95.1 | O57: 91.8 | P57: 91.4 | Q57: 92.6 | R57: 98.9 | S57: 93.6 | T57: 97.4 | U57: 87.6 | V57: 86.3
B58: 7 | C58: 2011 | D58: 93.3 | E58: 92.9 | F58: 91.8 | G58: 92.8 | H58: 92.6 | I58: 92.5 | J58: 93.5 | K58: 92.5 | L58: 92.2 | N58: 96.4 | O58: 92.6 | P58: 92 | Q58: 92 | R58: 99.1 | S58: 95.7 | T58: 97.3 | U58: 86.5 | V58: 85.2
B59: 8 | C59: 2011 | D59: 93.5 | E59: 93.1 | F59: 92.5 | G59: 92.9 | H59: 92.9 | I59: 92.8 | J59: 93.7 | K59: 92.5 | L59: 92.3 | N59: 96.7 | O59: 93 | P59: 92.2 | Q59: 91.8 | R59: 99.2 | S59: 97.5 | T59: 97.5 | U59: 88 | V59: 86.6
B60: 9 | C60: 2011 | D60: 94 | E60: 93.7 | F60: 93.1 | G60: 93.4 | H60: 93.1 | I60: 92.9 | J60: 93.9 | K60: 92.8 | L60: 92.8 | N60: 96.9 | O60: 94.3 | P60: 91.6 | Q60: 91.8 | R60: 99.1 | S60: 97.4 | T60: 97.5 | U60: 88 | V60: 86.6
B61: 10 | C61: 2011 | D61: 94.4 | E61: 94.3 | F61: 93.8 | G61: 94 | H61: 93.8 | I61: 93.6 | J61: 94.4 | K61: 93.6 | L61: 93.5 | N61: 97.5 | O61: 95.8 | P61: 92 | Q61: 95.4 | R61: 98.3 | S61: 97.1 | T61: 97.3 | U61: 91.3 | V61: 90
B62: 11 | C62: 2011 | D62: 94.6 | E62: 94.6 | F62: 94.2 | G62: 94.3 | H62: 94.1 | I62: 93.7 | J62: 94.6 | K62: 93.8 | L62: 93.8 | N62: 98.2 | O62: 99 | P62: 94.3 | Q62: 100.4 | R62: 98.3 | S62: 97.2 | T62: 97.5 | U62: 94.7 | V62: 93.4
B63: 12 | C63: 2011 | D63: 94.7 | E63: 94.9 | F63: 93.9 | G63: 94.6 | H63: 94.7 | I63: 94 | J63: 94.8 | K63: 94.2 | L63: 94.2 | N63: 98.4 | O63: 99.1 | P63: 96.6 | Q63: 102 | R63: 98.7 | S63: 97.3 | T63: 97.9 | U63: 97.7 | V63: 97.9
B64: 1 | C64: 2012 | D64: 95.1 | E64: 95.4 | F64: 94.9 | G64: 95.2 | H64: 95 | I64: 94.6 | J64: 95.3 | K64: 94.8 | L64: 94.9 | N64: 98.8 | O64: 99.6 | P64: 96.9 | Q64: 99.5 | R64: 98.8 | S64: 97.3 | T64: 97.8 | U64: 97.2 | V64: 95.9
B65: 2 | C65: 2012 | D65: 95.7 | E65: 95.7 | F65: 95.2 | G65: 95.6 | H65: 95.5 | I65: 95.1 | J65: 95.9 | K65: 95.5 | L65: 95.3 | N65: 99.7 | O65: 100.5 | P65: 98.8 | Q65: 99.4 | R65: 99.2 | S65: 97.8 | T65: 98 | U65: 97.2 | V65: 95.8
B66: 3 | C66: 2012 | D66: 96.7 | E66: 96.6 | F66: 96.3 | G66: 96.3 | H66: 96.7 | I66: 96.3 | J66: 96.9 | K66: 96.6 | L66: 96.2 | N66: 100.4 | O66: 100.5 | P66: 98.5 | Q66: 100.6 | R66: 98.6 | S66: 97.6 | T66: 97.8 | U66: 98.1 | V66: 96.8
B67: 4 | C67: 2012 | D67: 97.1 | E67: 97.1 | F67: 96.8 | G67: 96.8 | H67: 97 | I67: 96.6 | J67: 97.3 | K67: 96.8 | L67: 96.2 | N67: 100.3 | O67: 100.5 | P67: 98.5 | Q67: 102.6 | R67: 98.8 | S67: 99.3 | T67: 99.7 | U67: 102.9 | V67: 101.3
B68: 5 | C68: 2012 | D68: 97.2 | E68: 97.4 | F68: 96.9 | G68: 96.9 | H68: 97.1 | I68: 96.5 | J68: 97.4 | K68: 96.9 | L68: 96.6 | N68: 99.9 | O68: 100 | P68: 100.3 | Q68: 103.6 | R68: 99.7 | S68: 99.6 | T68: 100.1 | U68: 103.8 | V68: 102.2
B69: 6 | C69: 2012 | D69: 97.6 | E69: 97.5 | F69: 96.9 | G69: 97 | H69: 97.2 | I69: 97.2 | J69: 97.7 | K69: 97.3 | L69: 97.1 | N69: 99.8 | O69: 100 | P69: 100.6 | Q69: 99.7 | R69: 99.9 | S69: 99.8 | T69: 100.4 | U69: 101.5 | V69: 100.2
B70: 7 | C70: 2012 | D70: 97.8 | E70: 97.6 | F70: 97.4 | G70: 97.3 | H70: 97.5 | I70: 97.3 | J70: 97.9 | K70: 97.5 | L70: 97.5 | N70: 100 | O70: 100.3 | P70: 101 | Q70: 92.1 | R70: 100.1 | S70: 100.3 | T70: 100.4 | U70: 95.6 | V70: 93.9
B71: 8 | C71: 2012 | D71: 98 | E71: 97.8 | F71: 97.4 | G71: 97.5 | H71: 97.7 | I71: 97.7 | J71: 98.2 | K71: 97.8 | L71: 97.6 | N71: 100.3 | O71: 100.3 | P71: 100.7 | Q71: 94.3 | R71: 100.3 | S71: 99.8 | T71: 100.7 | U71: 97 | V71: 95.2
B72: 9 | C72: 2012 | D72: 98.8 | E72: 98.7 | F72: 98.6 | G72: 98.4 | H72: 98.7 | I72: 99.1 | J72: 99 | K72: 98.7 | L72: 98.5 | N72: 100.1 | O72: 100.3 | P72: 100.5 | Q72: 100.3 | R72: 100.8 | S72: 101.6 | T72: 100.7 | U72: 103.5 | V72: 101.8
B73: 10 | C73: 2012 | D73: 99.4 | E73: 99.4 | F73: 99.2 | G73: 99.1 | H73: 99.4 | I73: 99.8 | J73: 99.7 | K73: 99.5 | L73: 99.3 | N73: 99.8 | O73: 98.9 | P73: 100.6 | Q73: 105.3 | R73: 100.8 | S73: 102 | T73: 101.1 | U73: 104 | V73: 105.6
B74: 11 | C74: 2012 | D74: 99.7 | E74: 99.9 | F74: 99.8 | G74: 99.5 | H74: 99.7 | I74: 99.9 | J74: 99.8 | K74: 99.6 | L74: 99.5 | N74: 100.1 | O74: 98.9 | P74: 101.4 | Q74: 106.8 | R74: 101.2 | S74: 102.5 | T74: 101.5 | U74: 106.5 | V74: 106.5
B75: 12 | C75: 2012 | D75: 100 | E75: 100 | F75: 100 | G75: 100 | H75: 100 | I75: 100 | J75: 100 | K75: 100 | L75: 100 | N75: 100.4 | O75: 100 | P75: 102.3 | Q75: 106 | R75: 101.5 | S75: 102.6 | T75: 101.7 | U75: 106 | V75: 106 | X75: previous base change
B76: 1 | C76: 2013 | D76: 100.2 | E76: 100.2 | F76: 100.4 | G76: 100.2 | H76: 100.1 | I76: 100.4 | J76: 100.4 | K76: 100.4 | L76: 100.5 | N76: 101.8 | O76: 103.2 | P76: 104.4 | Q76: 103.4 | R76: 102.3 | S76: 103.1 | T76: 102.4 | U76: 103.4 | V76: 103.4
B77: 2 | C77: 2013 | D77: 100.9 | E77: 100.9 | F77: 100.8 | G77: 100.9 | H77: 101.1 | I77: 101.2 | J77: 101.6 | K77: 101.3 | L77: 100.8 | N77: 102.2 | O77: 104.8 | P77: 105.1 | Q77: 105 | R77: 102.5 | S77: 103.1 | T77: 102.4 | U77: 105 | V77: 105
B78: 3 | C78: 2013 | D78: 102.1 | E78: 101.9 | F78: 101.8 | G78: 102 | H78: 102.3 | I78: 101.9 | J78: 102.9 | K78: 102.1 | L78: 101.9 | N78: 103.1 | O78: 104.5 | P78: 104.9 | Q78: 110.5 | R78: 103.6 | S78: 103.5 | T78: 103.6 | U78: 110.5 | V78: 110.6
B79: 4 | C79: 2013 | D79: 102.5 | E79: 102.3 | F79: 102.3 | G79: 102.2 | H79: 102.6 | I79: 102.4 | J79: 103.2 | K79: 102.4 | L79: 102.4 | N79: 103.9 | O79: 106.3 | P79: 105.6 | Q79: 111.3 | R79: 103.7 | S79: 103.6 | T79: 103.6 | U79: 111.3 | V79: 111.3
B80: 5 | C80: 2013 | D80: 102.2 | E80: 102 | F80: 102.1 | G80: 102.2 | H80: 102.3 | I80: 102.1 | J80: 102.9 | K80: 102.3 | L80: 102.2 | N80: 104.2 | O80: 107.2 | P80: 107.1 | Q80: 106.1 | R80: 104.5 | S80: 104.2 | T80: 103.9 | U80: 106.2 | V80: 106
B81: 6 | C81: 2013 | D81: 102.5 | E81: 102.3 | F81: 102.4 | G81: 102.7 | H81: 102.5 | I81: 102.3 | J81: 103.3 | K81: 102.4 | L81: 102.2 | N81: 104.9 | O81: 107.3 | P81: 108.3 | Q81: 105.7 | R81: 105.4 | S81: 104.6 | T81: 104.7 | U81: 105.8 | V81: 105.6
B82: 7 | C82: 2013 | D82: 103.5 | E82: 103.2 | F82: 103.5 | G82: 103.6 | H82: 103.7 | I82: 103.1 | J82: 104.3 | K82: 103.2 | L82: 103.5 | N82: 105.4 | O82: 107.3 | P82: 109.4 | Q82: 113.1 | R82: 107.1 | S82: 106.9 | T82: 106.1 | U82: 113.1 | V82: 113.1
B83: 8 | C83: 2013 | D83: 103.9 | E83: 103.5 | F83: 104 | G83: 104 | H83: 104 | I83: 103.5 | J83: 104.6 | K83: 103.6 | L83: 104.4 | N83: 105.6 | O83: 107.1 | P83: 109.1 | Q83: 116.2 | R83: 108.1 | S83: 107.4 | T83: 106.6 | U83: 116.1 | V83: 116.2
B84: 9 | C84: 2013 | D84: 104.7 | E84: 104.2 | F84: 104.4 | G84: 104.5 | H84: 104.4 | I84: 104 | J84: 105 | K84: 104.3 | L84: 104.7 | N84: 105.1 | O84: 107.1 | P84: 108.4 | Q84: 117.5 | R84: 108.6 | S84: 107.6 | T84: 107 | U84: 117.4 | V84: 117.5
B85: 10 | C85: 2013 | D85: 104.9 | E85: 104.6 | F85: 104.5 | G85: 104.9 | H85: 104.5 | I85: 104.3 | J85: 105.3 | K85: 104.6 | L85: 105 | N85: 105.2 | O85: 107.2 | P85: 108.5 | Q85: 117.3 | R85: 109.5 | S85: 108.2 | T85: 107.6 | U85: 117.2 | V85: 117.3
B86: 11 | C86: 2013 | D86: 105 | E86: 104.7 | F86: 104.8 | G86: 105.1 | H86: 104.6 | I86: 104.5 | J86: 105.2 | K86: 104.7 | L86: 105.2 | N86: 105.1 | O86: 107.1 | P86: 107.8 | Q86: 115.8 | R86: 109.9 | S86: 108.6 | T86: 108.1 | U86: 115.8 | V86: 115.9
B87: 12 | C87: 2013 | D87: 105 | E87: 105 | F87: 104.9 | G87: 105.3 | H87: 105.2 | I87: 104.7 | J87: 105.6 | K87: 104.9 | L87: 105.3 | N87: 105.1 | O87: 107 | P87: 108 | Q87: 116.8 | R87: 110.1 | S87: 108.7 | T87: 108.4 | U87: 116.7 | V87: 116.8
B88: 1 | C88: 2014 | D88: 105.9 | E88: 105.7 | F88: 105.7 | G88: 105.9 | H88: 106 | I88: 105.5 | J88: 106.3 | K88: 105.6 | L88: 106.9 | N88: 105.9 | O88: 108.1 | P88: 109.1 | Q88: 119.8 | R88: 110.7 | S88: 108.8 | T88: 108.4 | U88: 119.7 | V88: 119.9
B89: 2 | C89: 2014 | D89: 106.7 | E89: 107 | F89: 106.6 | G89: 106.9 | H89: 107 | I89: 106.6 | J89: 107.7 | K89: 106.7 | L89: 107.6 | N89: 106 | O89: 111.3 | P89: 112.8 | Q89: 122.1 | R89: 112.3 | S89: 115.8 | T89: 109 | U89: 122 | V89: 122.2
B90: 3 | C90: 2014 | D90: 108.2 | E90: 108.5 | F90: 107.8 | G90: 108.1 | H90: 108.7 | I90: 107.7 | J90: 109.1 | K90: 107.9 | L90: 109.2 | N90: 107.1 | O90: 112.1 | P90: 114.3 | Q90: 124.7 | R90: 112.1 | S90: 116.2 | T90: 109.5 | U90: 124.5 | V90: 124.8
B91: 4 | C91: 2014 | D91: 108.5 | E91: 109 | F91: 108.3 | G91: 108.7 | H91: 109.5 | I91: 108.2 | J91: 109.6 | K91: 108.4 | L91: 109.4 | N91: 107.5 | O91: 112.6 | P91: 114.2 | Q91: 123.6 | R91: 112.9 | S91: 117.5 | T91: 111.4 | U91: 123.7 | V91: 123.6
B92: 5 | C92: 2014 | D92: 108.9 | E92: 109.1 | F92: 108.6 | G92: 108.9 | H92: 109.6 | I92: 108.6 | J92: 109.7 | K92: 108.9 | L92: 110.2 | N92: 107.7 | O92: 112.4 | P92: 113.6 | Q92: 120.8 | R92: 113.4 | S92: 117.7 | T92: 111.8 | U92: 120.9 | V92: 120.7
B93: 6 | C93: 2014 | D93: 109.2 | E93: 109.3 | F93: 109 | G93: 109.4 | H93: 109.9 | I93: 109.6 | J93: 110.1 | K93: 109.1 | L93: 110.7 | N93: 108 | O93: 112.4 | P93: 114.1 | Q93: 118.6 | R93: 113.6 | S93: 116.7 | T93: 110.9 | U93: 118.7 | V93: 118.5
B94: 7 | C94: 2014 | D94: 110.2 | E94: 110.2 | F94: 110.4 | G94: 110.1 | H94: 110.7 | I94: 110.5 | J94: 110.9 | K94: 109.6 | L94: 111.3 | N94: 108 | O94: 112 | P94: 115.1 | Q94: 119.9 | R94: 113.7 | S94: 116.3 | T94: 110.6 | U94: 120 | V94: 119.8
B95: 8 | C95: 2014 | D95: 110.5 | E95: 110.4 | F95: 110.5 | G95: 110.5 | H95: 111 | I95: 110.6 | J95: 111.3 | K95: 110.3 | L95: 111.6 | N95: 108 | O95: 112 | P95: 114 | Q95: 119.4 | R95: 113.9 | S95: 117.2 | T95: 110.7 | U95: 119.5 | V95: 119.3
B96: 9 | C96: 2014 | D96: 110.9 | E96: 110.7 | F96: 110.7 | G96: 110.5 | H96: 110.9 | I96: 110.6 | J96: 111.2 | K96: 110.3 | L96: 111.6 | N96: 108.7 | O96: 113.2 | P96: 114.1 | Q96: 117 | R96: 113.9 | S96: 117.2 | T96: 110.6 | U96: 117.2 | V96: 116.9
B97: 10 | C97: 2014 | D97: 111.2 | E97: 110.6 | F97: 110.6 | G97: 110.7 | H97: 111 | I97: 110.7 | J97: 111.4 | K97: 110.5 | L97: 111.6 | N97: 108.8 | O97: 113.2 | P97: 114.4 | Q97: 115.8 | R97: 113.3 | S97: 117.1 | T97: 109.4 | U97: 116 | V97: 115.6
B98: 11 | C98: 2014 | D98: 111.4 | E98: 110.7 | F98: 110.8 | G98: 110.9 | H98: 110.9 | I98: 110.5 | J98: 111.4 | K98: 110.5 | L98: 111.8 | N98: 108.5 | O98: 114 | P98: 113.7 | Q98: 110.1 | R98: 113.6 | S98: 117.1 | T98: 109.4 | U98: 110.3 | V98: 109.8
B99: 12 | C99: 2014 | D99: 111.2 | E99: 110.7 | F99: 110.4 | G99: 110.7 | H99: 110.8 | I99: 110.2 | J99: 111.1 | K99: 110.3 | L99: 111.5 | N99: 108.1 | O99: 114 | P99: 110.5 | Q99: 105 | R99: 113.6 | S99: 117.1 | T99: 109.4 | U99: 105.3 | V99: 104.8
B100: 1 | C100: 2015 | D100: 111.1 | E100: 110.8 | F100: 110.2 | G100: 110.8 | H100: 110.5 | I100: 110.2 | J100: 110.9 | K100: 110.3 | L100: 111.2 | N100: 106.1 | O100: 111.3 | P100: 107.2 | Q100: 95.3 | R100: 114.8 | S100: 118 | T100: 110.1 | U100: 95.6 | V100: 94.9
B101: 2 | C101: 2015 | D101: 111.5 | E101: 111.3 | F101: 110.8 | G101: 111.4 | H101: 111 | I101: 111 | J101: 111.8 | K101: 111 | L101: 111.7 | N101: 105.5 | O101: 111.9 | P101: 102.4 | Q101: 85.7 | R101: 115.4 | S101: 118.2 | T101: 110.5 | U101: 86.2 | V101: 85.2
B102: 3 | C102: 2015 | D102: 113.1 | E102: 112.4 | F102: 112.5 | G102: 113 | H102: 112.5 | I102: 112.3 | J102: 113.4 | K102: 112.1 | L102: 113 | N102: 105.2 | O102: 111.3 | P102: 104.3 | Q102: 92.6 | R102: 115.5 | S102: 118.2 | T102: 110.5 | U102: 93 | V102: 92.2
B103: 4 | C103: 2015 | D103: 114.1 | E103: 113.7 | F103: 113.6 | G103: 114.1 | H103: 113.4 | I103: 113.4 | J103: 114.4 | K103: 113.1 | L103: 114.1 | N103: 102.2 | O103: 107.4 | P103: 102.6 | Q103: 104.1 | R103: 115.7 | S103: 116.3 | T103: 108.8 | U103: 104.5 | V103: 103.7
B104: 5 | C104: 2015 | D104: 114.4 | E104: 113.9 | F104: 113.8 | G104: 114.4 | H104: 113.7 | I104: 113.5 | J104: 114.8 | K104: 113.5 | L104: 114 | N104: 100.7 | O104: 105.6 | P104: 101.8 | Q104: 103.6 | R104: 115.9 | S104: 116.3 | T104: 108.7 | U104: 104 | V104: 103.2
B105: 6 | C105: 2015 | D105: 114.8 | E105: 114.3 | F105: 114 | G105: 114.8 | H105: 114.2 | I105: 114 | J105: 115.2 | K105: 114 | L105: 115.1 | N105: 100.9 | O105: 105.3 | P105: 103 | Q105: 108.2 | R105: 115.9 | S105: 116.6 | T105: 108.4 | U105: 108.5 | V105: 107.9
B106: 7 | C106: 2015 | D106: 115.9 | E106: 115.3 | F106: 115.5 | G106: 116 | H106: 115.5 | I106: 115 | J106: 116.3 | K106: 114.8 | L106: 115.5 | N106: 100.7 | O106: 105.4 | P106: 101.3 | Q106: 108.6 | R106: 116.1 | S106: 117.2 | T106: 107.8 | U106: 108.9 | V106: 108.2
B107: 8 | C107: 2015 | D107: 115.9 | E107: 115.7 | F107: 115.5 | G107: 116.2 | H107: 115.5 | I107: 115.2 | J107: 116.4 | K107: 115 | L107: 115.6 | N107: 101.1 | O107: 106 | P107: 101.2 | Q107: 101.4 | R107: 116.3 | S107: 117.8 | T107: 108.1 | U107: 101.9 | V107: 101
B108: 9 | C108: 2015 | D108: 116.3 | E108: 115.5 | F108: 115 | G108: 116 | H108: 115.8 | I108: 115 | J108: 116.3 | K108: 114.7 | L108: 115.5 | N108: 100.6 | O108: 105.7 | P108: 98.1 | Q108: 96.4 | R108: 117.4 | S108: 118.3 | T108: 108.9 | U108: 96.8 | V108: 95.9
B109: 10 | C109: 2015 | D109: 116.7 | E109: 115.9 | F109: 115 | G109: 116.1 | H109: 116 | I109: 115.2 | J109: 116.6 | K109: 114.8 | L109: 116.1 | N109: 100.9 | O109: 105.7 | P109: 95.6 | Q109: 101.4 | R109: 119.3 | S109: 119.5 | T109: 109.7 | U109: 101.8 | V109: 100.9
B110: 11 | C110: 2015 | D110: 116.9 | E110: 116.3 | F110: 115.4 | G110: 116.3 | H110: 116 | I110: 115.3 | J110: 116.7 | K110: 115 | L110: 116.9 | N110: 100.9 | O110: 105.6 | P110: 95.9 | Q110: 100.5 | R110: 119.4 | S110: 120.2 | T110: 110.1 | U110: 100.9 | V110: 100.1
B111: 12 | C111: 2015 | D111: 117.2 | E111: 116.6 | F111: 115.5 | G111: 117 | H111: 116.2 | I111: 115.7 | J111: 117.1 | K111: 115.3 | L111: 116.7 | N111: 100.6 | O111: 106 | P111: 97.6 | Q111: 100.2 | R111: 119.4 | S111: 120.3 | T111: 110.2 | U111: 100.6 | V111: 99.7
B112: 1 | C112: 2016 | D112: 118 | E112: 117.7 | F112: 116.2 | G112: 118.3 | H112: 117.3 | I112: 116.8 | J112: 118 | K112: 116.5 | L112: 117.8 | N112: 103.4 | O112: 108.3 | P112: 96.8 | Q112: 93 | R112: 125.4 | S112: 124.3 | T112: 113.5 | U112: 93.5 | V112: 92.5
B113: 2 | C113: 2016 | D113: 119.3 | E113: 119.7 | F113: 117.7 | G113: 119.7 | H113: 118.8 | I113: 118.2 | J113: 119.7 | K113: 118.6 | L113: 120.2 | N113: 105.6 | O113: 111.4 | P113: 97.2 | Q113: 87.2 | R113: 125.9 | S113: 123.9 | T113: 114.1 | U113: 87.7 | V113: 86.6
B114: 3 | C114: 2016 | D114: 120.3 | E114: 120.4 | F114: 118.2 | G114: 120.8 | H114: 120 | I114: 119 | J114: 120.5 | K114: 119.3 | L114: 121.6 | N114: 105.8 | O114: 109.9 | P114: 95.6 | Q114: 88.6 | R114: 127.2 | S114: 125.2 | T114: 115.3 | U114: 89.1 | V114: 88
B115: 4 | C115: 2016 | D115: 121.1 | E115: 121.7 | F115: 119.1 | G115: 121.7 | H115: 121.2 | I115: 120.3 | J115: 121.5 | K115: 120.4 | L115: 123.5 | N115: 106.6 | O115: 113.1 | P115: 97.3 | Q115: 97.3 | R115: 127.8 | S115: 125.2 | T115: 115.4 | U115: 98 | V115: 96.6
B116: 5 | C116: 2016 | D116: 121.1 | E116: 122.1 | F116: 119.3 | G116: 122.1 | H116: 121.4 | I116: 120.4 | J116: 121.8 | K116: 120.7 | L116: 123.4 | N116: 109.2 | O116: 117.2 | P116: 98.8 | Q116: 97.2 | R116: 128.8 | S116: 125.5 | T116: 116.5 | U116: 97.9 | V116: 96.5
B117: 6 | C117: 2016 | D117: 122 | E117: 123 | F117: 120.2 | G117: 122.7 | H117: 122.3 | I117: 120.9 | J117: 122.4 | K117: 121 | L117: 123.6 | N117: 109.4 | O117: 117 | P117: 101.9 | Q117: 104.4 | R117: 129.9 | S117: 126.3 | T117: 118 | U117: 105 | V117: 103.7
B118: 7 | C118: 2016 | D118: 122.9 | E118: 123.7 | F118: 121.1 | G118: 123.6 | H118: 123.6 | I118: 122.1 | J118: 123.4 | K118: 121.8 | L118: 124.6 | N118: 108.8 | O118: 115.8 | P118: 102.4 | Q118: 108.3 | R118: 130.5 | S118: 125.8 | T118: 117.6 | U118: 108.9 | V118: 107.7
B119: 8 | C119: 2016 | D119: 122.7 | E119: 124.1 | F119: 121 | G119: 123.8 | H119: 123.4 | I119: 122.2 | J119: 123.2 | K119: 121.9 | L119: 124.6 | N119: 110.1 | O119: 116.1 | P119: 102.9 | Q119: 101.4 | R119: 131.1 | S119: 126.7 | T119: 118.5 | U119: 102 | V119: 100.7
B120: 9 | C120: 2016 | D120: 123.2 | E120: 124.2 | F120: 120.9 | G120: 124.3 | H120: 123.7 | I120: 122.1 | J120: 123.4 | K120: 122.1 | L120: 125.1 | N120: 109.1 | O120: 115.7 | P120: 101 | Q120: 96.8 | R120: 131.1 | S120: 126.7 | T120: 118.6 | U120: 97.6 | V120: 96.1
B121: 10 | C121: 2016 | D121: 123.9 | E121: 124.6 | F121: 121.6 | G121: 124.8 | H121: 124.3 | I121: 122.9 | J121: 124 | K121: 122.7 | L121: 125.6 | N121: 109.6 | O121: 115.7 | P121: 101.8 | Q121: 99 | R121: 130.9 | S121: 126.6 | T121: 118.4 | U121: 99.7 | V121: 98.3
B122: 11 | C122: 2016 | D122: 124.4 | E122: 125.1 | F122: 122 | G122: 125 | H122: 124.7 | I122: 123.2 | J122: 124.4 | K122: 123 | L122: 126.3 | N122: 109.7 | O122: 115.7 | P122: 102.3 | Q122: 104.9 | R122: 130.6 | S122: 126.4 | T122: 118.1 | U122: 105.6 | V122: 104.3
B123: 12 | C123: 2016 | D123: 125.6 | E123: 125.7 | F123: 122 | G123: 125.5 | H123: 125 | I123: 123.6 | J123: 124.7 | K123: 123.3 | L123: 126.5 | N123: 114.2 | O123: 118.6 | P123: 102.8 | Q123: 101.9 | R123: 130 | S123: 126.1 | T123: 117.3 | U123: 102.6 | V123: 101.2
B124: 2017 ↓ | D124: The regional indices found in Table 14 of P0141 are discontinued from January 2017. Please refer to and use the indices per province given in P0141 Table A / Tables 3 to 11 in the Additional Tables. * | N124: PLEASE REFER TO THE ADVICE NOTE REGARDING NEW DIESEL INDICES (APPLICABLE FROM MAR '16 ONWARDS)
D125: The listed Indices above and below are applicable from January 2017 onwards; be reminded to also update the base month indice for calculations taken from January 2017 (without affecting calculations prior to January 2017). | N125: All CPA calculations going beyond Feb '16 will be required to be re-calculated based on the new diesel indices available from Jan '08 | X125: Old Indices ↑ | Y125: latest base change
B126: 1 | C126: 2017 | D126: =ROUND('Consumer Price Index'!D126/$D$11,1) -> 126.2 | E126: =ROUND('Consumer Price Index'!E126/$E$11,1) -> 126.6 | F126: =ROUND('Consumer Price Index'!F126/$F$11,1) -> 122.7 | G126: =ROUND('Consumer Price Index'!G126/$G$11,1) -> 126.4 | H126: =ROUND('Consumer Price Index'!H126/$H$11,1) -> 125.8 | I126: =ROUND('Consumer Price Index'!I126/$I$11,1) -> 124.6 | J126: =ROUND('Consumer Price Index'!J126/$J$11,1) -> 125.6 | K126: =ROUND('Consumer Price Index'!K126/$K$11,1) -> 124 | L126: =ROUND('Consumer Price Index'!L126/$L$11,1) -> 127.3 | N126: 114.8 | O126: 120.6 | P126: 106.7 | Q126: 105.6 | R126: 129.9 | S126: 126.1 | T126: 117.3 | U126: 106.2 | V126: 104.9 | X126: Conversion ↓
B127: 2 | C127: 2017 | D127: =ROUND('Consumer Price Index'!D127/$D$11,1) -> 128 | E127: =ROUND('Consumer Price Index'!E127/$E$11,1) -> 127.6 | F127: =ROUND('Consumer Price Index'!F127/$F$11,1) -> 123.7 | G127: =ROUND('Consumer Price Index'!G127/$G$11,1) -> 127.4 | H127: =ROUND('Consumer Price Index'!H127/$H$11,1) -> 127 | I127: =ROUND('Consumer Price Index'!I127/$I$11,1) -> 125.7 | J127: =ROUND('Consumer Price Index'!J127/$J$11,1) -> 126.9 | K127: =ROUND('Consumer Price Index'!K127/$K$11,1) -> 125 | L127: =ROUND('Consumer Price Index'!L127/$L$11,1) -> 128.1 | N127: 116.6 | O127: 122 | P127: 108.6 | Q127: 107.5 | R127: 130.5 | S127: 126.9 | T127: 118.6 | U127: 108.1 | V127: 106.9 | X127: Taking 2016 = 100 indices and converting it to 2012 = 100 indices
B128: 3 | C128: 2017 | D128: =ROUND('Consumer Price Index'!D128/$D$11,1) -> 128.7 | E128: =ROUND('Consumer Price Index'!E128/$E$11,1) -> 128.3 | F128: =ROUND('Consumer Price Index'!F128/$F$11,1) -> 124 | G128: =ROUND('Consumer Price Index'!G128/$G$11,1) -> 128 | H128: =ROUND('Consumer Price Index'!H128/$H$11,1) -> 127.5 | I128: =ROUND('Consumer Price Index'!I128/$I$11,1) -> 126.1 | J128: =ROUND('Consumer Price Index'!J128/$J$11,1) -> 127.7 | K128: =ROUND('Consumer Price Index'!K128/$K$11,1) -> 125.4 | L128: =ROUND('Consumer Price Index'!L128/$L$11,1) -> 129 | N128: 116 | O128: 121.1 | P128: 106.9 | Q128: 107.4 | R128: 130.5 | S128: 126.9 | T128: 118.5 | U128: 108 | V128: 106.7
B129: 4 | C129: 2017 | D129: =ROUND('Consumer Price Index'!D129/$D$11,1) -> 128.7 | E129: =ROUND('Consumer Price Index'!E129/$E$11,1) -> 128.5 | F129: =ROUND('Consumer Price Index'!F129/$F$11,1) -> 124.2 | G129: =ROUND('Consumer Price Index'!G129/$G$11,1) -> 128.4 | H129: =ROUND('Consumer Price Index'!H129/$H$11,1) -> 127.6 | I129: =ROUND('Consumer Price Index'!I129/$I$11,1) -> 125.9 | J129: =ROUND('Consumer Price Index'!J129/$J$11,1) -> 127.8 | K129: =ROUND('Consumer Price Index'!K129/$K$11,1) -> 125.5 | L129: =ROUND('Consumer Price Index'!L129/$L$11,1) -> 129.2 | N129: 115.9 | O129: 121.8 | P129: 106.4 | Q129: 106.4 | R129: 132 | S129: 128.7 | T129: 120.9 | U129: 107 | V129: 105.7
B130: 5 | C130: 2017 | D130: =ROUND('Consumer Price Index'!D130/$D$11,1) -> 129 | E130: =ROUND('Consumer Price Index'!E130/$E$11,1) -> 129.1 | F130: =ROUND('Consumer Price Index'!F130/$F$11,1) -> 124.4 | G130: =ROUND('Consumer Price Index'!G130/$G$11,1) -> 128.5 | H130: =ROUND('Consumer Price Index'!H130/$H$11,1) -> 127.9 | I130: =ROUND('Consumer Price Index'!I130/$I$11,1) -> 126.4 | J130: =ROUND('Consumer Price Index'!J130/$J$11,1) -> 128.2 | K130: =ROUND('Consumer Price Index'!K130/$K$11,1) -> 126 | L130: =ROUND('Consumer Price Index'!L130/$L$11,1) -> 129.2 | N130: 118 | O130: 124.5 | P130: 108.9 | Q130: 109.1 | R130: 132.1 | S130: 129 | T130: 120.5 | U130: 109.8 | V130: 108.6
B131: 6 | C131: 2017 | D131: =ROUND('Consumer Price Index'!D131/$D$11,1) -> 129.2 | E131: =ROUND('Consumer Price Index'!E131/$E$11,1) -> 129.1 | F131: =ROUND('Consumer Price Index'!F131/$F$11,1) -> 124.6 | G131: =ROUND('Consumer Price Index'!G131/$G$11,1) -> 128.9 | H131: =ROUND('Consumer Price Index'!H131/$H$11,1) -> 128.3 | I131: =ROUND('Consumer Price Index'!I131/$I$11,1) -> 126.3 | J131: =ROUND('Consumer Price Index'!J131/$J$11,1) -> 128.7 | K131: =ROUND('Consumer Price Index'!K131/$K$11,1) -> 126.3 | L131: =ROUND('Consumer Price Index'!L131/$L$11,1) -> 129.5 | N131: 118 | O131: 124.6 | P131: 107.2 | Q131: 107 | R131: 131.3 | S131: 128.7 | T131: 120 | U131: 107.6 | V131: 106.4
B132: 7 | C132: 2017 | D132: =ROUND('Consumer Price Index'!D132/$D$11,1) -> 129.6 | E132: =ROUND('Consumer Price Index'!E132/$E$11,1) -> 129.5 | F132: =ROUND('Consumer Price Index'!F132/$F$11,1) -> 125.1 | G132: =ROUND('Consumer Price Index'!G132/$G$11,1) -> 129 | H132: =ROUND('Consumer Price Index'!H132/$H$11,1) -> 128.4 | I132: =ROUND('Consumer Price Index'!I132/$I$11,1) -> 126.3 | J132: =ROUND('Consumer Price Index'!J132/$J$11,1) -> 129.1 | K132: =ROUND('Consumer Price Index'!K132/$K$11,1) -> 126.4 | L132: =ROUND('Consumer Price Index'!L132/$L$11,1) -> 129.8 | N132: 117.6 | O132: 124.9 | P132: 106 | Q132: 101.4 | R132: 131.4 | S132: 128.9 | T132: 120.1 | U132: 102.1 | V132: 100.7
B133: 8 | C133: 2017 | D133: =ROUND('Consumer Price Index'!D133/$D$11,1) -> 129.7 | E133: =ROUND('Consumer Price Index'!E133/$E$11,1) -> 129.2 | F133: =ROUND('Consumer Price Index'!F133/$F$11,1) -> 125.3 | G133: =ROUND('Consumer Price Index'!G133/$G$11,1) -> 129.4 | H133: =ROUND('Consumer Price Index'!H133/$H$11,1) -> 128.6 | I133: =ROUND('Consumer Price Index'!I133/$I$11,1) -> 126.6 | J133: =ROUND('Consumer Price Index'!J133/$J$11,1) -> 129.1 | K133: =ROUND('Consumer Price Index'!K133/$K$11,1) -> 126.4 | L133: =ROUND('Consumer Price Index'!L133/$L$11,1) -> 129.5 | N133: 119 | O133: 127.3 | P133: 106.7 | Q133: 104.1 | R133: 131.6 | S133: 129 | T133: 120 | U133: 104.8 | V133: 103.4
B134: 9 | C134: 2017 | D134: =ROUND('Consumer Price Index'!D134/$D$11,1) -> 131 | E134: =ROUND('Consumer Price Index'!E134/$E$11,1) -> 130.1 | F134: =ROUND('Consumer Price Index'!F134/$F$11,1) -> 125.8 | G134: =ROUND('Consumer Price Index'!G134/$G$11,1) -> 129.8 | H134: =ROUND('Consumer Price Index'!H134/$H$11,1) -> 129 | I134: =ROUND('Consumer Price Index'!I134/$I$11,1) -> 126.9 | J134: =ROUND('Consumer Price Index'!J134/$J$11,1) -> 129.6 | K134: =ROUND('Consumer Price Index'!K134/$K$11,1) -> 126.8 | L134: =ROUND('Consumer Price Index'!L134/$L$11,1) -> 130.4 | N134: 120.8 | O134: 130.6 | P134: 109 | Q134: 108.2 | R134: 131 | S134: 128.6 | T134: 119.6 | U134: 108.9 | V134: 107.6
B135: 10 | C135: 2017 | D135: =ROUND('Consumer Price Index'!D135/$D$11,1) -> 131.6 | E135: =ROUND('Consumer Price Index'!E135/$E$11,1) -> 130.4 | F135: =ROUND('Consumer Price Index'!F135/$F$11,1) -> 125.9 | G135: =ROUND('Consumer Price Index'!G135/$G$11,1) -> 130 | H135: =ROUND('Consumer Price Index'!H135/$H$11,1) -> 129.4 | I135: =ROUND('Consumer Price Index'!I135/$I$11,1) -> 127.2 | J135: =ROUND('Consumer Price Index'!J135/$J$11,1) -> 129.9 | K135: =ROUND('Consumer Price Index'!K135/$K$11,1) -> 127 | L135: =ROUND('Consumer Price Index'!L135/$L$11,1) -> 130.8 | N135: 122 | O135: 131.9 | P135: 109.7 | Q135: 112.2 | R135: 131.8 | S135: 129.3 | T135: 120.3 | U135: 112.8 | V135: 111.6
B136: 11 | C136: 2017 | D136: =ROUND('Consumer Price Index'!D136/$D$11,1) -> 131.8 | E136: =ROUND('Consumer Price Index'!E136/$E$11,1) -> 130.5 | F136: =ROUND('Consumer Price Index'!F136/$F$11,1) -> 126.3 | G136: =ROUND('Consumer Price Index'!G136/$G$11,1) -> 130.3 | H136: =ROUND('Consumer Price Index'!H136/$H$11,1) -> 129.6 | I136: =ROUND('Consumer Price Index'!I136/$I$11,1) -> 127.3 | J136: =ROUND('Consumer Price Index'!J136/$J$11,1) -> 130.1 | K136: =ROUND('Consumer Price Index'!K136/$K$11,1) -> 127.4 | L136: =ROUND('Consumer Price Index'!L136/$L$11,1) -> 130.8 | N136: 122.2 | O136: 131.9 | P136: 111.5 | Q136: 114.3 | R136: 132.7 | S136: 129.4 | T136: 121.4 | U136: 114.9 | V136: 113.7
B137: 12 | C137: 2017 | D137: =ROUND('Consumer Price Index'!D137/$D$11,1) -> 132.3 | E137: =ROUND('Consumer Price Index'!E137/$E$11,1) -> 131.5 | F137: =ROUND('Consumer Price Index'!F137/$F$11,1) -> 126.6 | G137: =ROUND('Consumer Price Index'!G137/$G$11,1) -> 130.6 | H137: =ROUND('Consumer Price Index'!H137/$H$11,1) -> 130.1 | I137: =ROUND('Consumer Price Index'!I137/$I$11,1) -> 127.7 | J137: =ROUND('Consumer Price Index'!J137/$J$11,1) -> 130.7 | K137: =ROUND('Consumer Price Index'!K137/$K$11,1) -> 128 | L137: =ROUND('Consumer Price Index'!L137/$L$11,1) -> 131.7 | N137: 122.5 | O137: 133.5 | P137: 116.5 | Q137: 120 | R137: 132.5 | S137: 129.4 | T137: 121.3 | U137: 120.6 | V137: 119.5
D138: The regional indices found in Table 14 of P0141 are discontinued from January 2017. Please refer to and use the indices per province given in P0141 Table A / Tables 3 to 11 in the Additional Tables. * | N138: PLEASE REFER TO THE ADVICE NOTE REGARDING NEW DIESEL INDICES (APPLICABLE FROM MAR '16 ONWARDS)
D139: The listed Indices above are applicable from January 2017 onwards; be reminded to also update the base month indice for calculations taken from January 2017 (without affecting calculations prior to January 2017). | N139: All CPA calculations going beyond Feb '16 will be required to be re-calculated based on the new diesel indices available from Jan '08
D142: 0.7917656374 | E142: 0.786163522 | F142: 0.7751937984 | G142: 0.7757951901 | H142: 0.8006405124 | I142: 0.772797527 | J142: 0.7886435331 | K142: 0.7874015748 | L142: 0.7974481659 | N142: 2.272 | O142: 2.89 | P142: 3.22 | Q142: 4.149 | R142: 1.909 | S142: 2.196 | T142: 1.992 | U142: 4.24 | V142: 4.205
D151: * Please note: previously it was Tables 5 to 13; now renumbered 3 to 11.

Sheet Table A Indices 2012=100
D2: TABLE A (Indice base 100 as at Dec 2012)
D4: Refer to P0141 - Consumer Price Index: | S4: Refer to P0151 - Contract Price Adjustment Provisions (CPAP): | X4: * NEW DIESEL INDICES APPLICABLE FROM MAR '16 PROVIDED FROM JAN '08 BY STATS-SA
D5: Additional Tables: Table 14 - CPI all items, according to area | S5: Work Groups and Selected Materials Indices: Table 3 and Table 4
B7: Conversion Factors: | D7: 0.7917656374 | E7: 0.786163522 | F7: 0.7880220646 | G7: 0.7751937984 | H7: 0.7757951901 | I7: 0.8006405124 | J7: 0.7855459544 | K7: 0.7949125596 | L7: 0.772797527 | M7: 0.7886435331 | N7: 0.8038585209 | O7: 0.7824726135 | P7: 0.7874015748 | Q7: 0.7974481659 | S7: 2.272 | T7: 2.89 | U7: 3.22 | V7: 4.149 | W7: 1.909 | X7: 2.196 | Y7: 1.992 | Z7: 4.24 | AA7: 4.205
D9: DEC 2012 = 100 | S9: DEC 2012 = 100
B13: Area: | D13: Western Cape | E13: Eastern Cape | G13: Northern Cape | H13: Free State | I13: KwaZulu Natal | L13: North West | M13: Gauteng | P13: Mpumalanga | Q13: Limpopo | S13: Table 3 | T13: Table 4
B14: Month | C14: Year | D14: City of Cape Town | E14: Port Elizabeth | F14: East London | G14: Kimberly | H14: Bloemfontein / Welkom | I14: Durban / Pinetown | J14: Pieter- Maritzburg | K14: All Urban Areas | L14: Rustenburg / Klerkdorp | M14: City of Tswane | N14: City of Johannesburg | O14: Ekurhuleni | P14: Witbank / Netspruit | Q14: Polokwane | S14: Materials for Civil Engineering | T14: Materials for Concrete Works | U14: Materials for Roads & E/Works | V14: * Diesel Fuel Wholesale Total | W14: Civil Engineering Plant | X14: Plant for Concrete Works | Y14: Plant for Roads & E/Works | Z14: * Diesel Fuel Wholesale
Z15: * Inland | AA15: * Coastal
B16: 1 | C16: 2008 | D16: 75.6 | E16: 75.1 | F16: 74.8 | G16: 73.6 | H16: 74.1 | I16: 76.1 | J16: 75 | K16: 75.8 | L16: 73.3 | M16: 75.2 | N16: 76.5 | O16: 74.8 | P16: 75.2 | Q16: 76.4 | S16: =184.1/S128 -> 81.02992958 | V16: 73.9 | W16: =153.7/W128 -> 80.51335778 | Z16: 68.6 | AA16: 67.7
B17: 2 | C17: 2008 | D17: 76 | E17: 75.5 | F17: 75.1 | G17: 73.9 | H17: 74.6 | I17: 76.5 | J17: 75.6 | K17: 76.2 | L17: 74 | M17: 75.8 | N17: 77.1 | O17: 75.3 | P17: 75.7 | Q17: 77.1 | S17: =186.8/S128 -> 82.21830986 | V17: 78.1 | W17: =161.4/W128 -> 84.54688318 | Z17: 69.3 | AA17: 68.4
B18: 3 | C18: 2008 | D18: 77.2 | E18: 76.5 | F18: 76.3 | G18: 74.7 | H18: 75.7 | I18: 77.3 | J18: 76.4 | K18: 76.9 | L18: 75.2 | M18: 77.1 | N18: 78.5 | O18: 76.4 | P18: 76.5 | Q18: 78 | S18: =187.8/S128 -> 82.6584507 | V18: 89.3 | W18: =161.4/W128 -> 84.54688318 | Z18: 76.6 | AA18: 75.8
B19: 4 | C19: 2008 | D19: 77.8 | E19: 77 | F19: 77 | G19: 75.6 | H19: 76.2 | I19: 78.1 | J19: 77 | K19: 77.6 | L19: 75.7 | M19: 77.5 | N19: 78.9 | O19: 76.8 | P19: 77.1 | Q19: 78.4 | S19: =191/S128 -> 84.06690141 | V19: 103.2 | W19: =161.4/W128 -> 84.54688318 | Z19: 88.9 | AA19: 88
B20: 5 | C20: 2008 | D20: 78.2 | E20: 77.6 | F20: 77.6 | G20: 76 | H20: 76.7 | I20: 78.7 | J20: 77.5 | K20: 78.1 | L20: 76.2 | M20: 78 | N20: 79.3 | O20: 77.5 | P20: 77.5 | Q20: 79.1 | S20: =199/S128 -> 87.58802817 | V20: 114.4 | W20: =168.3/W128 -> 88.16134102 | Z20: 95.4 | AA20: 94.7
B21: 6 | C21: 2008 | D21: 79 | E21: 78.5 | F21: 79 | G21: 77.1 | H21: 77.4 | I21: 80.1 | J21: 78.6 | K21: 79.5 | L21: 77.3 | M21: 78.9 | N21: 80.7 | O21: 78.6 | P21: 78.7 | Q21: 79.9 | S21: =201.8/S128 -> 88.82042254 | V21: 126.3 | W21: =168.3/W128 -> 88.16134102 | Z21: 102.2 | AA21: 101.5
B22: 7 | C22: 2008 | D22: 80.1 | E22: 79.6 | F22: 80.1 | G22: 78.8 | H22: 78.4 | I22: 81.6 | J22: 79.5 | K22: 80.9 | L22: 78.2 | M22: 79.9 | N22: 81.6 | O22: 79.8 | P22: 79.8 | Q22: 80.9 | S22: =203.9/S128 -> 89.74471831 | V22: 124.4 | W22: =168.3/W128 -> 88.16134102 | Z22: 108.2 | AA22: 107.5
B23: 8 | C23: 2008 | D23: 80.6 | E23: 80 | F23: 80.7 | G23: 79.6 | H23: 78.9 | I23: 82.1 | J23: 80 | K23: 81.3 | L23: 79.1 | M23: 80 | N23: 82.1 | O23: 80 | P23: 80 | Q23: 81.2 | S23: =217.3/S128 -> 95.64260563 | V23: 102 | W23: =175.4/W128 -> 91.88056574 | Z23: 106.6 | AA23: 105.9
B24: 9 | C24: 2008 | D24: 81.2 | E24: 80.9 | F24: 81.2 | G24: 79.9 | H24: 79.6 | I24: 82.3 | J24: 80.6 | K24: 81.6 | L24: 79.6 | M24: 80.8 | N24: 82.4 | O24: 79.8 | P24: 80.9 | Q24: 81.3 | S24: =218.8/S128 -> 96.3028169 | V24: 95.8 | W24: =175.4/W128 -> 91.88056574 | Z24: 93 | AA24: 92.2
B25: 10 | C25: 2008 | D25: 81.5 | E25: 81.1 | F25: 81.3 | G25: 80.3 | H25: 79.8 | I25: 82.6 | J25: 80.8 | K25: 82 | L25: 79.7 | M25: 81.1 | N25: 82.5 | O25: 80.1 | P25: 81.2 | Q25: 81.6 | S25: =219.6/S128 -> 96.65492958 | V25: 91.8 | W25: =175.4/W128 -> 91.88056574 | Z25: 87.7 | AA25: 86.8
B26: 11 | C26: 2008 | D26: 81.5 | E26: 81.1 | F26: 81.4 | G26: 80.4 | H26: 79.8 | I26: 82.6 | J26: 80.9 | K26: 82 | L26: 79.7 | M26: 81.2 | N26: 82.6 | O26: 80 | P26: 81.3 | Q26: 81.7 | S26: =219.2/S128 -> 96.47887324 | V26: 81.9 | W26: =184.8/W128 -> 96.80460974 | Z26: 85.4 | AA26: 84.5
B27: 12 | C27: 2008 | D27: 81.4 | E27: 80.7 | F27: 81.3 | G27: 80.2 | H27: 79.8 | I27: 82.7 | J27: 80.8 | K27: 82 | L27: 79.6 | M27: 80.8 | N27: 82.5 | O27: 79.7 | P27: 81.1 | Q27: 81.3 | S27: =216.6/S128 -> 95.33450704 | V27: 66.6 | W27: =184.8/W128 -> 96.80460974 | Z27: 77.7 | AA27: 76.8
B28: 1 | C28: 2009 | D28: 81.5 | E28: 80.8 | F28: 80.9 | G28: 80.3 | H28: 80.1 | I28: 83.4 | J28: 81.2 | K28: 82.7 | L28: 79.6 | M28: 81.2 | N28: 82.6 | O28: 79.7 | P28: 81.7 | Q28: 81.3 | S28: =219.7/S128 -> 96.69894366 | V28: 69.7 | W28: =184.8/W128 -> 96.80460974 | Z28: 61.9 | AA28: 60.8
B29: 2 | C29: 2009 | D29: 82.2 | E29: 81.8 | F29: 82 | G29: 81 | H29: 80.9 | I29: 84.1 | J29: 82 | K29: 83.4 | L29: 80.9 | M29: 82.3 | N29: 83.7 | O29: 80.8 | P29: 82.9 | Q29: 82.8 | S29: =215.7/S128 -> 94.93838028 | V29: 65.9 | W29: =193/W128 -> 101.1000524 | Z29: 61.4 | AA29: 60.4
B30: 3 | C30: 2009 | D30: 83.5 | E30: 82.9 | F30: 83.1 | G30: 82.2 | H30: 82 | I30: 85 | J30: 83.2 | K30: 84.3 | L30: 82.3 | M30: 83.4 | N30: 84.8 | O30: 82.1 | P30: 83.9 | Q30: 84 | S30: =214.8/S128 -> 94.54225352 | V30: 61.6 | W30: =193/W128 -> 101.1000524 | Z30: 57.8 | AA30: 56.7
B31: 4 | C31: 2009 | D31: 83.8 | E31: 83.3 | F31: 83.5 | G31: 82.5 | H31: 82.5 | I31: 85.4 | J31: 83.6 | K31: 84.7 | L31: 82.5 | M31: 83.9 | N31: 85.3 | O31: 82.5 | P31: 84.3 | Q31: 84.1 | S31: =213.3/S128 -> 93.88204225 | V31: 60.8 | W31: =193/W128 -> 101.1000524 | Z31: 61.6 | AA31: 60.5
B32: 5 | C32: 2009 | D32: 84.1 | E32: 83.5 | F32: 83.9 | G32: 82.8 | H32: 82.8 | I32: 85.7 | J32: 84 | K32: 85.1 | L32: 82.8 | M32: 84.2 | N32: 85.6 | O32: 82.6 | P32: 84.9 | Q32: 84.4 | S32: =209/S128 -> 91.98943662 | V32: 61 | W32: =189.2/W128 -> 99.1094814 | Z32: 62.4 | AA32: 61.2
B33: 6 | C33: 2009 | D33: 84.5 | E33: 83.6 | F33: 84.2 | G33: 83.1 | H33: 83 | I33: 85.7 | J33: 84.2 | K33: 85.2 | L33: 83.1 | M33: 84.3 | N33: 86.2 | O33: 82.9 | P33: 85.4 | Q33: 84.9 | S33: =208.9/S128 -> 91.94542254 | V33: 62.4 | W33: =189.2/W128 -> 99.1094814 | Z33: 61.1 | AA33: 60.2
B34: 7 | C34: 2009 | D34: 85.4 | E34: 85.1 | F34: 85.2 | G34: 84.3 | H34: 83.9 | I34: 86.5 | J34: 84.8 | K34: 86 | L34: 84.2 | M34: 85.7 | N34: 86.7 | O34: 84.4 | P34: 86.3 | Q34: 85.7 | S34: =211.3/S128 -> 93.00176056 | V34: 64.7 | W34: =189.2/W128 -> 99.1094814 | Z34: 64.9 | AA34: 64
B35: 8 | C35: 2009 | D35: 85.7 | E35: 85.4 | F35: 85.3 | G35: 84.7 | H35: 84.1 | I35: 86.6 | J35: 84.9 | K35: 86.2 | L35: 84.5 | M35: 85.9 | N35: 87.2 | O35: 84.6 | P35: 86.8 | Q35: 85.8 | S35: =210.1/S128 -> 92.47359155 | V35: 63.7 | W35: =190.9/W128 -> 100 | Z35: 63 | AA35: 62.1
B36: 9 | C36: 2009 | D36: 86.1 | E36: 85.5 | F36: 85.9 | G36: 85 | H36: 84.4 | I36: 86.9 | J36: 85.2 | K36: 86.4 | L36: 84.8 | M36: 86.3 | N36: 87.5 | O36: 84.8 | P36: 86.9 | Q36: 86.1 | S36: =209.8/S128 -> 92.3415493 | V36: 66.2 | W36: =190.9/W128 -> 100 | Z36: 66.2 | AA36: 65.3
B37: 10 | C37: 2009 | D37: 86.2 | E37: 85.5 | F37: 85.8 | G37: 85 | H37: 84.3 | I37: 86.8 | J37: 85.2 | K37: 86.3 | L37: 84.7 | M37: 86.2 | N37: 87.5 | O37: 84.7 | P37: 86.9 | Q37: 86.2 | S37: =209.5/S128 -> 92.20950704 | V37: 62.6 | W37: =190.9/W128 -> 100 | Z37: 63.2 | AA37: 62.3
B38: 11 | C38: 2009 | D38: 86.3 | E38: 85.5 | F38: 85.7 | G38: 85 | H38: 84.3 | I38: 86.8 | J38: 85.1 | K38: 86.3 | L38: 84.8 | M38: 86.3 | N38: 87.5 | O38: 84.7 | P38: 86.9 | Q38: 86.1 | S38: =209.8/S128 -> 92.3415493 | V38: 63.7 | W38: =188.1/W128 -> 98.53326349 | Z38: 64.1 | AA38: 63.2
B39: 12 | C39: 2009 | D39: 86.9 | E39: 85.7 | F39: 86 | G39: 85 | H39: 84.5 | I39: 87 | J39: 85.2 | K39: 86.6 | L39: 85 | M39: 86.6 | N39: 87.2 | O39: 85.1 | P39: 87.2 | Q39: 86.3 | S39: =209.8/S128 -> 92.3415493 | V39: 66.9 | W39: =188.1/W128 -> 98.53326349 | Z39: 66.5 | AA39: 65.6
B40: 1 | C40: 2010 | D40: 87.1 | E40: 85.8 | F40: 86.1 | G40: 85.2 | H40: 84.7 | I40: 87.4 | J40: 85.5 | K40: 86.9 | L40: 85.2 | M40: 86.9 | N40: 87.5 | O40: 85.4 | P40: 87.5 | Q40: 86.4 | S40: =212.5/S128 -> 93.52992958 | V40: 65.4 | W40: =188.1/W128 -> 98.53326349 | Z40: 65.2 | AA40: 64.3
B41: 2 | C41: 2010 | D41: 87.4 | E41: 86.5 | F41: 86.7 | G41: 85.4 | H41: 85.3 | I41: 87.7 | J41: 85.9 | K41: 87.3 | L41: 86.2 | M41: 87.5 | N41: 88 | O41: 85.9 | P41: 88.1 | Q41: 87.1 | S41: =213/S128 -> 93.75 | V41: 67.1 | W41: =188/W128 -> 98.48088004 | Z41: 66.1 | AA41: 65.2
B42: 3 | C42: 2010 | D42: 88.4 | E42: 87.3 | F42: 87.5 | G42: 85.9 | H42: 86 | I42: 88.4 | J42: 86.7 | K42: 87.9 | L42: 87 | M42: 88.2 | N42: 88.8 | O42: 86.8 | P42: 88.7 | Q42: 87.6 | S42: =213/S128 -> 93.75 | V42: 68.2 | W42: =188.9/W128 -> 98.95233106 | Z42: 66.5 | AA42: 65.6
B43: 4 | C43: 2010 | D43: 88.7 | E43: 87.4 | F43: 87.8 | G43: 86.3 | H43: 86.4 | I43: 88.5 | J43: 86.6 | K43: 88 | L43: 87.2 | M43: 88.4 | N43: 89 | O43: 86.9 | P43: 88.8 | Q43: 87.6 | S43: =212.8/S128 -> 93.66197183 | V43: 72.1 | W43: =188.9/W128 -> 98.95233106 | Z43: 71.2 | AA43: 70.4
B44: 5 | C44: 2010 | D44: 88.8 | E44: 87.6 | F44: 87.7 | G44: 86.4 | H44: 86.4 | I44: 88.6 | J44: 87 | K44: 88.2 | L44: 87.3 | M44: 88.5 | N44: 89.1 | O44: 87 | P44: 89 | Q44: 88 | S44: =215.4/S128 -> 94.80633803 | V44: 74 | W44: =187.6/W128 -> 98.27134625 | Z44: 73.9 | AA44: 73
B45: 6 | C45: 2010 | D45: 88.7 | E45: 87.8 | F45: 87.8 | G45: 86.1 | H45: 86.5 | I45: 88.6 | J45: 87.1 | K45: 88.2 | L45: 87.4 | M45: 88.7 | N45: 89.2 | O45: 86.8 | P45: 89.1 | Q45: 88 | S45: =216.7/S128 -> 95.37852113 | V45: 73 | W45: =187.4/W128 -> 98.16657936 | Z45: 72.5 | AA45: 71.7
B46: 7 | C46: 2010 | D46: 89.1 | E46: 88.4 | F46: 88.3 | G46: 87.4 | H46: 87.3 | I46: 88.8 | J46: 87.9 | K46: 88.6 | L46: 87.9 | M46: 89.3 | N46: 89.6 | O46: 87.8 | P46: 89.1 | Q46: 88.4 | S46: =214.1/S128 -> 94.23415493 | V46: 71.9 | W46: =187.2/W128 -> 98.06181247 | Z46: 71.1 | AA46: 70.3
B47: 8 | C47: 2010 | D47: 89.1 | E47: 88.4 | F47: 88.3 | G47: 87.4 | H47: 87.4 | I47: 88.8 | J47: 88.1 | K47: 88.7 | L47: 87.9 | M47: 89.2 | N47: 89.8 | O47: 87.7 | P47: 89.8 | Q47: 88.5 | S47: =212.6/S128 -> 93.57394366 | V47: 71.2 | W47: =186.7/W128 -> 97.79989523 | Z47: 69.8 | AA47: 69
B48: 9 | C48: 2010 | D48: 89.2 | E48: 88.6 | F48: 88.3 | G48: 87.6 | H48: 87.9 | I48: 88.6 | J48: 88.5 | K48: 88.6 | L48: 88.1 | M48: 89.5 | N48: 89.8 | O48: 87.6 | P48: 89.9 | Q48: 88.8 | S48: =212.6/S128 -> 93.57394366 | V48: 70.6 | W48: =186.7/W128 -> 97.79989523 | Z48: 69.8 | AA48: 69
B49: 10 | C49: 2010 | D49: 89.3 | E49: 88.7 | F49: 88.5 | G49: 87.8 | H49: 88.1 | I49: 88.8 | J49: 88.5 | K49: 88.8 | L49: 88.2 | M49: 89.6 | N49: 90 | O49: 87.9 | P49: 90.4 | Q49: 89.2 | S49: =213.7/S128 -> 94.05809859 | T49: =248.8/T128 -> 86.0899654 | U49: =264.6/U128 -> 82.17391304 | V49: 70.8 | W49: =186.8/W128 -> 97.85227868 | X49: =205.1/X128 -> 93.39708561 | Y49: =189.4/Y128 -> 95.08032129 | Z49: 69.6 | AA49: 68.8
B50: 11 | C50: 2010 | D50: 89.4 | E50: 88.9 | F50: 88.5 | G50: 87.8 | H50: 88.1 | I50: 88.9 | J50: 88.6 | K50: 89 | L50: 88.3 | M50: 89.8 | N50: 90.1 | O50: 88 | P50: 90.2 | Q50: 89.4 | S50: =212.9/S128 -> 93.70598592 | T50: =248.7/T128 -> 86.05536332 | U50: =264.7/U128 -> 82.20496894 | V50: 72.7 | W50: =187.5/W128 -> 98.21896281 | X50: =205.4/X128 -> 93.53369763 | Y50: =190.1/Y128 -> 95.43172691 | Z50: 71.9 | AA50: 71.1
B51: 12 | C51: 2010 | D51: 89.6 | E51: 89 | F51: 88.7 | G51: 87.8 | H51: 88.3 | I51: 89 | J51: 88.8 | K51: 89 | L51: 88.3 | M51: 89.9 | N51: 90.3 | O51: 88.4 | P51: 90.2 | Q51: 89.4 | S51: =213.1/S128 -> 93.79401408 | T51: =248.5/T128 -> 85.98615917 | U51: =266.2/U128 -> 82.67080745 | V51: 75.2 | W51: =185.8/W128 -> 97.32844421 | X51: =201.5/X128 -> 91.75774135 | Y51: =189.2/Y128 -> 94.97991968 | Z51: 71.9 | AA51: 71.1
B52: 1 | C52: 2011 | D52: 90 | E52: 89.5 | F52: 89 | G52: 88.5 | H52: 88.9 | I52: 89.4 | J52: 89.3 | K52: 89.5 | L52: 88.9 | M52: 90 | N52: 90.6 | O52: 88.9 | P52: 90.8 | Q52: 90.1 | S52: =215.4/S128 -> 94.80633803 | T52: =250.3/T128 -> 86.60899654 | U52: =266.7/U128 -> 82.82608696 | V52: 78 | W52: =184.2/W128 -> 96.49030906 | X52: =201.9/X128 -> 91.93989071 | Y52: =189/Y128 -> 94.87951807 | Z52: 74.1 | AA52: 73.3
B53: 2 | C53: 2011 | D53: 90.7 | E53: 90.2 | F53: 89.7 | G53: 89.1 | H53: 89.5 | I53: 90 | J53: 89.9 | K53: 90.1 | L53: 90 | M53: 90.5 | N53: 91.2 | O53: 89.4 | P53: 91.4 | Q53: 90.7 | S53: =215.9/S128 -> 95.02640845 | T53: =257.9/T128 -> 89.23875433 | U53: =272.2/U128 -> 84.53416149 | V53: 85.3 | W53: =186.6/W128 -> 97.74751179 | X53: =202.7/X128 -> 92.30418944 | Y53: =190.4/Y128 -> 95.58232932 | Z53: 77 | AA53: 76.2
B54: 3 | C54: 2011 | D54: 91.8 | E54: 91.3 | F54: 90.6 | G54: 90.2 | H54: 90.7 | I54: 90.9 | J54: 90.7 | K54: 91 | L54: 91 | M54: 91.6 | N54: 92.1 | O54: 90.7 | P54: 92 | Q54: 92 | S54: =217.4/S128 -> 95.68661972 | T54: =261.5/T128 -> 90.48442907 | U54: =283.1/U128 -> 87.91925466 | V54: 90.9 | W54: =187.3/W128 -> 98.11419591 | X54: =204/X128 -> 92.89617486 | Y54: =191.3/Y128 -> 96.03413655 | Z54: 83 | AA54: 82.3
B55: 4 | C55: 2011 | D55: 92.1 | E55: 91.5 | F55: 90.9 | G55: 90.5 | H55: 91.1 | I55: 91.3 | J55: 91.2 | K55: 91.3 | L55: 91.3 | M55: 92 | N55: 92.3 | O55: 91.1 | P55: 92.2 | Q55: 92.2 | S55: =216/S128 -> 95.07042254 | T55: =261.6/T128 -> 90.51903114 | U55: =292.7/U128 -> 90.90062112 | V55: 96.4 | W55: =187.5/W128 -> 98.21896281 | X55: =204/X128 -> 92.89617486 | Y55: =191.8/Y128 -> 96.28514056 | Z55: 89.7 | AA55: 88.4
B56: 5 | C56: 2011 | D56: 92.6 | E56: 91.9 | F56: 91.3 | G56: 90.8 | H56: 91.4 | I56: 91.8 | J56: 91.5 | K56: 91.7 | L56: 91.7 | M56: 92.4 | N56: 92.8 | O56: 91.5 | P56: 92.7 | Q56: 92.7 | S56: =215.7/S128 -> 94.93838028 | T56: =261.3/T128 -> 90.41522491 | U56: =294/U128 -> 91.30434783 | V56: 95.4 | W56: =187.5/W128 -> 98.21896281 | X56: =205.5/X128 -> 93.57923497 | Y56: =193.3/Y128 -> 97.03815261 | Z56: 91.2 | AA56: 89.9
B57: 6 | C57: 2011 | D57: 92.9 | E57: 92.1 | F57: 91.9 | G57: 91 | H57: 91.7 | I57: 92.3 | J57: 92.1 | K57: 92.2 | L57: 92 | M57: 92.7 | N57: 93.2 | O57: 92.2 | P57: 92.8 | Q57: 93 | S57: =216.1/S128 -> 95.11443662 | T57: =265.2/T128 -> 91.76470588 | U57: =294.4/U128 -> 91.42857143 | V57: 92.6 | W57: =188.8/W128 -> 98.89994762 | X57: =205.5/X128 -> 93.57923497 | Y57: =194/Y128 -> 97.38955823 | Z57: 87.6 | AA57: 86.3
B58: 7 | C58: 2011 | D58: 93.5 | E58: 93.1 | F58: 92.6 | G58: 92.9 | H58: 93 | I58: 93 | J58: 92.9 | K58: 93 | L58: 92.8 | M58: 93.4 | N58: 94 | O58: 93 | P58: 93.7 | Q58: 93.4 | S58: =219/S128 -> 96.39084507 | T58: =267.7/T128 -> 92.62975779 | U58: =296.2/U128 -> 91.98757764 | V58: 92 | W58: =189.2/W128 -> 99.1094814 | X58: =210.1/X128 -> 95.67395264 | Y58: =193.9/Y128 -> 97.33935743 | Z58: 86.5 | AA58: 85.2
B59: 8 | C59: 2011 | D59: 93.7 | E59: 93.2 | F59: 92.8 | G59: 93.3 | H59: 93.3 | I59: 93.3 | J59: 93 | K59: 93.2 | L59: 93 | M59: 93.6 | N59: 94.1 | O59: 93.2 | P59: 93.8 | Q59: 93.8 | S59: =219.7/S128 -> 96.69894366 | T59: =268.8/T128 -> 93.01038062 | U59: =296.9/U128 -> 92.20496894 | V59: 91.8 | W59: =189.3/W128 -> 99.16186485 | X59: =214.1/X128 -> 97.49544627 | Y59: =194.3/Y128 -> 97.54016064 | Z59: 88 | AA59: 86.6
B60: 9 | C60: 2011 | D60: 94.1 | E60: 93.6 | F60: 93.1 | G60: 93.6 | H60: 93.7 | I60: 93.5 | J60: 93.2 | K60: 93.5 | L60: 93.3 | M60: 93.9 | N60: 94.1 | O60: 93.5 | P60: 94.3 | Q60: 94.1 | S60: =220.2/S128 -> 96.91901408 | T60: =272.6/T128 -> 94.32525952 | U60: =294.9/U128 -> 91.58385093 | V60: 91.8 | W60: =189.1/W128 -> 99.05709796 | X60: =213.8/X128 -> 97.35883424 | Y60: =194.3/Y128 -> 97.54016064 | Z60: 88 | AA60: 86.6
B61: 10 | C61: 2011 | D61: 94.5 | E61: 94.1 | F61: 93.7 | G61: 94.3 | H61: 94.3 | I61: 94.2 | J61: 93.8 | K61: 94.1 | L61: 93.7 | M61: 94.4 | N61: 94.7 | O61: 94.1 | P61: 94.8 | Q61: 94.7 | S61: =221.6/S128 -> 97.53521127 | T61: =276.9/T128 -> 95.81314879 | U61: =296.3/U128 -> 92.01863354 | V61: 95.4 | W61: =187.6/W128 -> 98.27134625 | X61: =213.2/X128 -> 97.0856102 | Y61: =193.9/Y128 -> 97.33935743 | Z61: 91.3 | AA61: 90
B62: 11 | C62: 2011 | D62: 94.6 | E62: 94.4 | F62: 93.9 | G62: 94.7 | H62: 94.5 | I62: 94.6 | J62: 94.2 | K62: 94.4 | L62: 94 | M62: 94.7 | N62: 94.8 | O62: 94.4 | P62: 94.9 | Q62: 94.8 | S62: =223.2/S128 -> 98.23943662 | T62: =286.2/T128 -> 99.03114187 | U62: =303.7/U128 -> 94.31677019 | V62: 100.4 | W62: =187.7/W128 -> 98.3237297 | X62: =213.4/X128 -> 97.17668488 | Y62: =194.3/Y128 -> 97.54016064 | Z62: 94.7 | AA62: 93.4
B63: 12 | C63: 2011 | D63: 94.8 | E63: 94.6 | F63: 94.1 | G63: 94.9 | H63: 94.9 | I63: 94.8 | J63: 94.3 | K63: 94.8 | L63: 94.2 | M63: 94.9 | N63: 94.9 | O63: 94.5 | P63: 95.2 | Q63: 95.1 | S63: =223.6/S128 -> 98.41549296 | T63: =286.5/T128 -> 99.1349481 | U63: =311.1/U128 -> 96.61490683 | V63: 102 | W63: =188.4/W128 -> 98.69041383 | X63: =213.7/X128 -> 97.3132969 | Y63: =195.1/Y128 -> 97.94176707 | Z63: 97.7 | AA63: 97.9
B64: 1 | C64: 2012 | D64: 95.2 | E64: 95 | F64: 94.2 | G64: 95.6 | H64: 95.4 | I64: 95 | J64: 94.9 | K64: 95 | L64: 94.6 | M64: 95.6 | N64: 95.5 | O64: 95.1 | P64: 95.9 | Q64: 95.5 | S64: =224.5/S128 -> 98.81161972 | T64: =287.7/T128 -> 99.55017301 | U64: =312/U128 -> 96.89440994 | V64: 99.5 | W64: =188.6/W128 -> 98.79518072 | X64: =213.7/X128 -> 97.3132969 | Y64: =194.9/Y128 -> 97.84136546 | Z64: 97.2 | AA64: 95.9
B65: 2 | C65: 2012 | D65: 95.6 | E65: 95.4 | F65: 95 | G65: 96.1 | H65: 96.1 | I65: 95.5 | J65: 95.5 | K65: 95.6 | L65: 95.6 | M65: 96.1 | N65: 96.1 | O65: 95.7 | P65: 96.5 | Q65: 96.1 | S65: =226.6/S128 -> 99.73591549 | T65: =290.5/T128 -> 100.5190311 | U65: =318/U128 -> 98.75776398 | V65: 99.4 | W65: =189.4/W128 -> 99.2142483 | X65: =214.7/X128 -> 97.76867031 | Y65: =195.3/Y128 -> 98.04216867 | Z65: 97.2 | AA65: 95.8
B66: 3 | C66: 2012 | D66: 96.7 | E66: 96.5 | F66: 96.7 | G66: 96.9 | H66: 97.1 | I66: 96.6 | J66: 96.3 | K66: 96.7 | L66: 97 | M66: 97.2 | N66: 97 | O66: 96.5 | P66: 97.2 | Q66: 97 | S66: =228.2/S128 -> 100.4401408 | T66: =290.5/T128 -> 100.5190311 | U66: =317.3/U128 -> 98.54037267 | V66: 100.6 | W66: =188.2/W128 -> 98.58564694 | X66: =214.4/X128 -> 97.63205829 | Y66: =194.8/Y128 -> 97.79116466 | Z66: 98.1 | AA66: 96.8
B67: 4 | C67: 2012 | D67: 97.1 | E67: 96.9 | F67: 97.2 | G67: 97.1 | H67: 97.5 | I67: 97.1 | J67: 96.6 | K67: 97.1 | L67: 97.3 | M67: 97.6 | N67: 97.4 | O67: 96.9 | P67: 97.7 | Q67: 97.4 | S67: =227.9/S128 -> 100.3080986 | T67: =290.4/T128 -> 100.4844291 | U67: =317.1/U128 -> 98.47826087 | V67: 102.6 | W67: =188.6/W128 -> 98.79518072 | X67: =218/X128 -> 99.27140255 | Y67: =198.6/Y128 -> 99.69879518 | Z67: 102.9 | AA67: 101.3
B68: 5 | C68: 2012 | D68: 97.3 | E68: 97.1 | F68: 97.4 | G68: 97.1 | H68: 97.4 | I68: 97.2 | J68: 96.9 | K68: 97.2 | L68: 97.4 | M68: 97.7 | N68: 97.4 | O68: 97 | P68: 97.6 | Q68: 97.4 | S68: =226.9/S128 -> 99.86795775 | T68: =288.9/T128 -> 99.96539792 | U68: =323/U128 -> 100.310559 | V68: 103.6 | W68: =190.3/W128 -> 99.68569932 | X68: =218.8/X128 -> 99.63570128 | Y68: =199.4/Y128 -> 100.1004016 | Z68: 103.8 | AA68: 102.2
B69: 6 | C69: 2012 | D69: 97.5 | E69: 97.5 | F69: 97.6 | G69: 97.1 | H69: 97.4 | I69: 97.4 | J69: 97.6 | K69: 97.4 | L69: 97.4 | M69: 97.6 | N69: 97.9 | O69: 97.4 | P69: 97.8 | Q69: 97.2 | S69: =226.8/S128 -> 99.82394366 | T69: =289.1/T128 -> 100.0346021 | U69: =324/U128 -> 100.621118 | V69: 99.7 | W69: =190.8/W128 -> 99.94761655 | X69: =219.1/X128 -> 99.7723133 | Y69: =199.9/Y128 -> 100.3514056 | Z69: 101.5 | AA69: 100.2
B70: 7 | C70: 2012 | D70: 97.9 | E70: 98 | F70: 97.9 | G70: 98.1 | H70: 97.7 | I70: 97.6 | J70: 97.9 | K70: 97.8 | L70: 97.7 | M70: 98 | N70: 98.2 | O70: 97.7 | P70: 98.3 | Q70: 97.7 | S70: =227.1/S128 -> 99.95598592 | T70: =289.9/T128 -> 100.3114187 | U70: =325.3/U128 -> 101.0248447 | V70: 92.1 | W70: =191/W128 -> 100.0523834 | X70: =220.2/X128 -> 100.273224 | Y70: =200/Y128 -> 100.4016064 | Z70: 95.6 | AA70: 93.9
B71: 8 | C71: 2012 | D71: 98 | E71: 98.2 | F71: 98 | G71: 98.3 | H71: 98 | I71: 97.8 | J71: 98 | K71: 97.9 | L71: 98 | M71: 98.2 | N71: 98.4 | O71: 98 | P71: 98.3 | Q71: 97.9 | S71: =227.9/S128 -> 100.3080986 | T71: =290/T128 -> 100.3460208 | U71: =324.2/U128 -> 100.6832298 | V71: 94.3 | W71: =191.5/W128 -> 100.3143007 | X71: =219.1/X128 -> 99.7723133 | Y71: =200.5/Y128 -> 100.6526104 | Z71: 97 | AA71: 95.2
B72: 9 | C72: 2012 | D72: 98.9 | E72: 98.8 | F72: 98.8 | G72: 99.2 | H72: 98.8 | I72: 98.7 | J72: 98.9 | K72: 98.8 | L72: 99.1 | M72: 99 | N72: 99.1 | O72: 98.8 | P72: 99.2 | Q72: 99 | S72: =227.5/S128 -> 100.1320423 | T72: =289.8/T128 -> 100.2768166 | U72: =323.5/U128 -> 100.4658385 | V72: 100.3 | W72: =192.5/W128 -> 100.8381351 | X72: =223.2/X128 -> 101.6393443 | Y72: =200.6/Y128 -> 100.7028112 | Z72: 103.5 | AA72: 101.8
B73: 10 | C73: 2012 | D73: 99.4 | E73: 99.4 | F73: 99.4 | G73: 99.7 | H73: 99.5 | I73: 99.4 | J73: 99.5 | K73: 99.4 | L73: 99.7 | M73: 99.6 | N73: 99.7 | O73: 99.6 | P73: 99.6 | Q73: 99.6 | S73: =226.8/S128 -> 99.82394366 | T73: =285.9/T128 -> 98.92733564 | U73: =324/U128 -> 100.621118 | V73: 105.3 | W73: =192.5/W128 -> 100.8381351 | X73: =224.1/X128 -> 102.0491803 | Y73: =201.4/Y128 -> 101.1044177 | Z73: 104 | AA73: 105.6
B74: 11 | C74: 2012 | D74: 99.6 | E74: 99.8 | F74: 99.6 | G74: 100 | H74: 99.8 | I74: 99.6 | J74: 99.7 | K74: 99.7 | L74: 99.8 | M74: 99.8 | N74: 99.9 | O74: 99.8 | P74: 99.8 | Q74: 99.8 | S74: =227.5/S128 -> 100.1320423 | T74: =285.9/T128 -> 98.92733564 | U74: =326.4/U128 -> 101.3664596 | V74: 106.8 | W74: =193.2/W128 -> 101.2048193 | X74: =225.1/X128 -> 102.5045537 | Y74: =202.1/Y128 -> 101.4558233 | Z74: 106.5 | AA74: 106.5
B75: 12 | C75: 2012 | D75: 100 | E75: 100 | F75: 100 | G75: 100 | H75: 100 | I75: 100 | J75: 100 | K75: 100 | L75: 100 | M75: 100 | N75: 100 | O75: 100 | P75: 100 | Q75: 100 | S75: =228.2/S128 -> 100.4401408 | T75: =289/T128 -> 100 | U75: =329.3/U128 -> 102.2670807 | V75: 106 | W75: =193.7/W128 -> 101.4667365 | X75: =225.3/X128 -> 102.5956284 | Y75: =202.6/Y128 -> 101.7068273 | Z75: 106 | AA75: 106 | AC75: Conversion ↑
B76: 1 | C76: 2013 | D76: 100.2 | E76: 100.1 | F76: 100.3 | G76: 100.5 | H76: 100.4 | I76: 100.1 | J76: 100.5 | K76: 100.1 | L76: 100.2 | M76: 100.3 | N76: 100.4 | O76: 100.4 | P76: 100.4 | Q76: 100.5 | S76: 101.8 | T76: 103.2 | U76: 104.4 | V76: 103.4 | W76: 102.3 | X76: 103.1 | Y76: 102.4 | Z76: 103.4 | AA76: 103.4 | AC76: New indices ↓
B77: 2 | C77: 2013 | D77: 100.8 | E77: 101.2 | F77: 101.3 | G77: 100.9 | H77: 101.2 | I77: 101.2 | J77: 102 | K77: 101.3 | L77: 101.2 | M77: 101.7 | N77: 101.8 | O77: 101.5 | P77: 101.4 | Q77: 101.3 | S77: 102.2 | T77: 104.8 | U77: 105.1 | V77: 105 | W77: 102.5 | X77: 103.1 | Y77: 102.4 | Z77: 105 | AA77: 105
B78: 3 | C78: 2013 | D78: 102.2 | E78: 102 | F78: 102.4 | G78: 101.8 | H78: 102.4 | I78: 102.8 | J78: 102.9 | K78: 102.6 | L78: 102.4 | M78: 103.2 | N78: 103 | O78: 102.6 | P78: 102.1 | Q78: 102.8 | S78: 103.1 | T78: 104.5 | U78: 104.9 | V78: 110.5 | W78: 103.6 | X78: 103.5 | Y78: 103.6 | Z78: 110.5 | AA78: 110.6
B79: 4 | C79: 2013 | D79: 102.5 | E79: 102.2 | F79: 102.8 | G79: 102.1 | H79: 102.7 | I79: 102.9 | J79: 103 | K79: 102.9 | L79: 102.6 | M79: 103.6 | N79: 103.3 | O79: 102.9 | P79: 102.3 | Q79: 103 | S79: 103.9 | T79: 106.3 | U79: 105.6 | V79: 111.3 | W79: 103.7 | X79: 103.6 | Y79: 103.6 | Z79: 111.3 | AA79: 111.3
B80: 5 | C80: 2013 | D80: 102.2 | E80: 102.1 | F80: 102.5 | G80: 101.8 | H80: 102.6 | I80: 102.5 | J80: 102.5 | K80: 102.5 | L80: 102.5 | M80: 103.3 | N80: 102.9 | O80: 102.5 | P80: 102.1 | Q80: 103 | S80: 104.2 | T80: 107.2 | U80: 107.1 | V80: 106.1 | W80: 104.5 | X80: 104.2 | Y80: 103.9 | Z80: 106.2 | AA80: 106
B81: 6 | C81: 2013 | D81: 102.5 | E81: 102.5 | F81: 102.9 | G81: 101.9 | H81: 103.3 | I81: 102.9 | J81: 102.7 | K81: 102.8 | L81: 102.7 | M81: 103.8 | N81: 103.4 | O81: 102.9 | P81: 102.3 | Q81: 103.4 | S81: 104.9 | T81: 107.3 | U81: 108.3 | V81: 105.7 | W81: 105.4 | X81: 104.6 | Y81: 104.7 | Z81: 105.8 | AA81: 105.6
B82: 7 | C82: 2013 | D82: 103.4 | E82: 103.4 | F82: 104.9 | G82: 103.3 | H82: 104.3 | I82: 104.2 | J82: 104 | K82: 104.1 | L82: 103.8 | M82: 105 | N82: 104.3 | O82: 104 | P82: 103.2 | Q82: 104.3 | S82: 105.4 | T82: 107.3 | U82: 109.4 | V82: 113.1 | W82: 107.1 | X82: 106.9 | Y82: 106.1 | Z82: 113.1 | AA82: 113.1
B83: 8 | C83: 2013 | D83: 103.7 | E83: 103.7 | F83: 105 | G83: 103.7 | H83: 104.6 | I83: 104.6 | J83: 104.4 | K83: 104.5 | L83: 104.1 | M83: 105.2 | N83: 104.6 | O83: 104.3 | P83: 103.4 | Q83: 104.7 | S83: 105.6 | T83: 107.1 | U83: 109.1 | V83: 116.2 | W83: 108.1 | X83: 107.4 | Y83: 106.6 | Z83: 116.1 | AA83: 116.2
B84: 9 | C84: 2013 | D84: 104.6 | E84: 104.1 | F84: 105.6 | G84: 104.3 | H84: 105.3 | I84: 105 | J84: 105.1 | K84: 104.8 | L84: 104.6 | M84: 105.7 | N84: 104.8 | O84: 104.9 | P84: 104 | Q84: 105.3 | S84: 105.1 | T84: 107.1 | U84: 108.4 | V84: 117.5 | W84: 108.6 | X84: 107.6 | Y84: 107 | Z84: 117.4 | AA84: 117.5
B85: 10 | C85: 2013 | D85: 104.9 | E85: 104.3 | F85: 105.7 | G85: 104.5 | H85: 105.7 | I85: 105 | J85: 105.3 | K85: 104.9 | L85: 105 | M85: 105.9 | N85: 105.1 | O85: 105 | P85: 104.2 | Q85: 105.4 | S85: 105.2 | T85: 107.2 | U85: 108.5 | V85: 117.3 | W85: 109.5 | X85: 108.2 | Y85: 107.6 | Z85: 117.2 | AA85: 117.3
B86: 11 | C86: 2013 | D86: 104.9 | E86: 104.5 | F86: 105.7 | G86: 104.8 | H86: 105.9 | I86: 104.9 | J86: 105.6 | K86: 104.9 | L86: 104.9 | M86: 105.8 | N86: 105 | O86: 105.1 | P86: 104.2 | Q86: 105.6 | S86: 105.1 | T86: 107.1 | U86: 107.8 | V86: 115.8 | W86: 109.9 | X86: 108.6 | Y86: 108.1 | Z86: 115.8 | AA86: 115.9
B87: 12 | C87: 2013 | D87: 105 | E87: 104.9 | F87: 106.2 | G87: 105.2 | H87: 106.2 | I87: 105.2 | J87: 105.9 | K87: 105.3 | L87: 105.5 | M87: 106.3 | N87: 105.5 | O87: 105.3 | P87: 104.5 | Q87: 105.9 | S87: 105.1 | T87: 107 | U87: 108 | V87: 116.8 | W87: 110.1 | X87: 108.7 | Y87: 108.4 | Z87: 116.7 | AA87: 116.8
B88: 1 | C88: 2014 | D88: 105.9 | E88: 105.4 | F88: 106.6 | G88: 105.9 | H88: 106.8 | I88: 105.9 | J88: 106.6 | K88: 106 | L88: 106.2 | M88: 107 | N88: 106.2 | O88: 106 | P88: 105.2 | Q88: 106.9 | S88: 105.9 | T88: 108.1 | U88: 109.1 | V88: 119.8 | W88: 110.7 | X88: 108.8 | Y88: 108.4 | Z88: 119.7 | AA88: 119.9
B89: 2 | C89: 2014 | D89: 106.7 | E89: 106.6 | F89: 108.2 | G89: 106.7 | H89: 107.8 | I89: 107 | J89: 108.2 | K89: 107.2 | L89: 107.3 | M89: 108.4 | N89: 107.7 | O89: 107.4 | P89: 106.3 | Q89: 107.8 | S89: 106 | T89: 111.3 | U89: 112.8 | V89: 122.1 | W89: 112.3 | X89: 115.8 | Y89: 109 | Z89: 122 | AA89: 122.2
B90: 3 | C90: 2014 | D90: 108.2 | E90: 108.1 | F90: 109.3 | G90: 108 | H90: 109.2 | I90: 108.6 | J90: 109.5 | K90: 108.8 | L90: 108.6 | M90: 110 | N90: 109 | O90: 108.8 | P90: 107.3 | Q90: 109 | S90: 107.1 | T90: 112.1 | U90: 114.3 | V90: 124.7 | W90: 112.1 | X90: 116.2 | Y90: 109.5 | Z90: 124.5 | AA90: 124.8
B91: 4 | C91: 2014 | D91: 108.6 | E91: 108.5 | F91: 109.4 | G91: 108.4 | H91: 109.7 | I91: 109.1 | J91: 109.9 | K91: 109.4 | L91: 109.1 | M91: 110.6 | N91: 109.5 | O91: 109.2 | P91: 107.8 | Q91: 109.4 | S91: 107.5 | T91: 112.6 | U91: 114.2 | V91: 123.6 | W91: 112.9 | X91: 117.5 | Y91: 111.4 | Z91: 123.7 | AA91: 123.6
B92: 5 | C92: 2014 | D92: 108.9 | E92: 108.8 | F92: 109.6 | G92: 108.8 | H92: 109.9 | I92: 109.4 | J92: 110.3 | K92: 109.6 | L92: 109.3 | M92: 110.7 | N92: 109.6 | O92: 109.3 | P92: 108.2 | Q92: 109.8 | S92: 107.7 | T92: 112.4 | U92: 113.6 | V92: 120.8 | W92: 113.4 | X92: 117.7 | Y92: 111.8 | Z92: 120.9 | AA92: 120.7
B93: 6 | C93: 2014 | D93: 109.2 | E93: 109.4 | F93: 110.1 | G93: 109.2 | H93: 110.2 | I93: 109.5 | J93: 110.2 | K93: 109.9 | L93: 109.9 | M93: 111.2 | N93: 110 | O93: 109.5 | P93: 108.7 | Q93: 109.8 | S93: 108 | T93: 112.4 | U93: 114.1 | V93: 118.6 | W93: 113.6 | X93: 116.7 | Y93: 110.9 | Z93: 118.7 | AA93: 118.5
B94: 7 | C94: 2014 | D94: 110.1 | E94: 110.5 | F94: 111.3 | G94: 111.2 | H94: 110.8 | I94: 110.9 | J94: 110.7 | K94: 111 | L94: 110.5 | M94: 112.1 | N94: 110.6 | O94: 110.5 | P94: 109.1 | Q94: 110.6 | S94: 108 | T94: 112 | U94: 115.1 | V94: 119.9 | W94: 113.7 | X94: 116.3 | Y94: 110.6 | Z94: 120 | AA94: 119.8
B95: 8 | C95: 2014 | D95: 110.5 | E95: 110.8 | F95: 111.5 | G95: 111.4 | H95: 111.2 | I95: 111 | J95: 111.2 | K95: 111.2 | L95: 111 | M95: 112.4 | N95: 111 | O95: 110.9 | P95: 109.7 | Q95: 111 | S95: 108 | T95: 112 | U95: 114 | V95: 119.4 | W95: 113.9 | X95: 117.2 | Y95: 110.7 | Z95: 119.5 | AA95: 119.3
B96: 9 | C96: 2014 | D96: 110.9 | E96: 110.6 | F96: 111.4 | G96: 111.3 | H96: 111.2 | I96: 110.9 | J96: 111 | K96: 111.1 | L96: 110.8 | M96: 112.3 | N96: 111 | O96: 110.7 | P96: 109.7 | Q96: 111 | S96: 108.7 | T96: 113.2 | U96: 114.1 | V96: 117 | W96: 113.9 | X96: 117.2 | Y96: 110.6 | Z96: 117.2 | AA96: 116.9
B97: 10 | C97: 2014 | D97: 111.3 | E97: 110.8 | F97: 111.6 | G97: 111.4 | H97: 111.5 | I97: 111 | J97: 111.3 | K97: 111.2 | L97: 110.8 | M97: 112.5 | N97: 111.2 | O97: 110.8 | P97: 110 | Q97: 111 | S97: 108.8 | T97: 113.2 | U97: 114.4 | V97: 115.8 | W97: 113.3 | X97: 117.1 | Y97: 109.4 | Z97: 116 | AA97: 115.6
B98: 11 | C98: 2014 | D98: 111.4 | E98: 111 | F98: 111.6 | G98: 111.3 | H98: 111.6 | I98: 110.8 | J98: 111.3 | K98: 111.1 | L98: 110.9 | M98: 112.4 | N98: 111.1 | O98: 111 | P98: 110.1 | Q98: 110.9 | S98: 108.5 | T98: 114 | U98: 113.7 | V98: 110.1 | W98: 113.6 | X98: 117.1 | Y98: 109.4 | Z98: 110.3 | AA98: 109.8
B99: 12 | C99: 2014 | D99: 111.3 | E99: 110.9 | F99: 111.3 | G99: 111 | H99: 111.3 | I99: 110.5 | J99: 111.1 | K99: 110.8 | L99: 110.5 | M99: 112.3 | N99: 110.8 | O99: 110.6 | P99: 109.7 | Q99: 110.6 | S99: 108.1 | T99: 114 | U99: 110.5 | V99: 105 | W99: 113.6 | X99: 117.1 | Y99: 109.4 | Z99: 105.3 | AA99: 104.8
B100: 1 | C100: 2015 | D100: 111.2 | E100: 110.8 | F100: 111.1 | G100: 111 | H100: 111.5 | I100: 110 | J100: 110.9 | K100: 110.5 | L100: 110.6 | M100: 112 | N100: 110.7 | O100: 110.2 | P100: 109.9 | Q100: 110.6 | S100: 106.1 | T100: 111.3 | U100: 107.2 | V100: 95.3 | W100: 114.8 | X100: 118 | Y100: 110.1 | Z100: 95.6 | AA100: 94.9
B101: 2 | C101: 2015 | D101: 111.6 | E101: 111.5 | F101: 112.1 | G101: 111.5 | H101: 112.2 | I101: 110.5 | J101: 112.1 | K101: 111.1 | L101: 111.21 | M101: 112.7 | N101: 111.9 | O101: 111.1 | P101: 110.6 | Q101: 111.2 | S101: 105.5 | T101: 111.9 | U101: 102.4 | V101: 85.7 | W101: 115.4 | X101: 118.2 | Y101: 110.5 | Z101: 86.2 | AA101: 85.2
B102: 3 | C102: 2015 | D102: 113.3 | E102: 112.7 | F102: 113.5 | G102: 112.9 | H102: 113.9 | I102: 112.2 | J102: 113.5 | K102: 112.7 | L102: 112.5 | M102: 114.5 | N102: 113.5 | O102: 112.6 | P102: 111.7 | Q102: 112.7 | S102: 105.2 | T102: 111.3 | U102: 104.3 | V102: 92.6 | W102: 115.5 | X102: 118.2 | Y102: 110.5 | Z102: 93 | AA102: 92.2
B103: 4 | C103: 2015 | D103: 114.2 | E103: 113.7 | F103: 114.5 | G103: 114 | H103: 115 | I103: 113.4 | J103: 114.4 | K103: 113.8 | L103: 113.8 | M103: 115.6 | N103: 114.4 | O103: 113.8 | P103: 112.8 | Q103: 113.9 | S103: 102.2 | T103: 107.4 | U103: 102.6 | V103: 104.1 | W103: 115.7 | X103: 116.3 | Y103: 108.8 | Z103: 104.5 | AA103: 103.7
B104: 5 | C104: 2015 | D104: 114.4 | E104: 113.8 | F104: 114.8 | G104: 114.2 | H104: 115.3 | I104: 113.7 | J104: 114.6 | K104: 114 | L104: 114 | M104: 116 | N104: 114.7 | O104: 114.1 | P104: 113 | Q104: 114 | S104: 100.7 | T104: 105.6 | U104: 101.8 | V104: 103.6 | W104: 115.9 | X104: 116.3 | Y104: 108.7 | Z104: 104 | AA104: 103.2 | AC104: fjo checked
B105: 6 | C105: 2015 | D105: 114.8 | E105: 114.3 | F105: 115.4 | G105: 115 | H105: 115.8 | I105: 114 | J105: 114.9 | K105: 114.5 | L105: 114.3 | M105: 116.5 | N105: 115.1 | O105: 114.7 | P105: 113.8 | Q105: 114.7 | S105: 100.9 | T105: 105.3 | U105: 103 | V105: 108.2 | W105: 115.9 | X105: 116.6 | Y105: 108.4 | Z105: 108.5 | AA105: 107.9 | AC105: fjo checked
B106: 7 | C106: 2015 | D106: 115.9 | E106: 115.5 | F106: 117.2 | G106: 116.3 | H106: 116.8 | I106: 115.7 | J106: 116.2 | K106: 116 | L106: 115.4 | M106: 117.8 | N106: 116.1 | O106: 116 | P106: 114.5 | Q106: 115.6 | S106: 100.7 | T106: 105.4 | U106: 101.3 | V106: 108.6 | W106: 116.1 | X106: 117.2 | Y106: 107.8 | Z106: 108.9 | AA106: 108.2 | AC106: fjo checked
B107: 8 | C107: 2015 | D107: 115.9 | E107: 115.6 | F107: 117.3 | G107: 116.3 | H107: 116.9 | I107: 115.5 | J107: 116.3 | K107: 115.9 | L107: 115.6 | M107: 117.8 | N107: 116.2 | O107: 116 | P107: 114.6 | Q107: 115.7 | S107: 101.1 | T107: 106 | U107: 101.2 | V107: 101.4 | W107: 116.3 | X107: 117.8 | Y107: 108.1 | Z107: 101.9 | AA107: 101 | AC107: fjo checked
B108: 9 | C108: 2015 | D108: 116.4 | E108: 115.7 | F108: 117.3 | G108: 116.4 | H108: 116.8 | I108: 115.3 | J108: 116.2 | K108: 115.9 | L108: 115.3 | M108: 117.8 | N108: 116.3 | O108: 115.8 | P108: 114.4 | Q108: 115.9 | S108: 100.6 | T108: 105.7 | U108: 98.1 | V108: 96.4 | W108: 117.4 | X108: 118.3 | Y108: 108.9 | Z108: 96.8 | AA108: 95.9 | AC108: fjo checked
B109: 10 | C109: 2015 | D109: 116.8 | E109: 116 | F109: 117.5 | G109: 116.6 | H109: 116.9 | I109: 115.6 | J109: 116.4 | K109: 116.1 | L109: 115.4 | M109: 118 | N109: 116.7 | O109: 116 | P109: 114.4 | Q109: 116 | S109: 100.9 | T109: 105.7 | U109: 95.6 | V109: 101.4 | W109: 119.3 | X109: 119.5 | Y109: 109.7 | Z109: 101.8 | AA109: 100.9 | AC109: fjo checked
B110: 11 | C110: 2015 | D110: 117 | E110: 116.1 | F110: 117.4 | G110: 116.6 | H110: 117.1 | I110: 115.4 | J110: 116.5 | K110: 116 | L110: 115.6 | M110: 118 | N110: 116.8 | O110: 116.1 | P110: 114.8 | Q110: 116.2 | S110: 100.9 | T110: 105.6 | U110: 95.9 | V110: 100.5 | W110: 119.4 | X110: 120.2 | Y110: 110.1 | Z110: 100.9 | AA110: 100.1 | AC110: fjo checked
B111: 12 | C111: 2015 | D111: 117.4 | E111: 116.3 | F111: 117.7 | G111: 117.2 | H111: 117.7 | I111: 115.7 | J111: 117 | K111: 116.3 | L111: 116.1 | M111: 118.4 | N111: 117.2 | O111: 116.4 | P111: 115.1 | Q111: 116.7 | S111: 100.6 | T111: 106 | U111: 97.6 | V111: 100.2 | W111: 119.4 | X111: 120.3 | Y111: 110.2 | Z111: 100.6 | AA111: 99.7 | AC111: fjo checked
B112: 1 | C112: 2016 | D112: 118.1 | E112: 117.2 | F112: 118.4 | G112: 117.7 | H112: 119.1 | I112: 116.1 | J112: 117.7 | K112: 117 | L112: 117 | M112: 119.3 | N112: 118.1 | O112: 117.5 | P112: 116.5 | Q112: 117.6 | S112: 103.4 | T112: 108.3 | U112: 96.8 | V112: 93 | W112: 125.4 | X112: 124.3 | Y112: 113.5 | Z112: 93.5 | AA112: 92.5 | AC112: fjo checked
B113: 2 | C113: 2016 | D113: 119.4 | E113: 119.1 | F113: 120.3 | G113: 118.9 | H113: 120.7 | I113: 117.6 | J113: 119.7 | K113: 118.6 | L113: 118.4 | M113: 120.9 | N113: 119.9 | O113: 119 | P113: 118.2 | Q113: 119 | S113: 105.6 | T113: 111.4 | U113: 97.2 | V113: 87.2 | W113: 125.9 | X113: 123.9 | Y113: 114.1 | Z113: 87.7 | AA113: 86.6 | AC113: fjo checked
B114: 3 | C114: 2016 | D114: 120.4 | E114: 120.1 | F114: 121.2 | G114: 119.7 | H114: 121.7 | I114: 118.5 | J114: 120.5 | K114: 119.5 | L114: 119 | M114: 121.6 | N114: 120.8 | O114: 119.8 | P114: 119 | Q114: 120.1 | S114: 105.8 | T114: 109.9 | U114: 95.6 | V114: 88.6 | W114: 127.2 | X114: 125.2 | Y114: 115.3 | Z114: 89.1 | AA114: 88 | AC114: fjo checked
B115: 4 | C115: 2016 | D115: 121.2 | E115: 121.1 | F115: 122.2 | G115: 120.7 | H115: 122.7 | I115: 119.5 | J115: 121.6 | K115: 120.6 | L115: 120.4 | M115: 122.6 | N115: 121.8 | O115: 120.9 | P115: 119.9 | Q115: 121.5 | S115: 106.6 | T115: 113.1 | U115: 97.3 | V115: 97.3 | W115: 127.8 | X115: 125.2 | Y115: 115.4 | Z115: 98 | AA115: 96.6 | AC115: fjo checked
B116: 5 | C116: 2016 | D116: 121.2 | E116: 121.4 | F116: 122.5 | G116: 121 | H116: 123 | I116: 119.8 | J116: 122.1 | K116: 120.9 | L116: 120.8 | M116: 122.9 | N116: 122 | O116: 121.2 | P116: 120.1 | Q116: 121.7 | S116: 109.2 | T116: 117.2 | U116: 98.8 | V116: 97.2 | W116: 128.8 | X116: 125.5 | Y116: 116.5 | Z116: 97.9 | AA116: 96.5 | AC116: fjo checked
B117: 6 | C117: 2016 | D117: 122.1 | E117: 122.4 | F117: 123 | G117: 121.8 | H117: 123.7 | I117: 120.8 | J117: 122.7 | K117: 121.8 | L117: 121.3 | M117: 123.8 | N117: 122.5 | O117: 121.8 | P117: 120.7 | Q117: 122.1 | S117: 109.4 | T117: 117 | U117: 101.9 | V117: 104.4 | W117: 129.9 | X117: 126.3 | Y117: 118 | Z117: 105 | AA117: 103.7 | AC117: fjo checked
B118: 7 | C118: 2016 | D118: 122.9 | E118: 123.5 | F118: 124.5 | G118: 123.1 | H118: 124.7 | I118: 122.2 | J118: 124.1 | K118: 123.2 | L118: 122.2 | M118: 125 | N118: 123.3 | O118: 122.9 | P118: 121.4 | Q118: 123.1 | S118: 108.8 | T118: 115.8 | U118: 102.4 | V118: 108.3 | W118: 130.5 | X118: 125.8 | Y118: 117.6 | Z118: 108.9 | AA118: 107.7 | AC118: fjo checked
B119: 8 | C119: 2016 | D119: 122.7 | E119: 123.5 | F119: 124.3 | G119: 122.9 | H119: 124.6 | I119: 121.9 | J119: 123.8 | K119: 122.8 | L119: 122.2 | M119: 124.6 | N119: 123.2 | O119: 122.7 | P119: 121.4 | Q119: 122.8 | S119: 110.1 | T119: 116.1 | U119: 102.9 | V119: 101.4 | W119: 131.1 | X119: 126.7 | Y119: 118.5 | Z119: 102 | AA119: 100.7 | AC119: fjo checked
B120: 9 | C120: 2016 | D120: 123.3 | E120: 123.7 | F120: 124.6 | G120: 123.2 | H120: 125 | I120: 122.2 | J120: 124.4 | K120: 123.1 | L120: 122.2 | M120: 125.1 | N120: 123.2 | O120: 122.7 | P120: 121.4 | Q120: 123.1 | S120: 109.1 | T120: 115.7 | U120: 101 | V120: 96.8 | W120: 131.1 | X120: 126.7 | Y120: 118.6 | Z120: 97.6 | AA120: 96.1 | AC120: fjo checked
B121: 10 | C121: 2016 | D121: 123.9 | E121: 124.1 | F121: 125 | G121: 123.8 | H121: 125.3 | I121: 122.7 | J121: 125.3 | K121: 123.7 | L121: 123 | M121: 125.6 | N121: 123.8 | O121: 123.4 | P121: 122.3 | Q121: 123.7 | S121: 109.6 | T121: 115.7 | U121: 101.8 | V121: 99 | W121: 130.9 | X121: 126.6 | Y121: 118.4 | Z121: 99.7 | AA121: 98.3 | AC121: fjo checked
B122: 11 | C122: 2016 | D122: 124.4 | E122: 124.6 | F122: 125.2 | G122: 124 | H122: 125.6 | I122: 123.1 | J122: 125.7 | K122: 124.1 | L122: 123.3 | M122: 126.1 | N122: 124.1 | O122: 123.7 | P122: 122.5 | Q122: 124.2 | S122: 109.7 | T122: 115.7 | U122: 102.3 | V122: 104.9 | W122: 130.6 | X122: 126.4 | Y122: 118.1 | Z122: 105.6 | AA122: 104.3 | AC122: fjo checked
B123: 12 | C123: 2016 | D123: 125.8 | E123: 125.1 | F123: 125.2 | G123: 124.5 | H123: 126.1 | I123: 123.4 | J123: 125.8 | K123: 124.4 | L123: 123.7 | M123: 126.4 | N123: 124.7 | O123: 123.9 | P123: 122.5 | Q123: 124.8 | S123: 114.2 | T123: 118.6 | U123: 102.8 | V123: 101.9 | W123: 130 | X123: 126.1 | Y123: 117.3 | Z123: 102.6 | AA123: 101.2 | AC123: fjo checked
D124: These regional indices found in Table 14 of P0141 will be discontinued from January 2017 - this changed is being discussed with relevant organce of state. | S124: PLEASE REFER TO THE ADVICE NOTE REGARDING NEW DIESEL INDICES (APPLICABLE FROM MAR '16 ONWARDS)
D125: Alternative / replacement indices are being investigated and members will be advised shortly in this regard. | S125: All CPA calculations going beyond Feb '16 will be required to be re-calculated based on the new diesel indices available from Jan '08
D128: 0.7917656374 | E128: 0.786163522 | F128: 0.7880220646 | G128: 0.7751937984 | H128: 0.7757951901 | I128: 0.8006405124 | J128: 0.7855459544 | K128: 0.7949125596 | L128: 0.772797527 | M128: 0.7886435331 | N128: 0.8038585209 | O128: 0.7824726135 | P128: 0.7874015748 | Q128: 0.7974481659 | S128: 2.272 | T128: 2.89 | U128: 3.22 | V128: 4.149 | W128: 1.909 | X128: 2.196 | Y128: 1.992 | Z128: 4.24 | AA128: 4.205

Sheet Discontinued - OLDTABLE A
D2: OLD TABLE A (Indice base 100 as at Dec 2012)
D4: Refer to P0141 - Consumer Price Index: | S4: Refer to P0151 - Contract Price Adjustment Provisions (CPAP): | X4: THESE ARE OLD DIESEL INDICES APPLICABLE UPTO FEB '16
D5: Additional Tables: Table 14 - CPI all items, according to area | S5: Work Groups and Selected Materials Indices: Table 3 and Table 4
B7: Conversion Factors: | D7: 0.7917656374 | E7: 0.786163522 | F7: 0.7880220646 | G7: 0.7751937984 | H7: 0.7757951901 | I7: 0.8006405124 | J7: 0.7855459544 | K7: 0.7949125596 | L7: 0.772797527 | M7: 0.7886435331 | N7: 0.8038585209 | O7: 0.7824726135 | P7: 0.7874015748 | Q7: 0.7974481659 | S7: 2.272 | T7: 2.89 | U7: 3.22 | V7: 4.149 | W7: 1.909 | X7: 2.196 | Y7: 1.992 | Z7: 4.24 | AA7: 4.205
D9: DEC 2012 = 100 | S9: DEC 2012 = 100
B11: Area: | D11: Western Cape | E11: Eastern Cape | G11: Northern Cape | H11: Free State | I11: KwaZulu Natal | L11: North West | M11: Gauteng | P11: Mpumalanga | Q11: Limpopo | S11: Table 3 | T11: Table 4
B12: Month | C12: Year | D12: City of Cape Town | E12: Port Elizabeth | F12: East London | G12: Kimberly | H12: Bloemfontein / Welkom | I12: Durban / Pinetown | J12: Pieter- Maritzburg | K12: All Urban Areas | L12: Rustenburg / Klerkdorp | M12: City of Tswane | N12: City of Johannesburg | O12: Ekurhuleni | P12: Witbank / Netspruit | Q12: Polokwane | S12: Materials for Civil Engineering | T12: Materials for Concrete Works | U12: Materials for Roads & E/Works | V12: Diesel Fuel Coast & Wtwtrsrnd | W12: Civil Engineering Plant | X12: Plant for Concrete Works | Y12: Plant for Roads & E/Works | Z12: Diesel at Wholesale Level
Z13: Witwatersrand | AA13: Coast
B14: 1 | C14: 2008 | D14: 75.6 | E14: 75.1 | F14: 74.8 | G14: 73.6 | H14: 74.1 | I14: 76.1 | J14: 75 | K14: 75.8 | L14: 73.3 | M14: 75.2 | N14: 76.5 | O14: 74.8 | P14: 75.2 | Q14: 76.4 | S14: =184.1/S118 -> 81.02992958 | V14: =304.1/V118 -> 73.29476982 | W14: =153.7/W118 -> 80.51335778 | Z14: =287.7/Z118 -> 67.85377358 | AA14: =284.3/AA118 -> 67.60998811
B15: 2 | C15: 2008 | D15: 76 | E15: 75.5 | F15: 75.1 | G15: 73.9 | H15: 74.6 | I15: 76.5 | J15: 75.6 | K15: 76.2 | L15: 74 | M15: 75.8 | N15: 77.1 | O15: 75.3 | P15: 75.7 | Q15: 77.1 | S15: =186.8/S118 -> 82.21830986 | V15: =321.6/V118 -> 77.51265365 | W15: =161.4/W118 -> 84.54688318 | Z15: =290.5/Z118 -> 68.51415094 | AA15: =287.1/AA118 -> 68.27586207
B16: 3 | C16: 2008 | D16: 77.2 | E16: 76.5 | F16: 76.3 | G16: 74.7 | H16: 75.7 | I16: 77.3 | J16: 76.4 | K16: 76.9 | L16: 75.2 | M16: 77.1 | N16: 78.5 | O16: 76.4 | P16: 76.5 | Q16: 78 | S16: =187.8/S118 -> 82.6584507 | V16: =367.6/V118 -> 88.59966257 | W16: =161.4/W118 -> 84.54688318 | Z16: =321.4/Z118 -> 75.80188679 | AA16: =318.3/AA118 -> 75.69560048
B17: 4 | C17: 2008 | D17: 77.8 | E17: 77 | F17: 77 | G17: 75.6 | H17: 76.2 | I17: 78.1 | J17: 77 | K17: 77.6 | L17: 75.7 | M17: 77.5 | N17: 78.9 | O17: 76.8 | P17: 77.1 | Q17: 78.4 | S17: =191/S118 -> 84.06690141 | V17: =424.9/V118 -> 102.4102193 | W17: =161.4/W118 -> 84.54688318 | Z17: =372.6/Z118 -> 87.87735849 | AA17: =369.5/AA118 -> 87.87158145
B18: 5 | C18: 2008 | D18: 78.2 | E18: 77.6 | F18: 77.6 | G18: 76 | H18: 76.7 | I18: 78.7 | J18: 77.5 | K18: 78.1 | L18: 76.2 | M18: 78 | N18: 79.3 | O18: 77.5 | P18: 77.5 | Q18: 79.1 | S18: =199/S118 -> 87.58802817 | V18: =471/V118 -> 113.5213304 | W18: =168.3/W118 -> 88.16134102 | Z18: =400.4/Z118 -> 94.43396226 | AA18: =397.9/AA118 -> 94.6254459
B19: 6 | C19: 2008 | D19: 79 | E19: 78.5 | F19: 79 | G19: 77.1 | H19: 77.4 | I19: 80.1 | J19: 78.6 | K19: 79.5 | L19: 77.3 | M19: 78.9 | N19: 80.7 | O19: 78.6 | P19: 78.7 | Q19: 79.9 | S19: =201.8/S118 -> 88.82042254 | V19: =519.9/V118 -> 125.307303 | W19: =168.3/W118 -> 88.16134102 | Z19: =428.5/Z118 -> 101.0613208 | AA19: =426.3/AA118 -> 101.3793103
B20: 7 | C20: 2008 | D20: 80.1 | E20: 79.6 | F20: 80.1 | G20: 78.8 | H20: 78.4 | I20: 81.6 | J20: 79.5 | K20: 80.9 | L20: 78.2 | M20: 79.9 | N20: 81.6 | O20: 79.8 | P20: 79.8 | Q20: 80.9 | S20: =203.9/S118 -> 89.74471831 | V20: =511.9/V118 -> 123.3791275 | W20: =168.3/W118 -> 88.16134102 | Z20: =453.5/Z118 -> 106.9575472 | AA20: =451.5/AA118 -> 107.372176
B21: 8 | C21: 2008 | D21: 80.6 | E21: 80 | F21: 80.7 | G21: 79.6 | H21: 78.9 | I21: 82.1 | J21: 80 | K21: 81.3 | L21: 79.1 | M21: 80 | N21: 82.1 | O21: 80 | P21: 80 | Q21: 81.2 | S21: =217.3/S118 -> 95.64260563 | V21: =419.9/V118 -> 101.2051097 | W21: =175.4/W118 -> 91.88056574 | Z21: =447.1/Z118 -> 105.4481132 | AA21: =444.7/AA118 -> 105.7550535
B22: 9 | C22: 2008 | D22: 81.2 | E22: 80.9 | F22: 81.2 | G22: 79.9 | H22: 79.6 | I22: 82.3 | J22: 80.6 | K22: 81.6 | L22: 79.6 | M22: 80.8 | N22: 82.4 | O22: 79.8 | P22: 80.9 | Q22: 81.3 | S22: =218.8/S118 -> 96.3028169 | V22: =394.3/V118 -> 95.03494818 | W22: =175.4/W118 -> 91.88056574 | Z22: =390/Z118 -> 91.98113208 | AA22: =387.1/AA118 -> 92.05707491
B23: 10 | C23: 2008 | D23: 81.5 | E23: 81.1 | F23: 81.3 | G23: 80.3 | H23: 79.8 | I23: 82.6 | J23: 80.8 | K23: 82 | L23: 79.7 | M23: 81.1 | N23: 82.5 | O23: 80.1 | P23: 81.2 | Q23: 81.6 | S23: =219.6/S118 -> 96.65492958 | V23: =377.4/V118 -> 90.96167751 | W23: =175.4/W118 -> 91.88056574 | Z23: =367.8/Z118 -> 86.74528302 | AA23: =364.7/AA118 -> 86.73008323
B24: 11 | C24: 2008 | D24: 81.5 | E24: 81.1 | F24: 81.4 | G24: 80.4 | H24: 79.8 | I24: 82.6 | J24: 80.9 | K24: 82 | L24: 79.7 | M24: 81.2 | N24: 82.6 | O24: 80 | P24: 81.3 | Q24: 81.7 | S24: =219.2/S118 -> 96.47887324 | V24: =336.8/V118 -> 81.17618703 | W24: =184.8/W118 -> 96.80460974 | Z24: =358.2/Z118 -> 84.48113208 | AA24: =355.1/AA118 -> 84.4470868
B25: 12 | C25: 2008 | D25: 81.4 | E25: 80.7 | F25: 81.3 | G25: 80.2 | H25: 79.8 | I25: 82.7 | J25: 80.8 | K25: 82 | L25: 79.6 | M25: 80.8 | N25: 82.5 | O25: 79.7 | P25: 81.1 | Q25: 81.3 | S25: =216.6/S118 -> 95.33450704 | V25: =274.3/V118 -> 66.11231622 | W25: =184.8/W118 -> 96.80460974 | Z25: =326.1/Z118 -> 76.91037736 | AA25: =322.7/AA118 -> 76.74197384
B26: 1 | C26: 2009 | D26: 81.5 | E26: 80.8 | F26: 80.9 | G26: 80.3 | H26: 80.1 | I26: 83.4 | J26: 81.2 | K26: 82.7 | L26: 79.6 | M26: 81.2 | N26: 82.6 | O26: 79.7 | P26: 81.7 | Q26: 81.3 | S26: =219.7/S118 -> 96.69894366 | V26: =286.5/V118 -> 69.0527838 | W26: =184.8/W118 -> 96.80460974 | Z26: =259.4/Z118 -> 61.17924528 | AA26: =255.5/AA118 -> 60.76099881
B27: 2 | C27: 2009 | D27: 82.2 | E27: 81.8 | F27: 82 | G27: 81 | H27: 80.9 | I27: 84.1 | J27: 82 | K27: 83.4 | L27: 80.9 | M27: 82.3 | N27: 83.7 | O27: 80.8 | P27: 82.9 | Q27: 82.8 | S27: =215.7/S118 -> 94.93838028 | V27: =271.3/V118 -> 65.38925042 | W27: =193/W118 -> 101.1000524 | Z27: =257.4/Z118 -> 60.70754717 | AA27: =253.9/AA118 -> 60.38049941
B28: 3 | C28: 2009 | D28: 83.5 | E28: 82.9 | F28: 83.1 | G28: 82.2 | H28: 82 | I28: 85 | J28: 83.2 | K28: 84.3 | L28: 82.3 | M28: 83.4 | N28: 84.8 | O28: 82.1 | P28: 83.9 | Q28: 84 | S28: =214.8/S118 -> 94.54225352 | V28: =253.5/V118 -> 61.09906001 | W28: =193/W118 -> 101.1000524 | Z28: =242.4/Z118 -> 57.16981132 | AA28: =238.3/AA118 -> 56.6706302
B29: 4 | C29: 2009 | D29: 83.8 | E29: 83.3 | F29: 83.5 | G29: 82.5 | H29: 82.5 | I29: 85.4 | J29: 83.6 | K29: 84.7 | L29: 82.5 | M29: 83.9 | N29: 85.3 | O29: 82.5 | P29: 84.3 | Q29: 84.1 | S29: =213.3/S118 -> 93.88204225 | V29: =250.2/V118 -> 60.30368764 | W29: =193/W118 -> 101.1000524 | Z29: =258.2/Z118 -> 60.89622642 | AA29: =254.3/AA118 -> 60.47562426
B30: 5 | C30: 2009 | D30: 84.1 | E30: 83.5 | F30: 83.9 | G30: 82.8 | H30: 82.8 | I30: 85.7 | J30: 84 | K30: 85.1 | L30: 82.8 | M30: 84.2 | N30: 85.6 | O30: 82.6 | P30: 84.9 | Q30: 84.4 | S30: =209/S118 -> 91.98943662 | V30: =251.1/V118 -> 60.52060738 | W30: =189.2/W118 -> 99.1094814 | Z30: =261.4/Z118 -> 61.6509434 | AA30: =257.5/AA118 -> 61.23662307
B31: 6 | C31: 2009 | D31: 84.5 | E31: 83.6 | F31: 84.2 | G31: 83.1 | H31: 83 | I31: 85.7 | J31: 84.2 | K31: 85.2 | L31: 83.1 | M31: 84.3 | N31: 86.2 | O31: 82.9 | P31: 85.4 | Q31: 84.9 | S31: =208.9/S118 -> 91.94542254 | V31: =256.8/V118 -> 61.89443239 | W31: =189.2/W118 -> 99.1094814 | Z31: =256.3/Z118 -> 60.44811321 | AA31: =253.1/AA118 -> 60.1902497
B32: 7 | C32: 2009 | D32: 85.4 | E32: 85.1 | F32: 85.2 | G32: 84.3 | H32: 83.9 | I32: 86.5 | J32: 84.8 | K32: 86 | L32: 84.2 | M32: 85.7 | N32: 86.7 | O32: 84.4 | P32: 86.3 | Q32: 85.7 | S32: =211.3/S118 -> 93.00176056 | V32: =266.2/V118 -> 64.16003856 | W32: =189.2/W118 -> 99.1094814 | Z32: =272.1/Z118 -> 64.1745283 | AA32: =269.1/AA118 -> 63.99524376
B33: 8 | C33: 2009 | D33: 85.7 | E33: 85.4 | F33: 85.3 | G33: 84.7 | H33: 84.1 | I33: 86.6 | J33: 84.9 | K33: 86.2 | L33: 84.5 | M33: 85.9 | N33: 87.2 | O33: 84.6 | P33: 86.8 | Q33: 85.8 | S33: =210.1/S118 -> 92.47359155 | V33: =262.1/V118 -> 63.17184864 | W33: =190.9/W118 -> 100 | Z33: =264.2/Z118 -> 62.31132075 | AA33: =261.1/AA118 -> 62.09274673
B34: 9 | C34: 2009 | D34: 86.1 | E34: 85.5 | F34: 85.9 | G34: 85 | H34: 84.4 | I34: 86.9 | J34: 85.2 | K34: 86.4 | L34: 84.8 | M34: 86.3 | N34: 87.5 | O34: 84.8 | P34: 86.9 | Q34: 86.1 | S34: =209.8/S118 -> 92.3415493 | V34: =272.6/V118 -> 65.70257893 | W34: =190.9/W118 -> 100 | Z34: =277.7/Z118 -> 65.49528302 | AA34: =274.7/AA118 -> 65.32699168
B35: 10 | C35: 2009 | D35: 86.2 | E35: 85.5 | F35: 85.8 | G35: 85 | H35: 84.3 | I35: 86.8 | J35: 85.2 | K35: 86.3 | L35: 84.7 | M35: 86.2 | N35: 87.5 | O35: 84.7 | P35: 86.9 | Q35: 86.2 | S35: =209.5/S118 -> 92.20950704 | V35: =257.7/V118 -> 62.11135213 | W35: =190.9/W118 -> 100 | Z35: =265/Z118 -> 62.5 | AA35: =261.9/AA118 -> 62.28299643
B36: 11 | C36: 2009 | D36: 86.3 | E36: 85.5 | F36: 85.7 | G36: 85 | H36: 84.3 | I36: 86.8 | J36: 85.1 | K36: 86.3 | L36: 84.8 | M36: 86.3 | N36: 87.5 | O36: 84.7 | P36: 86.9 | Q36: 86.1 | S36: =209.8/S118 -> 92.3415493 | V36: =262.2/V118 -> 63.19595083 | W36: =188.1/W118 -> 98.53326349 | Z36: =268.9/Z118 -> 63.41981132 | AA36: =265.9/AA118 -> 63.23424495
B37: 12 | C37: 2009 | D37: 86.9 | E37: 85.7 | F37: 86 | G37: 85 | H37: 84.5 | I37: 87 | J37: 85.2 | K37: 86.6 | L37: 85 | M37: 86.6 | N37: 87.2 | O37: 85.1 | P37: 87.2 | Q37: 86.3 | S37: =209.8/S118 -> 92.3415493 | V37: =275.4/V118 -> 66.37744035 | W37: =188.1/W118 -> 98.53326349 | Z37: =278.9/Z118 -> 65.77830189 | AA37: =275.9/AA118 -> 65.61236623
B38: 1 | C38: 2010 | D38: 87.1 | E38: 85.8 | F38: 86.1 | G38: 85.2 | H38: 84.7 | I38: 87.4 | J38: 85.5 | K38: 86.9 | L38: 85.2 | M38: 86.9 | N38: 87.5 | O38: 85.4 | P38: 87.5 | Q38: 86.4 | S38: =212.5/S118 -> 93.52992958 | V38: =269.1/V118 -> 64.85900217 | W38: =188.1/W118 -> 98.53326349 | Z38: =273.3/Z118 -> 64.45754717 | AA38: =270.3/AA118 -> 64.28061831
B39: 2 | C39: 2010 | D39: 87.4 | E39: 86.5 | F39: 86.7 | G39: 85.4 | H39: 85.3 | I39: 87.7 | J39: 85.9 | K39: 87.3 | L39: 86.2 | M39: 87.5 | N39: 88 | O39: 85.9 | P39: 88.1 | Q39: 87.1 | S39: =213/S118 -> 93.75 | V39: =276.4/V118 -> 66.61846228 | W39: =188/W118 -> 98.48088004 | Z39: =277.3/Z118 -> 65.4009434 | AA39: =274.3/AA118 -> 65.23186683
B40: 3 | C40: 2010 | D40: 88.4 | E40: 87.3 | F40: 87.5 | G40: 85.9 | H40: 86 | I40: 88.4 | J40: 86.7 | K40: 87.9 | L40: 87 | M40: 88.2 | N40: 88.8 | O40: 86.8 | P40: 88.7 | Q40: 87.6 | S40: =213/S118 -> 93.75 | V40: =280.4/V118 -> 67.58255001 | W40: =188.9/W118 -> 98.95233106 | Z40: =278.9/Z118 -> 65.77830189 | AA40: =275.9/AA118 -> 65.61236623
B41: 4 | C41: 2010 | D41: 88.7 | E41: 87.4 | F41: 87.8 | G41: 86.3 | H41: 86.4 | I41: 88.5 | J41: 86.6 | K41: 88 | L41: 87.2 | M41: 88.4 | N41: 89 | O41: 86.9 | P41: 88.8 | Q41: 87.6 | S41: =212.8/S118 -> 93.66197183 | V41: =296.5/V118 -> 71.46300313 | W41: =188.9/W118 -> 98.95233106 | Z41: =298.3/Z118 -> 70.35377358 | AA41: =295.5/AA118 -> 70.27348395
B42: 5 | C42: 2010 | D42: 88.8 | E42: 87.6 | F42: 87.7 | G42: 86.4 | H42: 86.4 | I42: 88.6 | J42: 87 | K42: 88.2 | L42: 87.3 | M42: 88.5 | N42: 89.1 | O42: 87 | P42: 89 | Q42: 88 | S42: =215.4/S118 -> 94.80633803 | V42: =304.4/V118 -> 73.3670764 | W42: =187.6/W118 -> 98.27134625 | Z42: =309.8/Z118 -> 73.06603774 | AA42: =306.7/AA118 -> 72.93697979
B43: 6 | C43: 2010 | D43: 88.7 | E43: 87.8 | F43: 87.8 | G43: 86.1 | H43: 86.5 | I43: 88.6 | J43: 87.1 | K43: 88.2 | L43: 87.4 | M43: 88.7 | N43: 89.2 | O43: 86.8 | P43: 89.1 | Q43: 88 | S43: =216.7/S118 -> 95.37852113 | V43: =300.5/V118 -> 72.42709087 | W43: =187.4/W118 -> 98.16657936 | Z43: =303.9/Z118 -> 71.6745283 | AA43: =301.1/AA118 -> 71.60523187
B44: 7 | C44: 2010 | D44: 89.1 | E44: 88.4 | F44: 88.3 | G44: 87.4 | H44: 87.3 | I44: 88.8 | J44: 87.9 | K44: 88.6 | L44: 87.9 | M44: 89.3 | N44: 89.6 | O44: 87.8 | P44: 89.1 | Q44: 88.4 | S44: =214.1/S118 -> 94.23415493 | V44: =296/V118 -> 71.34249217 | W44: =187.2/W118 -> 98.06181247 | Z44: =297.9/Z118 -> 70.25943396 | AA44: =295.1/AA118 -> 70.1783591
B45: 8 | C45: 2010 | D45: 89.1 | E45: 88.4 | F45: 88.3 | G45: 87.4 | H45: 87.4 | I45: 88.8 | J45: 88.1 | K45: 88.7 | L45: 87.9 | M45: 89.2 | N45: 89.8 | O45: 87.7 | P45: 89.8 | Q45: 88.5 | S45: =212.6/S118 -> 93.57394366 | V45: =293.1/V118 -> 70.64352856 | W45: =186.7/W118 -> 97.79989523 | Z45: =292.7/Z118 -> 69.03301887 | AA45: =289.9/AA118 -> 68.94173603
B46: 9 | C46: 2010 | D46: 89.2 | E46: 88.6 | F46: 88.3 | G46: 87.6 | H46: 87.9 | I46: 88.6 | J46: 88.5 | K46: 88.6 | L46: 88.1 | M46: 89.5 | N46: 89.8 | O46: 87.6 | P46: 89.9 | Q46: 88.8 | S46: =212.6/S118 -> 93.57394366 | V46: =290.6/V118 -> 70.04097373 | W46: =186.7/W118 -> 97.79989523 | Z46: =292.7/Z118 -> 69.03301887 | AA46: =289.9/AA118 -> 68.94173603
B47: 10 | C47: 2010 | D47: 89.3 | E47: 88.7 | F47: 88.5 | G47: 87.8 | H47: 88.1 | I47: 88.8 | J47: 88.5 | K47: 88.8 | L47: 88.2 | M47: 89.6 | N47: 90 | O47: 87.9 | P47: 90.4 | Q47: 89.2 | S47: =213.7/S118 -> 94.05809859 | T47: =248.8/T118 -> 86.0899654 | U47: =264.6/U118 -> 82.17391304 | V47: =291.3/V118 -> 70.20968908 | W47: =186.8/W118 -> 97.85227868 | X47: =205.1/X118 -> 93.39708561 | Y47: =189.4/Y118 -> 95.08032129 | Z47: =291.6/Z118 -> 68.77358491 | AA47: =288.7/AA118 -> 68.65636147
B48: 11 | C48: 2010 | D48: 89.4 | E48: 88.9 | F48: 88.5 | G48: 87.8 | H48: 88.1 | I48: 88.9 | J48: 88.6 | K48: 89 | L48: 88.3 | M48: 89.8 | N48: 90.1 | O48: 88 | P48: 90.2 | Q48: 89.4 | S48: =212.9/S118 -> 93.70598592 | T48: =248.7/T118 -> 86.05536332 | U48: =264.7/U118 -> 82.20496894 | V48: =299/V118 -> 72.06555797 | W48: =187.5/W118 -> 98.21896281 | X48: =205.4/X118 -> 93.53369763 | Y48: =190.1/Y118 -> 95.43172691 | Z48: =301.5/Z118 -> 71.10849057 | AA48: =298.7/AA118 -> 71.03448276
B49: 12 | C49: 2010 | D49: 89.6 | E49: 89 | F49: 88.7 | G49: 87.8 | H49: 88.3 | I49: 89 | J49: 88.8 | K49: 89 | L49: 88.3 | M49: 89.9 | N49: 90.3 | O49: 88.4 | P49: 90.2 | Q49: 89.4 | S49: =213.1/S118 -> 93.79401408 | T49: =248.5/T118 -> 85.98615917 | U49: =266.2/U118 -> 82.67080745 | V49: =309.4/V118 -> 74.57218607 | W49: =185.8/W118 -> 97.32844421 | X49: =201.5/X118 -> 91.75774135 | Y49: =189.2/Y118 -> 94.97991968 | Z49: =301.5/Z118 -> 71.10849057 | AA49: =298.7/AA118 -> 71.03448276
B50: 1 | C50: 2011 | D50: 90 | E50: 89.5 | F50: 89 | G50: 88.5 | H50: 88.9 | I50: 89.4 | J50: 89.3 | K50: 89.5 | L50: 88.9 | M50: 90 | N50: 90.6 | O50: 88.9 | P50: 90.8 | Q50: 90.1 | S50: =215.4/S118 -> 94.80633803 | T50: =250.3/T118 -> 86.60899654 | U50: =266.7/U118 -> 82.82608696 | V50: =321/V118 -> 77.36804049 | W50: =184.2/W118 -> 96.49030906 | X50: =201.9/X118 -> 91.93989071 | Y50: =189/Y118 -> 94.87951807 | Z50: =311/Z118 -> 73.3490566 | AA50: =307.9/AA118 -> 73.22235434
B51: 2 | C51: 2011 | D51: 90.7 | E51: 90.2 | F51: 89.7 | G51: 89.1 | H51: 89.5 | I51: 90 | J51: 89.9 | K51: 90.1 | L51: 90 | M51: 90.5 | N51: 91.2 | O51: 89.4 | P51: 91.4 | Q51: 90.7 | S51: =215.9/S118 -> 95.02640845 | T51: =257.9/T118 -> 89.23875433 | U51: =272.2/U118 -> 84.53416149 | V51: =350.9/V118 -> 84.57459629 | W51: =186.6/W118 -> 97.74751179 | X51: =202.7/X118 -> 92.30418944 | Y51: =190.4/Y118 -> 95.58232932 | Z51: =322.9/Z118 -> 76.15566038 | AA51: =319.9/AA118 -> 76.07609988
B52: 3 | C52: 2011 | D52: 91.8 | E52: 91.3 | F52: 90.6 | G52: 90.2 | H52: 90.7 | I52: 90.9 | J52: 90.7 | K52: 91 | L52: 91 | M52: 91.6 | N52: 92.1 | O52: 90.7 | P52: 92 | Q52: 92 | S52: =217.4/S118 -> 95.68661972 | T52: =261.5/T118 -> 90.48442907 | U52: =283.1/U118 -> 87.91925466 | V52: =374.2/V118 -> 90.19040733 | W52: =187.3/W118 -> 98.11419591 | X52: =204/X118 -> 92.89617486 | Y52: =191.3/Y118 -> 96.03413655 | Z52: =348.3/Z118 -> 82.14622642 | AA52: =345.5/AA118 -> 82.16409037
B53: 4 | C53: 2011 | D53: 92.1 | E53: 91.5 | F53: 90.9 | G53: 90.5 | H53: 91.1 | I53: 91.3 | J53: 91.2 | K53: 91.3 | L53: 91.3 | M53: 92 | N53: 92.3 | O53: 91.1 | P53: 92.2 | Q53: 92.2 | S53: =216/S118 -> 95.07042254 | T53: =261.6/T118 -> 90.51903114 | U53: =292.7/U118 -> 90.90062112 | V53: =396.8/V118 -> 95.63750301 | W53: =187.5/W118 -> 98.21896281 | X53: =204/X118 -> 92.89617486 | Y53: =191.8/Y118 -> 96.28514056 | Z53: =376.1/Z118 -> 88.70283019 | AA53: =371.1/AA118 -> 88.25208086
B54: 5 | C54: 2011 | D54: 92.6 | E54: 91.9 | F54: 91.3 | G54: 90.8 | H54: 91.4 | I54: 91.8 | J54: 91.5 | K54: 91.7 | L54: 91.7 | M54: 92.4 | N54: 92.8 | O54: 91.5 | P54: 92.7 | Q54: 92.7 | S54: =215.7/S118 -> 94.93838028 | T54: =261.3/T118 -> 90.41522491 | U54: =294/U118 -> 91.30434783 | V54: =392.3/V118 -> 94.55290431 | W54: =187.5/W118 -> 98.21896281 | X54: =205.5/X118 -> 93.57923497 | Y54: =193.3/Y118 -> 97.03815261 | Z54: =382.4/Z118 -> 90.18867925 | AA54: =377.5/AA118 -> 89.77407848
B55: 6 | C55: 2011 | D55: 92.9 | E55: 92.1 | F55: 91.9 | G55: 91 | H55: 91.7 | I55: 92.3 | J55: 92.1 | K55: 92.2 | L55: 92 | M55: 92.7 | N55: 93.2 | O55: 92.2 | P55: 92.8 | Q55: 93 | S55: =216.1/S118 -> 95.11443662 | T55: =265.2/T118 -> 91.76470588 | U55: =294.4/U118 -> 91.42857143 | V55: =380.9/V118 -> 91.80525428 | W55: =188.8/W118 -> 98.89994762 | X55: =205.5/X118 -> 93.57923497 | Y55: =194/Y118 -> 97.38955823 | Z55: =367.3/Z118 -> 86.62735849 | AA55: =362.3/AA118 -> 86.15933413
B56: 7 | C56: 2011 | D56: 93.5 | E56: 93.1 | F56: 92.6 | G56: 92.9 | H56: 93 | I56: 93 | J56: 92.9 | K56: 93 | L56: 92.8 | M56: 93.4 | N56: 94 | O56: 93 | P56: 93.7 | Q56: 93.4 | S56: =219/S118 -> 96.39084507 | T56: =267.7/T118 -> 92.62975779 | U56: =296.2/U118 -> 91.98757764 | V56: =378.3/V118 -> 91.17859725 | W56: =189.2/W118 -> 99.1094814 | X56: =210.1/X118 -> 95.67395264 | Y56: =193.9/Y118 -> 97.33935743 | Z56: =363/Z118 -> 85.61320755 | AA56: =357.9/AA118 -> 85.11296076
B57: 8 | C57: 2011 | D57: 93.7 | E57: 93.2 | F57: 92.8 | G57: 93.3 | H57: 93.3 | I57: 93.3 | J57: 93 | K57: 93.2 | L57: 93 | M57: 93.6 | N57: 94.1 | O57: 93.2 | P57: 93.8 | Q57: 93.8 | S57: =219.7/S118 -> 96.69894366 | T57: =268.8/T118 -> 93.01038062 | U57: =296.9/U118 -> 92.20496894 | V57: =377.7/V118 -> 91.03398409 | W57: =189.3/W118 -> 99.16186485 | X57: =214.1/X118 -> 97.49544627 | Y57: =194.3/Y118 -> 97.54016064 | Z57: =368.9/Z118 -> 87.00471698 | AA57: =363.9/AA118 -> 86.53983353
B58: 9 | C58: 2011 | D58: 94.1 | E58: 93.6 | F58: 93.1 | G58: 93.6 | H58: 93.7 | I58: 93.5 | J58: 93.2 | K58: 93.5 | L58: 93.3 | M58: 93.9 | N58: 94.1 | O58: 93.5 | P58: 94.3 | Q58: 94.1 | S58: =220.2/S118 -> 96.91901408 | T58: =272.6/T118 -> 94.32525952 | U58: =294.9/U118 -> 91.58385093 | V58: =377.7/V118 -> 91.03398409 | W58: =189.1/W118 -> 99.05709796 | X58: =213.8/X118 -> 97.35883424 | Y58: =194.3/Y118 -> 97.54016064 | Z58: =368.9/Z118 -> 87.00471698 | AA58: =363.9/AA118 -> 86.53983353
B59: 10 | C59: 2011 | D59: 94.5 | E59: 94.1 | F59: 93.7 | G59: 94.3 | H59: 94.3 | I59: 94.2 | J59: 93.8 | K59: 94.1 | L59: 93.7 | M59: 94.4 | N59: 94.7 | O59: 94.1 | P59: 94.8 | Q59: 94.7 | S59: =221.6/S118 -> 97.53521127 | T59: =276.9/T118 -> 95.81314879 | U59: =296.3/U118 -> 92.01863354 | V59: =392.4/V118 -> 94.57700651 | W59: =187.6/W118 -> 98.27134625 | X59: =213.2/X118 -> 97.0856102 | Y59: =193.9/Y118 -> 97.33935743 | Z59: =382.8/Z118 -> 90.28301887 | AA59: =377.9/AA118 -> 89.86920333
B60: 11 | C60: 2011 | D60: 94.6 | E60: 94.4 | F60: 93.9 | G60: 94.7 | H60: 94.5 | I60: 94.6 | J60: 94.2 | K60: 94.4 | L60: 94 | M60: 94.7 | N60: 94.8 | O60: 94.4 | P60: 94.9 | Q60: 94.8 | S60: =223.2/S118 -> 98.23943662 | T60: =286.2/T118 -> 99.03114187 | U60: =303.7/U118 -> 94.31677019 | V60: =413.1/V118 -> 99.56616052 | W60: =187.7/W118 -> 98.3237297 | X60: =213.4/X118 -> 97.17668488 | Y60: =194.3/Y118 -> 97.54016064 | Z60: =397.1/Z118 -> 93.65566038 | AA60: =392.3/AA118 -> 93.29369798
B61: 12 | C61: 2011 | D61: 94.8 | E61: 94.6 | F61: 94.1 | G61: 94.9 | H61: 94.9 | I61: 94.8 | J61: 94.3 | K61: 94.8 | L61: 94.2 | M61: 94.9 | N61: 94.9 | O61: 94.5 | P61: 95.2 | Q61: 95.1 | S61: =223.6/S118 -> 98.41549296 | T61: =286.5/T118 -> 99.1349481 | U61: =311.1/U118 -> 96.61490683 | V61: =419.9/V118 -> 101.2051097 | W61: =188.4/W118 -> 98.69041383 | X61: =213.7/X118 -> 97.3132969 | Y61: =195.1/Y118 -> 97.94176707 | Z61: =409.4/Z118 -> 96.55660377 | AA61: =411.1/AA118 -> 97.76456599
B62: 1 | C62: 2012 | D62: 95.2 | E62: 95 | F62: 94.2 | G62: 95.6 | H62: 95.4 | I62: 95 | J62: 94.9 | K62: 95 | L62: 94.6 | M62: 95.6 | N62: 95.5 | O62: 95.1 | P62: 95.9 | Q62: 95.5 | S62: =224.5/S118 -> 98.81161972 | T62: =287.7/T118 -> 99.55017301 | U62: =312/U118 -> 96.89440994 | V62: =409.3/V118 -> 98.65027718 | W62: =188.6/W118 -> 98.79518072 | X62: =213.7/X118 -> 97.3132969 | Y62: =194.9/Y118 -> 97.84136546 | Z62: =407.4/Z118 -> 96.08490566 | AA62: =402.7/AA118 -> 95.76694411
B63: 2 | C63: 2012 | D63: 95.6 | E63: 95.4 | F63: 95 | G63: 96.1 | H63: 96.1 | I63: 95.5 | J63: 95.5 | K63: 95.6 | L63: 95.6 | M63: 96.1 | N63: 96.1 | O63: 95.7 | P63: 96.5 | Q63: 96.1 | S63: =226.6/S118 -> 99.73591549 | T63: =290.5/T118 -> 100.5190311 | U63: =318/U118 -> 98.75776398 | V63: =409/V118 -> 98.5779706 | W63: =189.4/W118 -> 99.2142483 | X63: =214.7/X118 -> 97.76867031 | Y63: =195.3/Y118 -> 98.04216867 | Z63: =407.4/Z118 -> 96.08490566 | AA63: =402.3/AA118 -> 95.67181926
B64: 3 | C64: 2012 | D64: 96.7 | E64: 96.5 | F64: 96.7 | G64: 96.9 | H64: 97.1 | I64: 96.6 | J64: 96.3 | K64: 96.7 | L64: 97 | M64: 97.2 | N64: 97 | O64: 96.5 | P64: 97.2 | Q64: 97 | S64: =228.2/S118 -> 100.4401408 | T64: =290.5/T118 -> 100.5190311 | U64: =317.3/U118 -> 98.54037267 | V64: =414.2/V118 -> 99.83128465 | W64: =188.2/W118 -> 98.58564694 | X64: =214.4/X118 -> 97.63205829 | Y64: =194.8/Y118 -> 97.79116466 | Z64: =411.4/Z118 -> 97.02830189 | AA64: =406.7/AA118 -> 96.71819263
B65: 4 | C65: 2012 | D65: 97.1 | E65: 96.9 | F65: 97.2 | G65: 97.1 | H65: 97.5 | I65: 97.1 | J65: 96.6 | K65: 97.1 | L65: 97.3 | M65: 97.6 | N65: 97.4 | O65: 96.9 | P65: 97.7 | Q65: 97.4 | S65: =227.9/S118 -> 100.3080986 | T65: =290.4/T118 -> 100.4844291 | U65: =317.1/U118 -> 98.47826087 | V65: =422.2/V118 -> 101.7594601 | W65: =188.6/W118 -> 98.79518072 | X65: =218/X118 -> 99.27140255 | Y65: =198.6/Y118 -> 99.69879518 | Z65: =431.6/Z118 -> 101.7924528 | AA65: =425.5/AA118 -> 101.1890606
B66: 5 | C66: 2012 | D66: 97.3 | E66: 97.1 | F66: 97.4 | G66: 97.1 | H66: 97.4 | I66: 97.2 | J66: 96.9 | K66: 97.2 | L66: 97.4 | M66: 97.7 | N66: 97.4 | O66: 97 | P66: 97.6 | Q66: 97.4 | S66: =226.9/S118 -> 99.86795775 | T66: =288.9/T118 -> 99.96539792 | U66: =323/U118 -> 100.310559 | V66: =426.6/V118 -> 102.8199566 | W66: =190.3/W118 -> 99.68569932 | X66: =218.8/X118 -> 99.63570128 | Y66: =199.4/Y118 -> 100.1004016 | Z66: =435.6/Z118 -> 102.7358491 | AA66: =429.5/AA118 -> 102.1403092
B67: 6 | C67: 2012 | D67: 97.5 | E67: 97.5 | F67: 97.6 | G67: 97.1 | H67: 97.4 | I67: 97.4 | J67: 97.6 | K67: 97.4 | L67: 97.4 | M67: 97.6 | N67: 97.9 | O67: 97.4 | P67: 97.8 | Q67: 97.2 | S67: =226.8/S118 -> 99.82394366 | T67: =289.1/T118 -> 100.0346021 | U67: =324/U118 -> 100.621118 | V67: =410.3/V118 -> 98.89129911 | W67: =190.8/W118 -> 99.94761655 | X67: =219.1/X118 -> 99.7723133 | Y67: =199.9/Y118 -> 100.3514056 | Z67: =425.7/Z118 -> 100.4009434 | AA67: =421.1/AA118 -> 100.1426873
B68: 7 | C68: 2012 | D68: 97.9 | E68: 98 | F68: 97.9 | G68: 98.1 | H68: 97.7 | I68: 97.6 | J68: 97.9 | K68: 97.8 | L68: 97.7 | M68: 98 | N68: 98.2 | O68: 97.7 | P68: 98.3 | Q68: 97.7 | S68: =227.1/S118 -> 99.95598592 | T68: =289.9/T118 -> 100.3114187 | U68: =325.3/U118 -> 101.0248447 | V68: =378.6/V118 -> 91.25090383 | W68: =191/W118 -> 100.0523834 | X68: =220.2/X118 -> 100.273224 | Y68: =200/Y118 -> 100.4016064 | Z68: =401.1/Z118 -> 94.5990566 | AA68: =394.3/AA118 -> 93.76932224
B69: 8 | C69: 2012 | D69: 98 | E69: 98.2 | F69: 98 | G69: 98.3 | H69: 98 | I69: 97.8 | J69: 98 | K69: 97.9 | L69: 98 | M69: 98.2 | N69: 98.4 | O69: 98 | P69: 98.3 | Q69: 97.9 | S69: =227.9/S118 -> 100.3080986 | T69: =290/T118 -> 100.3460208 | U69: =324.2/U118 -> 100.6832298 | V69: =388/V118 -> 93.51651 | W69: =191.5/W118 -> 100.3143007 | X69: =219.1/X118 -> 99.7723133 | Y69: =200.5/Y118 -> 100.6526104 | Z69: =406.6/Z118 -> 95.89622642 | AA69: =399.9/AA118 -> 95.10107015
B70: 9 | C70: 2012 | D70: 98.9 | E70: 98.8 | F70: 98.8 | G70: 99.2 | H70: 98.8 | I70: 98.7 | J70: 98.9 | K70: 98.8 | L70: 99.1 | M70: 99 | N70: 99.1 | O70: 98.8 | P70: 99.2 | Q70: 99 | S70: =227.5/S118 -> 100.1320423 | T70: =289.8/T118 -> 100.2768166 | U70: =323.5/U118 -> 100.4658385 | V70: =412.7/V118 -> 99.46975175 | W70: =192.5/W118 -> 100.8381351 | X70: =223.2/X118 -> 101.6393443 | Y70: =200.6/Y118 -> 100.7028112 | Z70: =434/Z118 -> 102.3584906 | AA70: =427.5/AA118 -> 101.6646849
B71: 10 | C71: 2012 | D71: 99.4 | E71: 99.4 | F71: 99.4 | G71: 99.7 | H71: 99.5 | I71: 99.4 | J71: 99.5 | K71: 99.4 | L71: 99.7 | M71: 99.6 | N71: 99.7 | O71: 99.6 | P71: 99.6 | Q71: 99.6 | S71: =226.8/S118 -> 99.82394366 | T71: =285.9/T118 -> 98.92733564 | U71: =324/U118 -> 100.621118 | V71: =433/V118 -> 104.362497 | W71: =192.5/W118 -> 100.8381351 | X71: =224.1/X118 -> 102.0491803 | Y71: =201.4/Y118 -> 101.1044177 | Z71: =436.4/Z118 -> 102.9245283 | AA71: =443.5/AA118 -> 105.469679
B72: 11 | C72: 2012 | D72: 99.6 | E72: 99.8 | F72: 99.6 | G72: 100 | H72: 99.8 | I72: 99.6 | J72: 99.7 | K72: 99.7 | L72: 99.8 | M72: 99.8 | N72: 99.9 | O72: 99.8 | P72: 99.8 | Q72: 99.8 | S72: =227.5/S118 -> 100.1320423 | T72: =285.9/T118 -> 98.92733564 | U72: =326.4/U118 -> 101.3664596 | V72: =439.3/V118 -> 105.8809352 | W72: =193.2/W118 -> 101.2048193 | X72: =225.1/X118 -> 102.5045537 | Y72: =202.1/Y118 -> 101.4558233 | Z72: =446.3/Z118 -> 105.259434 | AA72: =447.5/AA118 -> 106.4209275 | AL72: Whole Sale Total | AP72: Whole Sale Inland | AT72: Whole Sale Coastal
B73: 12 | C73: 2012 | D73: 100 | E73: 100 | F73: 100 | G73: 100 | H73: 100 | I73: 100 | J73: 100 | K73: 100 | L73: 100 | M73: 100 | N73: 100 | O73: 100 | P73: 100 | Q73: 100 | S73: =228.2/S118 -> 100.4401408 | T73: =289/T118 -> 100 | U73: =329.3/U118 -> 102.2670807 | V73: =435.9/V118 -> 105.0614606 | W73: =193.7/W118 -> 101.4667365 | X73: =225.3/X118 -> 102.5956284 | Y73: =202.6/Y118 -> 101.7068273 | Z73: =444.4/Z118 -> 104.8113208 | AA73: =445.5/AA118 -> 105.9453032 | AC73: Conversion ^ | AL73: Month | AM73: Old | AN73: New | AP73: Month | AQ73: Old | AR73: New | AT73: Month | AU73: Old | AV73: New
B74: 1 | C74: 2013 | D74: 100.2 | E74: 100.1 | F74: 100.3 | G74: 100.5 | H74: 100.4 | I74: 100.1 | J74: 100.5 | K74: 100.1 | L74: 100.2 | M74: 100.3 | N74: 100.4 | O74: 100.4 | P74: 100.4 | Q74: 100.5 | S74: 101.8 | T74: 103.2 | U74: 104.4 | V74: 103 | W74: 102.3 | X74: 103.1 | Y74: 102.4 | Z74: 102.2 | AA74: 103.4 | AC74: New indices V
B75: 2 | C75: 2013 | D75: 100.8 | E75: 101.2 | F75: 101.3 | G75: 100.9 | H75: 101.2 | I75: 101.2 | J75: 102 | K75: 101.3 | L75: 101.2 | M75: 101.7 | N75: 101.8 | O75: 101.5 | P75: 101.4 | Q75: 101.3 | S75: 102.2 | T75: 104.8 | U75: 105.1 | V75: 104.3 | W75: 102.5 | X75: 103.1 | Y75: 102.4 | Z75: 103.9 | AA75: 105
B76: 3 | C76: 2013 | D76: 102.2 | E76: 102 | F76: 102.4 | G76: 101.8 | H76: 102.4 | I76: 102.8 | J76: 102.9 | K76: 102.6 | L76: 102.4 | M76: 103.2 | N76: 103 | O76: 102.6 | P76: 102.1 | Q76: 102.8 | S76: 103.1 | T76: 104.5 | U76: 104.9 | V76: 108.6 | W76: 103.6 | X76: 103.5 | Y76: 103.6 | Z76: 109.3 | AA76: 110.6
B77: 4 | C77: 2013 | D77: 102.5 | E77: 102.2 | F77: 102.8 | G77: 102.1 | H77: 102.7 | I77: 102.9 | J77: 103 | K77: 102.9 | L77: 102.6 | M77: 103.6 | N77: 103.3 | O77: 102.9 | P77: 102.3 | Q77: 103 | S77: 103.9 | T77: 106.3 | U77: 105.6 | V77: 104.7 | W77: 103.7 | X77: 103.6 | Y77: 103.6 | Z77: 104.3 | AA77: 105.3
B78: 5 | C78: 2013 | D78: 102.2 | E78: 102.1 | F78: 102.5 | G78: 101.8 | H78: 102.6 | I78: 102.5 | J78: 102.5 | K78: 102.5 | L78: 102.5 | M78: 103.3 | N78: 102.9 | O78: 102.5 | P78: 102.1 | Q78: 103 | S78: 104.2 | T78: 107.2 | U78: 107.1 | V78: 101.5 | W78: 104.5 | X78: 104.2 | Y78: 103.9 | Z78: 103.9 | AA78: 104.9
B79: 6 | C79: 2013 | D79: 102.5 | E79: 102.5 | F79: 102.9 | G79: 101.9 | H79: 103.3 | I79: 102.9 | J79: 102.7 | K79: 102.8 | L79: 102.7 | M79: 103.8 | N79: 103.4 | O79: 102.9 | P79: 102.3 | Q79: 103.4 | S79: 104.9 | T79: 107.3 | U79: 108.3 | V79: 103.2 | W79: 105.4 | X79: 104.6 | Y79: 104.7 | Z79: 111 | AA79: 112.4
B80: 7 | C80: 2013 | D80: 103.4 | E80: 103.4 | F80: 104.9 | G80: 103.3 | H80: 104.3 | I80: 104.2 | J80: 104 | K80: 104.1 | L80: 103.8 | M80: 105 | N80: 104.3 | O80: 104 | P80: 103.2 | Q80: 104.3 | S80: 105.4 | T80: 107.3 | U80: 109.4 | V80: 106.4 | W80: 107.1 | X80: 106.9 | Y80: 106.1 | Z80: 114.1 | AA80: 115.5
B81: 8 | C81: 2013 | D81: 103.7 | E81: 103.7 | F81: 105 | G81: 103.7 | H81: 104.6 | I81: 104.6 | J81: 104.4 | K81: 104.5 | L81: 104.1 | M81: 105.2 | N81: 104.6 | O81: 104.3 | P81: 103.4 | Q81: 104.7 | S81: 105.6 | T81: 107.1 | U81: 109.1 | V81: 109.8 | W81: 108.1 | X81: 107.4 | Y81: 106.6 | Z81: 115.3 | AA81: 116.7
B82: 9 | C82: 2013 | D82: 104.6 | E82: 104.1 | F82: 105.6 | G82: 104.3 | H82: 105.3 | I82: 105 | J82: 105.1 | K82: 104.8 | L82: 104.6 | M82: 105.7 | N82: 104.8 | O82: 104.9 | P82: 104 | Q82: 105.3 | S82: 105.1 | T82: 107.1 | U82: 108.4 | V82: 111.5 | W82: 108.6 | X82: 107.6 | Y82: 107 | Z82: 115.2 | AA82: 116.6
B83: 10 | C83: 2013 | D83: 104.9 | E83: 104.3 | F83: 105.7 | G83: 104.5 | H83: 105.7 | I83: 105 | J83: 105.3 | K83: 104.9 | L83: 105 | M83: 105.9 | N83: 105.1 | O83: 105 | P83: 104.2 | Q83: 105.4 | S83: 105.2 | T83: 107.2 | U83: 108.5 | V83: 110.7 | W83: 109.5 | X83: 108.2 | Y83: 107.6 | Z83: 113.8 | AA83: 115.1
B84: 11 | C84: 2013 | D84: 104.9 | E84: 104.5 | F84: 105.7 | G84: 104.8 | H84: 105.9 | I84: 104.9 | J84: 105.6 | K84: 104.9 | L84: 104.9 | M84: 105.8 | N84: 105 | O84: 105.1 | P84: 104.2 | Q84: 105.6 | S84: 105.1 | T84: 107.1 | U84: 107.8 | V84: 110.4 | W84: 109.9 | X84: 108.6 | Y84: 108.1 | Z84: 114.7 | AA84: 116.1
B85: 12 | C85: 2013 | D85: 105 | E85: 104.9 | F85: 106.2 | G85: 105.2 | H85: 106.2 | I85: 105.2 | J85: 105.9 | K85: 105.3 | L85: 105.5 | M85: 106.3 | N85: 105.5 | O85: 105.3 | P85: 104.5 | Q85: 105.9 | S85: 105.1 | T85: 107 | U85: 108 | V85: 112.7 | W85: 110.1 | X85: 108.7 | Y85: 108.4 | Z85: 114.7 | AA85: 116.1
B86: 1 | C86: 2014 | D86: 105.9 | E86: 105.4 | F86: 106.6 | G86: 105.9 | H86: 106.8 | I86: 105.9 | J86: 106.6 | K86: 106 | L86: 106.2 | M86: 107 | N86: 106.2 | O86: 106 | P86: 105.2 | Q86: 106.9 | S86: 105.9 | T86: 108.1 | U86: 109.1 | V86: 116 | W86: 110.7 | X86: 108.8 | Y86: 108.4 | Z86: 117.6 | AA86: 119.1
B87: 2 | C87: 2014 | D87: 106.7 | E87: 106.6 | F87: 108.2 | G87: 106.7 | H87: 107.8 | I87: 107 | J87: 108.2 | K87: 107.2 | L87: 107.3 | M87: 108.4 | N87: 107.7 | O87: 107.4 | P87: 106.3 | Q87: 107.8 | S87: 106 | T87: 111.3 | U87: 112.8 | V87: 119.1 | W87: 112.3 | X87: 115.8 | Y87: 109 | Z87: 120.1 | AA87: 121.7
B88: 3 | C88: 2014 | D88: 108.2 | E88: 108.1 | F88: 109.3 | G88: 108 | H88: 109.2 | I88: 108.6 | J88: 109.5 | K88: 108.8 | L88: 108.6 | M88: 110 | N88: 109 | O88: 108.8 | P88: 107.3 | Q88: 109 | S88: 107.1 | T88: 112.1 | U88: 114.3 | V88: 118.9 | W88: 112.1 | X88: 116.2 | Y88: 109.5 | Z88: 122.6 | AA88: 124.3
B89: 4 | C89: 2014 | D89: 108.6 | E89: 108.5 | F89: 109.4 | G89: 108.4 | H89: 109.7 | I89: 109.1 | J89: 109.9 | K89: 109.4 | L89: 109.1 | M89: 110.6 | N89: 109.5 | O89: 109.2 | P89: 107.8 | Q89: 109.4 | S89: 107.5 | T89: 112.6 | U89: 114.2 | V89: 116.4 | W89: 112.9 | X89: 117.5 | Y89: 111.4 | Z89: 121.7 | AA89: 123.2
B90: 5 | C90: 2014 | D90: 108.9 | E90: 108.8 | F90: 109.6 | G90: 108.8 | H90: 109.9 | I90: 109.4 | J90: 110.3 | K90: 109.6 | L90: 109.3 | M90: 110.7 | N90: 109.6 | O90: 109.3 | P90: 108.2 | Q90: 109.8 | S90: 107.7 | T90: 112.4 | U90: 113.6 | V90: 114.5 | W90: 113.4 | X90: 117.7 | Y90: 111.8 | Z90: 119 | AA90: 120.3
B91: 6 | C91: 2014 | D91: 109.2 | E91: 109.4 | F91: 110.1 | G91: 109.2 | H91: 110.2 | I91: 109.5 | J91: 110.2 | K91: 109.9 | L91: 109.9 | M91: 111.2 | N91: 110 | O91: 109.5 | P91: 108.7 | Q91: 109.8 | S91: 108 | T91: 112.4 | U91: 114.1 | V91: 114 | W91: 113.6 | X91: 116.7 | Y91: 110.9 | Z91: 116.9 | AA91: 118
B92: 7 | C92: 2014 | D92: 110.1 | E92: 110.5 | F92: 111.3 | G92: 111.2 | H92: 110.8 | I92: 110.9 | J92: 110.7 | K92: 111 | L92: 110.5 | M92: 112.1 | N92: 110.6 | O92: 110.5 | P92: 109.1 | Q92: 110.6 | S92: 108 | T92: 112 | U92: 115.1 | V92: 113.6 | W92: 113.7 | X92: 116.3 | Y92: 110.6 | Z92: 118.2 | AA92: 119.4
B93: 8 | C93: 2014 | D93: 110.5 | E93: 110.8 | F93: 111.5 | G93: 111.4 | H93: 111.2 | I93: 111 | J93: 111.2 | K93: 111.2 | L93: 111 | M93: 112.4 | N93: 111 | O93: 110.9 | P93: 109.7 | Q93: 111 | S93: 108 | T93: 112 | U93: 114 | V93: 112.2 | W93: 113.9 | X93: 117.2 | Y93: 110.7 | Z93: 117.6 | AA93: 118.9
B94: 9 | C94: 2014 | D94: 110.9 | E94: 110.6 | F94: 111.4 | G94: 111.3 | H94: 111.2 | I94: 110.9 | J94: 111 | K94: 111.1 | L94: 110.8 | M94: 112.3 | N94: 111 | O94: 110.7 | P94: 109.7 | Q94: 111 | S94: 108.7 | T94: 113.2 | U94: 114.1 | V94: 110.6 | W94: 113.9 | X94: 117.2 | Y94: 110.6 | Z94: 115.3 | AA94: 116.4
B95: 10 | C95: 2014 | D95: 111.3 | E95: 110.8 | F95: 111.6 | G95: 111.4 | H95: 111.5 | I95: 111 | J95: 111.3 | K95: 111.2 | L95: 110.8 | M95: 112.5 | N95: 111.2 | O95: 110.8 | P95: 110 | Q95: 111 | S95: 108.8 | T95: 113.2 | U95: 114.4 | V95: 104.2 | W95: 113.3 | X95: 117.1 | Y95: 109.4 | Z95: 114.2 | AA95: 115.2
B96: 11 | C96: 2014 | D96: 111.4 | E96: 111 | F96: 111.6 | G96: 111.3 | H96: 111.6 | I96: 110.8 | J96: 111.3 | K96: 111.1 | L96: 110.9 | M96: 112.4 | N96: 111.1 | O96: 111 | P96: 110.1 | Q96: 110.9 | S96: 108.5 | T96: 114 | U96: 113.7 | V96: 97.9 | W96: 113.6 | X96: 117.1 | Y96: 109.4 | Z96: 106.4 | AA96: 109.4
B97: 12 | C97: 2014 | D97: 111.3 | E97: 110.9 | F97: 111.3 | G97: 111 | H97: 111.3 | I97: 110.5 | J97: 111.1 | K97: 110.8 | L97: 110.5 | M97: 112.3 | N97: 110.8 | O97: 110.6 | P97: 109.7 | Q97: 110.6 | S97: 108.1 | T97: 114 | U97: 110.5 | V97: 89.3 | W97: 113.6 | X97: 117.1 | Y97: 109.4 | Z97: 101.3 | AA97: 104.4
B98: 1 | C98: 2015 | D98: 111.2 | E98: 110.8 | F98: 111.1 | G98: 111 | H98: 111.5 | I98: 110 | J98: 110.9 | K98: 110.5 | L98: 110.6 | M98: 112 | N98: 110.7 | O98: 110.2 | P98: 109.9 | Q98: 110.6 | S98: 106.1 | T98: 111.3 | U98: 107.2 | V98: 78.5 | W98: 114.8 | X98: 118 | Y98: 110.1 | Z98: 94.6 | AA98: 97.5
B99: 2 | C99: 2015 | D99: 111.6 | E99: 111.5 | F99: 112.1 | G99: 111.5 | H99: 112.2 | I99: 110.5 | J99: 112.1 | K99: 111.1 | L99: 111.21 | M99: 112.7 | N99: 111.9 | O99: 111.1 | P99: 110.6 | Q99: 111.2 | S99: 105.5 | T99: 111.9 | U99: 102.4 | V99: 72.6 | W99: 115.4 | X99: 118.2 | Y99: 110.5 | Z99: 85.2 | AA99: 87.5
B100: 3 | C100: 2015 | D100: 113.3 | E100: 112.7 | F100: 113.5 | G100: 112.9 | H100: 113.9 | I100: 112.2 | J100: 113.5 | K100: 112.7 | L100: 112.5 | M100: 114.5 | N100: 113.5 | O100: 112.6 | P100: 111.7 | Q100: 112.7 | S100: 105.2 | T100: 111.3 | U100: 104.3 | V100: 79.9 | W100: 115.5 | X100: 118.2 | Y100: 110.5 | Z100: 92 | AA100: 94.7
B101: 4 | C101: 2015 | D101: 114.2 | E101: 113.7 | F101: 114.5 | G101: 114 | H101: 115 | I101: 113.4 | J101: 114.4 | K101: 113.8 | L101: 113.8 | M101: 115.6 | N101: 114.4 | O101: 113.8 | P101: 112.8 | Q101: 113.9 | S101: 102.2 | T101: 107.4 | U101: 102.6 | V101: 84 | W101: 115.7 | X101: 116.3 | Y101: 108.8 | Z101: 103.3 | AA101: 106.5
B102: 5 | C102: 2015 | D102: 114.4 | E102: 113.8 | F102: 114.8 | G102: 114.2 | H102: 115.3 | I102: 113.7 | J102: 114.6 | K102: 114 | L102: 114 | M102: 116 | N102: 114.7 | O102: 114.1 | P102: 113 | Q102: 114 | S102: 100.7 | T102: 105.6 | U102: 101.8 | V102: 85 | W102: 115.9 | X102: 116.3 | Y102: 108.7 | Z102: 102.8 | AA102: 106.7 | AC102: fjo checked
B103: 6 | C103: 2015 | D103: 114.8 | E103: 114.3 | F103: 115.4 | G103: 115 | H103: 115.8 | I103: 114 | J103: 114.9 | K103: 114.5 | L103: 114.3 | M103: 116.5 | N103: 115.1 | O103: 114.7 | P103: 113.8 | Q103: 114.7 | S103: 100.9 | T103: 105.3 | U103: 103 | V103: 88.1 | W103: 115.9 | X103: 116.6 | Y103: 108.4 | Z103: 107.6 | AA103: 114 | AC103: fjo checked
B104: 7 | C104: 2015 | D104: 115.9 | E104: 115.5 | F104: 117.2 | G104: 116.3 | H104: 116.8 | I104: 115.7 | J104: 116.2 | K104: 116 | L104: 115.4 | M104: 117.8 | N104: 116.1 | O104: 116 | P104: 114.5 | Q104: 115.6 | S104: 100.7 | T104: 105.4 | U104: 101.3 | V104: 87.3 | W104: 116.1 | X104: 117.2 | Y104: 107.8 | Z104: 108 | AA104: 114.4 | AC104: fjo checked
B105: 8 | C105: 2015 | D105: 115.9 | E105: 115.6 | F105: 117.3 | G105: 116.3 | H105: 116.9 | I105: 115.5 | J105: 116.3 | K105: 115.9 | L105: 115.6 | M105: 117.8 | N105: 116.2 | O105: 116 | P105: 114.6 | Q105: 115.7 | S105: 101.1 | T105: 106 | U105: 101.2 | V105: 81.8 | W105: 116.3 | X105: 117.8 | Y105: 108.1 | Z105: 101 | AA105: 106.8 | AC105: fjo checked
B106: 9 | C106: 2015 | D106: 116.4 | E106: 115.7 | F106: 117.3 | G106: 116.4 | H106: 116.8 | I106: 115.3 | J106: 116.2 | K106: 115.9 | L106: 115.3 | M106: 117.8 | N106: 116.3 | O106: 115.8 | P106: 114.4 | Q106: 115.9 | S106: 100.6 | T106: 105.7 | U106: 98.1 | V106: 78.8 | W106: 117.4 | X106: 118.3 | Y106: 108.9 | Z106: 96 | AA106: 101.4 | AC106: fjo checked
B107: 10 | C107: 2015 | D107: 116.8 | E107: 116 | F107: 117.5 | G107: 116.6 | H107: 116.9 | I107: 115.6 | J107: 116.4 | K107: 116.1 | L107: 115.4 | M107: 118 | N107: 116.7 | O107: 116 | P107: 114.4 | Q107: 116 | S107: 100.9 | T107: 105.7 | U107: 95.6 | V107: 82.8 | W107: 119.3 | X107: 119.5 | Y107: 109.7 | Z107: 101.5 | AA107: 106.7 | AC107: fjo checked
B108: 11 | C108: 2015 | D108: 117 | E108: 116.1 | F108: 117.4 | G108: 116.6 | H108: 117.1 | I108: 115.4 | J108: 116.5 | K108: 116 | L108: 115.6 | M108: 118 | N108: 116.8 | O108: 116.1 | P108: 114.8 | Q108: 116.2 | S108: 100.9 | T108: 105.6 | U108: 95.9 | V108: 82.1 | W108: 119.4 | X108: 120.2 | Y108: 110.1 | Z108: 100.6 | AA108: 105.8 | AC108: fjo checked
B109: 12 | C109: 2015 | D109: 117.4 | E109: 116.3 | F109: 117.7 | G109: 117.2 | H109: 117.7 | I109: 115.7 | J109: 117 | K109: 116.3 | L109: 116.1 | M109: 118.4 | N109: 117.2 | O109: 116.4 | P109: 115.1 | Q109: 116.7 | S109: 100.6 | T109: 106 | U109: 97.6 | V109: 81.9 | W109: 119.4 | X109: 120.3 | Y109: 110.2 | Z109: 100.4 | AA109: 105.4 | AC109: fjo checked
B110: 1 | C110: 2016 | D110: 118.1 | E110: 117.2 | F110: 118.4 | G110: 117.7 | H110: 119.1 | I110: 116.1 | J110: 117.7 | K110: 117 | L110: 117 | M110: 119.3 | N110: 118.1 | O110: 117.5 | P110: 116.5 | Q110: 117.6 | S110: 103.4 | T110: 108.3 | U110: 96.8 | V110: 75.8 | W110: 125.4 | X110: 124.3 | Y110: 113.5 | Z110: 93.4 | AA110: 97.8 | AC110: fjo checked
B111: 2 | C111: 2016 | D111: 119.4 | E111: 119.1 | F111: 120.3 | G111: 118.9 | H111: 120.7 | I111: 117.6 | J111: 119.7 | K111: 118.6 | L111: 118.4 | M111: 120.9 | N111: 119.9 | O111: 119 | P111: 118.2 | Q111: 119 | S111: 105.6 | T111: 111.4 | U111: 97.2 | V111: 71 | W111: 125.9 | X111: 123.9 | Y111: 114.1 | Z111: 87.6 | AA111: 91.5 | AC111: fjo checked
B112: 3 | C112: 2016 | D112: ='Table A Indices 2012=100'!D114 -> 120.4 | E112: ='Table A Indices 2012=100'!E114 -> 120.1 | F112: ='Table A Indices 2012=100'!F114 -> 121.2 | G112: ='Table A Indices 2012=100'!G114 -> 119.7 | H112: ='Table A Indices 2012=100'!H114 -> 121.7 | I112: ='Table A Indices 2012=100'!I114 -> 118.5 | J112: ='Table A Indices 2012=100'!J114 -> 120.5 | K112: ='Table A Indices 2012=100'!K114 -> 119.5 | L112: ='Table A Indices 2012=100'!L114 -> 119 | M112: ='Table A Indices 2012=100'!M114 -> 121.6 | N112: ='Table A Indices 2012=100'!N114 -> 120.8 | O112: ='Table A Indices 2012=100'!O114 -> 119.8 | P112: ='Table A Indices 2012=100'!P114 -> 119 | Q112: ='Table A Indices 2012=100'!Q114 -> 120.1 | S112: ='Table A Indices 2012=100'!S114 -> 105.8 | T112: ='Table A Indices 2012=100'!T114 -> 109.9 | U112: ='Table A Indices 2012=100'!U114 -> 95.6 | V112: Discontinued | W112: ='Table A Indices 2012=100'!W114 -> 127.2 | X112: ='Table A Indices 2012=100'!X114 -> 125.2 | Y112: ='Table A Indices 2012=100'!Y114 -> 115.3 | Z112: Discontinued | AA112: Discontinued | AC112: fjo checked
D114: DUE TO THE REVISON OF THE DIESEL INDICES THIS OLD TABLE A DISCONTINUED | S114: DUE TO THE REVISON OF THE DIESEL INDICES THIS OLD TABLE A DISCONTINUED | AL114: 2014-02-01 | AM114: =AM88/$AM$87-1 ->  | AN114: =AN88/$AN$87-1 -> 
AL115: 2014-09-01 | AM115: =AM95/$AM$87-1 ->  | AN115: =AN95/$AN$87-1 ->  | AQ115: =AQ95/$AQ$88-1 ->  | AR115: =AR95/$AR$88-1 ->  | AU115: =AU95/$AU$88-1 ->  | AV115: =AV95/$AV$88-1 -> 
AL116: 2014-10-01
AL117: 2014-11-01
D118: 0.7917656374 | E118: 0.786163522 | F118: 0.7880220646 | G118: 0.7751937984 | H118: 0.7757951901 | I118: 0.8006405124 | J118: 0.7855459544 | K118: 0.7949125596 | L118: 0.772797527 | M118: 0.7886435331 | N118: 0.8038585209 | O118: 0.7824726135 | P118: 0.7874015748 | Q118: 0.7974481659 | S118: 2.272 | T118: 2.89 | U118: 3.22 | V118: 4.149 | W118: 1.909 | X118: 2.196 | Y118: 1.992 | Z118: 4.24 | AA118: 4.205 | AL118: 2014-12-01
AL119: 2015-01-01
AL120: 2015-02-01
AL121: 2015-03-01
AL122: 2015-04-01
AL123: 2015-05-01
AL124: 2015-06-01
AL125: 2015-07-01
AL126: 2015-08-01
AL127: 2015-09-01
AL128: 2015-10-01
AL129: 2015-11-01
AL130: 2015-12-01
AL131: =AL130+31 -> 2016-01-01
AL132: =AL131+31 -> 2016-02-01

Sheet Discontinued - TABLE B
C1: TABLE B - Indices 2008 = 100
C3: Refer to P0141 - Consumer Price Index (CPI): Additional Tables: Table 14 - Indices and percentage changes according to area | T3: Refer to P0142.1 - Producer Price Index (PPI): Table 11 and Table 12
A5: 2008=100 | C5: Western Cape | D5: Eastern Cape | F5: Northern Cape | G5: KwaZulu Natal | K5: Gauteng | M5: North West | N5: Free State | P5: Mpumalanga | Q5: Limpopo | S5: 2008 = 100 | V5: OLD DIESEL INDICES APPLICABLE UPTO FEB '16
C6: Cape Peninsula/ | D6: Port Elizabeth/ | E6: East London | F6: Kimberly | G6: Pietermaritzburg | H6: Durban/ | I6: All Urban | J6: Pretoria/ | K6: Witwatersrand/ | L6: Witwatersrand/ | M6: North West | N6: FS Goldfields | O6: Bloemfomtein | P6: Nelspruit/ | Q6: Polokwane | S6: Table 11 | T6: Table 12 | U6: Table 12 | V6: Table 12 | W6: Table 12 | X6: Table 12 | Y6: Table 12 | Z6: Fuel Wholesale
C7: City of Cape Town | D7: Utenhage | H7: Pinetown | I7: Areas | J7: Centurion/ | K7: City of Johannesburg | L7: Ekurhuleni | M7: (Province) | P7: Witbank | Q7: (Pietersburg) | S7: Civil Engineering | T7: Concrete Work | U7: Roads & E/Works | V7: Diesel | W7: Civil Engineering | X7: Concrete Work | Y7: Roads & E/Works | Z7: Table 12 | AA7: Table 12
J8: Akasia | S8: Material | T8: Material | U8: Material | V8: Fuel | W8: Plant | X8: Plant | Y8: Plant | Z8: Witwatersrand | AA8: Coast
B9: Date
A10: 1 | B10: 2008 | C10: 95.5 | D10: 95.5 | E10: 94.9 | F10: 94.9 | G10: 95.5 | H10: 95 | J10: 95.4 | K10: 95.2 | L10: 95.6 | M10: 95 | N10: 95.5 | O10: 95.5 | P10: 95.5 | Q10: 95.8 | S10: 184.1 | V10: 304.1 | W10: 153.7 | Z10: 287.7 | AA10: 284.3
A11: 2 | B11: 2008 | C11: 96 | D11: 96 | E11: 95.3 | F11: 95.3 | G11: 96.2 | H11: 95.5 | J11: 96.1 | K11: 95.9 | L11: 96.2 | M11: 95.7 | N11: 96.1 | O11: 96.1 | P11: 96.1 | Q11: 96.7 | S11: 186.8 | V11: 321.6 | W11: 161.4 | Z11: 290.5 | AA11: 287.1
A12: 3 | B12: 2008 | C12: 97.5 | D12: 97.3 | E12: 96.8 | F12: 96.4 | G12: 97.3 | H12: 96.6 | J12: 97.7 | K12: 97.6 | L12: 97.7 | M12: 97.1 | N12: 97.6 | O12: 97.6 | P12: 97.1 | Q12: 97.8 | S12: 187.8 | V12: 367.6 | W12: 161.4 | Z12: 321.4 | AA12: 318.3
A13: 4 | B13: 2008 | C13: 98.3 | D13: 97.9 | E13: 97.7 | F13: 97.5 | G13: 98 | H13: 97.5 | J13: 98.3 | K13: 98.1 | L13: 98.2 | M13: 97.9 | N13: 98.2 | O13: 98.2 | P13: 97.9 | Q13: 98.3 | S13: 191 | V13: 424.9 | W13: 161.4 | Z13: 372.6 | AA13: 369.5
A14: 5 | B14: 2008 | C14: 98.8 | D14: 98.7 | E14: 98.5 | F14: 98.1 | G14: 98.6 | H14: 98.3 | J14: 98.9 | K14: 98.7 | L14: 99.1 | M14: 98.6 | N14: 98.9 | O14: 98.9 | P14: 98.4 | Q14: 99.2 | S14: 199 | V14: 471 | W14: 168.3 | Z14: 400.4 | AA14: 397.9
A15: 6 | B15: 2008 | C15: 99.8 | D15: 99.9 | E15: 100.3 | F15: 99.4 | G15: 100.1 | H15: 100.1 | J15: 100.1 | K15: 100.4 | L15: 100.5 | M15: 100 | N15: 99.8 | O15: 99.8 | P15: 99.9 | Q15: 100.2 | S15: 201.8 | V15: 519.9 | W15: 168.3 | Z15: 428.5 | AA15: 426.3
A16: 7 | B16: 2008 | C16: 101.2 | D16: 101.2 | E16: 101.6 | F16: 101.7 | G16: 101.2 | H16: 101.9 | J16: 101.3 | K16: 101.5 | L16: 102 | M16: 101.1 | N16: 101 | O16: 101 | P16: 101.3 | Q16: 101.4 | S16: 203.9 | V16: 511.9 | W16: 168.3 | Z16: 453.5 | AA16: 451.5
A17: 8 | B17: 2008 | C17: 101.8 | D17: 101.8 | E17: 102.4 | F17: 102.7 | G17: 101.8 | H17: 102.5 | J17: 101.5 | K17: 102.1 | L17: 102.3 | M17: 102.1 | N17: 101.7 | O17: 101.7 | P17: 101.6 | Q17: 101.8 | S17: 217.3 | V17: 419.9 | W17: 175.4 | Z17: 447.1 | AA17: 444.7
A18: 9 | B18: 2008 | C18: 102.6 | D18: 102.9 | E18: 103 | F18: 103.1 | G18: 102.6 | H18: 102.8 | J18: 102.5 | K18: 102.5 | L18: 102 | M18: 103 | N18: 102.6 | O18: 102.6 | P18: 102.8 | Q18: 102 | S18: 218.8 | V18: 394.3 | W18: 175.4 | Z18: 390 | AA18: 387.1
A19: 10 | B19: 2008 | C19: 102.9 | D19: 103.2 | E19: 103.2 | F19: 103.6 | G19: 102.8 | H19: 103.2 | J19: 102.8 | K19: 102.6 | L19: 102.4 | M19: 103.2 | N19: 102.8 | O19: 102.8 | P19: 103.1 | Q19: 102.3 | S19: 219.6 | V19: 377.4 | W19: 175.4 | Z19: 367.8 | AA19: 364.7
A20: 11 | B20: 2008 | C20: 102.9 | D20: 103.2 | E20: 103.3 | F20: 103.7 | G20: 103 | H20: 103.2 | J20: 102.9 | K20: 102.7 | L20: 102.3 | M20: 103.3 | N20: 102.9 | O20: 102.9 | P20: 103.3 | Q20: 102.5 | S20: 219.2 | V20: 336.8 | W20: 184.8 | Z20: 358.2 | AA20: 355.1
A21: 12 | B21: 2008 | C21: 102.8 | D21: 102.6 | E21: 103.2 | F21: 103.5 | G21: 102.9 | H21: 103.3 | J21: 102.5 | K21: 102.6 | L21: 101.8 | M21: 103.2 | N21: 102.9 | O21: 102.9 | P21: 103 | Q21: 102 | S21: 216.6 | V21: 274.3 | W21: 184.8 | Z21: 326.1 | AA21: 322.7
A22: 1 | B22: 2009 | C22: 102.9 | D22: 102.8 | E22: 102.7 | F22: 103.6 | G22: 103.4 | H22: 104.2 | J22: 103 | K22: 102.8 | L22: 101.9 | M22: 103.3 | N22: 103.2 | O22: 103.2 | P22: 103.8 | Q22: 102 | S22: 219.7 | V22: 286.5 | W22: 184.8 | Z22: 259.4 | AA22: 255.5
A23: 2 | B23: 2009 | C23: 103.8 | D23: 104.1 | E23: 104.1 | F23: 104.5 | G23: 104.4 | H23: 105 | J23: 104.4 | K23: 104.1 | L23: 103.3 | M23: 104.6 | N23: 104.3 | O23: 104.3 | P23: 105.3 | Q23: 103.8 | S23: 215.7 | V23: 271.3 | W23: 193 | Z23: 257.4 | AA23: 253.9
A24: 3 | B24: 2009 | C24: 105.5 | D24: 105.4 | E24: 105.4 | F24: 106 | G24: 105.9 | H24: 106.2 | J24: 105.8 | K24: 105.5 | L24: 104.9 | M24: 106.5 | N24: 105.7 | O24: 105.7 | P24: 106.6 | Q24: 105.3 | S24: 214.8 | V24: 253.5 | W24: 193 | Z24: 242.4 | AA24: 238.3
A25: 4 | B25: 2009 | C25: 105.9 | D25: 105.9 | E25: 106 | F25: 106.4 | G25: 106.4 | H25: 106.7 | J25: 106.4 | K25: 106.1 | L25: 105.4 | M25: 106.6 | N25: 106.3 | O25: 106.3 | P25: 107.1 | Q25: 105.5 | S25: 213.3 | V25: 250.2 | W25: 193 | Z25: 258.2 | AA25: 254.3
A26: 5 | B26: 2009 | C26: 106.2 | D26: 106.2 | E26: 106.5 | F26: 106.8 | G26: 106.9 | H26: 107 | J26: 106.8 | K26: 106.5 | L26: 105.6 | M26: 107 | N26: 106.7 | O26: 106.7 | P26: 107.8 | Q26: 105.8 | S26: 209 | V26: 251.1 | W26: 189.2 | Z26: 261.4 | AA26: 257.5
A27: 6 | B27: 2009 | C27: 106.7 | D27: 106.4 | E27: 106.8 | F27: 107.2 | G27: 107.2 | H27: 107.1 | J27: 106.9 | K27: 107.2 | L27: 105.9 | M27: 107.1 | N27: 107 | O27: 107 | P27: 108.4 | Q27: 106.5 | S27: 208.9 | V27: 256.8 | W27: 189.2 | Z27: 256.3 | AA27: 253.1
A28: 7 | B28: 2009 | C28: 107.9 | D28: 108.2 | E28: 108.1 | F28: 108.7 | G28: 108 | H28: 108 | J28: 108.7 | K28: 107.9 | L28: 107.8 | M28: 108.3 | N28: 108.2 | O28: 108.2 | P28: 109.6 | Q28: 107.5 | S28: 211.3 | V28: 266.2 | W28: 189.2 | Z28: 272.1 | AA28: 269.1
A29: 8 | B29: 2009 | C29: 108.2 | D29: 108.6 | E29: 108.3 | F29: 109.2 | G29: 108.1 | H29: 108.2 | J29: 108.9 | K29: 108.5 | L29: 108.1 | M29: 108.7 | N29: 108.4 | O29: 108.4 | P29: 110.2 | Q29: 107.6 | S29: 210.1 | V29: 262.1 | W29: 190.9 | Z29: 264.2 | AA29: 261.1
A30: 9 | B30: 2009 | C30: 108.8 | D30: 108.8 | E30: 109 | F30: 109.6 | G30: 108.4 | H30: 108.5 | J30: 109.4 | K30: 108.8 | L30: 108.4 | M30: 108.8 | N30: 108.8 | O30: 108.8 | P30: 110.4 | Q30: 108 | S30: 209.8 | V30: 272.6 | W30: 190.9 | Z30: 277.7 | AA30: 274.7
A31: 10 | B31: 2009 | C31: 108.9 | D31: 108.8 | E31: 108.9 | F31: 109.7 | G31: 108.4 | H31: 108.4 | J31: 109.3 | K31: 108.8 | L31: 108.2 | M31: 108.7 | N31: 108.7 | O31: 108.7 | P31: 110.4 | Q31: 108.1 | S31: 209.5 | V31: 257.7 | W31: 190.9 | Z31: 265 | AA31: 261.9
A32: 11 | B32: 2009 | C32: 109 | D32: 108.8 | E32: 108.8 | F32: 109.6 | G32: 108.3 | H32: 108.4 | J32: 109.4 | K32: 108.8 | L32: 108.2 | M32: 108.6 | N32: 108.7 | O32: 108.7 | P32: 110.4 | Q32: 108 | S32: 209.8 | V32: 262.2 | W32: 188.1 | Z32: 268.9 | AA32: 265.9
A33: 12 | B33: 2009 | C33: 109.7 | D33: 109 | E33: 109.1 | F33: 109.6 | G33: 108.4 | H33: 108.7 | J33: 109.8 | K33: 108.5 | L33: 108.8 | M33: 108.8 | N33: 108.9 | O33: 108.9 | P33: 110.7 | Q33: 108.2 | S33: 209.8 | V33: 275.4 | W33: 188.1 | Z33: 278.9 | AA33: 275.9
A34: 1 | B34: 2010 | C34: 110 | D34: 109.2 | E34: 109.2 | F34: 109.9 | G34: 108.9 | H34: 109.2 | J34: 110.2 | K34: 108.8 | L34: 109.2 | M34: 109.1 | N34: 109.2 | O34: 109.2 | P34: 111.1 | Q34: 108.3 | S34: 212.5 | V34: 269.1 | W34: 188.1 | Z34: 273.3 | AA34: 270.3
A35: 2 | B35: 2010 | C35: 110.4 | D35: 110 | E35: 110 | F35: 110.2 | G35: 109.4 | H35: 109.5 | J35: 110.9 | K35: 109.5 | L35: 109.8 | M35: 110 | N35: 109.9 | O35: 109.9 | P35: 111.9 | Q35: 109.2 | S35: 213 | V35: 276.4 | W35: 188 | Z35: 277.3 | AA35: 274.3
A36: 3 | B36: 2010 | C36: 111.7 | D36: 111 | E36: 111 | F36: 110.8 | G36: 110.4 | H36: 110.4 | J36: 111.9 | K36: 110.5 | L36: 110.9 | M36: 110.7 | N36: 110.9 | O36: 110.9 | P36: 112.7 | Q36: 109.9 | S36: 213 | V36: 280.4 | W36: 188.9 | Z36: 278.9 | AA36: 275.9
A37: 4 | B37: 2010 | C37: 112 | D37: 111.2 | E37: 111.4 | F37: 111.3 | G37: 110.3 | H37: 110.5 | J37: 112.1 | K37: 110.7 | L37: 111.1 | M37: 110.9 | N37: 111.4 | O37: 111.4 | P37: 112.8 | Q37: 109.9 | S37: 212.8 | V37: 296.5 | W37: 188.9 | Z37: 298.3 | AA37: 295.5
A38: 5 | B38: 2010 | C38: 112.1 | D38: 111.4 | E38: 111.3 | F38: 111.5 | G38: 110.7 | H38: 110.7 | J38: 112.2 | K38: 110.8 | L38: 111.2 | M38: 111.2 | N38: 111.4 | O38: 111.4 | P38: 113 | Q38: 110.3 | S38: 215.4 | V38: 304.4 | W38: 187.6 | Z38: 309.8 | AA38: 306.7
A39: 6 | B39: 2010 | C39: 112 | D39: 111.7 | E39: 111.4 | F39: 111.1 | G39: 110.9 | H39: 110.7 | J39: 112.5 | K39: 111 | L39: 110.9 | M39: 111.1 | N39: 111.5 | O39: 111.5 | P39: 113.2 | Q39: 110.4 | S39: 216.7 | V39: 300.5 | W39: 187.4 | Z39: 303.9 | AA39: 301.1
A40: 7 | B40: 2010 | C40: 112.5 | D40: 112.5 | E40: 112 | F40: 112.7 | G40: 111.9 | H40: 110.9 | J40: 113.2 | K40: 111.5 | L40: 112.2 | M40: 111.6 | N40: 112.5 | O40: 112.5 | P40: 113.2 | Q40: 110.9 | S40: 214.1 | V40: 296 | W40: 187.2 | Z40: 297.9 | AA40: 295.1
A41: 8 | B41: 2010 | C41: 112.5 | D41: 112.4 | E41: 112 | F41: 112.8 | G41: 112.1 | H41: 110.9 | J41: 113.1 | K41: 111.7 | L41: 112.1 | M41: 111.7 | N41: 112.7 | O41: 112.7 | P41: 114 | Q41: 111 | S41: 212.6 | V41: 293.1 | W41: 186.7 | Z41: 292.7 | AA41: 289.9
A42: 9 | B42: 2010 | C42: 112.6 | D42: 112.7 | E42: 112 | F42: 113 | G42: 112.7 | H42: 110.7 | J42: 113.5 | K42: 111.7 | L42: 112 | M42: 111.8 | N42: 113.3 | O42: 113.3 | P42: 114.2 | Q42: 111.4 | S42: 212.6 | V42: 290.6 | W42: 186.7 | Z42: 292.7 | AA42: 289.9
A43: 10 | B43: 2010 | C43: 112.8 | D43: 112.8 | E43: 112.3 | F43: 113.3 | G43: 112.6 | H43: 110.9 | J43: 113.6 | K43: 111.9 | L43: 112.3 | M43: 111.9 | N43: 113.5 | O43: 113.5 | P43: 114.8 | Q43: 111.9 | S43: 213.7 | T43: 248.8 | U43: 264.6 | V43: 291.3 | W43: 186.8 | X43: 205.1 | Y43: 189.4 | Z43: 291.6 | AA43: 288.7
A44: 11 | B44: 2010 | C44: 112.9 | D44: 113.1 | E44: 112.3 | F44: 113.3 | G44: 112.8 | H44: 111 | J44: 113.9 | K44: 112.1 | L44: 112.5 | M44: 112.2 | N44: 113.6 | O44: 113.6 | P44: 114.6 | Q44: 112.1 | S44: 212.9 | T44: 248.7 | U44: 264.7 | V44: 299 | W44: 187.5 | X44: 205.4 | Y44: 190.1 | Z44: 301.5 | AA44: 298.7
A45: 12 | B45: 2010 | C45: 113.2 | D45: 113.2 | E45: 112.5 | F45: 113.3 | G45: 113.1 | H45: 111.2 | J45: 114 | K45: 112.3 | L45: 113 | M45: 112.2 | N45: 113.8 | O45: 113.8 | P45: 114.6 | Q45: 112.1 | S45: 213.1 | T45: 248.5 | U45: 266.2 | V45: 309.4 | W45: 185.8 | X45: 201.5 | Y45: 189.2 | Z45: 301.5 | AA45: 298.7
A46: 1 | B46: 2011 | C46: 113.7 | D46: 113.8 | E46: 112.9 | F46: 114.2 | G46: 113.7 | H46: 111.7 | J46: 114.1 | K46: 112.7 | L46: 113.6 | M46: 113 | N46: 114.6 | O46: 114.6 | P46: 115.3 | Q46: 113 | S46: 215.4 | T46: 250.3 | U46: 266.7 | V46: 321 | W46: 184.2 | X46: 201.9 | Y46: 189 | Z46: 311 | AA46: 307.9
A47: 2 | B47: 2011 | C47: 114.5 | D47: 114.7 | E47: 113.8 | F47: 114.9 | G47: 114.5 | H47: 112.4 | J47: 114.8 | K47: 113.4 | L47: 114.3 | M47: 113.9 | N47: 115.4 | O47: 115.4 | P47: 116.1 | Q47: 113.8 | S47: 215.9 | T47: 257.9 | U47: 272.2 | V47: 350.9 | W47: 186.6 | X47: 202.7 | Y47: 190.4 | Z47: 322.9 | AA47: 319.9
A48: 3 | B48: 2011 | C48: 116 | D48: 116.1 | E48: 115 | F48: 116.4 | G48: 115.5 | H48: 113.5 | J48: 116.1 | K48: 114.6 | L48: 115.9 | M48: 115.2 | N48: 116.9 | O48: 116.9 | P48: 116.9 | Q48: 115.4 | S48: 217.4 | T48: 261.5 | U48: 283.1 | V48: 374.2 | W48: 187.3 | X48: 204 | Y48: 191.3 | Z48: 348.3 | AA48: 345.5
A49: 4 | B49: 2011 | C49: 116.3 | D49: 116.4 | E49: 115.3 | F49: 116.7 | G49: 116.1 | H49: 114 | J49: 116.6 | K49: 114.8 | L49: 116.4 | M49: 115.6 | N49: 117.4 | O49: 117.4 | P49: 117.1 | Q49: 115.6 | S49: 216 | T49: 261.6 | U49: 292.7 | V49: 396.8 | W49: 187.5 | X49: 204 | Y49: 191.8 | Z49: 376.1 | AA49: 371.1
A50: 5 | B50: 2011 | C50: 116.9 | D50: 116.9 | E50: 115.9 | F50: 117.1 | G50: 116.5 | H50: 114.7 | J50: 117.2 | K50: 115.4 | L50: 117 | M50: 116.1 | N50: 117.8 | O50: 117.8 | P50: 117.7 | Q50: 116.3 | S50: 215.7 | T50: 261.3 | U50: 294 | V50: 392.3 | W50: 187.5 | X50: 205.5 | Y50: 193.3 | Z50: 382.4 | AA50: 377.5
A51: 6 | B51: 2011 | C51: 117.3 | D51: 117.1 | E51: 116.6 | F51: 117.4 | G51: 117.2 | H51: 115.3 | J51: 117.5 | K51: 116 | L51: 117.8 | M51: 116.9 | N51: 118.2 | O51: 118.2 | P51: 117.8 | Q51: 116.6 | S51: 216.1 | T51: 265.2 | U51: 294.4 | V51: 380.9 | W51: 188.8 | X51: 205.5 | Y51: 194 | Z51: 367.3 | AA51: 362.3
A52: 7 | B52: 2011 | C52: 118.1 | D52: 118.4 | E52: 117.5 | F52: 119.9 | G52: 118.2 | H52: 116.2 | J52: 118.4 | K52: 116.9 | L52: 118.9 | M52: 117.8 | N52: 119.9 | O52: 119.9 | P52: 119 | Q52: 117.1 | S52: 219 | T52: 267.7 | U52: 296.2 | V52: 378.3 | W52: 189.2 | X52: 210.1 | Y52: 193.9 | Z52: 363 | AA52: 357.9
A53: 8 | B53: 2011 | C53: 118.4 | D53: 118.6 | E53: 117.7 | F53: 120.3 | G53: 118.4 | H53: 116.5 | J53: 118.7 | K53: 117 | L53: 119.1 | M53: 118.2 | N53: 120.2 | O53: 120.2 | P53: 119.1 | Q53: 117.6 | S53: 219.7 | T53: 268.8 | U53: 296.9 | V53: 377.7 | W53: 189.3 | X53: 214.1 | Y53: 194.3 | Z53: 368.9 | AA53: 363.9
A54: 9 | B54: 2011 | C54: 118.9 | D54: 119.1 | E54: 118.1 | F54: 120.8 | G54: 118.7 | H54: 116.8 | J54: 119.1 | K54: 117.1 | L54: 119.5 | M54: 118.4 | N54: 120.8 | O54: 120.8 | P54: 119.7 | Q54: 118 | S54: 220.2 | T54: 272.6 | U54: 294.9 | V54: 377.7 | W54: 189.1 | X54: 213.8 | Y54: 194.3 | Z54: 368.9 | AA54: 363.9
A55: 10 | B55: 2011 | C55: 119.4 | D55: 119.7 | E55: 118.9 | F55: 121.7 | G55: 119.4 | H55: 117.7 | J55: 119.7 | K55: 117.8 | L55: 120.2 | M55: 119.3 | N55: 121.5 | O55: 121.5 | P55: 120.4 | Q55: 118.8 | S55: 221.6 | T55: 276.9 | U55: 296.3 | V55: 392.4 | W55: 187.6 | X55: 213.2 | Y55: 193.9 | Z55: 382.8 | AA55: 377.9
A56: 11 | B56: 2011 | C56: 119.5 | D56: 120.1 | E56: 119.2 | F56: 122.1 | G56: 119.9 | H56: 118.1 | J56: 120.1 | K56: 117.9 | L56: 120.6 | M56: 119.4 | N56: 121.8 | O56: 121.8 | P56: 120.5 | Q56: 118.9 | S56: 223.2 | T56: 286.2 | U56: 303.7 | V56: 413.1 | W56: 187.7 | X56: 213.4 | Y56: 194.3 | Z56: 397.1 | AA56: 392.3
A57: 12 | B57: 2011 | C57: 119.7 | D57: 120.3 | E57: 119.4 | F57: 122.4 | G57: 120.1 | H57: 118.4 | J57: 120.3 | K57: 118 | L57: 120.8 | M57: 119.7 | N57: 122.3 | O57: 122.3 | P57: 120.9 | Q57: 119.2 | S57: 223.6 | T57: 286.5 | U57: 311.1 | V57: 419.9 | W57: 188.4 | X57: 213.7 | Y57: 195.1 | Z57: 409.4 | AA57: 411.1
A58: 1 | B58: 2012 | C58: 120.2 | D58: 120.8 | E58: 119.6 | F58: 123.3 | G58: 120.8 | H58: 118.6 | J58: 121.2 | K58: 118.8 | L58: 121.5 | M58: 119.5 | N58: 123 | O58: 123 | P58: 121.8 | Q58: 119.7 | S58: 224.5 | T58: 287.7 | U58: 312 | V58: 409.3 | W58: 188.6 | X58: 213.7 | Y58: 194.9 | Z58: 407.4 | AA58: 402.7
A59: 2 | B59: 2012 | C59: 120.8 | D59: 121.4 | E59: 120.6 | F59: 124 | G59: 121.6 | H59: 119.3 | J59: 121.8 | K59: 119.5 | L59: 122.3 | M59: 121.2 | N59: 123.9 | O59: 123.9 | P59: 122.5 | Q59: 120.5 | S59: 226.6 | T59: 290.5 | U59: 318 | V59: 409 | W59: 189.4 | X59: 214.7 | Y59: 195.3 | Z59: 407.4 | AA59: 402.3
A60: 3 | B60: 2012 | C60: 122.1 | D60: 122.8 | E60: 122.7 | F60: 125 | G60: 122.6 | H60: 120.7 | J60: 123.3 | K60: 120.7 | L60: 123.3 | M60: 122.7 | N60: 125.1 | O60: 125.1 | P60: 123.4 | Q60: 121.6 | S60: 228.2 | T60: 290.5 | U60: 317.3 | V60: 414.2 | W60: 188.2 | X60: 214.4 | Y60: 194.8 | Z60: 411.4 | AA60: 406.7
A61: 4 | B61: 2012 | C61: 122.7 | D61: 123.3 | E61: 123.3 | F61: 125.2 | G61: 123 | H61: 121.3 | J61: 123.8 | K61: 121.2 | L61: 123.8 | M61: 123.1 | N61: 125.7 | O61: 125.7 | P61: 124.1 | Q61: 122.1 | S61: 227.9 | T61: 290.4 | U61: 317.1 | V61: 422.2 | W61: 188.6 | X61: 218 | Y61: 198.6 | Z61: 431.6 | AA61: 425.5
A62: 5 | B62: 2012 | C62: 122.9 | D62: 123.5 | E62: 123.6 | F62: 125.3 | G62: 123.3 | H62: 121.4 | J62: 123.9 | K62: 121.2 | L62: 124 | M62: 123 | N62: 125.6 | O62: 125.6 | P62: 124 | Q62: 122.1 | S62: 226.9 | T62: 288.9 | U62: 323 | V62: 426.6 | W62: 190.3 | X62: 218.8 | Y62: 199.4 | Z62: 435.6 | AA62: 429.5
A63: 6 | B63: 2012 | C63: 123.2 | D63: 124 | E63: 123.8 | F63: 125.2 | G63: 124.2 | H63: 121.7 | J63: 123.7 | K63: 121.8 | L63: 124.5 | M63: 123.8 | N63: 125.6 | O63: 125.6 | P63: 124.2 | Q63: 121.9 | S63: 226.8 | T63: 289.1 | U63: 324 | V63: 410.3 | W63: 190.8 | X63: 219.1 | Y63: 199.9 | Z63: 425.7 | AA63: 421.1
A64: 7 | B64: 2012 | C64: 123.6 | D64: 124.7 | E64: 124.2 | F64: 126.5 | G64: 124.6 | H64: 121.9 | J64: 124.3 | K64: 122.2 | L64: 124.8 | M64: 123.9 | N64: 125.9 | O64: 125.9 | P64: 124.8 | Q64: 122.5 | S64: 227.1 | T64: 289.9 | U64: 325.3 | V64: 378.6 | W64: 191 | X64: 220.2 | Y64: 200 | Z64: 401.1 | AA64: 394.3
A65: 8 | B65: 2012 | C65: 123.8 | D65: 124.9 | E65: 124.4 | F65: 126.8 | G65: 124.7 | H65: 122.1 | J65: 124.5 | K65: 122.4 | L65: 125.3 | M65: 124.5 | N65: 126.3 | O65: 126.3 | P65: 124.9 | Q65: 122.8 | S65: 227.9 | T65: 290 | U65: 324.2 | V65: 388 | W65: 191.5 | X65: 219.1 | Y65: 200.5 | Z65: 406.6 | AA65: 399.9
A66: 9 | B66: 2012 | C66: 124.9 | D66: 125.7 | E66: 125.4 | F66: 128 | G66: 125.9 | H66: 123.3 | J66: 125.5 | K66: 123.3 | L66: 126.3 | M66: 126.2 | N66: 127.3 | O66: 127.3 | P66: 126 | Q66: 124.1 | S66: 227.5 | T66: 289.8 | U66: 323.5 | V66: 412.7 | W66: 192.5 | X66: 223.2 | Y66: 200.6 | Z66: 434 | AA66: 427.5
A67: 10 | B67: 2012 | C67: 125.5 | D67: 126.5 | E67: 126.1 | F67: 128.6 | G67: 126.7 | H67: 124.1 | J67: 126.3 | K67: 124 | L67: 127.3 | M67: 127.1 | N67: 128.2 | O67: 128.2 | P67: 126.5 | Q67: 124.9 | S67: 226.8 | T67: 285.9 | U67: 324 | V67: 433 | W67: 192.5 | X67: 224.1 | Y67: 201.4 | Z67: 436.4 | AA67: 443.5
A68: 11 | B68: 2012 | C68: 125.8 | D68: 126.9 | E68: 126.4 | F68: 129 | G68: 126.9 | H68: 124.4 | J68: 126.6 | K68: 124.3 | L68: 127.5 | M68: 127.3 | N68: 128.6 | O68: 128.6 | P68: 126.8 | Q68: 125.1 | S68: 227.5 | T68: 285.9 | U68: 326.4 | V68: 439.3 | W68: 193.2 | X68: 225.1 | Y68: 202.1 | Z68: 446.3 | AA68: 447.5
A69: 12 | B69: 2012 | C69: 126.3 | D69: 127.2 | E69: 126.9 | F69: 129 | G69: 127.3 | H69: 124.9 | J69: 126.8 | K69: 124.4 | L69: 127.8 | M69: 127.4 | N69: 128.9 | O69: 128.9 | P69: 127 | Q69: 125.4 | S69: 228.2 | T69: 289 | U69: 329.3 | V69: 435.9 | W69: 193.7 | X69: 225.3 | Y69: 202.6 | Z69: 444.4 | AA69: 445.5
A70: Dec 2012=100 | S70: Dec 2012 = 100
D71: Refer to P0141 - Consumer Price Index: Aditional tables: | T71: Refer to P0151 - Contract Price Adjustment Provisions(CPAP): | Z71: Fuel Wholesale
D72: Table 14 - CPI all items, according to area | T72: Work Groups and Selected Materials Indices: Table 3 and Table 4
A73: STATSSA | D73: (Divide new indices by conversion factors provided by STATSSA) | T73: (Multiply new indices by conversion factors provided by STATSSA)
A74: Conversion | C74: 0.7917656374 | D74: 0.786163522 | E74: 0.7880220646 | F74: 0.7751937984 | G74: 0.7855459544 | H74: 0.8006405124 | J74: 0.7886435331 | K74: 0.8038585209 | L74: 0.7824726135 | M74: 0.7849293564 | N74: 0.7757951901 | O74: 0.7757951901 | P74: 0.7874015748 | Q74: 0.7974481659 | S74: 2.272 | T74: 2.89 | U74: 3.22 | V74: 4.149 | W74: 1.909 | X74: 2.196 | Y74: 1.992 | Z74: 4.24 | AA74: 4.205
A75: Factors
S76: Table 3 | T76: Table 4 | U76: Table 4 | V76: Table 4 | W76: Table 4 | X76: Table 4 | Y76: Table 4 | Z76: Table 4 | AA76: Table 4
A77: 1 | B77: 2013 | C77: =100.2/C120 -> 126.5526 | D77: =100.1/D120 -> 127.3272 | E77: =100.2/E120 -> 127.1538 | F77: =100.5/F120 -> 129.645 | G77: =100.5/G120 -> 127.9365 | H77: =100.1/H120 -> 125.0249 | J77: =100.3/J120 -> 127.1804 | K77: =100.4/K120 -> 124.8976 | L77: 128.3112 | M77: 127.9096 | N77: 129.4156 | O77: 129.4156 | P77: 127.508 | Q77: =100.5/Q120 -> 126.027 | S77: =+S120*101.8 -> 231.2896 | T77: =+T120*103.2 -> 298.248 | U77: =+U120*104.4 -> 336.168 | V77: =+V120*103 -> 427.347 | W77: =+W120*102.3 -> 195.2907 | X77: =+X120*103.1 -> 226.4076 | Y77: =+Y120*102.4 -> 203.9808 | Z77: =+Z120*102.2 -> 433.328 | AA77: =+AA120*103.4 -> 434.797
A78: 2 | B78: 2013 | C78: =100.8/C120 -> 127.3104 | D78: =101.2/D120 -> 128.7264 | E78: =101.3/E120 -> 128.5497 | F78: =100.9/F120 -> 130.161 | G78: =102/G120 -> 129.846 | H78: =101.2/H120 -> 126.3988 | J78: =101.7/J120 -> 128.9556 | K78: =101.8/K120 -> 126.6392 | L78: =101.5/L120 -> 129.717 | M78: =101.2/M120 -> 128.9288 | N78: =101.2/N120 -> 130.4468 | O78: =101.2/O120 -> 130.4468 | P78: =101.4/P120 -> 128.778 | Q78: =101.3/Q120 -> 127.0302 | S78: =+S120*102.2 -> 232.1984 | T78: =+T120*104.8 -> 302.872 | U78: =+U120*105.1 -> 338.422 | V78: =+V120*104.3 -> 432.7407 | W78: =+W120*102.5 -> 195.6725 | X78: =+X120*103.1 -> 226.4076 | Y78: =+Y120*102.4 -> 203.9808 | Z78: =+Z120*103.9 -> 440.536 | AA78: =+AA120*105 -> 441.525
A79: 3 | B79: 2013 | C79: =102.2/C120 -> 129.0786 | D79: =102/D120 -> 129.744 | E79: =102.4/E120 -> 129.9456 | F79: =101.8/F120 -> 131.322 | G79: =102.9/G120 -> 130.9917 | H79: =102.8/H120 -> 128.3972 | J79: =103.2/J120 -> 130.8576 | K79: =103/K120 -> 128.132 | L79: =102.6/L120 -> 131.1228 | M79: =101.9/M120 -> 129.8206 | N79: =102.4/N120 -> 131.9936 | O79: =102.4/O120 -> 131.9936 | P79: =102.1/P120 -> 129.667 | Q79: =102.8/Q120 -> 128.9112 | S79: =+S120*103.1 -> 234.2432 | T79: =+T120*104.5 -> 302.005 | U79: =+U120*104.9 -> 337.778 | V79: =+V120*108.6 -> 450.5814 | W79: =+W120*103.6 -> 197.7724 | X79: =+X120*103.5 -> 227.286 | Y79: =+Y120*103.6 -> 206.3712 | Z79: =+Z120*109.3 -> 463.432 | AA79: =+AA120*110.6 -> 465.073
